{"text_format":"1","workbook":"xlsx","n_sheets":4,"sheets":["免責事項","マスタ","納品書情報","集計"],"not_rendered":{"charts":0,"images":0,"macros":1,"external_links":0,"defined_names":1,"comments":0,"pivot_tables":0},"unopened":[],"bounds":{"document_bytes":16777216,"sheet_cells":100000,"rows_first":2000,"rows_last":500,"rows_between":2000,"halvings":0,"cell_chars":16384,"cell_head_chars":4096},"cells_cut":0,"cells_raw":0,"read":"whole","date_system":"1900"}

{"sheet":"免責事項","index":0,"n_rows":14,"n_cols":2,"rows_kept":14,"cut":false,"hidden":false,"merged":[]}
[]
[null,"納品管理表ツール　免責事項"]
[null,"作成者：株式会社IGブレーン"]
[]
[null," ・本ツールは簡易的な集計ツールです。正確性や事業成果を保証するものではございません。"]
[null," ・ExcelのVBAを用いたツールです。不具合による問題への対応や損害への補償は行っておりません。"]
[null," ・ファイルの損傷、損失、変更についての一切の損害への補償は行っておりません。"]
[null," ・VBA ソースコードはパスワードで保護しています。パスワードを解除したり、ソースコードの改変はしないでください。"]
[null," ・著作権については放棄しておりませんので、作成者の株式会社IGブレーンに属します。再配布は禁止しております。"]
[]
[null,"●お問い合わせ先"]
[null,"長崎県長崎市元船町14-10　橋本商会ビル4F "]
[null,"TEL：095-826-1311 ／ FAX：095-826-3225"]
[null,"https://ig-brain.com/"]

{"sheet":"マスタ","index":1,"n_rows":20,"n_cols":4,"rows_kept":20,"cut":false,"hidden":false,"merged":[]}
[]
[null,"■場所",null,"■部門"]
[null,"A工場",null,"販売"]
[null,"B工場",null,"レンタル"]
[null,"C工場",null,"リース"]
[]
[null,null,null,"在庫"]
[null,null,null,"その他"]
[]
[null,null,null,"■種別"]
[null,null,null,"大型機械"]
[null,null,null,"小型機械"]
[null,null,null,"部品"]
[null,null,null,"燃料"]
[null,null,null,"備品"]
[null,null,null,"その他"]
[]
[]
[null,"■発注先名"]
[null,"㈱ＩＧブレーン"]

{"sheet":"納品書情報","index":2,"n_rows":12005,"n_cols":18,"rows_kept":4500,"cut":true,"hidden":false,"merged":[[2,1,4,1],[3,14,3,17],[2,3,2,11],[2,13,2,17],[3,3,3,8],[3,9,3,11],[3,13,4,13],[2,2,4,2]],"bounds":{"rows_first":2000,"rows_last":500,"rows_between":2000,"halvings":0}}
[]
[]
[null,"No.","納品日","発注情報",null,null,null,null,null,null,null,null,null,"売上・利益情報"]
[null,null,null,"基本情報",null,null,null,null,null,"金額情報",null,null,null,"販売予定月","金額情報"]
[null,null,null,"場所","お客様名","部門","種別","発注先","商品名","単価（税抜）","数量","仕入金額",null,null,"希・自","販売価格","利益額","利益率"]
[null,1,"2021-01-01","A工場","寺下　祐介","販売","大型機械","㈱ＩＧブレーン","OGATA－X",3000000,1,3000000,null,"2021/10","自",4285714,{"$f":"IF(P6=\"\",\"\",P6-L6)","v":1285714},{"$f":"IFERROR(Q6/P6,\"\")","v":0.29999995333333024}]
[null,2,null,null,null,null,null,null,null,null,null,null,null,null,null,null,{"$f":"IF(P7=\"\",\"\",P7-L7)","v":""},{"$f":"IFERROR(Q7/P7,\"\")","v":""}]
[null,3,null,null,null,null,null,null,null,null,null,null,null,null,null,null,"",""]
[null,4,null,null,null,null,null,null,null,null,null,null,null,null,null,null,"",""]
[null,5,null,null,null,null,null,null,null,null,null,null,null,null,null,null,"",""]
[null,6,null,null,null,null,null,null,null,null,null,null,null,null,null,null,"",""]
[null,7,null,null,null,null,null,null,null,null,null,null,null,null,null,null,"",""]
[null,8,null,null,null,null,null,null,null,null,null,null,null,null,null,null,"",""]
[null,9,null,null,null,null,null,null,null,null,null,null,null,null,null,null,"",""]
[null,10,null,null,null,null,null,null,null,null,null,null,null,null,null,null,{"$f":"IF(P15=\"\",\"\",P15-L15)","v":""},{"$f":"IFERROR(Q15/P15,\"\")","v":""}]
[null,11,null,null,null,null,null,null,null,null,null,null,null,null,null,null,{"$f":"IF(P16=\"\",\"\",P16-L16)","v":""},{"$f":"IFERROR(Q16/P16,\"\")","v":""}]
[null,12,null,null,null,null,null,null,null,null,null,null,null,null,null,null,"",""]
[null,13,null,null,null,null,null,null,null,null,null,null,null,null,null,null,"",""]
[null,14,null,null,null,null,null,null,null,null,null,null,null,null,null,null,"",""]
[null,15,null,null,null,null,null,null,null,null,null,null,null,null,null,null,"",""]
[null,16,null,null,null,null,null,null,null,null,null,null,null,null,null,null,"",""]
[null,17,null,null,null,null,null,null,null,null,null,null,null,null,null,null,"",""]
[null,18,null,null,null,null,null,null,null,null,null,null,null,null,null,null,"",""]
[null,19,null,null,null,null,null,null,null,null,null,null,null,null,null,null,"",""]
[null,20,null,null,null,null,null,null,null,null,null,null,null,null,null,null,"",""]
[null,21,null,null,null,null,null,null,null,null,null,null,null,null,null,null,"",""]
[null,22,null,null,null,null,null,null,null,null,null,null,null,null,null,null,"",""]
[null,23,null,null,null,null,null,null,null,null,null,null,null,null,null,null,"",""]
[null,24,null,null,null,null,null,null,null,null,null,null,null,null,null,null,"",""]
[null,25,null,null,null,null,null,null,null,null,null,null,null,null,null,null,"",""]
[null,26,null,null,null,null,null,null,null,null,null,null,null,null,null,null,"",""]
[null,27,null,null,null,null,null,null,null,null,null,null,null,null,null,null,"",""]
[null,28,null,null,null,null,null,null,null,null,null,null,null,null,null,null,"",""]
[null,29,null,null,null,null,null,null,null,null,null,null,null,null,null,null,"",""]
[null,30,null,null,null,null,null,null,null,null,null,null,null,null,null,null,"",""]
[null,31,null,null,null,null,null,null,null,null,null,null,null,null,null,null,"",""]
[null,32,null,null,null,null,null,null,null,null,null,null,null,null,null,null,"",""]
[null,33,null,null,null,null,null,null,null,null,null,null,null,null,null,null,"",""]
[null,34,null,null,null,null,null,null,null,null,null,null,null,null,null,null,"",""]
[null,35,null,null,null,null,null,null,null,null,null,null,null,null,null,null,"",""]
[null,36,null,null,null,null,null,null,null,null,null,null,null,null,null,null,"",""]
[null,37,null,null,null,null,null,null,null,null,null,null,null,null,null,null,"",""]
[null,38,null,null,null,null,null,null,null,null,null,null,null,null,null,null,"",""]
[null,39,null,null,null,null,null,null,null,null,null,null,null,null,null,null,"",""]
[null,40,null,null,null,null,null,null,null,null,null,null,null,null,null,null,"",""]
[null,41,null,null,null,null,null,null,null,null,null,null,null,null,null,null,"",""]
[null,42,null,null,null,null,null,null,null,null,null,null,null,null,null,null,"",""]
[null,43,null,null,null,null,null,null,null,null,null,null,null,null,null,null,"",""]
[null,44,null,null,null,null,null,null,null,null,null,null,null,null,null,null,"",""]
[null,45,null,null,null,null,null,null,null,null,null,null,null,null,null,null,"",""]
[null,46,null,null,null,null,null,null,null,null,null,null,null,null,null,null,"",""]
[null,47,null,null,null,null,null,null,null,null,null,null,null,null,null,null,"",""]
[null,48,null,null,null,null,null,null,null,null,null,null,null,null,null,null,"",""]
[null,49,null,null,null,null,null,null,null,null,null,null,null,null,null,null,"",""]
[null,50,null,null,null,null,null,null,null,null,null,null,null,null,null,null,"",""]
[null,51,null,null,null,null,null,null,null,null,null,null,null,null,null,null,"",""]
[null,52,null,null,null,null,null,null,null,null,null,null,null,null,null,null,"",""]
[null,53,null,null,null,null,null,null,null,null,null,null,null,null,null,null,"",""]
[null,54,null,null,null,null,null,null,null,null,null,null,null,null,null,null,"",""]
[null,55,null,null,null,null,null,null,null,null,null,null,null,null,null,null,"",""]
[null,56,null,null,null,null,null,null,null,null,null,null,null,null,null,null,"",""]
[null,57,null,null,null,null,null,null,null,null,null,null,null,null,null,null,"",""]
[null,58,null,null,null,null,null,null,null,null,null,null,null,null,null,null,"",""]
[null,59,null,null,null,null,null,null,null,null,null,null,null,null,null,null,"",""]
[null,60,null,null,null,null,null,null,null,null,null,null,null,null,null,null,"",""]
[null,61,null,null,null,null,null,null,null,null,null,null,null,null,null,null,"",""]
[null,62,null,null,null,null,null,null,null,null,null,null,null,null,null,null,"",""]
[null,63,null,null,null,null,null,null,null,null,null,null,null,null,null,null,"",""]
[null,64,null,null,null,null,null,null,null,null,null,null,null,null,null,null,"",""]
[null,65,null,null,null,null,null,null,null,null,null,null,null,null,null,null,"",""]
[null,66,null,null,null,null,null,null,null,null,null,null,null,null,null,null,{"$f":"IF(P71=\"\",\"\",P71-L71)","v":""},{"$f":"IFERROR(Q71/P71,\"\")","v":""}]
[null,67,null,null,null,null,null,null,null,null,null,null,null,null,null,null,"",""]
[null,68,null,null,null,null,null,null,null,null,null,null,null,null,null,null,"",""]
[null,69,null,null,null,null,null,null,null,null,null,null,null,null,null,null,"",""]
[null,70,null,null,null,null,null,null,null,null,null,null,null,null,null,null,"",""]
[null,71,null,null,null,null,null,null,null,null,null,null,null,null,null,null,"",""]
[null,72,null,null,null,null,null,null,null,null,null,null,null,null,null,null,"",""]
[null,73,null,null,null,null,null,null,null,null,null,null,null,null,null,null,"",""]
[null,74,null,null,null,null,null,null,null,null,null,null,null,null,null,null,"",""]
[null,75,null,null,null,null,null,null,null,null,null,null,null,null,null,null,"",""]
[null,76,null,null,null,null,null,null,null,null,null,null,null,null,null,null,"",""]
[null,77,null,null,null,null,null,null,null,null,null,null,null,null,null,null,"",""]
[null,78,null,null,null,null,null,null,null,null,null,null,null,null,null,null,"",""]
[null,79,null,null,null,null,null,null,null,null,null,null,null,null,null,null,"",""]
[null,80,null,null,null,null,null,null,null,null,null,null,null,null,null,null,"",""]
[null,81,null,null,null,null,null,null,null,null,null,null,null,null,null,null,"",""]
[null,82,null,null,null,null,null,null,null,null,null,null,null,null,null,null,"",""]
[null,83,null,null,null,null,null,null,null,null,null,null,null,null,null,null,"",""]
[null,84,null,null,null,null,null,null,null,null,null,null,null,null,null,null,"",""]
[null,85,null,null,null,null,null,null,null,null,null,null,null,null,null,null,"",""]
[null,86,null,null,null,null,null,null,null,null,null,null,null,null,null,null,"",""]
[null,87,null,null,null,null,null,null,null,null,null,null,null,null,null,null,"",""]
[null,88,null,null,null,null,null,null,null,null,null,null,null,null,null,null,"",""]
[null,89,null,null,null,null,null,null,null,null,null,null,null,null,null,null,"",""]
[null,90,null,null,null,null,null,null,null,null,null,null,null,null,null,null,"",""]
[null,91,null,null,null,null,null,null,null,null,null,null,null,null,null,null,"",""]
[null,92,null,null,null,null,null,null,null,null,null,null,null,null,null,null,"",""]
[null,93,null,null,null,null,null,null,null,null,null,null,null,null,null,null,"",""]
[null,94,null,null,null,null,null,null,null,null,null,null,null,null,null,null,"",""]
[null,95,null,null,null,null,null,null,null,null,null,null,null,null,null,null,"",""]
[null,96,null,null,null,null,null,null,null,null,null,null,null,null,null,null,"",""]
[null,97,null,null,null,null,null,null,null,null,null,null,null,null,null,null,"",""]
[null,98,null,null,null,null,null,null,null,null,null,null,null,null,null,null,"",""]
[null,99,null,null,null,null,null,null,null,null,null,null,null,null,null,null,"",""]
[null,100,null,null,null,null,null,null,null,null,null,null,null,null,null,null,"",""]
[null,101,null,null,null,null,null,null,null,null,null,null,null,null,null,null,"",""]
[null,102,null,null,null,null,null,null,null,null,null,null,null,null,null,null,"",""]
[null,103,null,null,null,null,null,null,null,null,null,null,null,null,null,null,"",""]
[null,104,null,null,null,null,null,null,null,null,null,null,null,null,null,null,"",""]
[null,105,null,null,null,null,null,null,null,null,null,null,null,null,null,null,"",""]
[null,106,null,null,null,null,null,null,null,null,null,null,null,null,null,null,"",""]
[null,107,null,null,null,null,null,null,null,null,null,null,null,null,null,null,"",""]
[null,108,null,null,null,null,null,null,null,null,null,null,null,null,null,null,"",""]
[null,109,null,null,null,null,null,null,null,null,null,null,null,null,null,null,"",""]
[null,110,null,null,null,null,null,null,null,null,null,null,null,null,null,null,"",""]
[null,111,null,null,null,null,null,null,null,null,null,null,null,null,null,null,"",""]
[null,112,null,null,null,null,null,null,null,null,null,null,null,null,null,null,"",""]
[null,113,null,null,null,null,null,null,null,null,null,null,null,null,null,null,"",""]
[null,114,null,null,null,null,null,null,null,null,null,null,null,null,null,null,"",""]
[null,115,null,null,null,null,null,null,null,null,null,null,null,null,null,null,"",""]
[null,116,null,null,null,null,null,null,null,null,null,null,null,null,null,null,"",""]
[null,117,null,null,null,null,null,null,null,null,null,null,null,null,null,null,"",""]
[null,118,null,null,null,null,null,null,null,null,null,null,null,null,null,null,"",""]
[null,119,null,null,null,null,null,null,null,null,null,null,null,null,null,null,"",""]
[null,120,null,null,null,null,null,null,null,null,null,null,null,null,null,null,"",""]
[null,121,null,null,null,null,null,null,null,null,null,null,null,null,null,null,"",""]
[null,122,null,null,null,null,null,null,null,null,null,null,null,null,null,null,"",""]
[null,123,null,null,null,null,null,null,null,null,null,null,null,null,null,null,"",""]
[null,124,null,null,null,null,null,null,null,null,null,null,null,null,null,null,"",""]
[null,125,null,null,null,null,null,null,null,null,null,null,null,null,null,null,"",""]
[null,126,null,null,null,null,null,null,null,null,null,null,null,null,null,null,"",""]
[null,127,null,null,null,null,null,null,null,null,null,null,null,null,null,null,"",""]
[null,128,null,null,null,null,null,null,null,null,null,null,null,null,null,null,"",""]
[null,129,null,null,null,null,null,null,null,null,null,null,null,null,null,null,"",""]
[null,130,null,null,null,null,null,null,null,null,null,null,null,null,null,null,{"$f":"IF(P135=\"\",\"\",P135-L135)","v":""},{"$f":"IFERROR(Q135/P135,\"\")","v":""}]
[null,131,null,null,null,null,null,null,null,null,null,null,null,null,null,null,"",""]
[null,132,null,null,null,null,null,null,null,null,null,null,null,null,null,null,"",""]
[null,133,null,null,null,null,null,null,null,null,null,null,null,null,null,null,"",""]
[null,134,null,null,null,null,null,null,null,null,null,null,null,null,null,null,"",""]
[null,135,null,null,null,null,null,null,null,null,null,null,null,null,null,null,"",""]
[null,136,null,null,null,null,null,null,null,null,null,null,null,null,null,null,"",""]
[null,137,null,null,null,null,null,null,null,null,null,null,null,null,null,null,"",""]
[null,138,null,null,null,null,null,null,null,null,null,null,null,null,null,null,"",""]
[null,139,null,null,null,null,null,null,null,null,null,null,null,null,null,null,"",""]
[null,140,null,null,null,null,null,null,null,null,null,null,null,null,null,null,"",""]
[null,141,null,null,null,null,null,null,null,null,null,null,null,null,null,null,"",""]
[null,142,null,null,null,null,null,null,null,null,null,null,null,null,null,null,"",""]
[null,143,null,null,null,null,null,null,null,null,null,null,null,null,null,null,"",""]
[null,144,null,null,null,null,null,null,null,null,null,null,null,null,null,null,"",""]
[null,145,null,null,null,null,null,null,null,null,null,null,null,null,null,null,"",""]
[null,146,null,null,null,null,null,null,null,null,null,null,null,null,null,null,"",""]
[null,147,null,null,null,null,null,null,null,null,null,null,null,null,null,null,"",""]
[null,148,null,null,null,null,null,null,null,null,null,null,null,null,null,null,"",""]
[null,149,null,null,null,null,null,null,null,null,null,null,null,null,null,null,"",""]
[null,150,null,null,null,null,null,null,null,null,null,null,null,null,null,null,"",""]
[null,151,null,null,null,null,null,null,null,null,null,null,null,null,null,null,"",""]
[null,152,null,null,null,null,null,null,null,null,null,null,null,null,null,null,"",""]
[null,153,null,null,null,null,null,null,null,null,null,null,null,null,null,null,"",""]
[null,154,null,null,null,null,null,null,null,null,null,null,null,null,null,null,"",""]
[null,155,null,null,null,null,null,null,null,null,null,null,null,null,null,null,"",""]
[null,156,null,null,null,null,null,null,null,null,null,null,null,null,null,null,"",""]
[null,157,null,null,null,null,null,null,null,null,null,null,null,null,null,null,"",""]
[null,158,null,null,null,null,null,null,null,null,null,null,null,null,null,null,"",""]
[null,159,null,null,null,null,null,null,null,null,null,null,null,null,null,null,"",""]
[null,160,null,null,null,null,null,null,null,null,null,null,null,null,null,null,"",""]
[null,161,null,null,null,null,null,null,null,null,null,null,null,null,null,null,"",""]
[null,162,null,null,null,null,null,null,null,null,null,null,null,null,null,null,"",""]
[null,163,null,null,null,null,null,null,null,null,null,null,null,null,null,null,"",""]
[null,164,null,null,null,null,null,null,null,null,null,null,null,null,null,null,"",""]
[null,165,null,null,null,null,null,null,null,null,null,null,null,null,null,null,"",""]
[null,166,null,null,null,null,null,null,null,null,null,null,null,null,null,null,"",""]
[null,167,null,null,null,null,null,null,null,null,null,null,null,null,null,null,"",""]
[null,168,null,null,null,null,null,null,null,null,null,null,null,null,null,null,"",""]
[null,169,null,null,null,null,null,null,null,null,null,null,null,null,null,null,"",""]
[null,170,null,null,null,null,null,null,null,null,null,null,null,null,null,null,"",""]
[null,171,null,null,null,null,null,null,null,null,null,null,null,null,null,null,"",""]
[null,172,null,null,null,null,null,null,null,null,null,null,null,null,null,null,"",""]
[null,173,null,null,null,null,null,null,null,null,null,null,null,null,null,null,"",""]
[null,174,null,null,null,null,null,null,null,null,null,null,null,null,null,null,"",""]
[null,175,null,null,null,null,null,null,null,null,null,null,null,null,null,null,"",""]
[null,176,null,null,null,null,null,null,null,null,null,null,null,null,null,null,"",""]
[null,177,null,null,null,null,null,null,null,null,null,null,null,null,null,null,"",""]
[null,178,null,null,null,null,null,null,null,null,null,null,null,null,null,null,"",""]
[null,179,null,null,null,null,null,null,null,null,null,null,null,null,null,null,"",""]
[null,180,null,null,null,null,null,null,null,null,null,null,null,null,null,null,"",""]
[null,181,null,null,null,null,null,null,null,null,null,null,null,null,null,null,"",""]
[null,182,null,null,null,null,null,null,null,null,null,null,null,null,null,null,"",""]
[null,183,null,null,null,null,null,null,null,null,null,null,null,null,null,null,"",""]
[null,184,null,null,null,null,null,null,null,null,null,null,null,null,null,null,"",""]
[null,185,null,null,null,null,null,null,null,null,null,null,null,null,null,null,"",""]
[null,186,null,null,null,null,null,null,null,null,null,null,null,null,null,null,"",""]
[null,187,null,null,null,null,null,null,null,null,null,null,null,null,null,null,"",""]
[null,188,null,null,null,null,null,null,null,null,null,null,null,null,null,null,"",""]
[null,189,null,null,null,null,null,null,null,null,null,null,null,null,null,null,"",""]
[null,190,null,null,null,null,null,null,null,null,null,null,null,null,null,null,"",""]
[null,191,null,null,null,null,null,null,null,null,null,null,null,null,null,null,"",""]
[null,192,null,null,null,null,null,null,null,null,null,null,null,null,null,null,"",""]
[null,193,null,null,null,null,null,null,null,null,null,null,null,null,null,null,"",""]
[null,194,null,null,null,null,null,null,null,null,null,null,null,null,null,null,{"$f":"IF(P199=\"\",\"\",P199-L199)","v":""},{"$f":"IFERROR(Q199/P199,\"\")","v":""}]
[null,195,null,null,null,null,null,null,null,null,null,null,null,null,null,null,"",""]
[null,196,null,null,null,null,null,null,null,null,null,null,null,null,null,null,"",""]
[null,197,null,null,null,null,null,null,null,null,null,null,null,null,null,null,"",""]
[null,198,null,null,null,null,null,null,null,null,null,null,null,null,null,null,"",""]
[null,199,null,null,null,null,null,null,null,null,null,null,null,null,null,null,"",""]
[null,200,null,null,null,null,null,null,null,null,null,null,null,null,null,null,"",""]
[null,201,null,null,null,null,null,null,null,null,null,null,null,null,null,null,"",""]
[null,202,null,null,null,null,null,null,null,null,null,null,null,null,null,null,"",""]
[null,203,null,null,null,null,null,null,null,null,null,null,null,null,null,null,"",""]
[null,204,null,null,null,null,null,null,null,null,null,null,null,null,null,null,"",""]
[null,205,null,null,null,null,null,null,null,null,null,null,null,null,null,null,"",""]
[null,206,null,null,null,null,null,null,null,null,null,null,null,null,null,null,"",""]
[null,207,null,null,null,null,null,null,null,null,null,null,null,null,null,null,"",""]
[null,208,null,null,null,null,null,null,null,null,null,null,null,null,null,null,"",""]
[null,209,null,null,null,null,null,null,null,null,null,null,null,null,null,null,"",""]
[null,210,null,null,null,null,null,null,null,null,null,null,null,null,null,null,"",""]
[null,211,null,null,null,null,null,null,null,null,null,null,null,null,null,null,"",""]
[null,212,null,null,null,null,null,null,null,null,null,null,null,null,null,null,"",""]
[null,213,null,null,null,null,null,null,null,null,null,null,null,null,null,null,"",""]
[null,214,null,null,null,null,null,null,null,null,null,null,null,null,null,null,"",""]
[null,215,null,null,null,null,null,null,null,null,null,null,null,null,null,null,"",""]
[null,216,null,null,null,null,null,null,null,null,null,null,null,null,null,null,"",""]
[null,217,null,null,null,null,null,null,null,null,null,null,null,null,null,null,"",""]
[null,218,null,null,null,null,null,null,null,null,null,null,null,null,null,null,"",""]
[null,219,null,null,null,null,null,null,null,null,null,null,null,null,null,null,"",""]
[null,220,null,null,null,null,null,null,null,null,null,null,null,null,null,null,"",""]
[null,221,null,null,null,null,null,null,null,null,null,null,null,null,null,null,"",""]
[null,222,null,null,null,null,null,null,null,null,null,null,null,null,null,null,"",""]
[null,223,null,null,null,null,null,null,null,null,null,null,null,null,null,null,"",""]
[null,224,null,null,null,null,null,null,null,null,null,null,null,null,null,null,"",""]
[null,225,null,null,null,null,null,null,null,null,null,null,null,null,null,null,"",""]
[null,226,null,null,null,null,null,null,null,null,null,null,null,null,null,null,"",""]
[null,227,null,null,null,null,null,null,null,null,null,null,null,null,null,null,"",""]
[null,228,null,null,null,null,null,null,null,null,null,null,null,null,null,null,"",""]
[null,229,null,null,null,null,null,null,null,null,null,null,null,null,null,null,"",""]
[null,230,null,null,null,null,null,null,null,null,null,null,null,null,null,null,"",""]
[null,231,null,null,null,null,null,null,null,null,null,null,null,null,null,null,"",""]
[null,232,null,null,null,null,null,null,null,null,null,null,null,null,null,null,"",""]
[null,233,null,null,null,null,null,null,null,null,null,null,null,null,null,null,"",""]
[null,234,null,null,null,null,null,null,null,null,null,null,null,null,null,null,"",""]
[null,235,null,null,null,null,null,null,null,null,null,null,null,null,null,null,"",""]
[null,236,null,null,null,null,null,null,null,null,null,null,null,null,null,null,"",""]
[null,237,null,null,null,null,null,null,null,null,null,null,null,null,null,null,"",""]
[null,238,null,null,null,null,null,null,null,null,null,null,null,null,null,null,"",""]
[null,239,null,null,null,null,null,null,null,null,null,null,null,null,null,null,"",""]
[null,240,null,null,null,null,null,null,null,null,null,null,null,null,null,null,"",""]
[null,241,null,null,null,null,null,null,null,null,null,null,null,null,null,null,"",""]
[null,242,null,null,null,null,null,null,null,null,null,null,null,null,null,null,"",""]
[null,243,null,null,null,null,null,null,null,null,null,null,null,null,null,null,"",""]
[null,244,null,null,null,null,null,null,null,null,null,null,null,null,null,null,"",""]
[null,245,null,null,null,null,null,null,null,null,null,null,null,null,null,null,"",""]
[null,246,null,null,null,null,null,null,null,null,null,null,null,null,null,null,"",""]
[null,247,null,null,null,null,null,null,null,null,null,null,null,null,null,null,"",""]
[null,248,null,null,null,null,null,null,null,null,null,null,null,null,null,null,"",""]
[null,249,null,null,null,null,null,null,null,null,null,null,null,null,null,null,"",""]
[null,250,null,null,null,null,null,null,null,null,null,null,null,null,null,null,"",""]
[null,251,null,null,null,null,null,null,null,null,null,null,null,null,null,null,"",""]
[null,252,null,null,null,null,null,null,null,null,null,null,null,null,null,null,"",""]
[null,253,null,null,null,null,null,null,null,null,null,null,null,null,null,null,"",""]
[null,254,null,null,null,null,null,null,null,null,null,null,null,null,null,null,"",""]
[null,255,null,null,null,null,null,null,null,null,null,null,null,null,null,null,"",""]
[null,256,null,null,null,null,null,null,null,null,null,null,null,null,null,null,"",""]
[null,257,null,null,null,null,null,null,null,null,null,null,null,null,null,null,"",""]
[null,258,null,null,null,null,null,null,null,null,null,null,null,null,null,null,{"$f":"IF(P263=\"\",\"\",P263-L263)","v":""},{"$f":"IFERROR(Q263/P263,\"\")","v":""}]
[null,259,null,null,null,null,null,null,null,null,null,null,null,null,null,null,"",""]
[null,260,null,null,null,null,null,null,null,null,null,null,null,null,null,null,"",""]
[null,261,null,null,null,null,null,null,null,null,null,null,null,null,null,null,"",""]
[null,262,null,null,null,null,null,null,null,null,null,null,null,null,null,null,"",""]
[null,263,null,null,null,null,null,null,null,null,null,null,null,null,null,null,"",""]
[null,264,null,null,null,null,null,null,null,null,null,null,null,null,null,null,"",""]
[null,265,null,null,null,null,null,null,null,null,null,null,null,null,null,null,"",""]
[null,266,null,null,null,null,null,null,null,null,null,null,null,null,null,null,"",""]
[null,267,null,null,null,null,null,null,null,null,null,null,null,null,null,null,"",""]
[null,268,null,null,null,null,null,null,null,null,null,null,null,null,null,null,"",""]
[null,269,null,null,null,null,null,null,null,null,null,null,null,null,null,null,"",""]
[null,270,null,null,null,null,null,null,null,null,null,null,null,null,null,null,"",""]
[null,271,null,null,null,null,null,null,null,null,null,null,null,null,null,null,"",""]
[null,272,null,null,null,null,null,null,null,null,null,null,null,null,null,null,"",""]
[null,273,null,null,null,null,null,null,null,null,null,null,null,null,null,null,"",""]
[null,274,null,null,null,null,null,null,null,null,null,null,null,null,null,null,"",""]
[null,275,null,null,null,null,null,null,null,null,null,null,null,null,null,null,"",""]
[null,276,null,null,null,null,null,null,null,null,null,null,null,null,null,null,"",""]
[null,277,null,null,null,null,null,null,null,null,null,null,null,null,null,null,"",""]
[null,278,null,null,null,null,null,null,null,null,null,null,null,null,null,null,"",""]
[null,279,null,null,null,null,null,null,null,null,null,null,null,null,null,null,"",""]
[null,280,null,null,null,null,null,null,null,null,null,null,null,null,null,null,"",""]
[null,281,null,null,null,null,null,null,null,null,null,null,null,null,null,null,{"$f":"IF(P286=\"\",\"\",P286-L286)","v":""},{"$f":"IFERROR(Q286/P286,\"\")","v":""}]
[null,282,null,null,null,null,null,null,null,null,null,null,null,null,null,null,{"$f":"IF(P287=\"\",\"\",P287-L287)","v":""},{"$f":"IFERROR(Q287/P287,\"\")","v":""}]
[null,283,null,null,null,null,null,null,null,null,null,null,null,null,null,null,"",""]
[null,284,null,null,null,null,null,null,null,null,null,null,null,null,null,null,"",""]
[null,285,null,null,null,null,null,null,null,null,null,null,null,null,null,null,"",""]
[null,286,null,null,null,null,null,null,null,null,null,null,null,null,null,null,"",""]
[null,287,null,null,null,null,null,null,null,null,null,null,null,null,null,null,"",""]
[null,288,null,null,null,null,null,null,null,null,null,null,null,null,null,null,"",""]
[null,289,null,null,null,null,null,null,null,null,null,null,null,null,null,null,"",""]
[null,290,null,null,null,null,null,null,null,null,null,null,null,null,null,null,"",""]
[null,291,null,null,null,null,null,null,null,null,null,null,null,null,null,null,"",""]
[null,292,null,null,null,null,null,null,null,null,null,null,null,null,null,null,"",""]
[null,293,null,null,null,null,null,null,null,null,null,null,null,null,null,null,"",""]
[null,294,null,null,null,null,null,null,null,null,null,null,null,null,null,null,"",""]
[null,295,null,null,null,null,null,null,null,null,null,null,null,null,null,null,"",""]
[null,296,null,null,null,null,null,null,null,null,null,null,null,null,null,null,"",""]
[null,297,null,null,null,null,null,null,null,null,null,null,null,null,null,null,"",""]
[null,298,null,null,null,null,null,null,null,null,null,null,null,null,null,null,"",""]
[null,299,null,null,null,null,null,null,null,null,null,null,null,null,null,null,"",""]
[null,300,null,null,null,null,null,null,null,null,null,null,null,null,null,null,"",""]
[null,301,null,null,null,null,null,null,null,null,null,null,null,null,null,null,"",""]
[null,302,null,null,null,null,null,null,null,null,null,null,null,null,null,null,"",""]
[null,303,null,null,null,null,null,null,null,null,null,null,null,null,null,null,"",""]
[null,304,null,null,null,null,null,null,null,null,null,null,null,null,null,null,"",""]
[null,305,null,null,null,null,null,null,null,null,null,null,null,null,null,null,"",""]
[null,306,null,null,null,null,null,null,null,null,null,null,null,null,null,null,"",""]
[null,307,null,null,null,null,null,null,null,null,null,null,null,null,null,null,"",""]
[null,308,null,null,null,null,null,null,null,null,null,null,null,null,null,null,"",""]
[null,309,null,null,null,null,null,null,null,null,null,null,null,null,null,null,"",""]
[null,310,null,null,null,null,null,null,null,null,null,null,null,null,null,null,"",""]
[null,311,null,null,null,null,null,null,null,null,null,null,null,null,null,null,"",""]
[null,312,null,null,null,null,null,null,null,null,null,null,null,null,null,null,"",""]
[null,313,null,null,null,null,null,null,null,null,null,null,null,null,null,null,"",""]
[null,314,null,null,null,null,null,null,null,null,null,null,null,null,null,null,"",""]
[null,315,null,null,null,null,null,null,null,null,null,null,null,null,null,null,"",""]
[null,316,null,null,null,null,null,null,null,null,null,null,null,null,null,null,"",""]
[null,317,null,null,null,null,null,null,null,null,null,null,null,null,null,null,"",""]
[null,318,null,null,null,null,null,null,null,null,null,null,null,null,null,null,"",""]
[null,319,null,null,null,null,null,null,null,null,null,null,null,null,null,null,"",""]
[null,320,null,null,null,null,null,null,null,null,null,null,null,null,null,null,"",""]
[null,321,null,null,null,null,null,null,null,null,null,null,null,null,null,null,"",""]
[null,322,null,null,null,null,null,null,null,null,null,null,null,null,null,null,{"$f":"IF(P327=\"\",\"\",P327-L327)","v":""},{"$f":"IFERROR(Q327/P327,\"\")","v":""}]
[null,323,null,null,null,null,null,null,null,null,null,null,null,null,null,null,"",""]
[null,324,null,null,null,null,null,null,null,null,null,null,null,null,null,null,"",""]
[null,325,null,null,null,null,null,null,null,null,null,null,null,null,null,null,"",""]
[null,326,null,null,null,null,null,null,null,null,null,null,null,null,null,null,"",""]
[null,327,null,null,null,null,null,null,null,null,null,null,null,null,null,null,"",""]
[null,328,null,null,null,null,null,null,null,null,null,null,null,null,null,null,"",""]
[null,329,null,null,null,null,null,null,null,null,null,null,null,null,null,null,"",""]
[null,330,null,null,null,null,null,null,null,null,null,null,null,null,null,null,"",""]
[null,331,null,null,null,null,null,null,null,null,null,null,null,null,null,null,"",""]
[null,332,null,null,null,null,null,null,null,null,null,null,null,null,null,null,"",""]
[null,333,null,null,null,null,null,null,null,null,null,null,null,null,null,null,"",""]
[null,334,null,null,null,null,null,null,null,null,null,null,null,null,null,null,"",""]
[null,335,null,null,null,null,null,null,null,null,null,null,null,null,null,null,"",""]
[null,336,null,null,null,null,null,null,null,null,null,null,null,null,null,null,"",""]
[null,337,null,null,null,null,null,null,null,null,null,null,null,null,null,null,"",""]
[null,338,null,null,null,null,null,null,null,null,null,null,null,null,null,null,"",""]
[null,339,null,null,null,null,null,null,null,null,null,null,null,null,null,null,"",""]
[null,340,null,null,null,null,null,null,null,null,null,null,null,null,null,null,"",""]
[null,341,null,null,null,null,null,null,null,null,null,null,null,null,null,null,"",""]
[null,342,null,null,null,null,null,null,null,null,null,null,null,null,null,null,"",""]
[null,343,null,null,null,null,null,null,null,null,null,null,null,null,null,null,"",""]
[null,344,null,null,null,null,null,null,null,null,null,null,null,null,null,null,"",""]
[null,345,null,null,null,null,null,null,null,null,null,null,null,null,null,null,"",""]
[null,346,null,null,null,null,null,null,null,null,null,null,null,null,null,null,"",""]
[null,347,null,null,null,null,null,null,null,null,null,null,null,null,null,null,"",""]
[null,348,null,null,null,null,null,null,null,null,null,null,null,null,null,null,"",""]
[null,349,null,null,null,null,null,null,null,null,null,null,null,null,null,null,"",""]
[null,350,null,null,null,null,null,null,null,null,null,null,null,null,null,null,"",""]
[null,351,null,null,null,null,null,null,null,null,null,null,null,null,null,null,"",""]
[null,352,null,null,null,null,null,null,null,null,null,null,null,null,null,null,"",""]
[null,353,null,null,null,null,null,null,null,null,null,null,null,null,null,null,"",""]
[null,354,null,null,null,null,null,null,null,null,null,null,null,null,null,null,"",""]
[null,355,null,null,null,null,null,null,null,null,null,null,null,null,null,null,"",""]
[null,356,null,null,null,null,null,null,null,null,null,null,null,null,null,null,"",""]
[null,357,null,null,null,null,null,null,null,null,null,null,null,null,null,null,"",""]
[null,358,null,null,null,null,null,null,null,null,null,null,null,null,null,null,"",""]
[null,359,null,null,null,null,null,null,null,null,null,null,null,null,null,null,"",""]
[null,360,null,null,null,null,null,null,null,null,null,null,null,null,null,null,"",""]
[null,361,null,null,null,null,null,null,null,null,null,null,null,null,null,null,"",""]
[null,362,null,null,null,null,null,null,null,null,null,null,null,null,null,null,"",""]
[null,363,null,null,null,null,null,null,null,null,null,null,null,null,null,null,"",""]
[null,364,null,null,null,null,null,null,null,null,null,null,null,null,null,null,"",""]
[null,365,null,null,null,null,null,null,null,null,null,null,null,null,null,null,"",""]
[null,366,null,null,null,null,null,null,null,null,null,null,null,null,null,null,"",""]
[null,367,null,null,null,null,null,null,null,null,null,null,null,null,null,null,"",""]
[null,368,null,null,null,null,null,null,null,null,null,null,null,null,null,null,"",""]
[null,369,null,null,null,null,null,null,null,null,null,null,null,null,null,null,"",""]
[null,370,null,null,null,null,null,null,null,null,null,null,null,null,null,null,"",""]
[null,371,null,null,null,null,null,null,null,null,null,null,null,null,null,null,"",""]
[null,372,null,null,null,null,null,null,null,null,null,null,null,null,null,null,"",""]
[null,373,null,null,null,null,null,null,null,null,null,null,null,null,null,null,"",""]
[null,374,null,null,null,null,null,null,null,null,null,null,null,null,null,null,"",""]
[null,375,null,null,null,null,null,null,null,null,null,null,null,null,null,null,"",""]
[null,376,null,null,null,null,null,null,null,null,null,null,null,null,null,null,"",""]
[null,377,null,null,null,null,null,null,null,null,null,null,null,null,null,null,"",""]
[null,378,null,null,null,null,null,null,null,null,null,null,null,null,null,null,"",""]
[null,379,null,null,null,null,null,null,null,null,null,null,null,null,null,null,"",""]
[null,380,null,null,null,null,null,null,null,null,null,null,null,null,null,null,"",""]
[null,381,null,null,null,null,null,null,null,null,null,null,null,null,null,null,"",""]
[null,382,null,null,null,null,null,null,null,null,null,null,null,null,null,null,"",""]
[null,383,null,null,null,null,null,null,null,null,null,null,null,null,null,null,"",""]
[null,384,null,null,null,null,null,null,null,null,null,null,null,null,null,null,"",""]
[null,385,null,null,null,null,null,null,null,null,null,null,null,null,null,null,"",""]
[null,386,null,null,null,null,null,null,null,null,null,null,null,null,null,null,{"$f":"IF(P391=\"\",\"\",P391-L391)","v":""},{"$f":"IFERROR(Q391/P391,\"\")","v":""}]
[null,387,null,null,null,null,null,null,null,null,null,null,null,null,null,null,"",""]
[null,388,null,null,null,null,null,null,null,null,null,null,null,null,null,null,"",""]
[null,389,null,null,null,null,null,null,null,null,null,null,null,null,null,null,"",""]
[null,390,null,null,null,null,null,null,null,null,null,null,null,null,null,null,"",""]
[null,391,null,null,null,null,null,null,null,null,null,null,null,null,null,null,"",""]
[null,392,null,null,null,null,null,null,null,null,null,null,null,null,null,null,"",""]
[null,393,null,null,null,null,null,null,null,null,null,null,null,null,null,null,"",""]
[null,394,null,null,null,null,null,null,null,null,null,null,null,null,null,null,"",""]
[null,395,null,null,null,null,null,null,null,null,null,null,null,null,null,null,"",""]
[null,396,null,null,null,null,null,null,null,null,null,null,null,null,null,null,"",""]
[null,397,null,null,null,null,null,null,null,null,null,null,null,null,null,null,"",""]
[null,398,null,null,null,null,null,null,null,null,null,null,null,null,null,null,"",""]
[null,399,null,null,null,null,null,null,null,null,null,null,null,null,null,null,"",""]
[null,400,null,null,null,null,null,null,null,null,null,null,null,null,null,null,"",""]
[null,401,null,null,null,null,null,null,null,null,null,null,null,null,null,null,"",""]
[null,402,null,null,null,null,null,null,null,null,null,null,null,null,null,null,"",""]
[null,403,null,null,null,null,null,null,null,null,null,null,null,null,null,null,"",""]
[null,404,null,null,null,null,null,null,null,null,null,null,null,null,null,null,"",""]
[null,405,null,null,null,null,null,null,null,null,null,null,null,null,null,null,"",""]
[null,406,null,null,null,null,null,null,null,null,null,null,null,null,null,null,"",""]
[null,407,null,null,null,null,null,null,null,null,null,null,null,null,null,null,"",""]
[null,408,null,null,null,null,null,null,null,null,null,null,null,null,null,null,"",""]
[null,409,null,null,null,null,null,null,null,null,null,null,null,null,null,null,"",""]
[null,410,null,null,null,null,null,null,null,null,null,null,null,null,null,null,"",""]
[null,411,null,null,null,null,null,null,null,null,null,null,null,null,null,null,"",""]
[null,412,null,null,null,null,null,null,null,null,null,null,null,null,null,null,"",""]
[null,413,null,null,null,null,null,null,null,null,null,null,null,null,null,null,"",""]
[null,414,null,null,null,null,null,null,null,null,null,null,null,null,null,null,"",""]
[null,415,null,null,null,null,null,null,null,null,null,null,null,null,null,null,"",""]
[null,416,null,null,null,null,null,null,null,null,null,null,null,null,null,null,"",""]
[null,417,null,null,null,null,null,null,null,null,null,null,null,null,null,null,"",""]
[null,418,null,null,null,null,null,null,null,null,null,null,null,null,null,null,"",""]
[null,419,null,null,null,null,null,null,null,null,null,null,null,null,null,null,"",""]
[null,420,null,null,null,null,null,null,null,null,null,null,null,null,null,null,"",""]
[null,421,null,null,null,null,null,null,null,null,null,null,null,null,null,null,"",""]
[null,422,null,null,null,null,null,null,null,null,null,null,null,null,null,null,"",""]
[null,423,null,null,null,null,null,null,null,null,null,null,null,null,null,null,"",""]
[null,424,null,null,null,null,null,null,null,null,null,null,null,null,null,null,"",""]
[null,425,null,null,null,null,null,null,null,null,null,null,null,null,null,null,"",""]
[null,426,null,null,null,null,null,null,null,null,null,null,null,null,null,null,"",""]
[null,427,null,null,null,null,null,null,null,null,null,null,null,null,null,null,"",""]
[null,428,null,null,null,null,null,null,null,null,null,null,null,null,null,null,"",""]
[null,429,null,null,null,null,null,null,null,null,null,null,null,null,null,null,"",""]
[null,430,null,null,null,null,null,null,null,null,null,null,null,null,null,null,"",""]
[null,431,null,null,null,null,null,null,null,null,null,null,null,null,null,null,"",""]
[null,432,null,null,null,null,null,null,null,null,null,null,null,null,null,null,"",""]
[null,433,null,null,null,null,null,null,null,null,null,null,null,null,null,null,"",""]
[null,434,null,null,null,null,null,null,null,null,null,null,null,null,null,null,"",""]
[null,435,null,null,null,null,null,null,null,null,null,null,null,null,null,null,"",""]
[null,436,null,null,null,null,null,null,null,null,null,null,null,null,null,null,"",""]
[null,437,null,null,null,null,null,null,null,null,null,null,null,null,null,null,"",""]
[null,438,null,null,null,null,null,null,null,null,null,null,null,null,null,null,"",""]
[null,439,null,null,null,null,null,null,null,null,null,null,null,null,null,null,"",""]
[null,440,null,null,null,null,null,null,null,null,null,null,null,null,null,null,"",""]
[null,441,null,null,null,null,null,null,null,null,null,null,null,null,null,null,"",""]
[null,442,null,null,null,null,null,null,null,null,null,null,null,null,null,null,"",""]
[null,443,null,null,null,null,null,null,null,null,null,null,null,null,null,null,"",""]
[null,444,null,null,null,null,null,null,null,null,null,null,null,null,null,null,"",""]
[null,445,null,null,null,null,null,null,null,null,null,null,null,null,null,null,"",""]
[null,446,null,null,null,null,null,null,null,null,null,null,null,null,null,null,"",""]
[null,447,null,null,null,null,null,null,null,null,null,null,null,null,null,null,"",""]
[null,448,null,null,null,null,null,null,null,null,null,null,null,null,null,null,"",""]
[null,449,null,null,null,null,null,null,null,null,null,null,null,null,null,null,"",""]
[null,450,null,null,null,null,null,null,null,null,null,null,null,null,null,null,{"$f":"IF(P455=\"\",\"\",P455-L455)","v":""},{"$f":"IFERROR(Q455/P455,\"\")","v":""}]
[null,451,null,null,null,null,null,null,null,null,null,null,null,null,null,null,"",""]
[null,452,null,null,null,null,null,null,null,null,null,null,null,null,null,null,"",""]
[null,453,null,null,null,null,null,null,null,null,null,null,null,null,null,null,"",""]
[null,454,null,null,null,null,null,null,null,null,null,null,null,null,null,null,"",""]
[null,455,null,null,null,null,null,null,null,null,null,null,null,null,null,null,"",""]
[null,456,null,null,null,null,null,null,null,null,null,null,null,null,null,null,"",""]
[null,457,null,null,null,null,null,null,null,null,null,null,null,null,null,null,"",""]
[null,458,null,null,null,null,null,null,null,null,null,null,null,null,null,null,"",""]
[null,459,null,null,null,null,null,null,null,null,null,null,null,null,null,null,"",""]
[null,460,null,null,null,null,null,null,null,null,null,null,null,null,null,null,"",""]
[null,461,null,null,null,null,null,null,null,null,null,null,null,null,null,null,"",""]
[null,462,null,null,null,null,null,null,null,null,null,null,null,null,null,null,"",""]
[null,463,null,null,null,null,null,null,null,null,null,null,null,null,null,null,"",""]
[null,464,null,null,null,null,null,null,null,null,null,null,null,null,null,null,"",""]
[null,465,null,null,null,null,null,null,null,null,null,null,null,null,null,null,"",""]
[null,466,null,null,null,null,null,null,null,null,null,null,null,null,null,null,"",""]
[null,467,null,null,null,null,null,null,null,null,null,null,null,null,null,null,"",""]
[null,468,null,null,null,null,null,null,null,null,null,null,null,null,null,null,"",""]
[null,469,null,null,null,null,null,null,null,null,null,null,null,null,null,null,"",""]
[null,470,null,null,null,null,null,null,null,null,null,null,null,null,null,null,"",""]
[null,471,null,null,null,null,null,null,null,null,null,null,null,null,null,null,"",""]
[null,472,null,null,null,null,null,null,null,null,null,null,null,null,null,null,"",""]
[null,473,null,null,null,null,null,null,null,null,null,null,null,null,null,null,"",""]
[null,474,null,null,null,null,null,null,null,null,null,null,null,null,null,null,"",""]
[null,475,null,null,null,null,null,null,null,null,null,null,null,null,null,null,"",""]
[null,476,null,null,null,null,null,null,null,null,null,null,null,null,null,null,"",""]
[null,477,null,null,null,null,null,null,null,null,null,null,null,null,null,null,"",""]
[null,478,null,null,null,null,null,null,null,null,null,null,null,null,null,null,"",""]
[null,479,null,null,null,null,null,null,null,null,null,null,null,null,null,null,"",""]
[null,480,null,null,null,null,null,null,null,null,null,null,null,null,null,null,"",""]
[null,481,null,null,null,null,null,null,null,null,null,null,null,null,null,null,"",""]
[null,482,null,null,null,null,null,null,null,null,null,null,null,null,null,null,"",""]
[null,483,null,null,null,null,null,null,null,null,null,null,null,null,null,null,"",""]
[null,484,null,null,null,null,null,null,null,null,null,null,null,null,null,null,"",""]
[null,485,null,null,null,null,null,null,null,null,null,null,null,null,null,null,"",""]
[null,486,null,null,null,null,null,null,null,null,null,null,null,null,null,null,"",""]
[null,487,null,null,null,null,null,null,null,null,null,null,null,null,null,null,"",""]
[null,488,null,null,null,null,null,null,null,null,null,null,null,null,null,null,"",""]
[null,489,null,null,null,null,null,null,null,null,null,null,null,null,null,null,"",""]
[null,490,null,null,null,null,null,null,null,null,null,null,null,null,null,null,"",""]
[null,491,null,null,null,null,null,null,null,null,null,null,null,null,null,null,"",""]
[null,492,null,null,null,null,null,null,null,null,null,null,null,null,null,null,"",""]
[null,493,null,null,null,null,null,null,null,null,null,null,null,null,null,null,"",""]
[null,494,null,null,null,null,null,null,null,null,null,null,null,null,null,null,"",""]
[null,495,null,null,null,null,null,null,null,null,null,null,null,null,null,null,"",""]
[null,496,null,null,null,null,null,null,null,null,null,null,null,null,null,null,"",""]
[null,497,null,null,null,null,null,null,null,null,null,null,null,null,null,null,"",""]
[null,498,null,null,null,null,null,null,null,null,null,null,null,null,null,null,"",""]
[null,499,null,null,null,null,null,null,null,null,null,null,null,null,null,null,"",""]
[null,500,null,null,null,null,null,null,null,null,null,null,null,null,null,null,{"$f":"IF(P505=\"\",\"\",P505-L505)","v":""},{"$f":"IFERROR(Q505/P505,\"\")","v":""}]
[null,501,null,null,null,null,null,null,null,null,null,null,null,null,null,null,"",""]
[null,502,null,null,null,null,null,null,null,null,null,null,null,null,null,null,"",""]
[null,503,null,null,null,null,null,null,null,null,null,null,null,null,null,null,"",""]
[null,504,null,null,null,null,null,null,null,null,null,null,null,null,null,null,"",""]
[null,505,null,null,null,null,null,null,null,null,null,null,null,null,null,null,"",""]
[null,506,null,null,null,null,null,null,null,null,null,null,null,null,null,null,"",""]
[null,507,null,null,null,null,null,null,null,null,null,null,null,null,null,null,"",""]
[null,508,null,null,null,null,null,null,null,null,null,null,null,null,null,null,"",""]
[null,509,null,null,null,null,null,null,null,null,null,null,null,null,null,null,"",""]
[null,510,null,null,null,null,null,null,null,null,null,null,null,null,null,null,"",""]
[null,511,null,null,null,null,null,null,null,null,null,null,null,null,null,null,"",""]
[null,512,null,null,null,null,null,null,null,null,null,null,null,null,null,null,"",""]
[null,513,null,null,null,null,null,null,null,null,null,null,null,null,null,null,{"$f":"IF(P518=\"\",\"\",P518-L518)","v":""},{"$f":"IFERROR(Q518/P518,\"\")","v":""}]
[null,514,null,null,null,null,null,null,null,null,null,null,null,null,null,null,{"$f":"IF(P519=\"\",\"\",P519-L519)","v":""},{"$f":"IFERROR(Q519/P519,\"\")","v":""}]
[null,515,null,null,null,null,null,null,null,null,null,null,null,null,null,null,{"$f":"IF(P520=\"\",\"\",P520-L520)","v":""},{"$f":"IFERROR(Q520/P520,\"\")","v":""}]
[null,516,null,null,null,null,null,null,null,null,null,null,null,null,null,null,{"$f":"IF(P521=\"\",\"\",P521-L521)","v":""},{"$f":"IFERROR(Q521/P521,\"\")","v":""}]
[null,517,null,null,null,null,null,null,null,null,null,null,null,null,null,null,{"$f":"IF(P522=\"\",\"\",P522-L522)","v":""},{"$f":"IFERROR(Q522/P522,\"\")","v":""}]
[null,518,null,null,null,null,null,null,null,null,null,null,null,null,null,null,"",""]
[null,519,null,null,null,null,null,null,null,null,null,null,null,null,null,null,"",""]
[null,520,null,null,null,null,null,null,null,null,null,null,null,null,null,null,"",""]
[null,521,null,null,null,null,null,null,null,null,null,null,null,null,null,null,"",""]
[null,522,null,null,null,null,null,null,null,null,null,null,null,null,null,null,"",""]
[null,523,null,null,null,null,null,null,null,null,null,null,null,null,null,null,"",""]
[null,524,null,null,null,null,null,null,null,null,null,null,null,null,null,null,"",""]
[null,525,null,null,null,null,null,null,null,null,null,null,null,null,null,null,"",""]
[null,526,null,null,null,null,null,null,null,null,null,null,null,null,null,null,"",""]
[null,527,null,null,null,null,null,null,null,null,null,null,null,null,null,null,"",""]
[null,528,null,null,null,null,null,null,null,null,null,null,null,null,null,null,"",""]
[null,529,null,null,null,null,null,null,null,null,null,null,null,null,null,null,"",""]
[null,530,null,null,null,null,null,null,null,null,null,null,null,null,null,null,"",""]
[null,531,null,null,null,null,null,null,null,null,null,null,null,null,null,null,"",""]
[null,532,null,null,null,null,null,null,null,null,null,null,null,null,null,null,"",""]
[null,533,null,null,null,null,null,null,null,null,null,null,null,null,null,null,"",""]
[null,534,null,null,null,null,null,null,null,null,null,null,null,null,null,null,"",""]
[null,535,null,null,null,null,null,null,null,null,null,null,null,null,null,null,"",""]
[null,536,null,null,null,null,null,null,null,null,null,null,null,null,null,null,"",""]
[null,537,null,null,null,null,null,null,null,null,null,null,null,null,null,null,"",""]
[null,538,null,null,null,null,null,null,null,null,null,null,null,null,null,null,"",""]
[null,539,null,null,null,null,null,null,null,null,null,null,null,null,null,null,"",""]
[null,540,null,null,null,null,null,null,null,null,null,null,null,null,null,null,"",""]
[null,541,null,null,null,null,null,null,null,null,null,null,null,null,null,null,"",""]
[null,542,null,null,null,null,null,null,null,null,null,null,null,null,null,null,"",""]
[null,543,null,null,null,null,null,null,null,null,null,null,null,null,null,null,"",""]
[null,544,null,null,null,null,null,null,null,null,null,null,null,null,null,null,"",""]
[null,545,null,null,null,null,null,null,null,null,null,null,null,null,null,null,"",""]
[null,546,null,null,null,null,null,null,null,null,null,null,null,null,null,null,"",""]
[null,547,null,null,null,null,null,null,null,null,null,null,null,null,null,null,"",""]
[null,548,null,null,null,null,null,null,null,null,null,null,null,null,null,null,"",""]
[null,549,null,null,null,null,null,null,null,null,null,null,null,null,null,null,"",""]
[null,550,null,null,null,null,null,null,null,null,null,null,null,null,null,null,"",""]
[null,551,null,null,null,null,null,null,null,null,null,null,null,null,null,null,"",""]
[null,552,null,null,null,null,null,null,null,null,null,null,null,null,null,null,"",""]
[null,553,null,null,null,null,null,null,null,null,null,null,null,null,null,null,"",""]
[null,554,null,null,null,null,null,null,null,null,null,null,null,null,null,null,"",""]
[null,555,null,null,null,null,null,null,null,null,null,null,null,null,null,null,"",""]
[null,556,null,null,null,null,null,null,null,null,null,null,null,null,null,null,"",""]
[null,557,null,null,null,null,null,null,null,null,null,null,null,null,null,null,"",""]
[null,558,null,null,null,null,null,null,null,null,null,null,null,null,null,null,"",""]
[null,559,null,null,null,null,null,null,null,null,null,null,null,null,null,null,"",""]
[null,560,null,null,null,null,null,null,null,null,null,null,null,null,null,null,"",""]
[null,561,null,null,null,null,null,null,null,null,null,null,null,null,null,null,"",""]
[null,562,null,null,null,null,null,null,null,null,null,null,null,null,null,null,"",""]
[null,563,null,null,null,null,null,null,null,null,null,null,null,null,null,null,"",""]
[null,564,null,null,null,null,null,null,null,null,null,null,null,null,null,null,{"$f":"IF(P569=\"\",\"\",P569-L569)","v":""},{"$f":"IFERROR(Q569/P569,\"\")","v":""}]
[null,565,null,null,null,null,null,null,null,null,null,null,null,null,null,null,"",""]
[null,566,null,null,null,null,null,null,null,null,null,null,null,null,null,null,"",""]
[null,567,null,null,null,null,null,null,null,null,null,null,null,null,null,null,"",""]
[null,568,null,null,null,null,null,null,null,null,null,null,null,null,null,null,"",""]
[null,569,null,null,null,null,null,null,null,null,null,null,null,null,null,null,"",""]
[null,570,null,null,null,null,null,null,null,null,null,null,null,null,null,null,"",""]
[null,571,null,null,null,null,null,null,null,null,null,null,null,null,null,null,"",""]
[null,572,null,null,null,null,null,null,null,null,null,null,null,null,null,null,"",""]
[null,573,null,null,null,null,null,null,null,null,null,null,null,null,null,null,"",""]
[null,574,null,null,null,null,null,null,null,null,null,null,null,null,null,null,"",""]
[null,575,null,null,null,null,null,null,null,null,null,null,null,null,null,null,"",""]
[null,576,null,null,null,null,null,null,null,null,null,null,null,null,null,null,"",""]
[null,577,null,null,null,null,null,null,null,null,null,null,null,null,null,null,"",""]
[null,578,null,null,null,null,null,null,null,null,null,null,null,null,null,null,"",""]
[null,579,null,null,null,null,null,null,null,null,null,null,null,null,null,null,"",""]
[null,580,null,null,null,null,null,null,null,null,null,null,null,null,null,null,"",""]
[null,581,null,null,null,null,null,null,null,null,null,null,null,null,null,null,"",""]
[null,582,null,null,null,null,null,null,null,null,null,null,null,null,null,null,"",""]
[null,583,null,null,null,null,null,null,null,null,null,null,null,null,null,null,"",""]
[null,584,null,null,null,null,null,null,null,null,null,null,null,null,null,null,"",""]
[null,585,null,null,null,null,null,null,null,null,null,null,null,null,null,null,"",""]
[null,586,null,null,null,null,null,null,null,null,null,null,null,null,null,null,"",""]
[null,587,null,null,null,null,null,null,null,null,null,null,null,null,null,null,"",""]
[null,588,null,null,null,null,null,null,null,null,null,null,null,null,null,null,"",""]
[null,589,null,null,null,null,null,null,null,null,null,null,null,null,null,null,"",""]
[null,590,null,null,null,null,null,null,null,null,null,null,null,null,null,null,"",""]
[null,591,null,null,null,null,null,null,null,null,null,null,null,null,null,null,"",""]
[null,592,null,null,null,null,null,null,null,null,null,null,null,null,null,null,"",""]
[null,593,null,null,null,null,null,null,null,null,null,null,null,null,null,null,"",""]
[null,594,null,null,null,null,null,null,null,null,null,null,null,null,null,null,"",""]
[null,595,null,null,null,null,null,null,null,null,null,null,null,null,null,null,"",""]
[null,596,null,null,null,null,null,null,null,null,null,null,null,null,null,null,"",""]
[null,597,null,null,null,null,null,null,null,null,null,null,null,null,null,null,"",""]
[null,598,null,null,null,null,null,null,null,null,null,null,null,null,null,null,"",""]
[null,599,null,null,null,null,null,null,null,null,null,null,null,null,null,null,"",""]
[null,600,null,null,null,null,null,null,null,null,null,null,null,null,null,null,"",""]
[null,601,null,null,null,null,null,null,null,null,null,null,null,null,null,null,"",""]
[null,602,null,null,null,null,null,null,null,null,null,null,null,null,null,null,"",""]
[null,603,null,null,null,null,null,null,null,null,null,null,null,null,null,null,"",""]
[null,604,null,null,null,null,null,null,null,null,null,null,null,null,null,null,"",""]
[null,605,null,null,null,null,null,null,null,null,null,null,null,null,null,null,"",""]
[null,606,null,null,null,null,null,null,null,null,null,null,null,null,null,null,"",""]
[null,607,null,null,null,null,null,null,null,null,null,null,null,null,null,null,"",""]
[null,608,null,null,null,null,null,null,null,null,null,null,null,null,null,null,"",""]
[null,609,null,null,null,null,null,null,null,null,null,null,null,null,null,null,"",""]
[null,610,null,null,null,null,null,null,null,null,null,null,null,null,null,null,"",""]
[null,611,null,null,null,null,null,null,null,null,null,null,null,null,null,null,"",""]
[null,612,null,null,null,null,null,null,null,null,null,null,null,null,null,null,"",""]
[null,613,null,null,null,null,null,null,null,null,null,null,null,null,null,null,"",""]
[null,614,null,null,null,null,null,null,null,null,null,null,null,null,null,null,"",""]
[null,615,null,null,null,null,null,null,null,null,null,null,null,null,null,null,"",""]
[null,616,null,null,null,null,null,null,null,null,null,null,null,null,null,null,"",""]
[null,617,null,null,null,null,null,null,null,null,null,null,null,null,null,null,"",""]
[null,618,null,null,null,null,null,null,null,null,null,null,null,null,null,null,"",""]
[null,619,null,null,null,null,null,null,null,null,null,null,null,null,null,null,"",""]
[null,620,null,null,null,null,null,null,null,null,null,null,null,null,null,null,"",""]
[null,621,null,null,null,null,null,null,null,null,null,null,null,null,null,null,"",""]
[null,622,null,null,null,null,null,null,null,null,null,null,null,null,null,null,"",""]
[null,623,null,null,null,null,null,null,null,null,null,null,null,null,null,null,"",""]
[null,624,null,null,null,null,null,null,null,null,null,null,null,null,null,null,"",""]
[null,625,null,null,null,null,null,null,null,null,null,null,null,null,null,null,"",""]
[null,626,null,null,null,null,null,null,null,null,null,null,null,null,null,null,"",""]
[null,627,null,null,null,null,null,null,null,null,null,null,null,null,null,null,"",""]
[null,628,null,null,null,null,null,null,null,null,null,null,null,null,null,null,{"$f":"IF(P633=\"\",\"\",P633-L633)","v":""},{"$f":"IFERROR(Q633/P633,\"\")","v":""}]
[null,629,null,null,null,null,null,null,null,null,null,null,null,null,null,null,"",""]
[null,630,null,null,null,null,null,null,null,null,null,null,null,null,null,null,"",""]
[null,631,null,null,null,null,null,null,null,null,null,null,null,null,null,null,"",""]
[null,632,null,null,null,null,null,null,null,null,null,null,null,null,null,null,"",""]
[null,633,null,null,null,null,null,null,null,null,null,null,null,null,null,null,"",""]
[null,634,null,null,null,null,null,null,null,null,null,null,null,null,null,null,"",""]
[null,635,null,null,null,null,null,null,null,null,null,null,null,null,null,null,"",""]
[null,636,null,null,null,null,null,null,null,null,null,null,null,null,null,null,"",""]
[null,637,null,null,null,null,null,null,null,null,null,null,null,null,null,null,"",""]
[null,638,null,null,null,null,null,null,null,null,null,null,null,null,null,null,"",""]
[null,639,null,null,null,null,null,null,null,null,null,null,null,null,null,null,"",""]
[null,640,null,null,null,null,null,null,null,null,null,null,null,null,null,null,"",""]
[null,641,null,null,null,null,null,null,null,null,null,null,null,null,null,null,"",""]
[null,642,null,null,null,null,null,null,null,null,null,null,null,null,null,null,"",""]
[null,643,null,null,null,null,null,null,null,null,null,null,null,null,null,null,"",""]
[null,644,null,null,null,null,null,null,null,null,null,null,null,null,null,null,"",""]
[null,645,null,null,null,null,null,null,null,null,null,null,null,null,null,null,"",""]
[null,646,null,null,null,null,null,null,null,null,null,null,null,null,null,null,"",""]
[null,647,null,null,null,null,null,null,null,null,null,null,null,null,null,null,"",""]
[null,648,null,null,null,null,null,null,null,null,null,null,null,null,null,null,"",""]
[null,649,null,null,null,null,null,null,null,null,null,null,null,null,null,null,"",""]
[null,650,null,null,null,null,null,null,null,null,null,null,null,null,null,null,"",""]
[null,651,null,null,null,null,null,null,null,null,null,null,null,null,null,null,"",""]
[null,652,null,null,null,null,null,null,null,null,null,null,null,null,null,null,"",""]
[null,653,null,null,null,null,null,null,null,null,null,null,null,null,null,null,"",""]
[null,654,null,null,null,null,null,null,null,null,null,null,null,null,null,null,"",""]
[null,655,null,null,null,null,null,null,null,null,null,null,null,null,null,null,"",""]
[null,656,null,null,null,null,null,null,null,null,null,null,null,null,null,null,"",""]
[null,657,null,null,null,null,null,null,null,null,null,null,null,null,null,null,"",""]
[null,658,null,null,null,null,null,null,null,null,null,null,null,null,null,null,"",""]
[null,659,null,null,null,null,null,null,null,null,null,null,null,null,null,null,"",""]
[null,660,null,null,null,null,null,null,null,null,null,null,null,null,null,null,"",""]
[null,661,null,null,null,null,null,null,null,null,null,null,null,null,null,null,"",""]
[null,662,null,null,null,null,null,null,null,null,null,null,null,null,null,null,"",""]
[null,663,null,null,null,null,null,null,null,null,null,null,null,null,null,null,"",""]
[null,664,null,null,null,null,null,null,null,null,null,null,null,null,null,null,"",""]
[null,665,null,null,null,null,null,null,null,null,null,null,null,null,null,null,"",""]
[null,666,null,null,null,null,null,null,null,null,null,null,null,null,null,null,"",""]
[null,667,null,null,null,null,null,null,null,null,null,null,null,null,null,null,"",""]
[null,668,null,null,null,null,null,null,null,null,null,null,null,null,null,null,"",""]
[null,669,null,null,null,null,null,null,null,null,null,null,null,null,null,null,"",""]
[null,670,null,null,null,null,null,null,null,null,null,null,null,null,null,null,"",""]
[null,671,null,null,null,null,null,null,null,null,null,null,null,null,null,null,"",""]
[null,672,null,null,null,null,null,null,null,null,null,null,null,null,null,null,"",""]
[null,673,null,null,null,null,null,null,null,null,null,null,null,null,null,null,"",""]
[null,674,null,null,null,null,null,null,null,null,null,null,null,null,null,null,"",""]
[null,675,null,null,null,null,null,null,null,null,null,null,null,null,null,null,"",""]
[null,676,null,null,null,null,null,null,null,null,null,null,null,null,null,null,"",""]
[null,677,null,null,null,null,null,null,null,null,null,null,null,null,null,null,"",""]
[null,678,null,null,null,null,null,null,null,null,null,null,null,null,null,null,"",""]
[null,679,null,null,null,null,null,null,null,null,null,null,null,null,null,null,"",""]
[null,680,null,null,null,null,null,null,null,null,null,null,null,null,null,null,"",""]
[null,681,null,null,null,null,null,null,null,null,null,null,null,null,null,null,"",""]
[null,682,null,null,null,null,null,null,null,null,null,null,null,null,null,null,"",""]
[null,683,null,null,null,null,null,null,null,null,null,null,null,null,null,null,"",""]
[null,684,null,null,null,null,null,null,null,null,null,null,null,null,null,null,"",""]
[null,685,null,null,null,null,null,null,null,null,null,null,null,null,null,null,"",""]
[null,686,null,null,null,null,null,null,null,null,null,null,null,null,null,null,"",""]
[null,687,null,null,null,null,null,null,null,null,null,null,null,null,null,null,"",""]
[null,688,null,null,null,null,null,null,null,null,null,null,null,null,null,null,"",""]
[null,689,null,null,null,null,null,null,null,null,null,null,null,null,null,null,"",""]
[null,690,null,null,null,null,null,null,null,null,null,null,null,null,null,null,"",""]
[null,691,null,null,null,null,null,null,null,null,null,null,null,null,null,null,"",""]
[null,692,null,null,null,null,null,null,null,null,null,null,null,null,null,null,{"$f":"IF(P697=\"\",\"\",P697-L697)","v":""},{"$f":"IFERROR(Q697/P697,\"\")","v":""}]
[null,693,null,null,null,null,null,null,null,null,null,null,null,null,null,null,"",""]
[null,694,null,null,null,null,null,null,null,null,null,null,null,null,null,null,"",""]
[null,695,null,null,null,null,null,null,null,null,null,null,null,null,null,null,"",""]
[null,696,null,null,null,null,null,null,null,null,null,null,null,null,null,null,"",""]
[null,697,null,null,null,null,null,null,null,null,null,null,null,null,null,null,"",""]
[null,698,null,null,null,null,null,null,null,null,null,null,null,null,null,null,"",""]
[null,699,null,null,null,null,null,null,null,null,null,null,null,null,null,null,"",""]
[null,700,null,null,null,null,null,null,null,null,null,null,null,null,null,null,"",""]
[null,701,null,null,null,null,null,null,null,null,null,null,null,null,null,null,"",""]
[null,702,null,null,null,null,null,null,null,null,null,null,null,null,null,null,"",""]
[null,703,null,null,null,null,null,null,null,null,null,null,null,null,null,null,"",""]
[null,704,null,null,null,null,null,null,null,null,null,null,null,null,null,null,"",""]
[null,705,null,null,null,null,null,null,null,null,null,null,null,null,null,null,"",""]
[null,706,null,null,null,null,null,null,null,null,null,null,null,null,null,null,"",""]
[null,707,null,null,null,null,null,null,null,null,null,null,null,null,null,null,"",""]
[null,708,null,null,null,null,null,null,null,null,null,null,null,null,null,null,"",""]
[null,709,null,null,null,null,null,null,null,null,null,null,null,null,null,null,"",""]
[null,710,null,null,null,null,null,null,null,null,null,null,null,null,null,null,"",""]
[null,711,null,null,null,null,null,null,null,null,null,null,null,null,null,null,"",""]
[null,712,null,null,null,null,null,null,null,null,null,null,null,null,null,null,"",""]
[null,713,null,null,null,null,null,null,null,null,null,null,null,null,null,null,"",""]
[null,714,null,null,null,null,null,null,null,null,null,null,null,null,null,null,"",""]
[null,715,null,null,null,null,null,null,null,null,null,null,null,null,null,null,"",""]
[null,716,null,null,null,null,null,null,null,null,null,null,null,null,null,null,"",""]
[null,717,null,null,null,null,null,null,null,null,null,null,null,null,null,null,"",""]
[null,718,null,null,null,null,null,null,null,null,null,null,null,null,null,null,"",""]
[null,719,null,null,null,null,null,null,null,null,null,null,null,null,null,null,"",""]
[null,720,null,null,null,null,null,null,null,null,null,null,null,null,null,null,"",""]
[null,721,null,null,null,null,null,null,null,null,null,null,null,null,null,null,"",""]
[null,722,null,null,null,null,null,null,null,null,null,null,null,null,null,null,"",""]
[null,723,null,null,null,null,null,null,null,null,null,null,null,null,null,null,"",""]
[null,724,null,null,null,null,null,null,null,null,null,null,null,null,null,null,"",""]
[null,725,null,null,null,null,null,null,null,null,null,null,null,null,null,null,"",""]
[null,726,null,null,null,null,null,null,null,null,null,null,null,null,null,null,"",""]
[null,727,null,null,null,null,null,null,null,null,null,null,null,null,null,null,"",""]
[null,728,null,null,null,null,null,null,null,null,null,null,null,null,null,null,"",""]
[null,729,null,null,null,null,null,null,null,null,null,null,null,null,null,null,"",""]
[null,730,null,null,null,null,null,null,null,null,null,null,null,null,null,null,"",""]
[null,731,null,null,null,null,null,null,null,null,null,null,null,null,null,null,"",""]
[null,732,null,null,null,null,null,null,null,null,null,null,null,null,null,null,"",""]
[null,733,null,null,null,null,null,null,null,null,null,null,null,null,null,null,"",""]
[null,734,null,null,null,null,null,null,null,null,null,null,null,null,null,null,"",""]
[null,735,null,null,null,null,null,null,null,null,null,null,null,null,null,null,"",""]
[null,736,null,null,null,null,null,null,null,null,null,null,null,null,null,null,"",""]
[null,737,null,null,null,null,null,null,null,null,null,null,null,null,null,null,"",""]
[null,738,null,null,null,null,null,null,null,null,null,null,null,null,null,null,"",""]
[null,739,null,null,null,null,null,null,null,null,null,null,null,null,null,null,"",""]
[null,740,null,null,null,null,null,null,null,null,null,null,null,null,null,null,"",""]
[null,741,null,null,null,null,null,null,null,null,null,null,null,null,null,null,"",""]
[null,742,null,null,null,null,null,null,null,null,null,null,null,null,null,null,"",""]
[null,743,null,null,null,null,null,null,null,null,null,null,null,null,null,null,"",""]
[null,744,null,null,null,null,null,null,null,null,null,null,null,null,null,null,"",""]
[null,745,null,null,null,null,null,null,null,null,null,null,null,null,null,null,"",""]
[null,746,null,null,null,null,null,null,null,null,null,null,null,null,null,null,"",""]
[null,747,null,null,null,null,null,null,null,null,null,null,null,null,null,null,"",""]
[null,748,null,null,null,null,null,null,null,null,null,null,null,null,null,null,"",""]
[null,749,null,null,null,null,null,null,null,null,null,null,null,null,null,null,"",""]
[null,750,null,null,null,null,null,null,null,null,null,null,null,null,null,null,"",""]
[null,751,null,null,null,null,null,null,null,null,null,null,null,null,null,null,"",""]
[null,752,null,null,null,null,null,null,null,null,null,null,null,null,null,null,"",""]
[null,753,null,null,null,null,null,null,null,null,null,null,null,null,null,null,"",""]
[null,754,null,null,null,null,null,null,null,null,null,null,null,null,null,null,"",""]
[null,755,null,null,null,null,null,null,null,null,null,null,null,null,null,null,"",""]
[null,756,null,null,null,null,null,null,null,null,null,null,null,null,null,null,{"$f":"IF(P761=\"\",\"\",P761-L761)","v":""},{"$f":"IFERROR(Q761/P761,\"\")","v":""}]
[null,757,null,null,null,null,null,null,null,null,null,null,null,null,null,null,"",""]
[null,758,null,null,null,null,null,null,null,null,null,null,null,null,null,null,"",""]
[null,759,null,null,null,null,null,null,null,null,null,null,null,null,null,null,"",""]
[null,760,null,null,null,null,null,null,null,null,null,null,null,null,null,null,"",""]
[null,761,null,null,null,null,null,null,null,null,null,null,null,null,null,null,"",""]
[null,762,null,null,null,null,null,null,null,null,null,null,null,null,null,null,"",""]
[null,763,null,null,null,null,null,null,null,null,null,null,null,null,null,null,"",""]
[null,764,null,null,null,null,null,null,null,null,null,null,null,null,null,null,"",""]
[null,765,null,null,null,null,null,null,null,null,null,null,null,null,null,null,"",""]
[null,766,null,null,null,null,null,null,null,null,null,null,null,null,null,null,"",""]
[null,767,null,null,null,null,null,null,null,null,null,null,null,null,null,null,"",""]
[null,768,null,null,null,null,null,null,null,null,null,null,null,null,null,null,"",""]
[null,769,null,null,null,null,null,null,null,null,null,null,null,null,null,null,"",""]
[null,770,null,null,null,null,null,null,null,null,null,null,null,null,null,null,"",""]
[null,771,null,null,null,null,null,null,null,null,null,null,null,null,null,null,"",""]
[null,772,null,null,null,null,null,null,null,null,null,null,null,null,null,null,"",""]
[null,773,null,null,null,null,null,null,null,null,null,null,null,null,null,null,"",""]
[null,774,null,null,null,null,null,null,null,null,null,null,null,null,null,null,"",""]
[null,775,null,null,null,null,null,null,null,null,null,null,null,null,null,null,"",""]
[null,776,null,null,null,null,null,null,null,null,null,null,null,null,null,null,"",""]
[null,777,null,null,null,null,null,null,null,null,null,null,null,null,null,null,"",""]
[null,778,null,null,null,null,null,null,null,null,null,null,null,null,null,null,"",""]
[null,779,null,null,null,null,null,null,null,null,null,null,null,null,null,null,"",""]
[null,780,null,null,null,null,null,null,null,null,null,null,null,null,null,null,"",""]
[null,781,null,null,null,null,null,null,null,null,null,null,null,null,null,null,"",""]
[null,782,null,null,null,null,null,null,null,null,null,null,null,null,null,null,"",""]
[null,783,null,null,null,null,null,null,null,null,null,null,null,null,null,null,"",""]
[null,784,null,null,null,null,null,null,null,null,null,null,null,null,null,null,"",""]
[null,785,null,null,null,null,null,null,null,null,null,null,null,null,null,null,"",""]
[null,786,null,null,null,null,null,null,null,null,null,null,null,null,null,null,"",""]
[null,787,null,null,null,null,null,null,null,null,null,null,null,null,null,null,"",""]
[null,788,null,null,null,null,null,null,null,null,null,null,null,null,null,null,"",""]
[null,789,null,null,null,null,null,null,null,null,null,null,null,null,null,null,"",""]
[null,790,null,null,null,null,null,null,null,null,null,null,null,null,null,null,"",""]
[null,791,null,null,null,null,null,null,null,null,null,null,null,null,null,null,"",""]
[null,792,null,null,null,null,null,null,null,null,null,null,null,null,null,null,"",""]
[null,793,null,null,null,null,null,null,null,null,null,null,null,null,null,null,"",""]
[null,794,null,null,null,null,null,null,null,null,null,null,null,null,null,null,"",""]
[null,795,null,null,null,null,null,null,null,null,null,null,null,null,null,null,"",""]
[null,796,null,null,null,null,null,null,null,null,null,null,null,null,null,null,"",""]
[null,797,null,null,null,null,null,null,null,null,null,null,null,null,null,null,"",""]
[null,798,null,null,null,null,null,null,null,null,null,null,null,null,null,null,"",""]
[null,799,null,null,null,null,null,null,null,null,null,null,null,null,null,null,"",""]
[null,800,null,null,null,null,null,null,null,null,null,null,null,null,null,null,"",""]
[null,801,null,null,null,null,null,null,null,null,null,null,null,null,null,null,"",""]
[null,802,null,null,null,null,null,null,null,null,null,null,null,null,null,null,"",""]
[null,803,null,null,null,null,null,null,null,null,null,null,null,null,null,null,"",""]
[null,804,null,null,null,null,null,null,null,null,null,null,null,null,null,null,"",""]
[null,805,null,null,null,null,null,null,null,null,null,null,null,null,null,null,"",""]
[null,806,null,null,null,null,null,null,null,null,null,null,null,null,null,null,"",""]
[null,807,null,null,null,null,null,null,null,null,null,null,null,null,null,null,"",""]
[null,808,null,null,null,null,null,null,null,null,null,null,null,null,null,null,"",""]
[null,809,null,null,null,null,null,null,null,null,null,null,null,null,null,null,"",""]
[null,810,null,null,null,null,null,null,null,null,null,null,null,null,null,null,"",""]
[null,811,null,null,null,null,null,null,null,null,null,null,null,null,null,null,"",""]
[null,812,null,null,null,null,null,null,null,null,null,null,null,null,null,null,"",""]
[null,813,null,null,null,null,null,null,null,null,null,null,null,null,null,null,"",""]
[null,814,null,null,null,null,null,null,null,null,null,null,null,null,null,null,"",""]
[null,815,null,null,null,null,null,null,null,null,null,null,null,null,null,null,"",""]
[null,816,null,null,null,null,null,null,null,null,null,null,null,null,null,null,"",""]
[null,817,null,null,null,null,null,null,null,null,null,null,null,null,null,null,"",""]
[null,818,null,null,null,null,null,null,null,null,null,null,null,null,null,null,"",""]
[null,819,null,null,null,null,null,null,null,null,null,null,null,null,null,null,"",""]
[null,820,null,null,null,null,null,null,null,null,null,null,null,null,null,null,{"$f":"IF(P825=\"\",\"\",P825-L825)","v":""},{"$f":"IFERROR(Q825/P825,\"\")","v":""}]
[null,821,null,null,null,null,null,null,null,null,null,null,null,null,null,null,"",""]
[null,822,null,null,null,null,null,null,null,null,null,null,null,null,null,null,"",""]
[null,823,null,null,null,null,null,null,null,null,null,null,null,null,null,null,"",""]
[null,824,null,null,null,null,null,null,null,null,null,null,null,null,null,null,"",""]
[null,825,null,null,null,null,null,null,null,null,null,null,null,null,null,null,"",""]
[null,826,null,null,null,null,null,null,null,null,null,null,null,null,null,null,"",""]
[null,827,null,null,null,null,null,null,null,null,null,null,null,null,null,null,"",""]
[null,828,null,null,null,null,null,null,null,null,null,null,null,null,null,null,"",""]
[null,829,null,null,null,null,null,null,null,null,null,null,null,null,null,null,"",""]
[null,830,null,null,null,null,null,null,null,null,null,null,null,null,null,null,"",""]
[null,831,null,null,null,null,null,null,null,null,null,null,null,null,null,null,"",""]
[null,832,null,null,null,null,null,null,null,null,null,null,null,null,null,null,"",""]
[null,833,null,null,null,null,null,null,null,null,null,null,null,null,null,null,"",""]
[null,834,null,null,null,null,null,null,null,null,null,null,null,null,null,null,"",""]
[null,835,null,null,null,null,null,null,null,null,null,null,null,null,null,null,"",""]
[null,836,null,null,null,null,null,null,null,null,null,null,null,null,null,null,"",""]
[null,837,null,null,null,null,null,null,null,null,null,null,null,null,null,null,"",""]
[null,838,null,null,null,null,null,null,null,null,null,null,null,null,null,null,"",""]
[null,839,null,null,null,null,null,null,null,null,null,null,null,null,null,null,"",""]
[null,840,null,null,null,null,null,null,null,null,null,null,null,null,null,null,"",""]
[null,841,null,null,null,null,null,null,null,null,null,null,null,null,null,null,"",""]
[null,842,null,null,null,null,null,null,null,null,null,null,null,null,null,null,"",""]
[null,843,null,null,null,null,null,null,null,null,null,null,null,null,null,null,"",""]
[null,844,null,null,null,null,null,null,null,null,null,null,null,null,null,null,"",""]
[null,845,null,null,null,null,null,null,null,null,null,null,null,null,null,null,"",""]
[null,846,null,null,null,null,null,null,null,null,null,null,null,null,null,null,"",""]
[null,847,null,null,null,null,null,null,null,null,null,null,null,null,null,null,"",""]
[null,848,null,null,null,null,null,null,null,null,null,null,null,null,null,null,"",""]
[null,849,null,null,null,null,null,null,null,null,null,null,null,null,null,null,"",""]
[null,850,null,null,null,null,null,null,null,null,null,null,null,null,null,null,"",""]
[null,851,null,null,null,null,null,null,null,null,null,null,null,null,null,null,"",""]
[null,852,null,null,null,null,null,null,null,null,null,null,null,null,null,null,"",""]
[null,853,null,null,null,null,null,null,null,null,null,null,null,null,null,null,"",""]
[null,854,null,null,null,null,null,null,null,null,null,null,null,null,null,null,"",""]
[null,855,null,null,null,null,null,null,null,null,null,null,null,null,null,null,"",""]
[null,856,null,null,null,null,null,null,null,null,null,null,null,null,null,null,"",""]
[null,857,null,null,null,null,null,null,null,null,null,null,null,null,null,null,"",""]
[null,858,null,null,null,null,null,null,null,null,null,null,null,null,null,null,"",""]
[null,859,null,null,null,null,null,null,null,null,null,null,null,null,null,null,"",""]
[null,860,null,null,null,null,null,null,null,null,null,null,null,null,null,null,"",""]
[null,861,null,null,null,null,null,null,null,null,null,null,null,null,null,null,"",""]
[null,862,null,null,null,null,null,null,null,null,null,null,null,null,null,null,"",""]
[null,863,null,null,null,null,null,null,null,null,null,null,null,null,null,null,"",""]
[null,864,null,null,null,null,null,null,null,null,null,null,null,null,null,null,"",""]
[null,865,null,null,null,null,null,null,null,null,null,null,null,null,null,null,"",""]
[null,866,null,null,null,null,null,null,null,null,null,null,null,null,null,null,"",""]
[null,867,null,null,null,null,null,null,null,null,null,null,null,null,null,null,"",""]
[null,868,null,null,null,null,null,null,null,null,null,null,null,null,null,null,"",""]
[null,869,null,null,null,null,null,null,null,null,null,null,null,null,null,null,"",""]
[null,870,null,null,null,null,null,null,null,null,null,null,null,null,null,null,"",""]
[null,871,null,null,null,null,null,null,null,null,null,null,null,null,null,null,"",""]
[null,872,null,null,null,null,null,null,null,null,null,null,null,null,null,null,"",""]
[null,873,null,null,null,null,null,null,null,null,null,null,null,null,null,null,"",""]
[null,874,null,null,null,null,null,null,null,null,null,null,null,null,null,null,"",""]
[null,875,null,null,null,null,null,null,null,null,null,null,null,null,null,null,"",""]
[null,876,null,null,null,null,null,null,null,null,null,null,null,null,null,null,"",""]
[null,877,null,null,null,null,null,null,null,null,null,null,null,null,null,null,"",""]
[null,878,null,null,null,null,null,null,null,null,null,null,null,null,null,null,"",""]
[null,879,null,null,null,null,null,null,null,null,null,null,null,null,null,null,"",""]
[null,880,null,null,null,null,null,null,null,null,null,null,null,null,null,null,"",""]
[null,881,null,null,null,null,null,null,null,null,null,null,null,null,null,null,"",""]
[null,882,null,null,null,null,null,null,null,null,null,null,null,null,null,null,"",""]
[null,883,null,null,null,null,null,null,null,null,null,null,null,null,null,null,"",""]
[null,884,null,null,null,null,null,null,null,null,null,null,null,null,null,null,{"$f":"IF(P889=\"\",\"\",P889-L889)","v":""},{"$f":"IFERROR(Q889/P889,\"\")","v":""}]
[null,885,null,null,null,null,null,null,null,null,null,null,null,null,null,null,"",""]
[null,886,null,null,null,null,null,null,null,null,null,null,null,null,null,null,"",""]
[null,887,null,null,null,null,null,null,null,null,null,null,null,null,null,null,"",""]
[null,888,null,null,null,null,null,null,null,null,null,null,null,null,null,null,"",""]
[null,889,null,null,null,null,null,null,null,null,null,null,null,null,null,null,"",""]
[null,890,null,null,null,null,null,null,null,null,null,null,null,null,null,null,"",""]
[null,891,null,null,null,null,null,null,null,null,null,null,null,null,null,null,"",""]
[null,892,null,null,null,null,null,null,null,null,null,null,null,null,null,null,"",""]
[null,893,null,null,null,null,null,null,null,null,null,null,null,null,null,null,"",""]
[null,894,null,null,null,null,null,null,null,null,null,null,null,null,null,null,"",""]
[null,895,null,null,null,null,null,null,null,null,null,null,null,null,null,null,"",""]
[null,896,null,null,null,null,null,null,null,null,null,null,null,null,null,null,"",""]
[null,897,null,null,null,null,null,null,null,null,null,null,null,null,null,null,"",""]
[null,898,null,null,null,null,null,null,null,null,null,null,null,null,null,null,"",""]
[null,899,null,null,null,null,null,null,null,null,null,null,null,null,null,null,"",""]
[null,900,null,null,null,null,null,null,null,null,null,null,null,null,null,null,"",""]
[null,901,null,null,null,null,null,null,null,null,null,null,null,null,null,null,"",""]
[null,902,null,null,null,null,null,null,null,null,null,null,null,null,null,null,"",""]
[null,903,null,null,null,null,null,null,null,null,null,null,null,null,null,null,"",""]
[null,904,null,null,null,null,null,null,null,null,null,null,null,null,null,null,"",""]
[null,905,null,null,null,null,null,null,null,null,null,null,null,null,null,null,"",""]
[null,906,null,null,null,null,null,null,null,null,null,null,null,null,null,null,"",""]
[null,907,null,null,null,null,null,null,null,null,null,null,null,null,null,null,"",""]
[null,908,null,null,null,null,null,null,null,null,null,null,null,null,null,null,"",""]
[null,909,null,null,null,null,null,null,null,null,null,null,null,null,null,null,"",""]
[null,910,null,null,null,null,null,null,null,null,null,null,null,null,null,null,"",""]
[null,911,null,null,null,null,null,null,null,null,null,null,null,null,null,null,"",""]
[null,912,null,null,null,null,null,null,null,null,null,null,null,null,null,null,"",""]
[null,913,null,null,null,null,null,null,null,null,null,null,null,null,null,null,"",""]
[null,914,null,null,null,null,null,null,null,null,null,null,null,null,null,null,"",""]
[null,915,null,null,null,null,null,null,null,null,null,null,null,null,null,null,"",""]
[null,916,null,null,null,null,null,null,null,null,null,null,null,null,null,null,"",""]
[null,917,null,null,null,null,null,null,null,null,null,null,null,null,null,null,"",""]
[null,918,null,null,null,null,null,null,null,null,null,null,null,null,null,null,"",""]
[null,919,null,null,null,null,null,null,null,null,null,null,null,null,null,null,"",""]
[null,920,null,null,null,null,null,null,null,null,null,null,null,null,null,null,"",""]
[null,921,null,null,null,null,null,null,null,null,null,null,null,null,null,null,"",""]
[null,922,null,null,null,null,null,null,null,null,null,null,null,null,null,null,"",""]
[null,923,null,null,null,null,null,null,null,null,null,null,null,null,null,null,"",""]
[null,924,null,null,null,null,null,null,null,null,null,null,null,null,null,null,"",""]
[null,925,null,null,null,null,null,null,null,null,null,null,null,null,null,null,"",""]
[null,926,null,null,null,null,null,null,null,null,null,null,null,null,null,null,"",""]
[null,927,null,null,null,null,null,null,null,null,null,null,null,null,null,null,"",""]
[null,928,null,null,null,null,null,null,null,null,null,null,null,null,null,null,"",""]
[null,929,null,null,null,null,null,null,null,null,null,null,null,null,null,null,"",""]
[null,930,null,null,null,null,null,null,null,null,null,null,null,null,null,null,"",""]
[null,931,null,null,null,null,null,null,null,null,null,null,null,null,null,null,"",""]
[null,932,null,null,null,null,null,null,null,null,null,null,null,null,null,null,"",""]
[null,933,null,null,null,null,null,null,null,null,null,null,null,null,null,null,"",""]
[null,934,null,null,null,null,null,null,null,null,null,null,null,null,null,null,"",""]
[null,935,null,null,null,null,null,null,null,null,null,null,null,null,null,null,"",""]
[null,936,null,null,null,null,null,null,null,null,null,null,null,null,null,null,"",""]
[null,937,null,null,null,null,null,null,null,null,null,null,null,null,null,null,"",""]
[null,938,null,null,null,null,null,null,null,null,null,null,null,null,null,null,"",""]
[null,939,null,null,null,null,null,null,null,null,null,null,null,null,null,null,"",""]
[null,940,null,null,null,null,null,null,null,null,null,null,null,null,null,null,"",""]
[null,941,null,null,null,null,null,null,null,null,null,null,null,null,null,null,"",""]
[null,942,null,null,null,null,null,null,null,null,null,null,null,null,null,null,"",""]
[null,943,null,null,null,null,null,null,null,null,null,null,null,null,null,null,"",""]
[null,944,null,null,null,null,null,null,null,null,null,null,null,null,null,null,"",""]
[null,945,null,null,null,null,null,null,null,null,null,null,null,null,null,null,"",""]
[null,946,null,null,null,null,null,null,null,null,null,null,null,null,null,null,"",""]
[null,947,null,null,null,null,null,null,null,null,null,null,null,null,null,null,"",""]
[null,948,null,null,null,null,null,null,null,null,null,null,null,null,null,null,{"$f":"IF(P953=\"\",\"\",P953-L953)","v":""},{"$f":"IFERROR(Q953/P953,\"\")","v":""}]
[null,949,null,null,null,null,null,null,null,null,null,null,null,null,null,null,"",""]
[null,950,null,null,null,null,null,null,null,null,null,null,null,null,null,null,"",""]
[null,951,null,null,null,null,null,null,null,null,null,null,null,null,null,null,"",""]
[null,952,null,null,null,null,null,null,null,null,null,null,null,null,null,null,"",""]
[null,953,null,null,null,null,null,null,null,null,null,null,null,null,null,null,"",""]
[null,954,null,null,null,null,null,null,null,null,null,null,null,null,null,null,"",""]
[null,955,null,null,null,null,null,null,null,null,null,null,null,null,null,null,"",""]
[null,956,null,null,null,null,null,null,null,null,null,null,null,null,null,null,"",""]
[null,957,null,null,null,null,null,null,null,null,null,null,null,null,null,null,"",""]
[null,958,null,null,null,null,null,null,null,null,null,null,null,null,null,null,"",""]
[null,959,null,null,null,null,null,null,null,null,null,null,null,null,null,null,"",""]
[null,960,null,null,null,null,null,null,null,null,null,null,null,null,null,null,"",""]
[null,961,null,null,null,null,null,null,null,null,null,null,null,null,null,null,"",""]
[null,962,null,null,null,null,null,null,null,null,null,null,null,null,null,null,"",""]
[null,963,null,null,null,null,null,null,null,null,null,null,null,null,null,null,"",""]
[null,964,null,null,null,null,null,null,null,null,null,null,null,null,null,null,"",""]
[null,965,null,null,null,null,null,null,null,null,null,null,null,null,null,null,"",""]
[null,966,null,null,null,null,null,null,null,null,null,null,null,null,null,null,"",""]
[null,967,null,null,null,null,null,null,null,null,null,null,null,null,null,null,"",""]
[null,968,null,null,null,null,null,null,null,null,null,null,null,null,null,null,"",""]
[null,969,null,null,null,null,null,null,null,null,null,null,null,null,null,null,"",""]
[null,970,null,null,null,null,null,null,null,null,null,null,null,null,null,null,"",""]
[null,971,null,null,null,null,null,null,null,null,null,null,null,null,null,null,"",""]
[null,972,null,null,null,null,null,null,null,null,null,null,null,null,null,null,"",""]
[null,973,null,null,null,null,null,null,null,null,null,null,null,null,null,null,"",""]
[null,974,null,null,null,null,null,null,null,null,null,null,null,null,null,null,"",""]
[null,975,null,null,null,null,null,null,null,null,null,null,null,null,null,null,"",""]
[null,976,null,null,null,null,null,null,null,null,null,null,null,null,null,null,"",""]
[null,977,null,null,null,null,null,null,null,null,null,null,null,null,null,null,"",""]
[null,978,null,null,null,null,null,null,null,null,null,null,null,null,null,null,"",""]
[null,979,null,null,null,null,null,null,null,null,null,null,null,null,null,null,"",""]
[null,980,null,null,null,null,null,null,null,null,null,null,null,null,null,null,"",""]
[null,981,null,null,null,null,null,null,null,null,null,null,null,null,null,null,"",""]
[null,982,null,null,null,null,null,null,null,null,null,null,null,null,null,null,"",""]
[null,983,null,null,null,null,null,null,null,null,null,null,null,null,null,null,"",""]
[null,984,null,null,null,null,null,null,null,null,null,null,null,null,null,null,"",""]
[null,985,null,null,null,null,null,null,null,null,null,null,null,null,null,null,"",""]
[null,986,null,null,null,null,null,null,null,null,null,null,null,null,null,null,"",""]
[null,987,null,null,null,null,null,null,null,null,null,null,null,null,null,null,"",""]
[null,988,null,null,null,null,null,null,null,null,null,null,null,null,null,null,"",""]
[null,989,null,null,null,null,null,null,null,null,null,null,null,null,null,null,"",""]
[null,990,null,null,null,null,null,null,null,null,null,null,null,null,null,null,"",""]
[null,991,null,null,null,null,null,null,null,null,null,null,null,null,null,null,"",""]
[null,992,null,null,null,null,null,null,null,null,null,null,null,null,null,null,"",""]
[null,993,null,null,null,null,null,null,null,null,null,null,null,null,null,null,"",""]
[null,994,null,null,null,null,null,null,null,null,null,null,null,null,null,null,"",""]
[null,995,null,null,null,null,null,null,null,null,null,null,null,null,null,null,"",""]
[null,996,null,null,null,null,null,null,null,null,null,null,null,null,null,null,"",""]
[null,997,null,null,null,null,null,null,null,null,null,null,null,null,null,null,"",""]
[null,998,null,null,null,null,null,null,null,null,null,null,null,null,null,null,"",""]
[null,999,null,null,null,null,null,null,null,null,null,null,null,null,null,null,"",""]
[null,1000,null,null,null,null,null,null,null,null,null,null,null,null,null,null,"",""]
[null,1001,null,null,null,null,null,null,null,null,null,null,null,null,null,null,"",""]
[null,1002,null,null,null,null,null,null,null,null,null,null,null,null,null,null,"",""]
[null,1003,null,null,null,null,null,null,null,null,null,null,null,null,null,null,"",""]
[null,1004,null,null,null,null,null,null,null,null,null,null,null,null,null,null,"",""]
[null,1005,null,null,null,null,null,null,null,null,null,null,null,null,null,null,"",""]
[null,1006,null,null,null,null,null,null,null,null,null,null,null,null,null,null,"",""]
[null,1007,null,null,null,null,null,null,null,null,null,null,null,null,null,null,"",""]
[null,1008,null,null,null,null,null,null,null,null,null,null,null,null,null,null,"",""]
[null,1009,null,null,null,null,null,null,null,null,null,null,null,null,null,null,"",""]
[null,1010,null,null,null,null,null,null,null,null,null,null,null,null,null,null,"",""]
[null,1011,null,null,null,null,null,null,null,null,null,null,null,null,null,null,"",""]
[null,1012,null,null,null,null,null,null,null,null,null,null,null,null,null,null,{"$f":"IF(P1017=\"\",\"\",P1017-L1017)","v":""},{"$f":"IFERROR(Q1017/P1017,\"\")","v":""}]
[null,1013,null,null,null,null,null,null,null,null,null,null,null,null,null,null,"",""]
[null,1014,null,null,null,null,null,null,null,null,null,null,null,null,null,null,"",""]
[null,1015,null,null,null,null,null,null,null,null,null,null,null,null,null,null,"",""]
[null,1016,null,null,null,null,null,null,null,null,null,null,null,null,null,null,"",""]
[null,1017,null,null,null,null,null,null,null,null,null,null,null,null,null,null,"",""]
[null,1018,null,null,null,null,null,null,null,null,null,null,null,null,null,null,"",""]
[null,1019,null,null,null,null,null,null,null,null,null,null,null,null,null,null,"",""]
[null,1020,null,null,null,null,null,null,null,null,null,null,null,null,null,null,"",""]
[null,1021,null,null,null,null,null,null,null,null,null,null,null,null,null,null,"",""]
[null,1022,null,null,null,null,null,null,null,null,null,null,null,null,null,null,"",""]
[null,1023,null,null,null,null,null,null,null,null,null,null,null,null,null,null,"",""]
[null,1024,null,null,null,null,null,null,null,null,null,null,null,null,null,null,"",""]
[null,1025,null,null,null,null,null,null,null,null,null,null,null,null,null,null,"",""]
[null,1026,null,null,null,null,null,null,null,null,null,null,null,null,null,null,"",""]
[null,1027,null,null,null,null,null,null,null,null,null,null,null,null,null,null,"",""]
[null,1028,null,null,null,null,null,null,null,null,null,null,null,null,null,null,"",""]
[null,1029,null,null,null,null,null,null,null,null,null,null,null,null,null,null,"",""]
[null,1030,null,null,null,null,null,null,null,null,null,null,null,null,null,null,"",""]
[null,1031,null,null,null,null,null,null,null,null,null,null,null,null,null,null,"",""]
[null,1032,null,null,null,null,null,null,null,null,null,null,null,null,null,null,"",""]
[null,1033,null,null,null,null,null,null,null,null,null,null,null,null,null,null,"",""]
[null,1034,null,null,null,null,null,null,null,null,null,null,null,null,null,null,"",""]
[null,1035,null,null,null,null,null,null,null,null,null,null,null,null,null,null,"",""]
[null,1036,null,null,null,null,null,null,null,null,null,null,null,null,null,null,"",""]
[null,1037,null,null,null,null,null,null,null,null,null,null,null,null,null,null,"",""]
[null,1038,null,null,null,null,null,null,null,null,null,null,null,null,null,null,"",""]
[null,1039,null,null,null,null,null,null,null,null,null,null,null,null,null,null,"",""]
[null,1040,null,null,null,null,null,null,null,null,null,null,null,null,null,null,"",""]
[null,1041,null,null,null,null,null,null,null,null,null,null,null,null,null,null,"",""]
[null,1042,null,null,null,null,null,null,null,null,null,null,null,null,null,null,"",""]
[null,1043,null,null,null,null,null,null,null,null,null,null,null,null,null,null,"",""]
[null,1044,null,null,null,null,null,null,null,null,null,null,null,null,null,null,"",""]
[null,1045,null,null,null,null,null,null,null,null,null,null,null,null,null,null,"",""]
[null,1046,null,null,null,null,null,null,null,null,null,null,null,null,null,null,"",""]
[null,1047,null,null,null,null,null,null,null,null,null,null,null,null,null,null,"",""]
[null,1048,null,null,null,null,null,null,null,null,null,null,null,null,null,null,"",""]
[null,1049,null,null,null,null,null,null,null,null,null,null,null,null,null,null,"",""]
[null,1050,null,null,null,null,null,null,null,null,null,null,null,null,null,null,"",""]
[null,1051,null,null,null,null,null,null,null,null,null,null,null,null,null,null,"",""]
[null,1052,null,null,null,null,null,null,null,null,null,null,null,null,null,null,"",""]
[null,1053,null,null,null,null,null,null,null,null,null,null,null,null,null,null,"",""]
[null,1054,null,null,null,null,null,null,null,null,null,null,null,null,null,null,"",""]
[null,1055,null,null,null,null,null,null,null,null,null,null,null,null,null,null,"",""]
[null,1056,null,null,null,null,null,null,null,null,null,null,null,null,null,null,"",""]
[null,1057,null,null,null,null,null,null,null,null,null,null,null,null,null,null,"",""]
[null,1058,null,null,null,null,null,null,null,null,null,null,null,null,null,null,"",""]
[null,1059,null,null,null,null,null,null,null,null,null,null,null,null,null,null,"",""]
[null,1060,null,null,null,null,null,null,null,null,null,null,null,null,null,null,"",""]
[null,1061,null,null,null,null,null,null,null,null,null,null,null,null,null,null,"",""]
[null,1062,null,null,null,null,null,null,null,null,null,null,null,null,null,null,"",""]
[null,1063,null,null,null,null,null,null,null,null,null,null,null,null,null,null,"",""]
[null,1064,null,null,null,null,null,null,null,null,null,null,null,null,null,null,"",""]
[null,1065,null,null,null,null,null,null,null,null,null,null,null,null,null,null,"",""]
[null,1066,null,null,null,null,null,null,null,null,null,null,null,null,null,null,"",""]
[null,1067,null,null,null,null,null,null,null,null,null,null,null,null,null,null,"",""]
[null,1068,null,null,null,null,null,null,null,null,null,null,null,null,null,null,"",""]
[null,1069,null,null,null,null,null,null,null,null,null,null,null,null,null,null,"",""]
[null,1070,null,null,null,null,null,null,null,null,null,null,null,null,null,null,"",""]
[null,1071,null,null,null,null,null,null,null,null,null,null,null,null,null,null,"",""]
[null,1072,null,null,null,null,null,null,null,null,null,null,null,null,null,null,"",""]
[null,1073,null,null,null,null,null,null,null,null,null,null,null,null,null,null,"",""]
[null,1074,null,null,null,null,null,null,null,null,null,null,null,null,null,null,"",""]
[null,1075,null,null,null,null,null,null,null,null,null,null,null,null,null,null,"",""]
[null,1076,null,null,null,null,null,null,null,null,null,null,null,null,null,null,{"$f":"IF(P1081=\"\",\"\",P1081-L1081)","v":""},{"$f":"IFERROR(Q1081/P1081,\"\")","v":""}]
[null,1077,null,null,null,null,null,null,null,null,null,null,null,null,null,null,"",""]
[null,1078,null,null,null,null,null,null,null,null,null,null,null,null,null,null,"",""]
[null,1079,null,null,null,null,null,null,null,null,null,null,null,null,null,null,"",""]
[null,1080,null,null,null,null,null,null,null,null,null,null,null,null,null,null,"",""]
[null,1081,null,null,null,null,null,null,null,null,null,null,null,null,null,null,"",""]
[null,1082,null,null,null,null,null,null,null,null,null,null,null,null,null,null,"",""]
[null,1083,null,null,null,null,null,null,null,null,null,null,null,null,null,null,"",""]
[null,1084,null,null,null,null,null,null,null,null,null,null,null,null,null,null,"",""]
[null,1085,null,null,null,null,null,null,null,null,null,null,null,null,null,null,"",""]
[null,1086,null,null,null,null,null,null,null,null,null,null,null,null,null,null,"",""]
[null,1087,null,null,null,null,null,null,null,null,null,null,null,null,null,null,"",""]
[null,1088,null,null,null,null,null,null,null,null,null,null,null,null,null,null,"",""]
[null,1089,null,null,null,null,null,null,null,null,null,null,null,null,null,null,"",""]
[null,1090,null,null,null,null,null,null,null,null,null,null,null,null,null,null,"",""]
[null,1091,null,null,null,null,null,null,null,null,null,null,null,null,null,null,"",""]
[null,1092,null,null,null,null,null,null,null,null,null,null,null,null,null,null,"",""]
[null,1093,null,null,null,null,null,null,null,null,null,null,null,null,null,null,"",""]
[null,1094,null,null,null,null,null,null,null,null,null,null,null,null,null,null,"",""]
[null,1095,null,null,null,null,null,null,null,null,null,null,null,null,null,null,"",""]
[null,1096,null,null,null,null,null,null,null,null,null,null,null,null,null,null,"",""]
[null,1097,null,null,null,null,null,null,null,null,null,null,null,null,null,null,"",""]
[null,1098,null,null,null,null,null,null,null,null,null,null,null,null,null,null,"",""]
[null,1099,null,null,null,null,null,null,null,null,null,null,null,null,null,null,"",""]
[null,1100,null,null,null,null,null,null,null,null,null,null,null,null,null,null,"",""]
[null,1101,null,null,null,null,null,null,null,null,null,null,null,null,null,null,"",""]
[null,1102,null,null,null,null,null,null,null,null,null,null,null,null,null,null,"",""]
[null,1103,null,null,null,null,null,null,null,null,null,null,null,null,null,null,"",""]
[null,1104,null,null,null,null,null,null,null,null,null,null,null,null,null,null,"",""]
[null,1105,null,null,null,null,null,null,null,null,null,null,null,null,null,null,"",""]
[null,1106,null,null,null,null,null,null,null,null,null,null,null,null,null,null,"",""]
[null,1107,null,null,null,null,null,null,null,null,null,null,null,null,null,null,"",""]
[null,1108,null,null,null,null,null,null,null,null,null,null,null,null,null,null,"",""]
[null,1109,null,null,null,null,null,null,null,null,null,null,null,null,null,null,"",""]
[null,1110,null,null,null,null,null,null,null,null,null,null,null,null,null,null,"",""]
[null,1111,null,null,null,null,null,null,null,null,null,null,null,null,null,null,"",""]
[null,1112,null,null,null,null,null,null,null,null,null,null,null,null,null,null,"",""]
[null,1113,null,null,null,null,null,null,null,null,null,null,null,null,null,null,"",""]
[null,1114,null,null,null,null,null,null,null,null,null,null,null,null,null,null,"",""]
[null,1115,null,null,null,null,null,null,null,null,null,null,null,null,null,null,"",""]
[null,1116,null,null,null,null,null,null,null,null,null,null,null,null,null,null,"",""]
[null,1117,null,null,null,null,null,null,null,null,null,null,null,null,null,null,"",""]
[null,1118,null,null,null,null,null,null,null,null,null,null,null,null,null,null,"",""]
[null,1119,null,null,null,null,null,null,null,null,null,null,null,null,null,null,"",""]
[null,1120,null,null,null,null,null,null,null,null,null,null,null,null,null,null,"",""]
[null,1121,null,null,null,null,null,null,null,null,null,null,null,null,null,null,"",""]
[null,1122,null,null,null,null,null,null,null,null,null,null,null,null,null,null,"",""]
[null,1123,null,null,null,null,null,null,null,null,null,null,null,null,null,null,"",""]
[null,1124,null,null,null,null,null,null,null,null,null,null,null,null,null,null,"",""]
[null,1125,null,null,null,null,null,null,null,null,null,null,null,null,null,null,"",""]
[null,1126,null,null,null,null,null,null,null,null,null,null,null,null,null,null,"",""]
[null,1127,null,null,null,null,null,null,null,null,null,null,null,null,null,null,"",""]
[null,1128,null,null,null,null,null,null,null,null,null,null,null,null,null,null,"",""]
[null,1129,null,null,null,null,null,null,null,null,null,null,null,null,null,null,"",""]
[null,1130,null,null,null,null,null,null,null,null,null,null,null,null,null,null,"",""]
[null,1131,null,null,null,null,null,null,null,null,null,null,null,null,null,null,"",""]
[null,1132,null,null,null,null,null,null,null,null,null,null,null,null,null,null,"",""]
[null,1133,null,null,null,null,null,null,null,null,null,null,null,null,null,null,"",""]
[null,1134,null,null,null,null,null,null,null,null,null,null,null,null,null,null,"",""]
[null,1135,null,null,null,null,null,null,null,null,null,null,null,null,null,null,"",""]
[null,1136,null,null,null,null,null,null,null,null,null,null,null,null,null,null,"",""]
[null,1137,null,null,null,null,null,null,null,null,null,null,null,null,null,null,"",""]
[null,1138,null,null,null,null,null,null,null,null,null,null,null,null,null,null,"",""]
[null,1139,null,null,null,null,null,null,null,null,null,null,null,null,null,null,"",""]
[null,1140,null,null,null,null,null,null,null,null,null,null,null,null,null,null,{"$f":"IF(P1145=\"\",\"\",P1145-L1145)","v":""},{"$f":"IFERROR(Q1145/P1145,\"\")","v":""}]
[null,1141,null,null,null,null,null,null,null,null,null,null,null,null,null,null,"",""]
[null,1142,null,null,null,null,null,null,null,null,null,null,null,null,null,null,"",""]
[null,1143,null,null,null,null,null,null,null,null,null,null,null,null,null,null,"",""]
[null,1144,null,null,null,null,null,null,null,null,null,null,null,null,null,null,"",""]
[null,1145,null,null,null,null,null,null,null,null,null,null,null,null,null,null,"",""]
[null,1146,null,null,null,null,null,null,null,null,null,null,null,null,null,null,"",""]
[null,1147,null,null,null,null,null,null,null,null,null,null,null,null,null,null,"",""]
[null,1148,null,null,null,null,null,null,null,null,null,null,null,null,null,null,"",""]
[null,1149,null,null,null,null,null,null,null,null,null,null,null,null,null,null,"",""]
[null,1150,null,null,null,null,null,null,null,null,null,null,null,null,null,null,"",""]
[null,1151,null,null,null,null,null,null,null,null,null,null,null,null,null,null,"",""]
[null,1152,null,null,null,null,null,null,null,null,null,null,null,null,null,null,"",""]
[null,1153,null,null,null,null,null,null,null,null,null,null,null,null,null,null,"",""]
[null,1154,null,null,null,null,null,null,null,null,null,null,null,null,null,null,"",""]
[null,1155,null,null,null,null,null,null,null,null,null,null,null,null,null,null,"",""]
[null,1156,null,null,null,null,null,null,null,null,null,null,null,null,null,null,"",""]
[null,1157,null,null,null,null,null,null,null,null,null,null,null,null,null,null,"",""]
[null,1158,null,null,null,null,null,null,null,null,null,null,null,null,null,null,"",""]
[null,1159,null,null,null,null,null,null,null,null,null,null,null,null,null,null,"",""]
[null,1160,null,null,null,null,null,null,null,null,null,null,null,null,null,null,"",""]
[null,1161,null,null,null,null,null,null,null,null,null,null,null,null,null,null,"",""]
[null,1162,null,null,null,null,null,null,null,null,null,null,null,null,null,null,"",""]
[null,1163,null,null,null,null,null,null,null,null,null,null,null,null,null,null,"",""]
[null,1164,null,null,null,null,null,null,null,null,null,null,null,null,null,null,"",""]
[null,1165,null,null,null,null,null,null,null,null,null,null,null,null,null,null,"",""]
[null,1166,null,null,null,null,null,null,null,null,null,null,null,null,null,null,"",""]
[null,1167,null,null,null,null,null,null,null,null,null,null,null,null,null,null,"",""]
[null,1168,null,null,null,null,null,null,null,null,null,null,null,null,null,null,"",""]
[null,1169,null,null,null,null,null,null,null,null,null,null,null,null,null,null,"",""]
[null,1170,null,null,null,null,null,null,null,null,null,null,null,null,null,null,"",""]
[null,1171,null,null,null,null,null,null,null,null,null,null,null,null,null,null,"",""]
[null,1172,null,null,null,null,null,null,null,null,null,null,null,null,null,null,"",""]
[null,1173,null,null,null,null,null,null,null,null,null,null,null,null,null,null,"",""]
[null,1174,null,null,null,null,null,null,null,null,null,null,null,null,null,null,"",""]
[null,1175,null,null,null,null,null,null,null,null,null,null,null,null,null,null,"",""]
[null,1176,null,null,null,null,null,null,null,null,null,null,null,null,null,null,"",""]
[null,1177,null,null,null,null,null,null,null,null,null,null,null,null,null,null,"",""]
[null,1178,null,null,null,null,null,null,null,null,null,null,null,null,null,null,"",""]
[null,1179,null,null,null,null,null,null,null,null,null,null,null,null,null,null,"",""]
[null,1180,null,null,null,null,null,null,null,null,null,null,null,null,null,null,"",""]
[null,1181,null,null,null,null,null,null,null,null,null,null,null,null,null,null,"",""]
[null,1182,null,null,null,null,null,null,null,null,null,null,null,null,null,null,"",""]
[null,1183,null,null,null,null,null,null,null,null,null,null,null,null,null,null,"",""]
[null,1184,null,null,null,null,null,null,null,null,null,null,null,null,null,null,"",""]
[null,1185,null,null,null,null,null,null,null,null,null,null,null,null,null,null,"",""]
[null,1186,null,null,null,null,null,null,null,null,null,null,null,null,null,null,"",""]
[null,1187,null,null,null,null,null,null,null,null,null,null,null,null,null,null,"",""]
[null,1188,null,null,null,null,null,null,null,null,null,null,null,null,null,null,"",""]
[null,1189,null,null,null,null,null,null,null,null,null,null,null,null,null,null,"",""]
[null,1190,null,null,null,null,null,null,null,null,null,null,null,null,null,null,"",""]
[null,1191,null,null,null,null,null,null,null,null,null,null,null,null,null,null,"",""]
[null,1192,null,null,null,null,null,null,null,null,null,null,null,null,null,null,"",""]
[null,1193,null,null,null,null,null,null,null,null,null,null,null,null,null,null,"",""]
[null,1194,null,null,null,null,null,null,null,null,null,null,null,null,null,null,"",""]
[null,1195,null,null,null,null,null,null,null,null,null,null,null,null,null,null,"",""]
[null,1196,null,null,null,null,null,null,null,null,null,null,null,null,null,null,"",""]
[null,1197,null,null,null,null,null,null,null,null,null,null,null,null,null,null,"",""]
[null,1198,null,null,null,null,null,null,null,null,null,null,null,null,null,null,"",""]
[null,1199,null,null,null,null,null,null,null,null,null,null,null,null,null,null,"",""]
[null,1200,null,null,null,null,null,null,null,null,null,null,null,null,null,null,{"$f":"IF(P1205=\"\",\"\",P1205-L1205)","v":""},{"$f":"IFERROR(Q1205/P1205,\"\")","v":""}]
[null,1201,null,null,null,null,null,null,null,null,null,null,null,null,null,null,"",""]
[null,1202,null,null,null,null,null,null,null,null,null,null,null,null,null,null,"",""]
[null,1203,null,null,null,null,null,null,null,null,null,null,null,null,null,null,"",""]
[null,1204,null,null,null,null,null,null,null,null,null,null,null,null,null,null,"",""]
[null,1205,null,null,null,null,null,null,null,null,null,null,null,null,null,null,"",""]
[null,1206,null,null,null,null,null,null,null,null,null,null,null,null,null,null,"",""]
[null,1207,null,null,null,null,null,null,null,null,null,null,null,null,null,null,"",""]
[null,1208,null,null,null,null,null,null,null,null,null,null,null,null,null,null,"",""]
[null,1209,null,null,null,null,null,null,null,null,null,null,null,null,null,null,"",""]
[null,1210,null,null,null,null,null,null,null,null,null,null,null,null,null,null,"",""]
[null,1211,null,null,null,null,null,null,null,null,null,null,null,null,null,null,"",""]
[null,1212,null,null,null,null,null,null,null,null,null,null,null,null,null,null,"",""]
[null,1213,null,null,null,null,null,null,null,null,null,null,null,null,null,null,"",""]
[null,1214,null,null,null,null,null,null,null,null,null,null,null,null,null,null,"",""]
[null,1215,null,null,null,null,null,null,null,null,null,null,null,null,null,null,"",""]
[null,1216,null,null,null,null,null,null,null,null,null,null,null,null,null,null,"",""]
[null,1217,null,null,null,null,null,null,null,null,null,null,null,null,null,null,"",""]
[null,1218,null,null,null,null,null,null,null,null,null,null,null,null,null,null,"",""]
[null,1219,null,null,null,null,null,null,null,null,null,null,null,null,null,null,"",""]
[null,1220,null,null,null,null,null,null,null,null,null,null,null,null,null,null,"",""]
[null,1221,null,null,null,null,null,null,null,null,null,null,null,null,null,null,"",""]
[null,1222,null,null,null,null,null,null,null,null,null,null,null,null,null,null,"",""]
[null,1223,null,null,null,null,null,null,null,null,null,null,null,null,null,null,"",""]
[null,1224,null,null,null,null,null,null,null,null,null,null,null,null,null,null,"",""]
[null,1225,null,null,null,null,null,null,null,null,null,null,null,null,null,null,"",""]
[null,1226,null,null,null,null,null,null,null,null,null,null,null,null,null,null,"",""]
[null,1227,null,null,null,null,null,null,null,null,null,null,null,null,null,null,"",""]
[null,1228,null,null,null,null,null,null,null,null,null,null,null,null,null,null,"",""]
[null,1229,null,null,null,null,null,null,null,null,null,null,null,null,null,null,"",""]
[null,1230,null,null,null,null,null,null,null,null,null,null,null,null,null,null,"",""]
[null,1231,null,null,null,null,null,null,null,null,null,null,null,null,null,null,"",""]
[null,1232,null,null,null,null,null,null,null,null,null,null,null,null,null,null,"",""]
[null,1233,null,null,null,null,null,null,null,null,null,null,null,null,null,null,"",""]
[null,1234,null,null,null,null,null,null,null,null,null,null,null,null,null,null,"",""]
[null,1235,null,null,null,null,null,null,null,null,null,null,null,null,null,null,"",""]
[null,1236,null,null,null,null,null,null,null,null,null,null,null,null,null,null,"",""]
[null,1237,null,null,null,null,null,null,null,null,null,null,null,null,null,null,"",""]
[null,1238,null,null,null,null,null,null,null,null,null,null,null,null,null,null,"",""]
[null,1239,null,null,null,null,null,null,null,null,null,null,null,null,null,null,"",""]
[null,1240,null,null,null,null,null,null,null,null,null,null,null,null,null,null,"",""]
[null,1241,null,null,null,null,null,null,null,null,null,null,null,null,null,null,"",""]
[null,1242,null,null,null,null,null,null,null,null,null,null,null,null,null,null,"",""]
[null,1243,null,null,null,null,null,null,null,null,null,null,null,null,null,null,"",""]
[null,1244,null,null,null,null,null,null,null,null,null,null,null,null,null,null,"",""]
[null,1245,null,null,null,null,null,null,null,null,null,null,null,null,null,null,"",""]
[null,1246,null,null,null,null,null,null,null,null,null,null,null,null,null,null,"",""]
[null,1247,null,null,null,null,null,null,null,null,null,null,null,null,null,null,"",""]
[null,1248,null,null,null,null,null,null,null,null,null,null,null,null,null,null,"",""]
[null,1249,null,null,null,null,null,null,null,null,null,null,null,null,null,null,"",""]
[null,1250,null,null,null,null,null,null,null,null,null,null,null,null,null,null,"",""]
[null,1251,null,null,null,null,null,null,null,null,null,null,null,null,null,null,"",""]
[null,1252,null,null,null,null,null,null,null,null,null,null,null,null,null,null,"",""]
[null,1253,null,null,null,null,null,null,null,null,null,null,null,null,null,null,"",""]
[null,1254,null,null,null,null,null,null,null,null,null,null,null,null,null,null,"",""]
[null,1255,null,null,null,null,null,null,null,null,null,null,null,null,null,null,"",""]
[null,1256,null,null,null,null,null,null,null,null,null,null,null,null,null,null,"",""]
[null,1257,null,null,null,null,null,null,null,null,null,null,null,null,null,null,"",""]
[null,1258,null,null,null,null,null,null,null,null,null,null,null,null,null,null,"",""]
[null,1259,null,null,null,null,null,null,null,null,null,null,null,null,null,null,"",""]
[null,1260,null,null,null,null,null,null,null,null,null,null,null,null,null,null,"",""]
[null,1261,null,null,null,null,null,null,null,null,null,null,null,null,null,null,"",""]
[null,1262,null,null,null,null,null,null,null,null,null,null,null,null,null,null,"",""]
[null,1263,null,null,null,null,null,null,null,null,null,null,null,null,null,null,"",""]
[null,1264,null,null,null,null,null,null,null,null,null,null,null,null,null,null,{"$f":"IF(P1269=\"\",\"\",P1269-L1269)","v":""},{"$f":"IFERROR(Q1269/P1269,\"\")","v":""}]
[null,1265,null,null,null,null,null,null,null,null,null,null,null,null,null,null,"",""]
[null,1266,null,null,null,null,null,null,null,null,null,null,null,null,null,null,"",""]
[null,1267,null,null,null,null,null,null,null,null,null,null,null,null,null,null,"",""]
[null,1268,null,null,null,null,null,null,null,null,null,null,null,null,null,null,"",""]
[null,1269,null,null,null,null,null,null,null,null,null,null,null,null,null,null,"",""]
[null,1270,null,null,null,null,null,null,null,null,null,null,null,null,null,null,"",""]
[null,1271,null,null,null,null,null,null,null,null,null,null,null,null,null,null,"",""]
[null,1272,null,null,null,null,null,null,null,null,null,null,null,null,null,null,"",""]
[null,1273,null,null,null,null,null,null,null,null,null,null,null,null,null,null,"",""]
[null,1274,null,null,null,null,null,null,null,null,null,null,null,null,null,null,"",""]
[null,1275,null,null,null,null,null,null,null,null,null,null,null,null,null,null,"",""]
[null,1276,null,null,null,null,null,null,null,null,null,null,null,null,null,null,"",""]
[null,1277,null,null,null,null,null,null,null,null,null,null,null,null,null,null,"",""]
[null,1278,null,null,null,null,null,null,null,null,null,null,null,null,null,null,"",""]
[null,1279,null,null,null,null,null,null,null,null,null,null,null,null,null,null,"",""]
[null,1280,null,null,null,null,null,null,null,null,null,null,null,null,null,null,"",""]
[null,1281,null,null,null,null,null,null,null,null,null,null,null,null,null,null,"",""]
[null,1282,null,null,null,null,null,null,null,null,null,null,null,null,null,null,"",""]
[null,1283,null,null,null,null,null,null,null,null,null,null,null,null,null,null,"",""]
[null,1284,null,null,null,null,null,null,null,null,null,null,null,null,null,null,"",""]
[null,1285,null,null,null,null,null,null,null,null,null,null,null,null,null,null,"",""]
[null,1286,null,null,null,null,null,null,null,null,null,null,null,null,null,null,"",""]
[null,1287,null,null,null,null,null,null,null,null,null,null,null,null,null,null,"",""]
[null,1288,null,null,null,null,null,null,null,null,null,null,null,null,null,null,"",""]
[null,1289,null,null,null,null,null,null,null,null,null,null,null,null,null,null,"",""]
[null,1290,null,null,null,null,null,null,null,null,null,null,null,null,null,null,"",""]
[null,1291,null,null,null,null,null,null,null,null,null,null,null,null,null,null,"",""]
[null,1292,null,null,null,null,null,null,null,null,null,null,null,null,null,null,"",""]
[null,1293,null,null,null,null,null,null,null,null,null,null,null,null,null,null,"",""]
[null,1294,null,null,null,null,null,null,null,null,null,null,null,null,null,null,"",""]
[null,1295,null,null,null,null,null,null,null,null,null,null,null,null,null,null,"",""]
[null,1296,null,null,null,null,null,null,null,null,null,null,null,null,null,null,"",""]
[null,1297,null,null,null,null,null,null,null,null,null,null,null,null,null,null,"",""]
[null,1298,null,null,null,null,null,null,null,null,null,null,null,null,null,null,"",""]
[null,1299,null,null,null,null,null,null,null,null,null,null,null,null,null,null,"",""]
[null,1300,null,null,null,null,null,null,null,null,null,null,null,null,null,null,"",""]
[null,1301,null,null,null,null,null,null,null,null,null,null,null,null,null,null,"",""]
[null,1302,null,null,null,null,null,null,null,null,null,null,null,null,null,null,"",""]
[null,1303,null,null,null,null,null,null,null,null,null,null,null,null,null,null,"",""]
[null,1304,null,null,null,null,null,null,null,null,null,null,null,null,null,null,"",""]
[null,1305,null,null,null,null,null,null,null,null,null,null,null,null,null,null,"",""]
[null,1306,null,null,null,null,null,null,null,null,null,null,null,null,null,null,"",""]
[null,1307,null,null,null,null,null,null,null,null,null,null,null,null,null,null,"",""]
[null,1308,null,null,null,null,null,null,null,null,null,null,null,null,null,null,"",""]
[null,1309,null,null,null,null,null,null,null,null,null,null,null,null,null,null,"",""]
[null,1310,null,null,null,null,null,null,null,null,null,null,null,null,null,null,"",""]
[null,1311,null,null,null,null,null,null,null,null,null,null,null,null,null,null,"",""]
[null,1312,null,null,null,null,null,null,null,null,null,null,null,null,null,null,"",""]
[null,1313,null,null,null,null,null,null,null,null,null,null,null,null,null,null,"",""]
[null,1314,null,null,null,null,null,null,null,null,null,null,null,null,null,null,"",""]
[null,1315,null,null,null,null,null,null,null,null,null,null,null,null,null,null,"",""]
[null,1316,null,null,null,null,null,null,null,null,null,null,null,null,null,null,"",""]
[null,1317,null,null,null,null,null,null,null,null,null,null,null,null,null,null,"",""]
[null,1318,null,null,null,null,null,null,null,null,null,null,null,null,null,null,"",""]
[null,1319,null,null,null,null,null,null,null,null,null,null,null,null,null,null,"",""]
[null,1320,null,null,null,null,null,null,null,null,null,null,null,null,null,null,"",""]
[null,1321,null,null,null,null,null,null,null,null,null,null,null,null,null,null,"",""]
[null,1322,null,null,null,null,null,null,null,null,null,null,null,null,null,null,"",""]
[null,1323,null,null,null,null,null,null,null,null,null,null,null,null,null,null,"",""]
[null,1324,null,null,null,null,null,null,null,null,null,null,null,null,null,null,"",""]
[null,1325,null,null,null,null,null,null,null,null,null,null,null,null,null,null,"",""]
[null,1326,null,null,null,null,null,null,null,null,null,null,null,null,null,null,"",""]
[null,1327,null,null,null,null,null,null,null,null,null,null,null,null,null,null,"",""]
[null,1328,null,null,null,null,null,null,null,null,null,null,null,null,null,null,{"$f":"IF(P1333=\"\",\"\",P1333-L1333)","v":""},{"$f":"IFERROR(Q1333/P1333,\"\")","v":""}]
[null,1329,null,null,null,null,null,null,null,null,null,null,null,null,null,null,"",""]
[null,1330,null,null,null,null,null,null,null,null,null,null,null,null,null,null,"",""]
[null,1331,null,null,null,null,null,null,null,null,null,null,null,null,null,null,"",""]
[null,1332,null,null,null,null,null,null,null,null,null,null,null,null,null,null,"",""]
[null,1333,null,null,null,null,null,null,null,null,null,null,null,null,null,null,"",""]
[null,1334,null,null,null,null,null,null,null,null,null,null,null,null,null,null,"",""]
[null,1335,null,null,null,null,null,null,null,null,null,null,null,null,null,null,"",""]
[null,1336,null,null,null,null,null,null,null,null,null,null,null,null,null,null,"",""]
[null,1337,null,null,null,null,null,null,null,null,null,null,null,null,null,null,"",""]
[null,1338,null,null,null,null,null,null,null,null,null,null,null,null,null,null,"",""]
[null,1339,null,null,null,null,null,null,null,null,null,null,null,null,null,null,"",""]
[null,1340,null,null,null,null,null,null,null,null,null,null,null,null,null,null,"",""]
[null,1341,null,null,null,null,null,null,null,null,null,null,null,null,null,null,"",""]
[null,1342,null,null,null,null,null,null,null,null,null,null,null,null,null,null,"",""]
[null,1343,null,null,null,null,null,null,null,null,null,null,null,null,null,null,"",""]
[null,1344,null,null,null,null,null,null,null,null,null,null,null,null,null,null,"",""]
[null,1345,null,null,null,null,null,null,null,null,null,null,null,null,null,null,"",""]
[null,1346,null,null,null,null,null,null,null,null,null,null,null,null,null,null,"",""]
[null,1347,null,null,null,null,null,null,null,null,null,null,null,null,null,null,"",""]
[null,1348,null,null,null,null,null,null,null,null,null,null,null,null,null,null,"",""]
[null,1349,null,null,null,null,null,null,null,null,null,null,null,null,null,null,"",""]
[null,1350,null,null,null,null,null,null,null,null,null,null,null,null,null,null,"",""]
[null,1351,null,null,null,null,null,null,null,null,null,null,null,null,null,null,"",""]
[null,1352,null,null,null,null,null,null,null,null,null,null,null,null,null,null,"",""]
[null,1353,null,null,null,null,null,null,null,null,null,null,null,null,null,null,"",""]
[null,1354,null,null,null,null,null,null,null,null,null,null,null,null,null,null,"",""]
[null,1355,null,null,null,null,null,null,null,null,null,null,null,null,null,null,"",""]
[null,1356,null,null,null,null,null,null,null,null,null,null,null,null,null,null,"",""]
[null,1357,null,null,null,null,null,null,null,null,null,null,null,null,null,null,"",""]
[null,1358,null,null,null,null,null,null,null,null,null,null,null,null,null,null,"",""]
[null,1359,null,null,null,null,null,null,null,null,null,null,null,null,null,null,"",""]
[null,1360,null,null,null,null,null,null,null,null,null,null,null,null,null,null,"",""]
[null,1361,null,null,null,null,null,null,null,null,null,null,null,null,null,null,"",""]
[null,1362,null,null,null,null,null,null,null,null,null,null,null,null,null,null,"",""]
[null,1363,null,null,null,null,null,null,null,null,null,null,null,null,null,null,"",""]
[null,1364,null,null,null,null,null,null,null,null,null,null,null,null,null,null,"",""]
[null,1365,null,null,null,null,null,null,null,null,null,null,null,null,null,null,"",""]
[null,1366,null,null,null,null,null,null,null,null,null,null,null,null,null,null,"",""]
[null,1367,null,null,null,null,null,null,null,null,null,null,null,null,null,null,"",""]
[null,1368,null,null,null,null,null,null,null,null,null,null,null,null,null,null,"",""]
[null,1369,null,null,null,null,null,null,null,null,null,null,null,null,null,null,"",""]
[null,1370,null,null,null,null,null,null,null,null,null,null,null,null,null,null,"",""]
[null,1371,null,null,null,null,null,null,null,null,null,null,null,null,null,null,"",""]
[null,1372,null,null,null,null,null,null,null,null,null,null,null,null,null,null,"",""]
[null,1373,null,null,null,null,null,null,null,null,null,null,null,null,null,null,"",""]
[null,1374,null,null,null,null,null,null,null,null,null,null,null,null,null,null,"",""]
[null,1375,null,null,null,null,null,null,null,null,null,null,null,null,null,null,"",""]
[null,1376,null,null,null,null,null,null,null,null,null,null,null,null,null,null,"",""]
[null,1377,null,null,null,null,null,null,null,null,null,null,null,null,null,null,"",""]
[null,1378,null,null,null,null,null,null,null,null,null,null,null,null,null,null,"",""]
[null,1379,null,null,null,null,null,null,null,null,null,null,null,null,null,null,"",""]
[null,1380,null,null,null,null,null,null,null,null,null,null,null,null,null,null,"",""]
[null,1381,null,null,null,null,null,null,null,null,null,null,null,null,null,null,"",""]
[null,1382,null,null,null,null,null,null,null,null,null,null,null,null,null,null,"",""]
[null,1383,null,null,null,null,null,null,null,null,null,null,null,null,null,null,"",""]
[null,1384,null,null,null,null,null,null,null,null,null,null,null,null,null,null,"",""]
[null,1385,null,null,null,null,null,null,null,null,null,null,null,null,null,null,"",""]
[null,1386,null,null,null,null,null,null,null,null,null,null,null,null,null,null,"",""]
[null,1387,null,null,null,null,null,null,null,null,null,null,null,null,null,null,"",""]
[null,1388,null,null,null,null,null,null,null,null,null,null,null,null,null,null,"",""]
[null,1389,null,null,null,null,null,null,null,null,null,null,null,null,null,null,"",""]
[null,1390,null,null,null,null,null,null,null,null,null,null,null,null,null,null,"",""]
[null,1391,null,null,null,null,null,null,null,null,null,null,null,null,null,null,"",""]
[null,1392,null,null,null,null,null,null,null,null,null,null,null,null,null,null,{"$f":"IF(P1397=\"\",\"\",P1397-L1397)","v":""},{"$f":"IFERROR(Q1397/P1397,\"\")","v":""}]
[null,1393,null,null,null,null,null,null,null,null,null,null,null,null,null,null,"",""]
[null,1394,null,null,null,null,null,null,null,null,null,null,null,null,null,null,"",""]
[null,1395,null,null,null,null,null,null,null,null,null,null,null,null,null,null,"",""]
[null,1396,null,null,null,null,null,null,null,null,null,null,null,null,null,null,"",""]
[null,1397,null,null,null,null,null,null,null,null,null,null,null,null,null,null,"",""]
[null,1398,null,null,null,null,null,null,null,null,null,null,null,null,null,null,"",""]
[null,1399,null,null,null,null,null,null,null,null,null,null,null,null,null,null,"",""]
[null,1400,null,null,null,null,null,null,null,null,null,null,null,null,null,null,"",""]
[null,1401,null,null,null,null,null,null,null,null,null,null,null,null,null,null,"",""]
[null,1402,null,null,null,null,null,null,null,null,null,null,null,null,null,null,"",""]
[null,1403,null,null,null,null,null,null,null,null,null,null,null,null,null,null,"",""]
[null,1404,null,null,null,null,null,null,null,null,null,null,null,null,null,null,"",""]
[null,1405,null,null,null,null,null,null,null,null,null,null,null,null,null,null,"",""]
[null,1406,null,null,null,null,null,null,null,null,null,null,null,null,null,null,"",""]
[null,1407,null,null,null,null,null,null,null,null,null,null,null,null,null,null,"",""]
[null,1408,null,null,null,null,null,null,null,null,null,null,null,null,null,null,"",""]
[null,1409,null,null,null,null,null,null,null,null,null,null,null,null,null,null,"",""]
[null,1410,null,null,null,null,null,null,null,null,null,null,null,null,null,null,"",""]
[null,1411,null,null,null,null,null,null,null,null,null,null,null,null,null,null,"",""]
[null,1412,null,null,null,null,null,null,null,null,null,null,null,null,null,null,"",""]
[null,1413,null,null,null,null,null,null,null,null,null,null,null,null,null,null,"",""]
[null,1414,null,null,null,null,null,null,null,null,null,null,null,null,null,null,"",""]
[null,1415,null,null,null,null,null,null,null,null,null,null,null,null,null,null,"",""]
[null,1416,null,null,null,null,null,null,null,null,null,null,null,null,null,null,"",""]
[null,1417,null,null,null,null,null,null,null,null,null,null,null,null,null,null,"",""]
[null,1418,null,null,null,null,null,null,null,null,null,null,null,null,null,null,"",""]
[null,1419,null,null,null,null,null,null,null,null,null,null,null,null,null,null,"",""]
[null,1420,null,null,null,null,null,null,null,null,null,null,null,null,null,null,"",""]
[null,1421,null,null,null,null,null,null,null,null,null,null,null,null,null,null,"",""]
[null,1422,null,null,null,null,null,null,null,null,null,null,null,null,null,null,"",""]
[null,1423,null,null,null,null,null,null,null,null,null,null,null,null,null,null,"",""]
[null,1424,null,null,null,null,null,null,null,null,null,null,null,null,null,null,"",""]
[null,1425,null,null,null,null,null,null,null,null,null,null,null,null,null,null,"",""]
[null,1426,null,null,null,null,null,null,null,null,null,null,null,null,null,null,"",""]
[null,1427,null,null,null,null,null,null,null,null,null,null,null,null,null,null,"",""]
[null,1428,null,null,null,null,null,null,null,null,null,null,null,null,null,null,"",""]
[null,1429,null,null,null,null,null,null,null,null,null,null,null,null,null,null,"",""]
[null,1430,null,null,null,null,null,null,null,null,null,null,null,null,null,null,"",""]
[null,1431,null,null,null,null,null,null,null,null,null,null,null,null,null,null,"",""]
[null,1432,null,null,null,null,null,null,null,null,null,null,null,null,null,null,"",""]
[null,1433,null,null,null,null,null,null,null,null,null,null,null,null,null,null,"",""]
[null,1434,null,null,null,null,null,null,null,null,null,null,null,null,null,null,"",""]
[null,1435,null,null,null,null,null,null,null,null,null,null,null,null,null,null,"",""]
[null,1436,null,null,null,null,null,null,null,null,null,null,null,null,null,null,"",""]
[null,1437,null,null,null,null,null,null,null,null,null,null,null,null,null,null,"",""]
[null,1438,null,null,null,null,null,null,null,null,null,null,null,null,null,null,"",""]
[null,1439,null,null,null,null,null,null,null,null,null,null,null,null,null,null,"",""]
[null,1440,null,null,null,null,null,null,null,null,null,null,null,null,null,null,"",""]
[null,1441,null,null,null,null,null,null,null,null,null,null,null,null,null,null,"",""]
[null,1442,null,null,null,null,null,null,null,null,null,null,null,null,null,null,"",""]
[null,1443,null,null,null,null,null,null,null,null,null,null,null,null,null,null,"",""]
[null,1444,null,null,null,null,null,null,null,null,null,null,null,null,null,null,"",""]
[null,1445,null,null,null,null,null,null,null,null,null,null,null,null,null,null,"",""]
[null,1446,null,null,null,null,null,null,null,null,null,null,null,null,null,null,"",""]
[null,1447,null,null,null,null,null,null,null,null,null,null,null,null,null,null,"",""]
[null,1448,null,null,null,null,null,null,null,null,null,null,null,null,null,null,"",""]
[null,1449,null,null,null,null,null,null,null,null,null,null,null,null,null,null,"",""]
[null,1450,null,null,null,null,null,null,null,null,null,null,null,null,null,null,"",""]
[null,1451,null,null,null,null,null,null,null,null,null,null,null,null,null,null,"",""]
[null,1452,null,null,null,null,null,null,null,null,null,null,null,null,null,null,"",""]
[null,1453,null,null,null,null,null,null,null,null,null,null,null,null,null,null,"",""]
[null,1454,null,null,null,null,null,null,null,null,null,null,null,null,null,null,"",""]
[null,1455,null,null,null,null,null,null,null,null,null,null,null,null,null,null,"",""]
[null,1456,null,null,null,null,null,null,null,null,null,null,null,null,null,null,{"$f":"IF(P1461=\"\",\"\",P1461-L1461)","v":""},{"$f":"IFERROR(Q1461/P1461,\"\")","v":""}]
[null,1457,null,null,null,null,null,null,null,null,null,null,null,null,null,null,"",""]
[null,1458,null,null,null,null,null,null,null,null,null,null,null,null,null,null,"",""]
[null,1459,null,null,null,null,null,null,null,null,null,null,null,null,null,null,"",""]
[null,1460,null,null,null,null,null,null,null,null,null,null,null,null,null,null,"",""]
[null,1461,null,null,null,null,null,null,null,null,null,null,null,null,null,null,"",""]
[null,1462,null,null,null,null,null,null,null,null,null,null,null,null,null,null,"",""]
[null,1463,null,null,null,null,null,null,null,null,null,null,null,null,null,null,"",""]
[null,1464,null,null,null,null,null,null,null,null,null,null,null,null,null,null,"",""]
[null,1465,null,null,null,null,null,null,null,null,null,null,null,null,null,null,"",""]
[null,1466,null,null,null,null,null,null,null,null,null,null,null,null,null,null,"",""]
[null,1467,null,null,null,null,null,null,null,null,null,null,null,null,null,null,"",""]
[null,1468,null,null,null,null,null,null,null,null,null,null,null,null,null,null,"",""]
[null,1469,null,null,null,null,null,null,null,null,null,null,null,null,null,null,"",""]
[null,1470,null,null,null,null,null,null,null,null,null,null,null,null,null,null,"",""]
[null,1471,null,null,null,null,null,null,null,null,null,null,null,null,null,null,"",""]
[null,1472,null,null,null,null,null,null,null,null,null,null,null,null,null,null,"",""]
[null,1473,null,null,null,null,null,null,null,null,null,null,null,null,null,null,"",""]
[null,1474,null,null,null,null,null,null,null,null,null,null,null,null,null,null,"",""]
[null,1475,null,null,null,null,null,null,null,null,null,null,null,null,null,null,"",""]
[null,1476,null,null,null,null,null,null,null,null,null,null,null,null,null,null,"",""]
[null,1477,null,null,null,null,null,null,null,null,null,null,null,null,null,null,"",""]
[null,1478,null,null,null,null,null,null,null,null,null,null,null,null,null,null,"",""]
[null,1479,null,null,null,null,null,null,null,null,null,null,null,null,null,null,"",""]
[null,1480,null,null,null,null,null,null,null,null,null,null,null,null,null,null,"",""]
[null,1481,null,null,null,null,null,null,null,null,null,null,null,null,null,null,"",""]
[null,1482,null,null,null,null,null,null,null,null,null,null,null,null,null,null,"",""]
[null,1483,null,null,null,null,null,null,null,null,null,null,null,null,null,null,"",""]
[null,1484,null,null,null,null,null,null,null,null,null,null,null,null,null,null,"",""]
[null,1485,null,null,null,null,null,null,null,null,null,null,null,null,null,null,"",""]
[null,1486,null,null,null,null,null,null,null,null,null,null,null,null,null,null,"",""]
[null,1487,null,null,null,null,null,null,null,null,null,null,null,null,null,null,"",""]
[null,1488,null,null,null,null,null,null,null,null,null,null,null,null,null,null,"",""]
[null,1489,null,null,null,null,null,null,null,null,null,null,null,null,null,null,"",""]
[null,1490,null,null,null,null,null,null,null,null,null,null,null,null,null,null,"",""]
[null,1491,null,null,null,null,null,null,null,null,null,null,null,null,null,null,"",""]
[null,1492,null,null,null,null,null,null,null,null,null,null,null,null,null,null,"",""]
[null,1493,null,null,null,null,null,null,null,null,null,null,null,null,null,null,"",""]
[null,1494,null,null,null,null,null,null,null,null,null,null,null,null,null,null,"",""]
[null,1495,null,null,null,null,null,null,null,null,null,null,null,null,null,null,"",""]
[null,1496,null,null,null,null,null,null,null,null,null,null,null,null,null,null,"",""]
[null,1497,null,null,null,null,null,null,null,null,null,null,null,null,null,null,"",""]
[null,1498,null,null,null,null,null,null,null,null,null,null,null,null,null,null,"",""]
[null,1499,null,null,null,null,null,null,null,null,null,null,null,null,null,null,"",""]
[null,1500,null,null,null,null,null,null,null,null,null,null,null,null,null,null,"",""]
[null,1501,null,null,null,null,null,null,null,null,null,null,null,null,null,null,"",""]
[null,1502,null,null,null,null,null,null,null,null,null,null,null,null,null,null,"",""]
[null,1503,null,null,null,null,null,null,null,null,null,null,null,null,null,null,"",""]
[null,1504,null,null,null,null,null,null,null,null,null,null,null,null,null,null,"",""]
[null,1505,null,null,null,null,null,null,null,null,null,null,null,null,null,null,"",""]
[null,1506,null,null,null,null,null,null,null,null,null,null,null,null,null,null,"",""]
[null,1507,null,null,null,null,null,null,null,null,null,null,null,null,null,null,"",""]
[null,1508,null,null,null,null,null,null,null,null,null,null,null,null,null,null,"",""]
[null,1509,null,null,null,null,null,null,null,null,null,null,null,null,null,null,"",""]
[null,1510,null,null,null,null,null,null,null,null,null,null,null,null,null,null,"",""]
[null,1511,null,null,null,null,null,null,null,null,null,null,null,null,null,null,"",""]
[null,1512,null,null,null,null,null,null,null,null,null,null,null,null,null,null,"",""]
[null,1513,null,null,null,null,null,null,null,null,null,null,null,null,null,null,"",""]
[null,1514,null,null,null,null,null,null,null,null,null,null,null,null,null,null,"",""]
[null,1515,null,null,null,null,null,null,null,null,null,null,null,null,null,null,"",""]
[null,1516,null,null,null,null,null,null,null,null,null,null,null,null,null,null,"",""]
[null,1517,null,null,null,null,null,null,null,null,null,null,null,null,null,null,"",""]
[null,1518,null,null,null,null,null,null,null,null,null,null,null,null,null,null,"",""]
[null,1519,null,null,null,null,null,null,null,null,null,null,null,null,null,null,"",""]
[null,1520,null,null,null,null,null,null,null,null,null,null,null,null,null,null,{"$f":"IF(P1525=\"\",\"\",P1525-L1525)","v":""},{"$f":"IFERROR(Q1525/P1525,\"\")","v":""}]
[null,1521,null,null,null,null,null,null,null,null,null,null,null,null,null,null,"",""]
[null,1522,null,null,null,null,null,null,null,null,null,null,null,null,null,null,"",""]
[null,1523,null,null,null,null,null,null,null,null,null,null,null,null,null,null,"",""]
[null,1524,null,null,null,null,null,null,null,null,null,null,null,null,null,null,"",""]
[null,1525,null,null,null,null,null,null,null,null,null,null,null,null,null,null,"",""]
[null,1526,null,null,null,null,null,null,null,null,null,null,null,null,null,null,"",""]
[null,1527,null,null,null,null,null,null,null,null,null,null,null,null,null,null,"",""]
[null,1528,null,null,null,null,null,null,null,null,null,null,null,null,null,null,"",""]
[null,1529,null,null,null,null,null,null,null,null,null,null,null,null,null,null,"",""]
[null,1530,null,null,null,null,null,null,null,null,null,null,null,null,null,null,"",""]
[null,1531,null,null,null,null,null,null,null,null,null,null,null,null,null,null,"",""]
[null,1532,null,null,null,null,null,null,null,null,null,null,null,null,null,null,"",""]
[null,1533,null,null,null,null,null,null,null,null,null,null,null,null,null,null,"",""]
[null,1534,null,null,null,null,null,null,null,null,null,null,null,null,null,null,"",""]
[null,1535,null,null,null,null,null,null,null,null,null,null,null,null,null,null,"",""]
[null,1536,null,null,null,null,null,null,null,null,null,null,null,null,null,null,"",""]
[null,1537,null,null,null,null,null,null,null,null,null,null,null,null,null,null,"",""]
[null,1538,null,null,null,null,null,null,null,null,null,null,null,null,null,null,"",""]
[null,1539,null,null,null,null,null,null,null,null,null,null,null,null,null,null,"",""]
[null,1540,null,null,null,null,null,null,null,null,null,null,null,null,null,null,"",""]
[null,1541,null,null,null,null,null,null,null,null,null,null,null,null,null,null,"",""]
[null,1542,null,null,null,null,null,null,null,null,null,null,null,null,null,null,"",""]
[null,1543,null,null,null,null,null,null,null,null,null,null,null,null,null,null,"",""]
[null,1544,null,null,null,null,null,null,null,null,null,null,null,null,null,null,"",""]
[null,1545,null,null,null,null,null,null,null,null,null,null,null,null,null,null,"",""]
[null,1546,null,null,null,null,null,null,null,null,null,null,null,null,null,null,"",""]
[null,1547,null,null,null,null,null,null,null,null,null,null,null,null,null,null,"",""]
[null,1548,null,null,null,null,null,null,null,null,null,null,null,null,null,null,"",""]
[null,1549,null,null,null,null,null,null,null,null,null,null,null,null,null,null,"",""]
[null,1550,null,null,null,null,null,null,null,null,null,null,null,null,null,null,"",""]
[null,1551,null,null,null,null,null,null,null,null,null,null,null,null,null,null,"",""]
[null,1552,null,null,null,null,null,null,null,null,null,null,null,null,null,null,"",""]
[null,1553,null,null,null,null,null,null,null,null,null,null,null,null,null,null,"",""]
[null,1554,null,null,null,null,null,null,null,null,null,null,null,null,null,null,"",""]
[null,1555,null,null,null,null,null,null,null,null,null,null,null,null,null,null,"",""]
[null,1556,null,null,null,null,null,null,null,null,null,null,null,null,null,null,"",""]
[null,1557,null,null,null,null,null,null,null,null,null,null,null,null,null,null,"",""]
[null,1558,null,null,null,null,null,null,null,null,null,null,null,null,null,null,"",""]
[null,1559,null,null,null,null,null,null,null,null,null,null,null,null,null,null,"",""]
[null,1560,null,null,null,null,null,null,null,null,null,null,null,null,null,null,"",""]
[null,1561,null,null,null,null,null,null,null,null,null,null,null,null,null,null,"",""]
[null,1562,null,null,null,null,null,null,null,null,null,null,null,null,null,null,"",""]
[null,1563,null,null,null,null,null,null,null,null,null,null,null,null,null,null,"",""]
[null,1564,null,null,null,null,null,null,null,null,null,null,null,null,null,null,"",""]
[null,1565,null,null,null,null,null,null,null,null,null,null,null,null,null,null,"",""]
[null,1566,null,null,null,null,null,null,null,null,null,null,null,null,null,null,"",""]
[null,1567,null,null,null,null,null,null,null,null,null,null,null,null,null,null,"",""]
[null,1568,null,null,null,null,null,null,null,null,null,null,null,null,null,null,"",""]
[null,1569,null,null,null,null,null,null,null,null,null,null,null,null,null,null,"",""]
[null,1570,null,null,null,null,null,null,null,null,null,null,null,null,null,null,"",""]
[null,1571,null,null,null,null,null,null,null,null,null,null,null,null,null,null,"",""]
[null,1572,null,null,null,null,null,null,null,null,null,null,null,null,null,null,"",""]
[null,1573,null,null,null,null,null,null,null,null,null,null,null,null,null,null,"",""]
[null,1574,null,null,null,null,null,null,null,null,null,null,null,null,null,null,"",""]
[null,1575,null,null,null,null,null,null,null,null,null,null,null,null,null,null,"",""]
[null,1576,null,null,null,null,null,null,null,null,null,null,null,null,null,null,"",""]
[null,1577,null,null,null,null,null,null,null,null,null,null,null,null,null,null,"",""]
[null,1578,null,null,null,null,null,null,null,null,null,null,null,null,null,null,"",""]
[null,1579,null,null,null,null,null,null,null,null,null,null,null,null,null,null,"",""]
[null,1580,null,null,null,null,null,null,null,null,null,null,null,null,null,null,"",""]
[null,1581,null,null,null,null,null,null,null,null,null,null,null,null,null,null,"",""]
[null,1582,null,null,null,null,null,null,null,null,null,null,null,null,null,null,"",""]
[null,1583,null,null,null,null,null,null,null,null,null,null,null,null,null,null,"",""]
[null,1584,null,null,null,null,null,null,null,null,null,null,null,null,null,null,{"$f":"IF(P1589=\"\",\"\",P1589-L1589)","v":""},{"$f":"IFERROR(Q1589/P1589,\"\")","v":""}]
[null,1585,null,null,null,null,null,null,null,null,null,null,null,null,null,null,"",""]
[null,1586,null,null,null,null,null,null,null,null,null,null,null,null,null,null,"",""]
[null,1587,null,null,null,null,null,null,null,null,null,null,null,null,null,null,"",""]
[null,1588,null,null,null,null,null,null,null,null,null,null,null,null,null,null,"",""]
[null,1589,null,null,null,null,null,null,null,null,null,null,null,null,null,null,"",""]
[null,1590,null,null,null,null,null,null,null,null,null,null,null,null,null,null,"",""]
[null,1591,null,null,null,null,null,null,null,null,null,null,null,null,null,null,"",""]
[null,1592,null,null,null,null,null,null,null,null,null,null,null,null,null,null,"",""]
[null,1593,null,null,null,null,null,null,null,null,null,null,null,null,null,null,"",""]
[null,1594,null,null,null,null,null,null,null,null,null,null,null,null,null,null,"",""]
[null,1595,null,null,null,null,null,null,null,null,null,null,null,null,null,null,"",""]
[null,1596,null,null,null,null,null,null,null,null,null,null,null,null,null,null,"",""]
[null,1597,null,null,null,null,null,null,null,null,null,null,null,null,null,null,"",""]
[null,1598,null,null,null,null,null,null,null,null,null,null,null,null,null,null,"",""]
[null,1599,null,null,null,null,null,null,null,null,null,null,null,null,null,null,"",""]
[null,1600,null,null,null,null,null,null,null,null,null,null,null,null,null,null,"",""]
[null,1601,null,null,null,null,null,null,null,null,null,null,null,null,null,null,"",""]
[null,1602,null,null,null,null,null,null,null,null,null,null,null,null,null,null,"",""]
[null,1603,null,null,null,null,null,null,null,null,null,null,null,null,null,null,"",""]
[null,1604,null,null,null,null,null,null,null,null,null,null,null,null,null,null,"",""]
[null,1605,null,null,null,null,null,null,null,null,null,null,null,null,null,null,"",""]
[null,1606,null,null,null,null,null,null,null,null,null,null,null,null,null,null,"",""]
[null,1607,null,null,null,null,null,null,null,null,null,null,null,null,null,null,"",""]
[null,1608,null,null,null,null,null,null,null,null,null,null,null,null,null,null,"",""]
[null,1609,null,null,null,null,null,null,null,null,null,null,null,null,null,null,"",""]
[null,1610,null,null,null,null,null,null,null,null,null,null,null,null,null,null,"",""]
[null,1611,null,null,null,null,null,null,null,null,null,null,null,null,null,null,"",""]
[null,1612,null,null,null,null,null,null,null,null,null,null,null,null,null,null,"",""]
[null,1613,null,null,null,null,null,null,null,null,null,null,null,null,null,null,"",""]
[null,1614,null,null,null,null,null,null,null,null,null,null,null,null,null,null,"",""]
[null,1615,null,null,null,null,null,null,null,null,null,null,null,null,null,null,"",""]
[null,1616,null,null,null,null,null,null,null,null,null,null,null,null,null,null,"",""]
[null,1617,null,null,null,null,null,null,null,null,null,null,null,null,null,null,"",""]
[null,1618,null,null,null,null,null,null,null,null,null,null,null,null,null,null,"",""]
[null,1619,null,null,null,null,null,null,null,null,null,null,null,null,null,null,"",""]
[null,1620,null,null,null,null,null,null,null,null,null,null,null,null,null,null,"",""]
[null,1621,null,null,null,null,null,null,null,null,null,null,null,null,null,null,"",""]
[null,1622,null,null,null,null,null,null,null,null,null,null,null,null,null,null,"",""]
[null,1623,null,null,null,null,null,null,null,null,null,null,null,null,null,null,"",""]
[null,1624,null,null,null,null,null,null,null,null,null,null,null,null,null,null,"",""]
[null,1625,null,null,null,null,null,null,null,null,null,null,null,null,null,null,"",""]
[null,1626,null,null,null,null,null,null,null,null,null,null,null,null,null,null,"",""]
[null,1627,null,null,null,null,null,null,null,null,null,null,null,null,null,null,"",""]
[null,1628,null,null,null,null,null,null,null,null,null,null,null,null,null,null,"",""]
[null,1629,null,null,null,null,null,null,null,null,null,null,null,null,null,null,"",""]
[null,1630,null,null,null,null,null,null,null,null,null,null,null,null,null,null,"",""]
[null,1631,null,null,null,null,null,null,null,null,null,null,null,null,null,null,"",""]
[null,1632,null,null,null,null,null,null,null,null,null,null,null,null,null,null,"",""]
[null,1633,null,null,null,null,null,null,null,null,null,null,null,null,null,null,"",""]
[null,1634,null,null,null,null,null,null,null,null,null,null,null,null,null,null,"",""]
[null,1635,null,null,null,null,null,null,null,null,null,null,null,null,null,null,"",""]
[null,1636,null,null,null,null,null,null,null,null,null,null,null,null,null,null,"",""]
[null,1637,null,null,null,null,null,null,null,null,null,null,null,null,null,null,"",""]
[null,1638,null,null,null,null,null,null,null,null,null,null,null,null,null,null,"",""]
[null,1639,null,null,null,null,null,null,null,null,null,null,null,null,null,null,"",""]
[null,1640,null,null,null,null,null,null,null,null,null,null,null,null,null,null,"",""]
[null,1641,null,null,null,null,null,null,null,null,null,null,null,null,null,null,"",""]
[null,1642,null,null,null,null,null,null,null,null,null,null,null,null,null,null,"",""]
[null,1643,null,null,null,null,null,null,null,null,null,null,null,null,null,null,"",""]
[null,1644,null,null,null,null,null,null,null,null,null,null,null,null,null,null,"",""]
[null,1645,null,null,null,null,null,null,null,null,null,null,null,null,null,null,"",""]
[null,1646,null,null,null,null,null,null,null,null,null,null,null,null,null,null,"",""]
[null,1647,null,null,null,null,null,null,null,null,null,null,null,null,null,null,"",""]
[null,1648,null,null,null,null,null,null,null,null,null,null,null,null,null,null,{"$f":"IF(P1653=\"\",\"\",P1653-L1653)","v":""},{"$f":"IFERROR(Q1653/P1653,\"\")","v":""}]
[null,1649,null,null,null,null,null,null,null,null,null,null,null,null,null,null,"",""]
[null,1650,null,null,null,null,null,null,null,null,null,null,null,null,null,null,"",""]
[null,1651,null,null,null,null,null,null,null,null,null,null,null,null,null,null,"",""]
[null,1652,null,null,null,null,null,null,null,null,null,null,null,null,null,null,"",""]
[null,1653,null,null,null,null,null,null,null,null,null,null,null,null,null,null,"",""]
[null,1654,null,null,null,null,null,null,null,null,null,null,null,null,null,null,"",""]
[null,1655,null,null,null,null,null,null,null,null,null,null,null,null,null,null,"",""]
[null,1656,null,null,null,null,null,null,null,null,null,null,null,null,null,null,"",""]
[null,1657,null,null,null,null,null,null,null,null,null,null,null,null,null,null,"",""]
[null,1658,null,null,null,null,null,null,null,null,null,null,null,null,null,null,"",""]
[null,1659,null,null,null,null,null,null,null,null,null,null,null,null,null,null,"",""]
[null,1660,null,null,null,null,null,null,null,null,null,null,null,null,null,null,"",""]
[null,1661,null,null,null,null,null,null,null,null,null,null,null,null,null,null,"",""]
[null,1662,null,null,null,null,null,null,null,null,null,null,null,null,null,null,"",""]
[null,1663,null,null,null,null,null,null,null,null,null,null,null,null,null,null,"",""]
[null,1664,null,null,null,null,null,null,null,null,null,null,null,null,null,null,"",""]
[null,1665,null,null,null,null,null,null,null,null,null,null,null,null,null,null,"",""]
[null,1666,null,null,null,null,null,null,null,null,null,null,null,null,null,null,"",""]
[null,1667,null,null,null,null,null,null,null,null,null,null,null,null,null,null,"",""]
[null,1668,null,null,null,null,null,null,null,null,null,null,null,null,null,null,"",""]
[null,1669,null,null,null,null,null,null,null,null,null,null,null,null,null,null,"",""]
[null,1670,null,null,null,null,null,null,null,null,null,null,null,null,null,null,"",""]
[null,1671,null,null,null,null,null,null,null,null,null,null,null,null,null,null,"",""]
[null,1672,null,null,null,null,null,null,null,null,null,null,null,null,null,null,"",""]
[null,1673,null,null,null,null,null,null,null,null,null,null,null,null,null,null,"",""]
[null,1674,null,null,null,null,null,null,null,null,null,null,null,null,null,null,"",""]
[null,1675,null,null,null,null,null,null,null,null,null,null,null,null,null,null,"",""]
[null,1676,null,null,null,null,null,null,null,null,null,null,null,null,null,null,"",""]
[null,1677,null,null,null,null,null,null,null,null,null,null,null,null,null,null,"",""]
[null,1678,null,null,null,null,null,null,null,null,null,null,null,null,null,null,"",""]
[null,1679,null,null,null,null,null,null,null,null,null,null,null,null,null,null,"",""]
[null,1680,null,null,null,null,null,null,null,null,null,null,null,null,null,null,"",""]
[null,1681,null,null,null,null,null,null,null,null,null,null,null,null,null,null,"",""]
[null,1682,null,null,null,null,null,null,null,null,null,null,null,null,null,null,"",""]
[null,1683,null,null,null,null,null,null,null,null,null,null,null,null,null,null,"",""]
[null,1684,null,null,null,null,null,null,null,null,null,null,null,null,null,null,"",""]
[null,1685,null,null,null,null,null,null,null,null,null,null,null,null,null,null,"",""]
[null,1686,null,null,null,null,null,null,null,null,null,null,null,null,null,null,"",""]
[null,1687,null,null,null,null,null,null,null,null,null,null,null,null,null,null,"",""]
[null,1688,null,null,null,null,null,null,null,null,null,null,null,null,null,null,"",""]
[null,1689,null,null,null,null,null,null,null,null,null,null,null,null,null,null,"",""]
[null,1690,null,null,null,null,null,null,null,null,null,null,null,null,null,null,"",""]
[null,1691,null,null,null,null,null,null,null,null,null,null,null,null,null,null,"",""]
[null,1692,null,null,null,null,null,null,null,null,null,null,null,null,null,null,"",""]
[null,1693,null,null,null,null,null,null,null,null,null,null,null,null,null,null,"",""]
[null,1694,null,null,null,null,null,null,null,null,null,null,null,null,null,null,"",""]
[null,1695,null,null,null,null,null,null,null,null,null,null,null,null,null,null,"",""]
[null,1696,null,null,null,null,null,null,null,null,null,null,null,null,null,null,"",""]
[null,1697,null,null,null,null,null,null,null,null,null,null,null,null,null,null,"",""]
[null,1698,null,null,null,null,null,null,null,null,null,null,null,null,null,null,"",""]
[null,1699,null,null,null,null,null,null,null,null,null,null,null,null,null,null,"",""]
[null,1700,null,null,null,null,null,null,null,null,null,null,null,null,null,null,"",""]
[null,1701,null,null,null,null,null,null,null,null,null,null,null,null,null,null,"",""]
[null,1702,null,null,null,null,null,null,null,null,null,null,null,null,null,null,"",""]
[null,1703,null,null,null,null,null,null,null,null,null,null,null,null,null,null,"",""]
[null,1704,null,null,null,null,null,null,null,null,null,null,null,null,null,null,"",""]
[null,1705,null,null,null,null,null,null,null,null,null,null,null,null,null,null,"",""]
[null,1706,null,null,null,null,null,null,null,null,null,null,null,null,null,null,"",""]
[null,1707,null,null,null,null,null,null,null,null,null,null,null,null,null,null,"",""]
[null,1708,null,null,null,null,null,null,null,null,null,null,null,null,null,null,"",""]
[null,1709,null,null,null,null,null,null,null,null,null,null,null,null,null,null,"",""]
[null,1710,null,null,null,null,null,null,null,null,null,null,null,null,null,null,"",""]
[null,1711,null,null,null,null,null,null,null,null,null,null,null,null,null,null,"",""]
[null,1712,null,null,null,null,null,null,null,null,null,null,null,null,null,null,{"$f":"IF(P1717=\"\",\"\",P1717-L1717)","v":""},{"$f":"IFERROR(Q1717/P1717,\"\")","v":""}]
[null,1713,null,null,null,null,null,null,null,null,null,null,null,null,null,null,"",""]
[null,1714,null,null,null,null,null,null,null,null,null,null,null,null,null,null,"",""]
[null,1715,null,null,null,null,null,null,null,null,null,null,null,null,null,null,"",""]
[null,1716,null,null,null,null,null,null,null,null,null,null,null,null,null,null,"",""]
[null,1717,null,null,null,null,null,null,null,null,null,null,null,null,null,null,"",""]
[null,1718,null,null,null,null,null,null,null,null,null,null,null,null,null,null,"",""]
[null,1719,null,null,null,null,null,null,null,null,null,null,null,null,null,null,"",""]
[null,1720,null,null,null,null,null,null,null,null,null,null,null,null,null,null,"",""]
[null,1721,null,null,null,null,null,null,null,null,null,null,null,null,null,null,"",""]
[null,1722,null,null,null,null,null,null,null,null,null,null,null,null,null,null,"",""]
[null,1723,null,null,null,null,null,null,null,null,null,null,null,null,null,null,"",""]
[null,1724,null,null,null,null,null,null,null,null,null,null,null,null,null,null,"",""]
[null,1725,null,null,null,null,null,null,null,null,null,null,null,null,null,null,"",""]
[null,1726,null,null,null,null,null,null,null,null,null,null,null,null,null,null,"",""]
[null,1727,null,null,null,null,null,null,null,null,null,null,null,null,null,null,"",""]
[null,1728,null,null,null,null,null,null,null,null,null,null,null,null,null,null,"",""]
[null,1729,null,null,null,null,null,null,null,null,null,null,null,null,null,null,"",""]
[null,1730,null,null,null,null,null,null,null,null,null,null,null,null,null,null,"",""]
[null,1731,null,null,null,null,null,null,null,null,null,null,null,null,null,null,"",""]
[null,1732,null,null,null,null,null,null,null,null,null,null,null,null,null,null,"",""]
[null,1733,null,null,null,null,null,null,null,null,null,null,null,null,null,null,"",""]
[null,1734,null,null,null,null,null,null,null,null,null,null,null,null,null,null,"",""]
[null,1735,null,null,null,null,null,null,null,null,null,null,null,null,null,null,"",""]
[null,1736,null,null,null,null,null,null,null,null,null,null,null,null,null,null,"",""]
[null,1737,null,null,null,null,null,null,null,null,null,null,null,null,null,null,"",""]
[null,1738,null,null,null,null,null,null,null,null,null,null,null,null,null,null,"",""]
[null,1739,null,null,null,null,null,null,null,null,null,null,null,null,null,null,"",""]
[null,1740,null,null,null,null,null,null,null,null,null,null,null,null,null,null,"",""]
[null,1741,null,null,null,null,null,null,null,null,null,null,null,null,null,null,"",""]
[null,1742,null,null,null,null,null,null,null,null,null,null,null,null,null,null,"",""]
[null,1743,null,null,null,null,null,null,null,null,null,null,null,null,null,null,"",""]
[null,1744,null,null,null,null,null,null,null,null,null,null,null,null,null,null,"",""]
[null,1745,null,null,null,null,null,null,null,null,null,null,null,null,null,null,"",""]
[null,1746,null,null,null,null,null,null,null,null,null,null,null,null,null,null,"",""]
[null,1747,null,null,null,null,null,null,null,null,null,null,null,null,null,null,"",""]
[null,1748,null,null,null,null,null,null,null,null,null,null,null,null,null,null,"",""]
[null,1749,null,null,null,null,null,null,null,null,null,null,null,null,null,null,"",""]
[null,1750,null,null,null,null,null,null,null,null,null,null,null,null,null,null,"",""]
[null,1751,null,null,null,null,null,null,null,null,null,null,null,null,null,null,"",""]
[null,1752,null,null,null,null,null,null,null,null,null,null,null,null,null,null,"",""]
[null,1753,null,null,null,null,null,null,null,null,null,null,null,null,null,null,"",""]
[null,1754,null,null,null,null,null,null,null,null,null,null,null,null,null,null,"",""]
[null,1755,null,null,null,null,null,null,null,null,null,null,null,null,null,null,"",""]
[null,1756,null,null,null,null,null,null,null,null,null,null,null,null,null,null,"",""]
[null,1757,null,null,null,null,null,null,null,null,null,null,null,null,null,null,"",""]
[null,1758,null,null,null,null,null,null,null,null,null,null,null,null,null,null,"",""]
[null,1759,null,null,null,null,null,null,null,null,null,null,null,null,null,null,"",""]
[null,1760,null,null,null,null,null,null,null,null,null,null,null,null,null,null,"",""]
[null,1761,null,null,null,null,null,null,null,null,null,null,null,null,null,null,"",""]
[null,1762,null,null,null,null,null,null,null,null,null,null,null,null,null,null,"",""]
[null,1763,null,null,null,null,null,null,null,null,null,null,null,null,null,null,"",""]
[null,1764,null,null,null,null,null,null,null,null,null,null,null,null,null,null,"",""]
[null,1765,null,null,null,null,null,null,null,null,null,null,null,null,null,null,"",""]
[null,1766,null,null,null,null,null,null,null,null,null,null,null,null,null,null,"",""]
[null,1767,null,null,null,null,null,null,null,null,null,null,null,null,null,null,"",""]
[null,1768,null,null,null,null,null,null,null,null,null,null,null,null,null,null,"",""]
[null,1769,null,null,null,null,null,null,null,null,null,null,null,null,null,null,"",""]
[null,1770,null,null,null,null,null,null,null,null,null,null,null,null,null,null,"",""]
[null,1771,null,null,null,null,null,null,null,null,null,null,null,null,null,null,"",""]
[null,1772,null,null,null,null,null,null,null,null,null,null,null,null,null,null,"",""]
[null,1773,null,null,null,null,null,null,null,null,null,null,null,null,null,null,"",""]
[null,1774,null,null,null,null,null,null,null,null,null,null,null,null,null,null,"",""]
[null,1775,null,null,null,null,null,null,null,null,null,null,null,null,null,null,"",""]
[null,1776,null,null,null,null,null,null,null,null,null,null,null,null,null,null,{"$f":"IF(P1781=\"\",\"\",P1781-L1781)","v":""},{"$f":"IFERROR(Q1781/P1781,\"\")","v":""}]
[null,1777,null,null,null,null,null,null,null,null,null,null,null,null,null,null,"",""]
[null,1778,null,null,null,null,null,null,null,null,null,null,null,null,null,null,"",""]
[null,1779,null,null,null,null,null,null,null,null,null,null,null,null,null,null,"",""]
[null,1780,null,null,null,null,null,null,null,null,null,null,null,null,null,null,"",""]
[null,1781,null,null,null,null,null,null,null,null,null,null,null,null,null,null,"",""]
[null,1782,null,null,null,null,null,null,null,null,null,null,null,null,null,null,"",""]
[null,1783,null,null,null,null,null,null,null,null,null,null,null,null,null,null,"",""]
[null,1784,null,null,null,null,null,null,null,null,null,null,null,null,null,null,"",""]
[null,1785,null,null,null,null,null,null,null,null,null,null,null,null,null,null,"",""]
[null,1786,null,null,null,null,null,null,null,null,null,null,null,null,null,null,"",""]
[null,1787,null,null,null,null,null,null,null,null,null,null,null,null,null,null,"",""]
[null,1788,null,null,null,null,null,null,null,null,null,null,null,null,null,null,"",""]
[null,1789,null,null,null,null,null,null,null,null,null,null,null,null,null,null,"",""]
[null,1790,null,null,null,null,null,null,null,null,null,null,null,null,null,null,"",""]
[null,1791,null,null,null,null,null,null,null,null,null,null,null,null,null,null,"",""]
[null,1792,null,null,null,null,null,null,null,null,null,null,null,null,null,null,"",""]
[null,1793,null,null,null,null,null,null,null,null,null,null,null,null,null,null,"",""]
[null,1794,null,null,null,null,null,null,null,null,null,null,null,null,null,null,"",""]
[null,1795,null,null,null,null,null,null,null,null,null,null,null,null,null,null,"",""]
[null,1796,null,null,null,null,null,null,null,null,null,null,null,null,null,null,"",""]
[null,1797,null,null,null,null,null,null,null,null,null,null,null,null,null,null,"",""]
[null,1798,null,null,null,null,null,null,null,null,null,null,null,null,null,null,"",""]
[null,1799,null,null,null,null,null,null,null,null,null,null,null,null,null,null,"",""]
[null,1800,null,null,null,null,null,null,null,null,null,null,null,null,null,null,"",""]
[null,1801,null,null,null,null,null,null,null,null,null,null,null,null,null,null,"",""]
[null,1802,null,null,null,null,null,null,null,null,null,null,null,null,null,null,"",""]
[null,1803,null,null,null,null,null,null,null,null,null,null,null,null,null,null,"",""]
[null,1804,null,null,null,null,null,null,null,null,null,null,null,null,null,null,"",""]
[null,1805,null,null,null,null,null,null,null,null,null,null,null,null,null,null,"",""]
[null,1806,null,null,null,null,null,null,null,null,null,null,null,null,null,null,"",""]
[null,1807,null,null,null,null,null,null,null,null,null,null,null,null,null,null,"",""]
[null,1808,null,null,null,null,null,null,null,null,null,null,null,null,null,null,"",""]
[null,1809,null,null,null,null,null,null,null,null,null,null,null,null,null,null,"",""]
[null,1810,null,null,null,null,null,null,null,null,null,null,null,null,null,null,"",""]
[null,1811,null,null,null,null,null,null,null,null,null,null,null,null,null,null,"",""]
[null,1812,null,null,null,null,null,null,null,null,null,null,null,null,null,null,"",""]
[null,1813,null,null,null,null,null,null,null,null,null,null,null,null,null,null,"",""]
[null,1814,null,null,null,null,null,null,null,null,null,null,null,null,null,null,"",""]
[null,1815,null,null,null,null,null,null,null,null,null,null,null,null,null,null,"",""]
[null,1816,null,null,null,null,null,null,null,null,null,null,null,null,null,null,"",""]
[null,1817,null,null,null,null,null,null,null,null,null,null,null,null,null,null,"",""]
[null,1818,null,null,null,null,null,null,null,null,null,null,null,null,null,null,"",""]
[null,1819,null,null,null,null,null,null,null,null,null,null,null,null,null,null,"",""]
[null,1820,null,null,null,null,null,null,null,null,null,null,null,null,null,null,"",""]
[null,1821,null,null,null,null,null,null,null,null,null,null,null,null,null,null,"",""]
[null,1822,null,null,null,null,null,null,null,null,null,null,null,null,null,null,"",""]
[null,1823,null,null,null,null,null,null,null,null,null,null,null,null,null,null,"",""]
[null,1824,null,null,null,null,null,null,null,null,null,null,null,null,null,null,"",""]
[null,1825,null,null,null,null,null,null,null,null,null,null,null,null,null,null,"",""]
[null,1826,null,null,null,null,null,null,null,null,null,null,null,null,null,null,"",""]
[null,1827,null,null,null,null,null,null,null,null,null,null,null,null,null,null,"",""]
[null,1828,null,null,null,null,null,null,null,null,null,null,null,null,null,null,"",""]
[null,1829,null,null,null,null,null,null,null,null,null,null,null,null,null,null,"",""]
[null,1830,null,null,null,null,null,null,null,null,null,null,null,null,null,null,"",""]
[null,1831,null,null,null,null,null,null,null,null,null,null,null,null,null,null,"",""]
[null,1832,null,null,null,null,null,null,null,null,null,null,null,null,null,null,"",""]
[null,1833,null,null,null,null,null,null,null,null,null,null,null,null,null,null,"",""]
[null,1834,null,null,null,null,null,null,null,null,null,null,null,null,null,null,"",""]
[null,1835,null,null,null,null,null,null,null,null,null,null,null,null,null,null,"",""]
[null,1836,null,null,null,null,null,null,null,null,null,null,null,null,null,null,"",""]
[null,1837,null,null,null,null,null,null,null,null,null,null,null,null,null,null,"",""]
[null,1838,null,null,null,null,null,null,null,null,null,null,null,null,null,null,"",""]
[null,1839,null,null,null,null,null,null,null,null,null,null,null,null,null,null,"",""]
[null,1840,null,null,null,null,null,null,null,null,null,null,null,null,null,null,{"$f":"IF(P1845=\"\",\"\",P1845-L1845)","v":""},{"$f":"IFERROR(Q1845/P1845,\"\")","v":""}]
[null,1841,null,null,null,null,null,null,null,null,null,null,null,null,null,null,"",""]
[null,1842,null,null,null,null,null,null,null,null,null,null,null,null,null,null,"",""]
[null,1843,null,null,null,null,null,null,null,null,null,null,null,null,null,null,"",""]
[null,1844,null,null,null,null,null,null,null,null,null,null,null,null,null,null,"",""]
[null,1845,null,null,null,null,null,null,null,null,null,null,null,null,null,null,"",""]
[null,1846,null,null,null,null,null,null,null,null,null,null,null,null,null,null,"",""]
[null,1847,null,null,null,null,null,null,null,null,null,null,null,null,null,null,"",""]
[null,1848,null,null,null,null,null,null,null,null,null,null,null,null,null,null,"",""]
[null,1849,null,null,null,null,null,null,null,null,null,null,null,null,null,null,"",""]
[null,1850,null,null,null,null,null,null,null,null,null,null,null,null,null,null,"",""]
[null,1851,null,null,null,null,null,null,null,null,null,null,null,null,null,null,"",""]
[null,1852,null,null,null,null,null,null,null,null,null,null,null,null,null,null,"",""]
[null,1853,null,null,null,null,null,null,null,null,null,null,null,null,null,null,"",""]
[null,1854,null,null,null,null,null,null,null,null,null,null,null,null,null,null,"",""]
[null,1855,null,null,null,null,null,null,null,null,null,null,null,null,null,null,"",""]
[null,1856,null,null,null,null,null,null,null,null,null,null,null,null,null,null,"",""]
[null,1857,null,null,null,null,null,null,null,null,null,null,null,null,null,null,"",""]
[null,1858,null,null,null,null,null,null,null,null,null,null,null,null,null,null,"",""]
[null,1859,null,null,null,null,null,null,null,null,null,null,null,null,null,null,"",""]
[null,1860,null,null,null,null,null,null,null,null,null,null,null,null,null,null,"",""]
[null,1861,null,null,null,null,null,null,null,null,null,null,null,null,null,null,"",""]
[null,1862,null,null,null,null,null,null,null,null,null,null,null,null,null,null,"",""]
[null,1863,null,null,null,null,null,null,null,null,null,null,null,null,null,null,"",""]
[null,1864,null,null,null,null,null,null,null,null,null,null,null,null,null,null,"",""]
[null,1865,null,null,null,null,null,null,null,null,null,null,null,null,null,null,"",""]
[null,1866,null,null,null,null,null,null,null,null,null,null,null,null,null,null,"",""]
[null,1867,null,null,null,null,null,null,null,null,null,null,null,null,null,null,"",""]
[null,1868,null,null,null,null,null,null,null,null,null,null,null,null,null,null,"",""]
[null,1869,null,null,null,null,null,null,null,null,null,null,null,null,null,null,"",""]
[null,1870,null,null,null,null,null,null,null,null,null,null,null,null,null,null,"",""]
[null,1871,null,null,null,null,null,null,null,null,null,null,null,null,null,null,"",""]
[null,1872,null,null,null,null,null,null,null,null,null,null,null,null,null,null,"",""]
[null,1873,null,null,null,null,null,null,null,null,null,null,null,null,null,null,"",""]
[null,1874,null,null,null,null,null,null,null,null,null,null,null,null,null,null,"",""]
[null,1875,null,null,null,null,null,null,null,null,null,null,null,null,null,null,"",""]
[null,1876,null,null,null,null,null,null,null,null,null,null,null,null,null,null,"",""]
[null,1877,null,null,null,null,null,null,null,null,null,null,null,null,null,null,"",""]
[null,1878,null,null,null,null,null,null,null,null,null,null,null,null,null,null,"",""]
[null,1879,null,null,null,null,null,null,null,null,null,null,null,null,null,null,"",""]
[null,1880,null,null,null,null,null,null,null,null,null,null,null,null,null,null,"",""]
[null,1881,null,null,null,null,null,null,null,null,null,null,null,null,null,null,"",""]
[null,1882,null,null,null,null,null,null,null,null,null,null,null,null,null,null,"",""]
[null,1883,null,null,null,null,null,null,null,null,null,null,null,null,null,null,"",""]
[null,1884,null,null,null,null,null,null,null,null,null,null,null,null,null,null,"",""]
[null,1885,null,null,null,null,null,null,null,null,null,null,null,null,null,null,"",""]
[null,1886,null,null,null,null,null,null,null,null,null,null,null,null,null,null,"",""]
[null,1887,null,null,null,null,null,null,null,null,null,null,null,null,null,null,"",""]
[null,1888,null,null,null,null,null,null,null,null,null,null,null,null,null,null,"",""]
[null,1889,null,null,null,null,null,null,null,null,null,null,null,null,null,null,"",""]
[null,1890,null,null,null,null,null,null,null,null,null,null,null,null,null,null,"",""]
[null,1891,null,null,null,null,null,null,null,null,null,null,null,null,null,null,"",""]
[null,1892,null,null,null,null,null,null,null,null,null,null,null,null,null,null,"",""]
[null,1893,null,null,null,null,null,null,null,null,null,null,null,null,null,null,"",""]
[null,1894,null,null,null,null,null,null,null,null,null,null,null,null,null,null,"",""]
[null,1895,null,null,null,null,null,null,null,null,null,null,null,null,null,null,"",""]
[null,1896,null,null,null,null,null,null,null,null,null,null,null,null,null,null,"",""]
[null,1897,null,null,null,null,null,null,null,null,null,null,null,null,null,null,"",""]
[null,1898,null,null,null,null,null,null,null,null,null,null,null,null,null,null,"",""]
[null,1899,null,null,null,null,null,null,null,null,null,null,null,null,null,null,"",""]
[null,1900,null,null,null,null,null,null,null,null,null,null,null,null,null,null,"",""]
[null,1901,null,null,null,null,null,null,null,null,null,null,null,null,null,null,"",""]
[null,1902,null,null,null,null,null,null,null,null,null,null,null,null,null,null,"",""]
[null,1903,null,null,null,null,null,null,null,null,null,null,null,null,null,null,"",""]
[null,1904,null,null,null,null,null,null,null,null,null,null,null,null,null,null,{"$f":"IF(P1909=\"\",\"\",P1909-L1909)","v":""},{"$f":"IFERROR(Q1909/P1909,\"\")","v":""}]
[null,1905,null,null,null,null,null,null,null,null,null,null,null,null,null,null,"",""]
[null,1906,null,null,null,null,null,null,null,null,null,null,null,null,null,null,"",""]
[null,1907,null,null,null,null,null,null,null,null,null,null,null,null,null,null,"",""]
[null,1908,null,null,null,null,null,null,null,null,null,null,null,null,null,null,"",""]
[null,1909,null,null,null,null,null,null,null,null,null,null,null,null,null,null,"",""]
[null,1910,null,null,null,null,null,null,null,null,null,null,null,null,null,null,"",""]
[null,1911,null,null,null,null,null,null,null,null,null,null,null,null,null,null,"",""]
[null,1912,null,null,null,null,null,null,null,null,null,null,null,null,null,null,"",""]
[null,1913,null,null,null,null,null,null,null,null,null,null,null,null,null,null,"",""]
[null,1914,null,null,null,null,null,null,null,null,null,null,null,null,null,null,"",""]
[null,1915,null,null,null,null,null,null,null,null,null,null,null,null,null,null,"",""]
[null,1916,null,null,null,null,null,null,null,null,null,null,null,null,null,null,"",""]
[null,1917,null,null,null,null,null,null,null,null,null,null,null,null,null,null,"",""]
[null,1918,null,null,null,null,null,null,null,null,null,null,null,null,null,null,"",""]
[null,1919,null,null,null,null,null,null,null,null,null,null,null,null,null,null,"",""]
[null,1920,null,null,null,null,null,null,null,null,null,null,null,null,null,null,"",""]
[null,1921,null,null,null,null,null,null,null,null,null,null,null,null,null,null,"",""]
[null,1922,null,null,null,null,null,null,null,null,null,null,null,null,null,null,"",""]
[null,1923,null,null,null,null,null,null,null,null,null,null,null,null,null,null,"",""]
[null,1924,null,null,null,null,null,null,null,null,null,null,null,null,null,null,"",""]
[null,1925,null,null,null,null,null,null,null,null,null,null,null,null,null,null,"",""]
[null,1926,null,null,null,null,null,null,null,null,null,null,null,null,null,null,"",""]
[null,1927,null,null,null,null,null,null,null,null,null,null,null,null,null,null,"",""]
[null,1928,null,null,null,null,null,null,null,null,null,null,null,null,null,null,"",""]
[null,1929,null,null,null,null,null,null,null,null,null,null,null,null,null,null,"",""]
[null,1930,null,null,null,null,null,null,null,null,null,null,null,null,null,null,"",""]
[null,1931,null,null,null,null,null,null,null,null,null,null,null,null,null,null,"",""]
[null,1932,null,null,null,null,null,null,null,null,null,null,null,null,null,null,"",""]
[null,1933,null,null,null,null,null,null,null,null,null,null,null,null,null,null,"",""]
[null,1934,null,null,null,null,null,null,null,null,null,null,null,null,null,null,"",""]
[null,1935,null,null,null,null,null,null,null,null,null,null,null,null,null,null,"",""]
[null,1936,null,null,null,null,null,null,null,null,null,null,null,null,null,null,"",""]
[null,1937,null,null,null,null,null,null,null,null,null,null,null,null,null,null,"",""]
[null,1938,null,null,null,null,null,null,null,null,null,null,null,null,null,null,"",""]
[null,1939,null,null,null,null,null,null,null,null,null,null,null,null,null,null,"",""]
[null,1940,null,null,null,null,null,null,null,null,null,null,null,null,null,null,"",""]
[null,1941,null,null,null,null,null,null,null,null,null,null,null,null,null,null,"",""]
[null,1942,null,null,null,null,null,null,null,null,null,null,null,null,null,null,"",""]
[null,1943,null,null,null,null,null,null,null,null,null,null,null,null,null,null,"",""]
[null,1944,null,null,null,null,null,null,null,null,null,null,null,null,null,null,"",""]
[null,1945,null,null,null,null,null,null,null,null,null,null,null,null,null,null,"",""]
[null,1946,null,null,null,null,null,null,null,null,null,null,null,null,null,null,"",""]
[null,1947,null,null,null,null,null,null,null,null,null,null,null,null,null,null,"",""]
[null,1948,null,null,null,null,null,null,null,null,null,null,null,null,null,null,"",""]
[null,1949,null,null,null,null,null,null,null,null,null,null,null,null,null,null,"",""]
[null,1950,null,null,null,null,null,null,null,null,null,null,null,null,null,null,"",""]
[null,1951,null,null,null,null,null,null,null,null,null,null,null,null,null,null,"",""]
[null,1952,null,null,null,null,null,null,null,null,null,null,null,null,null,null,"",""]
[null,1953,null,null,null,null,null,null,null,null,null,null,null,null,null,null,"",""]
[null,1954,null,null,null,null,null,null,null,null,null,null,null,null,null,null,"",""]
[null,1955,null,null,null,null,null,null,null,null,null,null,null,null,null,null,"",""]
[null,1956,null,null,null,null,null,null,null,null,null,null,null,null,null,null,"",""]
[null,1957,null,null,null,null,null,null,null,null,null,null,null,null,null,null,"",""]
[null,1958,null,null,null,null,null,null,null,null,null,null,null,null,null,null,"",""]
[null,1959,null,null,null,null,null,null,null,null,null,null,null,null,null,null,"",""]
[null,1960,null,null,null,null,null,null,null,null,null,null,null,null,null,null,"",""]
[null,1961,null,null,null,null,null,null,null,null,null,null,null,null,null,null,"",""]
[null,1962,null,null,null,null,null,null,null,null,null,null,null,null,null,null,"",""]
[null,1963,null,null,null,null,null,null,null,null,null,null,null,null,null,null,"",""]
[null,1964,null,null,null,null,null,null,null,null,null,null,null,null,null,null,"",""]
[null,1965,null,null,null,null,null,null,null,null,null,null,null,null,null,null,"",""]
[null,1966,null,null,null,null,null,null,null,null,null,null,null,null,null,null,"",""]
[null,1967,null,null,null,null,null,null,null,null,null,null,null,null,null,null,"",""]
[null,1968,null,null,null,null,null,null,null,null,null,null,null,null,null,null,{"$f":"IF(P1973=\"\",\"\",P1973-L1973)","v":""},{"$f":"IFERROR(Q1973/P1973,\"\")","v":""}]
[null,1969,null,null,null,null,null,null,null,null,null,null,null,null,null,null,"",""]
[null,1970,null,null,null,null,null,null,null,null,null,null,null,null,null,null,"",""]
[null,1971,null,null,null,null,null,null,null,null,null,null,null,null,null,null,"",""]
[null,1972,null,null,null,null,null,null,null,null,null,null,null,null,null,null,"",""]
[null,1973,null,null,null,null,null,null,null,null,null,null,null,null,null,null,"",""]
[null,1974,null,null,null,null,null,null,null,null,null,null,null,null,null,null,"",""]
[null,1975,null,null,null,null,null,null,null,null,null,null,null,null,null,null,"",""]
[null,1976,null,null,null,null,null,null,null,null,null,null,null,null,null,null,"",""]
[null,1977,null,null,null,null,null,null,null,null,null,null,null,null,null,null,"",""]
[null,1978,null,null,null,null,null,null,null,null,null,null,null,null,null,null,"",""]
[null,1979,null,null,null,null,null,null,null,null,null,null,null,null,null,null,"",""]
[null,1980,null,null,null,null,null,null,null,null,null,null,null,null,null,null,"",""]
[null,1981,null,null,null,null,null,null,null,null,null,null,null,null,null,null,"",""]
[null,1982,null,null,null,null,null,null,null,null,null,null,null,null,null,null,"",""]
[null,1983,null,null,null,null,null,null,null,null,null,null,null,null,null,null,"",""]
[null,1984,null,null,null,null,null,null,null,null,null,null,null,null,null,null,"",""]
[null,1985,null,null,null,null,null,null,null,null,null,null,null,null,null,null,"",""]
[null,1986,null,null,null,null,null,null,null,null,null,null,null,null,null,null,"",""]
[null,1987,null,null,null,null,null,null,null,null,null,null,null,null,null,null,"",""]
[null,1988,null,null,null,null,null,null,null,null,null,null,null,null,null,null,"",""]
[null,1989,null,null,null,null,null,null,null,null,null,null,null,null,null,null,"",""]
[null,1990,null,null,null,null,null,null,null,null,null,null,null,null,null,null,"",""]
[null,1991,null,null,null,null,null,null,null,null,null,null,null,null,null,null,"",""]
[null,1992,null,null,null,null,null,null,null,null,null,null,null,null,null,null,"",""]
[null,1993,null,null,null,null,null,null,null,null,null,null,null,null,null,null,"",""]
[null,1994,null,null,null,null,null,null,null,null,null,null,null,null,null,null,"",""]
[null,1995,null,null,null,null,null,null,null,null,null,null,null,null,null,null,"",""]
[null,1997,null,null,null,null,null,null,null,null,null,null,null,null,null,null,"",""]
[null,2001,null,null,null,null,null,null,null,null,null,null,null,null,null,null,"",""]
[null,2006,null,null,null,null,null,null,null,null,null,null,null,null,null,null,"",""]
[null,2012,null,null,null,null,null,null,null,null,null,null,null,null,null,null,"",""]
[null,2016,null,null,null,null,null,null,null,null,null,null,null,null,null,null,"",""]
[null,2021,null,null,null,null,null,null,null,null,null,null,null,null,null,null,"",""]
[null,2027,null,null,null,null,null,null,null,null,null,null,null,null,null,null,"",""]
[null,2032,null,null,null,null,null,null,null,null,null,null,null,null,null,null,{"$f":"IF(P2037=\"\",\"\",P2037-L2037)","v":""},{"$f":"IFERROR(Q2037/P2037,\"\")","v":""}]
[null,2035,null,null,null,null,null,null,null,null,null,null,null,null,null,null,"",""]
[null,2042,null,null,null,null,null,null,null,null,null,null,null,null,null,null,"",""]
[null,2047,null,null,null,null,null,null,null,null,null,null,null,null,null,null,"",""]
[null,2048,null,null,null,null,null,null,null,null,null,null,null,null,null,null,"",""]
[null,2054,null,null,null,null,null,null,null,null,null,null,null,null,null,null,"",""]
[null,2057,null,null,null,null,null,null,null,null,null,null,null,null,null,null,"",""]
[null,2063,null,null,null,null,null,null,null,null,null,null,null,null,null,null,"",""]
[null,2068,null,null,null,null,null,null,null,null,null,null,null,null,null,null,"",""]
[null,2073,null,null,null,null,null,null,null,null,null,null,null,null,null,null,"",""]
[null,2078,null,null,null,null,null,null,null,null,null,null,null,null,null,null,"",""]
[null,2083,null,null,null,null,null,null,null,null,null,null,null,null,null,null,"",""]
[null,2089,null,null,null,null,null,null,null,null,null,null,null,null,null,null,"",""]
[null,2092,null,null,null,null,null,null,null,null,null,null,null,null,null,null,"",""]
[null,2099,null,null,null,null,null,null,null,null,null,null,null,null,null,null,"",""]
[null,2104,null,null,null,null,null,null,null,null,null,null,null,null,null,null,"",""]
[null,2109,null,null,null,null,null,null,null,null,null,null,null,null,null,null,"",""]
[null,2111,null,null,null,null,null,null,null,null,null,null,null,null,null,null,"",""]
[null,2114,null,null,null,null,null,null,null,null,null,null,null,null,null,null,"",""]
[null,2119,null,null,null,null,null,null,null,null,null,null,null,null,null,null,"",""]
[null,2125,null,null,null,null,null,null,null,null,null,null,null,null,null,null,"",""]
[null,2130,null,null,null,null,null,null,null,null,null,null,null,null,null,null,"",""]
[null,2135,null,null,null,null,null,null,null,null,null,null,null,null,null,null,"",""]
[null,2140,null,null,null,null,null,null,null,null,null,null,null,null,null,null,"",""]
[null,2145,null,null,null,null,null,null,null,null,null,null,null,null,null,null,"",""]
[null,2149,null,null,null,null,null,null,null,null,null,null,null,null,null,null,"",""]
[null,2155,null,null,null,null,null,null,null,null,null,null,null,null,null,null,"",""]
[null,2160,null,null,null,null,null,null,null,null,null,null,null,null,null,null,{"$f":"IF(P2165=\"\",\"\",P2165-L2165)","v":""},{"$f":"IFERROR(Q2165/P2165,\"\")","v":""}]
[null,2166,null,null,null,null,null,null,null,null,null,null,null,null,null,null,"",""]
[null,2168,null,null,null,null,null,null,null,null,null,null,null,null,null,null,"",""]
[null,2171,null,null,null,null,null,null,null,null,null,null,null,null,null,null,"",""]
[null,2176,null,null,null,null,null,null,null,null,null,null,null,null,null,null,"",""]
[null,2181,null,null,null,null,null,null,null,null,null,null,null,null,null,null,"",""]
[null,2187,null,null,null,null,null,null,null,null,null,null,null,null,null,null,"",""]
[null,2191,null,null,null,null,null,null,null,null,null,null,null,null,null,null,"",""]
[null,2197,null,null,null,null,null,null,null,null,null,null,null,null,null,null,"",""]
[null,2202,null,null,null,null,null,null,null,null,null,null,null,null,null,null,"",""]
[null,2206,null,null,null,null,null,null,null,null,null,null,null,null,null,null,"",""]
[null,2212,null,null,null,null,null,null,null,null,null,null,null,null,null,null,"",""]
[null,2217,null,null,null,null,null,null,null,null,null,null,null,null,null,null,"",""]
[null,2222,null,null,null,null,null,null,null,null,null,null,null,null,null,null,"",""]
[null,2225,null,null,null,null,null,null,null,null,null,null,null,null,null,null,"",""]
[null,2232,null,null,null,null,null,null,null,null,null,null,null,null,null,null,"",""]
[null,2233,null,null,null,null,null,null,null,null,null,null,null,null,null,null,"",""]
[null,2238,null,null,null,null,null,null,null,null,null,null,null,null,null,null,"",""]
[null,2244,null,null,null,null,null,null,null,null,null,null,null,null,null,null,"",""]
[null,2248,null,null,null,null,null,null,null,null,null,null,null,null,null,null,"",""]
[null,2253,null,null,null,null,null,null,null,null,null,null,null,null,null,null,"",""]
[null,2259,null,null,null,null,null,null,null,null,null,null,null,null,null,null,"",""]
[null,2263,null,null,null,null,null,null,null,null,null,null,null,null,null,null,"",""]
[null,2268,null,null,null,null,null,null,null,null,null,null,null,null,null,null,"",""]
[null,2274,null,null,null,null,null,null,null,null,null,null,null,null,null,null,"",""]
[null,2279,null,null,null,null,null,null,null,null,null,null,null,null,null,null,"",""]
[null,2282,null,null,null,null,null,null,null,null,null,null,null,null,null,null,"",""]
[null,2289,null,null,null,null,null,null,null,null,null,null,null,null,null,null,"",""]
[null,2294,null,null,null,null,null,null,null,null,null,null,null,null,null,null,"",""]
[null,2295,null,null,null,null,null,null,null,null,null,null,null,null,null,null,"",""]
[null,2301,null,null,null,null,null,null,null,null,null,null,null,null,null,null,"",""]
[null,2304,null,null,null,null,null,null,null,null,null,null,null,null,null,null,"",""]
[null,2310,null,null,null,null,null,null,null,null,null,null,null,null,null,null,"",""]
[null,2315,null,null,null,null,null,null,null,null,null,null,null,null,null,null,"",""]
[null,2320,null,null,null,null,null,null,null,null,null,null,null,null,null,null,"",""]
[null,2325,null,null,null,null,null,null,null,null,null,null,null,null,null,null,"",""]
[null,2330,null,null,null,null,null,null,null,null,null,null,null,null,null,null,"",""]
[null,2336,null,null,null,null,null,null,null,null,null,null,null,null,null,null,"",""]
[null,2339,null,null,null,null,null,null,null,null,null,null,null,null,null,null,"",""]
[null,2345,null,null,null,null,null,null,null,null,null,null,null,null,null,null,"",""]
[null,2351,null,null,null,null,null,null,null,null,null,null,null,null,null,null,"",""]
[null,2356,null,null,null,null,null,null,null,null,null,null,null,null,null,null,"",""]
[null,2358,null,null,null,null,null,null,null,null,null,null,null,null,null,null,"",""]
[null,2361,null,null,null,null,null,null,null,null,null,null,null,null,null,null,"",""]
[null,2366,null,null,null,null,null,null,null,null,null,null,null,null,null,null,"",""]
[null,2372,null,null,null,null,null,null,null,null,null,null,null,null,null,null,"",""]
[null,2377,null,null,null,null,null,null,null,null,null,null,null,null,null,null,"",""]
[null,2381,null,null,null,null,null,null,null,null,null,null,null,null,null,null,"",""]
[null,2387,null,null,null,null,null,null,null,null,null,null,null,null,null,null,"",""]
[null,2392,null,null,null,null,null,null,null,null,null,null,null,null,null,null,"",""]
[null,2396,null,null,null,null,null,null,null,null,null,null,null,null,null,null,"",""]
[null,2402,null,null,null,null,null,null,null,null,null,null,null,null,null,null,"",""]
[null,2407,null,null,null,null,null,null,null,null,null,null,null,null,null,null,"",""]
[null,2413,null,null,null,null,null,null,null,null,null,null,null,null,null,null,"",""]
[null,2415,null,null,null,null,null,null,null,null,null,null,null,null,null,null,"",""]
[null,2422,null,null,null,null,null,null,null,null,null,null,null,null,null,null,"",""]
[null,2423,null,null,null,null,null,null,null,null,null,null,null,null,null,null,"",""]
[null,2428,null,null,null,null,null,null,null,null,null,null,null,null,null,null,"",""]
[null,2434,null,null,null,null,null,null,null,null,null,null,null,null,null,null,"",""]
[null,2438,null,null,null,null,null,null,null,null,null,null,null,null,null,null,"",""]
[null,2443,null,null,null,null,null,null,null,null,null,null,null,null,null,null,"",""]
[null,2449,null,null,null,null,null,null,null,null,null,null,null,null,null,null,"",""]
[null,2453,null,null,null,null,null,null,null,null,null,null,null,null,null,null,"",""]
[null,2459,null,null,null,null,null,null,null,null,null,null,null,null,null,null,"",""]
[null,2464,null,null,null,null,null,null,null,null,null,null,null,null,null,null,"",""]
[null,2469,null,null,null,null,null,null,null,null,null,null,null,null,null,null,"",""]
[null,2475,null,null,null,null,null,null,null,null,null,null,null,null,null,null,"",""]
[null,2478,null,null,null,null,null,null,null,null,null,null,null,null,null,null,"",""]
[null,2484,null,null,null,null,null,null,null,null,null,null,null,null,null,null,"",""]
[null,2485,null,null,null,null,null,null,null,null,null,null,null,null,null,null,"",""]
[null,2490,null,null,null,null,null,null,null,null,null,null,null,null,null,null,"",""]
[null,2497,null,null,null,null,null,null,null,null,null,null,null,null,null,null,"",""]
[null,2500,null,null,null,null,null,null,null,null,null,null,null,null,null,null,"",""]
[null,2505,null,null,null,null,null,null,null,null,null,null,null,null,null,null,"",""]
[null,2511,null,null,null,null,null,null,null,null,null,null,null,null,null,null,"",""]
[null,2516,null,null,null,null,null,null,null,null,null,null,null,null,null,null,"",""]
[null,2521,null,null,null,null,null,null,null,null,null,null,null,null,null,null,"",""]
[null,2526,null,null,null,null,null,null,null,null,null,null,null,null,null,null,"",""]
[null,2531,null,null,null,null,null,null,null,null,null,null,null,null,null,null,"",""]
[null,2535,null,null,null,null,null,null,null,null,null,null,null,null,null,null,"",""]
[null,2541,null,null,null,null,null,null,null,null,null,null,null,null,null,null,"",""]
[null,2546,null,null,null,null,null,null,null,null,null,null,null,null,null,null,"",""]
[null,2547,null,null,null,null,null,null,null,null,null,null,null,null,null,null,"",""]
[null,2554,null,null,null,null,null,null,null,null,null,null,null,null,null,null,"",""]
[null,2557,null,null,null,null,null,null,null,null,null,null,null,null,null,null,"",""]
[null,2562,null,null,null,null,null,null,null,null,null,null,null,null,null,null,"",""]
[null,2567,null,null,null,null,null,null,null,null,null,null,null,null,null,null,"",""]
[null,2573,null,null,null,null,null,null,null,null,null,null,null,null,null,null,"",""]
[null,2577,null,null,null,null,null,null,null,null,null,null,null,null,null,null,"",""]
[null,2582,null,null,null,null,null,null,null,null,null,null,null,null,null,null,"",""]
[null,2588,null,null,null,null,null,null,null,null,null,null,null,null,null,null,"",""]
[null,2592,null,null,null,null,null,null,null,null,null,null,null,null,null,null,"",""]
[null,2598,null,null,null,null,null,null,null,null,null,null,null,null,null,null,"",""]
[null,2603,null,null,null,null,null,null,null,null,null,null,null,null,null,null,"",""]
[null,2608,null,null,null,null,null,null,null,null,null,null,null,null,null,null,{"$f":"IF(P2613=\"\",\"\",P2613-L2613)","v":""},{"$f":"IFERROR(Q2613/P2613,\"\")","v":""}]
[null,2611,null,null,null,null,null,null,null,null,null,null,null,null,null,null,"",""]
[null,2613,null,null,null,null,null,null,null,null,null,null,null,null,null,null,"",""]
[null,2619,null,null,null,null,null,null,null,null,null,null,null,null,null,null,"",""]
[null,2624,null,null,null,null,null,null,null,null,null,null,null,null,null,null,"",""]
[null,2630,null,null,null,null,null,null,null,null,null,null,null,null,null,null,"",""]
[null,2634,null,null,null,null,null,null,null,null,null,null,null,null,null,null,"",""]
[null,2639,null,null,null,null,null,null,null,null,null,null,null,null,null,null,"",""]
[null,2644,null,null,null,null,null,null,null,null,null,null,null,null,null,null,"",""]
[null,2649,null,null,null,null,null,null,null,null,null,null,null,null,null,null,"",""]
[null,2654,null,null,null,null,null,null,null,null,null,null,null,null,null,null,"",""]
[null,2660,null,null,null,null,null,null,null,null,null,null,null,null,null,null,"",""]
[null,2665,null,null,null,null,null,null,null,null,null,null,null,null,null,null,"",""]
[null,2668,null,null,null,null,null,null,null,null,null,null,null,null,null,null,"",""]
[null,2670,null,null,null,null,null,null,null,null,null,null,null,null,null,null,"",""]
[null,2675,null,null,null,null,null,null,null,null,null,null,null,null,null,null,"",""]
[null,2681,null,null,null,null,null,null,null,null,null,null,null,null,null,null,"",""]
[null,2687,null,null,null,null,null,null,null,null,null,null,null,null,null,null,"",""]
[null,2690,null,null,null,null,null,null,null,null,null,null,null,null,null,null,"",""]
[null,2696,null,null,null,null,null,null,null,null,null,null,null,null,null,null,"",""]
[null,2701,null,null,null,null,null,null,null,null,null,null,null,null,null,null,"",""]
[null,2706,null,null,null,null,null,null,null,null,null,null,null,null,null,null,"",""]
[null,2711,null,null,null,null,null,null,null,null,null,null,null,null,null,null,"",""]
[null,2716,null,null,null,null,null,null,null,null,null,null,null,null,null,null,"",""]
[null,2722,null,null,null,null,null,null,null,null,null,null,null,null,null,null,"",""]
[null,2725,null,null,null,null,null,null,null,null,null,null,null,null,null,null,"",""]
[null,2731,null,null,null,null,null,null,null,null,null,null,null,null,null,null,"",""]
[null,2732,null,null,null,null,null,null,null,null,null,null,null,null,null,null,"",""]
[null,2737,null,null,null,null,null,null,null,null,null,null,null,null,null,null,"",""]
[null,2744,null,null,null,null,null,null,null,null,null,null,null,null,null,null,"",""]
[null,2747,null,null,null,null,null,null,null,null,null,null,null,null,null,null,"",""]
[null,2752,null,null,null,null,null,null,null,null,null,null,null,null,null,null,"",""]
[null,2758,null,null,null,null,null,null,null,null,null,null,null,null,null,null,"",""]
[null,2763,null,null,null,null,null,null,null,null,null,null,null,null,null,null,"",""]
[null,2767,null,null,null,null,null,null,null,null,null,null,null,null,null,null,"",""]
[null,2773,null,null,null,null,null,null,null,null,null,null,null,null,null,null,"",""]
[null,2778,null,null,null,null,null,null,null,null,null,null,null,null,null,null,"",""]
[null,2782,null,null,null,null,null,null,null,null,null,null,null,null,null,null,"",""]
[null,2788,null,null,null,null,null,null,null,null,null,null,null,null,null,null,"",""]
[null,2793,null,null,null,null,null,null,null,null,null,null,null,null,null,null,"",""]
[null,2794,null,null,null,null,null,null,null,null,null,null,null,null,null,null,"",""]
[null,2801,null,null,null,null,null,null,null,null,null,null,null,null,null,null,"",""]
[null,2803,null,null,null,null,null,null,null,null,null,null,null,null,null,null,"",""]
[null,2809,null,null,null,null,null,null,null,null,null,null,null,null,null,null,"",""]
[null,2814,null,null,null,null,null,null,null,null,null,null,null,null,null,null,"",""]
[null,2820,null,null,null,null,null,null,null,null,null,null,null,null,null,null,"",""]
[null,2824,null,null,null,null,null,null,null,null,null,null,null,null,null,null,"",""]
[null,2829,null,null,null,null,null,null,null,null,null,null,null,null,null,null,"",""]
[null,2835,null,null,null,null,null,null,null,null,null,null,null,null,null,null,"",""]
[null,2839,null,null,null,null,null,null,null,null,null,null,null,null,null,null,"",""]
[null,2844,null,null,null,null,null,null,null,null,null,null,null,null,null,null,"",""]
[null,2850,null,null,null,null,null,null,null,null,null,null,null,null,null,null,"",""]
[null,2855,null,null,null,null,null,null,null,null,null,null,null,null,null,null,"",""]
[null,2858,null,null,null,null,null,null,null,null,null,null,null,null,null,null,"",""]
[null,2860,null,null,null,null,null,null,null,null,null,null,null,null,null,null,"",""]
[null,2865,null,null,null,null,null,null,null,null,null,null,null,null,null,null,"",""]
[null,2871,null,null,null,null,null,null,null,null,null,null,null,null,null,null,"",""]
[null,2877,null,null,null,null,null,null,null,null,null,null,null,null,null,null,"",""]
[null,2881,null,null,null,null,null,null,null,null,null,null,null,null,null,null,"",""]
[null,2886,null,null,null,null,null,null,null,null,null,null,null,null,null,null,"",""]
[null,2891,null,null,null,null,null,null,null,null,null,null,null,null,null,null,"",""]
[null,2896,null,null,null,null,null,null,null,null,null,null,null,null,null,null,"",""]
[null,2901,null,null,null,null,null,null,null,null,null,null,null,null,null,null,"",""]
[null,2906,null,null,null,null,null,null,null,null,null,null,null,null,null,null,"",""]
[null,2912,null,null,null,null,null,null,null,null,null,null,null,null,null,null,"",""]
[null,2915,null,null,null,null,null,null,null,null,null,null,null,null,null,null,"",""]
[null,2917,null,null,null,null,null,null,null,null,null,null,null,null,null,null,"",""]
[null,2922,null,null,null,null,null,null,null,null,null,null,null,null,null,null,"",""]
[null,2927,null,null,null,null,null,null,null,null,null,null,null,null,null,null,"",""]
[null,2934,null,null,null,null,null,null,null,null,null,null,null,null,null,null,"",""]
[null,2937,null,null,null,null,null,null,null,null,null,null,null,null,null,null,"",""]
[null,2943,null,null,null,null,null,null,null,null,null,null,null,null,null,null,"",""]
[null,2948,null,null,null,null,null,null,null,null,null,null,null,null,null,null,"",""]
[null,2953,null,null,null,null,null,null,null,null,null,null,null,null,null,null,"",""]
[null,2959,null,null,null,null,null,null,null,null,null,null,null,null,null,null,"",""]
[null,2963,null,null,null,null,null,null,null,null,null,null,null,null,null,null,"",""]
[null,2968,null,null,null,null,null,null,null,null,null,null,null,null,null,null,"",""]
[null,2974,null,null,null,null,null,null,null,null,null,null,null,null,null,null,"",""]
[null,2978,null,null,null,null,null,null,null,null,null,null,null,null,null,null,"",""]
[null,2979,null,null,null,null,null,null,null,null,null,null,null,null,null,null,"",""]
[null,2984,null,null,null,null,null,null,null,null,null,null,null,null,null,null,"",""]
[null,2989,null,null,null,null,null,null,null,null,null,null,null,null,null,null,"",""]
[null,2997,null,null,null,null,null,null,null,null,null,null,null,null,null,null,"",""]
[null,2999,null,null,null,null,null,null,null,null,null,null,null,null,null,null,"",""]
[null,3004,null,null,null,null,null,null,null,null,null,null,null,null,null,null,"",""]
[null,3010,null,null,null,null,null,null,null,null,null,null,null,null,null,null,"",""]
[null,3016,null,null,null,null,null,null,null,null,null,null,null,null,null,null,"",""]
[null,3020,null,null,null,null,null,null,null,null,null,null,null,null,null,null,"",""]
[null,3025,null,null,null,null,null,null,null,null,null,null,null,null,null,null,"",""]
[null,3030,null,null,null,null,null,null,null,null,null,null,null,null,null,null,"",""]
[null,3035,null,null,null,null,null,null,null,null,null,null,null,null,null,null,"",""]
[null,3040,null,null,null,null,null,null,null,null,null,null,null,null,null,null,"",""]
[null,3041,null,null,null,null,null,null,null,null,null,null,null,null,null,null,"",""]
[null,3046,null,null,null,null,null,null,null,null,null,null,null,null,null,null,"",""]
[null,3054,null,null,null,null,null,null,null,null,null,null,null,null,null,null,"",""]
[null,3056,null,null,null,null,null,null,null,null,null,null,null,null,null,null,{"$f":"IF(P3061=\"\",\"\",P3061-L3061)","v":""},{"$f":"IFERROR(Q3061/P3061,\"\")","v":""}]
[null,3061,null,null,null,null,null,null,null,null,null,null,null,null,null,null,"",""]
[null,3066,null,null,null,null,null,null,null,null,null,null,null,null,null,null,"",""]
[null,3073,null,null,null,null,null,null,null,null,null,null,null,null,null,null,"",""]
[null,3076,null,null,null,null,null,null,null,null,null,null,null,null,null,null,"",""]
[null,3082,null,null,null,null,null,null,null,null,null,null,null,null,null,null,"",""]
[null,3087,null,null,null,null,null,null,null,null,null,null,null,null,null,null,"",""]
[null,3092,null,null,null,null,null,null,null,null,null,null,null,null,null,null,"",""]
[null,3097,null,null,null,null,null,null,null,null,null,null,null,null,null,null,"",""]
[null,3102,null,null,null,null,null,null,null,null,null,null,null,null,null,null,"",""]
[null,3107,null,null,null,null,null,null,null,null,null,null,null,null,null,null,"",""]
[null,3111,null,null,null,null,null,null,null,null,null,null,null,null,null,null,"",""]
[null,3112,null,null,null,null,null,null,null,null,null,null,null,null,null,null,"",""]
[null,3118,null,null,null,null,null,null,null,null,null,null,null,null,null,null,"",""]
[null,3123,null,null,null,null,null,null,null,null,null,null,null,null,null,null,"",""]
[null,3130,null,null,null,null,null,null,null,null,null,null,null,null,null,null,"",""]
[null,3133,null,null,null,null,null,null,null,null,null,null,null,null,null,null,"",""]
[null,3138,null,null,null,null,null,null,null,null,null,null,null,null,null,null,"",""]
[null,3144,null,null,null,null,null,null,null,null,null,null,null,null,null,null,"",""]
[null,3149,null,null,null,null,null,null,null,null,null,null,null,null,null,null,"",""]
[null,3153,null,null,null,null,null,null,null,null,null,null,null,null,null,null,"",""]
[null,3159,null,null,null,null,null,null,null,null,null,null,null,null,null,null,"",""]
[null,3164,null,null,null,null,null,null,null,null,null,null,null,null,null,null,"",""]
[null,3168,null,null,null,null,null,null,null,null,null,null,null,null,null,null,"",""]
[null,3169,null,null,null,null,null,null,null,null,null,null,null,null,null,null,"",""]
[null,3174,null,null,null,null,null,null,null,null,null,null,null,null,null,null,"",""]
[null,3180,null,null,null,null,null,null,null,null,null,null,null,null,null,null,"",""]
[null,3187,null,null,null,null,null,null,null,null,null,null,null,null,null,null,"",""]
[null,3189,null,null,null,null,null,null,null,null,null,null,null,null,null,null,"",""]
[null,3195,null,null,null,null,null,null,null,null,null,null,null,null,null,null,"",""]
[null,3200,null,null,null,null,null,null,null,null,null,null,null,null,null,null,"",""]
[null,3206,null,null,null,null,null,null,null,null,null,null,null,null,null,null,"",""]
[null,3210,null,null,null,null,null,null,null,null,null,null,null,null,null,null,"",""]
[null,3215,null,null,null,null,null,null,null,null,null,null,null,null,null,null,"",""]
[null,3221,null,null,null,null,null,null,null,null,null,null,null,null,null,null,"",""]
[null,3225,null,null,null,null,null,null,null,null,null,null,null,null,null,null,"",""]
[null,3230,null,null,null,null,null,null,null,null,null,null,null,null,null,null,"",""]
[null,3231,null,null,null,null,null,null,null,null,null,null,null,null,null,null,"",""]
[null,3236,null,null,null,null,null,null,null,null,null,null,null,null,null,null,"",""]
[null,3244,null,null,null,null,null,null,null,null,null,null,null,null,null,null,"",""]
[null,3246,null,null,null,null,null,null,null,null,null,null,null,null,null,null,"",""]
[null,3251,null,null,null,null,null,null,null,null,null,null,null,null,null,null,"",""]
[null,3257,null,null,null,null,null,null,null,null,null,null,null,null,null,null,"",""]
[null,3263,null,null,null,null,null,null,null,null,null,null,null,null,null,null,"",""]
[null,3266,null,null,null,null,null,null,null,null,null,null,null,null,null,null,"",""]
[null,3272,null,null,null,null,null,null,null,null,null,null,null,null,null,null,"",""]
[null,3277,null,null,null,null,null,null,null,null,null,null,null,null,null,null,"",""]
[null,3282,null,null,null,null,null,null,null,null,null,null,null,null,null,null,"",""]
[null,3287,null,null,null,null,null,null,null,null,null,null,null,null,null,null,"",""]
[null,3292,null,null,null,null,null,null,null,null,null,null,null,null,null,null,"",""]
[null,3293,null,null,null,null,null,null,null,null,null,null,null,null,null,null,"",""]
[null,3301,null,null,null,null,null,null,null,null,null,null,null,null,null,null,"",""]
[null,3303,null,null,null,null,null,null,null,null,null,null,null,null,null,null,"",""]
[null,3308,null,null,null,null,null,null,null,null,null,null,null,null,null,null,"",""]
[null,3313,null,null,null,null,null,null,null,null,null,null,null,null,null,null,"",""]
[null,3320,null,null,null,null,null,null,null,null,null,null,null,null,null,null,"",""]
[null,3323,null,null,null,null,null,null,null,null,null,null,null,null,null,null,"",""]
[null,3328,null,null,null,null,null,null,null,null,null,null,null,null,null,null,"",""]
[null,3334,null,null,null,null,null,null,null,null,null,null,null,null,null,null,"",""]
[null,3339,null,null,null,null,null,null,null,null,null,null,null,null,null,null,"",""]
[null,3344,null,null,null,null,null,null,null,null,null,null,null,null,null,null,"",""]
[null,3349,null,null,null,null,null,null,null,null,null,null,null,null,null,null,"",""]
[null,3354,null,null,null,null,null,null,null,null,null,null,null,null,null,null,"",""]
[null,3358,null,null,null,null,null,null,null,null,null,null,null,null,null,null,"",""]
[null,3359,null,null,null,null,null,null,null,null,null,null,null,null,null,null,"",""]
[null,3365,null,null,null,null,null,null,null,null,null,null,null,null,null,null,"",""]
[null,3370,null,null,null,null,null,null,null,null,null,null,null,null,null,null,"",""]
[null,3377,null,null,null,null,null,null,null,null,null,null,null,null,null,null,"",""]
[null,3380,null,null,null,null,null,null,null,null,null,null,null,null,null,null,"",""]
[null,3385,null,null,null,null,null,null,null,null,null,null,null,null,null,null,"",""]
[null,3390,null,null,null,null,null,null,null,null,null,null,null,null,null,null,"",""]
[null,3396,null,null,null,null,null,null,null,null,null,null,null,null,null,null,"",""]
[null,3400,null,null,null,null,null,null,null,null,null,null,null,null,null,null,"",""]
[null,3406,null,null,null,null,null,null,null,null,null,null,null,null,null,null,"",""]
[null,3411,null,null,null,null,null,null,null,null,null,null,null,null,null,null,"",""]
[null,3415,null,null,null,null,null,null,null,null,null,null,null,null,null,null,"",""]
[null,3416,null,null,null,null,null,null,null,null,null,null,null,null,null,null,"",""]
[null,3421,null,null,null,null,null,null,null,null,null,null,null,null,null,null,"",""]
[null,3426,null,null,null,null,null,null,null,null,null,null,null,null,null,null,"",""]
[null,3432,null,null,null,null,null,null,null,null,null,null,null,null,null,null,"",""]
[null,3436,null,null,null,null,null,null,null,null,null,null,null,null,null,null,"",""]
[null,3442,null,null,null,null,null,null,null,null,null,null,null,null,null,null,"",""]
[null,3447,null,null,null,null,null,null,null,null,null,null,null,null,null,null,"",""]
[null,3452,null,null,null,null,null,null,null,null,null,null,null,null,null,null,"",""]
[null,3455,null,null,null,null,null,null,null,null,null,null,null,null,null,null,"",""]
[null,3462,null,null,null,null,null,null,null,null,null,null,null,null,null,null,"",""]
[null,3468,null,null,null,null,null,null,null,null,null,null,null,null,null,null,"",""]
[null,3473,null,null,null,null,null,null,null,null,null,null,null,null,null,null,"",""]
[null,3474,null,null,null,null,null,null,null,null,null,null,null,null,null,null,"",""]
[null,3478,null,null,null,null,null,null,null,null,null,null,null,null,null,null,"",""]
[null,3483,null,null,null,null,null,null,null,null,null,null,null,null,null,null,"",""]
[null,3488,null,null,null,null,null,null,null,null,null,null,null,null,null,null,"",""]
[null,3493,null,null,null,null,null,null,null,null,null,null,null,null,null,null,"",""]
[null,3498,null,null,null,null,null,null,null,null,null,null,null,null,null,null,"",""]
[null,3504,null,null,null,null,null,null,null,null,null,null,null,null,null,null,{"$f":"IF(P3509=\"\",\"\",P3509-L3509)","v":""},{"$f":"IFERROR(Q3509/P3509,\"\")","v":""}]
[null,3509,null,null,null,null,null,null,null,null,null,null,null,null,null,null,"",""]
[null,3512,null,null,null,null,null,null,null,null,null,null,null,null,null,null,"",""]
[null,3519,null,null,null,null,null,null,null,null,null,null,null,null,null,null,"",""]
[null,3524,null,null,null,null,null,null,null,null,null,null,null,null,null,null,"",""]
[null,3529,null,null,null,null,null,null,null,null,null,null,null,null,null,null,"",""]
[null,3531,null,null,null,null,null,null,null,null,null,null,null,null,null,null,"",""]
[null,3539,null,null,null,null,null,null,null,null,null,null,null,null,null,null,"",""]
[null,3540,null,null,null,null,null,null,null,null,null,null,null,null,null,null,"",""]
[null,3545,null,null,null,null,null,null,null,null,null,null,null,null,null,null,"",""]
[null,3550,null,null,null,null,null,null,null,null,null,null,null,null,null,null,"",""]
[null,3555,null,null,null,null,null,null,null,null,null,null,null,null,null,null,"",""]
[null,3560,null,null,null,null,null,null,null,null,null,null,null,null,null,null,"",""]
[null,3566,null,null,null,null,null,null,null,null,null,null,null,null,null,null,"",""]
[null,3569,null,null,null,null,null,null,null,null,null,null,null,null,null,null,"",""]
[null,3575,null,null,null,null,null,null,null,null,null,null,null,null,null,null,"",""]
[null,3581,null,null,null,null,null,null,null,null,null,null,null,null,null,null,"",""]
[null,3586,null,null,null,null,null,null,null,null,null,null,null,null,null,null,"",""]
[null,3588,null,null,null,null,null,null,null,null,null,null,null,null,null,null,"",""]
[null,3596,null,null,null,null,null,null,null,null,null,null,null,null,null,null,"",""]
[null,3601,null,null,null,null,null,null,null,null,null,null,null,null,null,null,"",""]
[null,3602,null,null,null,null,null,null,null,null,null,null,null,null,null,null,"",""]
[null,3607,null,null,null,null,null,null,null,null,null,null,null,null,null,null,"",""]
[null,3611,null,null,null,null,null,null,null,null,null,null,null,null,null,null,"",""]
[null,3617,null,null,null,null,null,null,null,null,null,null,null,null,null,null,"",""]
[null,3622,null,null,null,null,null,null,null,null,null,null,null,null,null,null,"",""]
[null,3626,null,null,null,null,null,null,null,null,null,null,null,null,null,null,"",""]
[null,3632,null,null,null,null,null,null,null,null,null,null,null,null,null,null,{"$f":"IF(P3637=\"\",\"\",P3637-L3637)","v":""},{"$f":"IFERROR(Q3637/P3637,\"\")","v":""}]
[null,3637,null,null,null,null,null,null,null,null,null,null,null,null,null,null,"",""]
[null,3643,null,null,null,null,null,null,null,null,null,null,null,null,null,null,"",""]
[null,3645,null,null,null,null,null,null,null,null,null,null,null,null,null,null,"",""]
[null,3652,null,null,null,null,null,null,null,null,null,null,null,null,null,null,"",""]
[null,3658,null,null,null,null,null,null,null,null,null,null,null,null,null,null,"",""]
[null,3663,null,null,null,null,null,null,null,null,null,null,null,null,null,null,"",""]
[null,3664,null,null,null,null,null,null,null,null,null,null,null,null,null,null,"",""]
[null,3668,null,null,null,null,null,null,null,null,null,null,null,null,null,null,"",""]
[null,3673,null,null,null,null,null,null,null,null,null,null,null,null,null,null,"",""]
[null,3679,null,null,null,null,null,null,null,null,null,null,null,null,null,null,"",""]
[null,3683,null,null,null,null,null,null,null,null,null,null,null,null,null,null,"",""]
[null,3688,null,null,null,null,null,null,null,null,null,null,null,null,null,null,"",""]
[null,3694,null,null,null,null,null,null,null,null,null,null,null,null,null,null,"",""]
[null,3699,null,null,null,null,null,null,null,null,null,null,null,null,null,null,"",""]
[null,3702,null,null,null,null,null,null,null,null,null,null,null,null,null,null,"",""]
[null,3709,null,null,null,null,null,null,null,null,null,null,null,null,null,null,"",""]
[null,3714,null,null,null,null,null,null,null,null,null,null,null,null,null,null,"",""]
[null,3720,null,null,null,null,null,null,null,null,null,null,null,null,null,null,"",""]
[null,3721,null,null,null,null,null,null,null,null,null,null,null,null,null,null,"",""]
[null,3725,null,null,null,null,null,null,null,null,null,null,null,null,null,null,"",""]
[null,3730,null,null,null,null,null,null,null,null,null,null,null,null,null,null,"",""]
[null,3735,null,null,null,null,null,null,null,null,null,null,null,null,null,null,"",""]
[null,3740,null,null,null,null,null,null,null,null,null,null,null,null,null,null,"",""]
[null,3745,null,null,null,null,null,null,null,null,null,null,null,null,null,null,"",""]
[null,3750,null,null,null,null,null,null,null,null,null,null,null,null,null,null,"",""]
[null,3756,null,null,null,null,null,null,null,null,null,null,null,null,null,null,"",""]
[null,3759,null,null,null,null,null,null,null,null,null,null,null,null,null,null,"",""]
[null,3766,null,null,null,null,null,null,null,null,null,null,null,null,null,null,"",""]
[null,3771,null,null,null,null,null,null,null,null,null,null,null,null,null,null,"",""]
[null,3776,null,null,null,null,null,null,null,null,null,null,null,null,null,null,"",""]
[null,3778,null,null,null,null,null,null,null,null,null,null,null,null,null,null,"",""]
[null,3786,null,null,null,null,null,null,null,null,null,null,null,null,null,null,"",""]
[null,3787,null,null,null,null,null,null,null,null,null,null,null,null,null,null,"",""]
[null,3792,null,null,null,null,null,null,null,null,null,null,null,null,null,null,"",""]
[null,3797,null,null,null,null,null,null,null,null,null,null,null,null,null,null,"",""]
[null,3802,null,null,null,null,null,null,null,null,null,null,null,null,null,null,"",""]
[null,3807,null,null,null,null,null,null,null,null,null,null,null,null,null,null,"",""]
[null,3812,null,null,null,null,null,null,null,null,null,null,null,null,null,null,"",""]
[null,3816,null,null,null,null,null,null,null,null,null,null,null,null,null,null,"",""]
[null,3822,null,null,null,null,null,null,null,null,null,null,null,null,null,null,"",""]
[null,3828,null,null,null,null,null,null,null,null,null,null,null,null,null,null,"",""]
[null,3833,null,null,null,null,null,null,null,null,null,null,null,null,null,null,"",""]
[null,3835,null,null,null,null,null,null,null,null,null,null,null,null,null,null,"",""]
[null,3843,null,null,null,null,null,null,null,null,null,null,null,null,null,null,"",""]
[null,3848,null,null,null,null,null,null,null,null,null,null,null,null,null,null,"",""]
[null,3853,null,null,null,null,null,null,null,null,null,null,null,null,null,null,"",""]
[null,3854,null,null,null,null,null,null,null,null,null,null,null,null,null,null,"",""]
[null,3858,null,null,null,null,null,null,null,null,null,null,null,null,null,null,"",""]
[null,3864,null,null,null,null,null,null,null,null,null,null,null,null,null,null,"",""]
[null,3869,null,null,null,null,null,null,null,null,null,null,null,null,null,null,"",""]
[null,3873,null,null,null,null,null,null,null,null,null,null,null,null,null,null,"",""]
[null,3879,null,null,null,null,null,null,null,null,null,null,null,null,null,null,"",""]
[null,3884,null,null,null,null,null,null,null,null,null,null,null,null,null,null,"",""]
[null,3890,null,null,null,null,null,null,null,null,null,null,null,null,null,null,"",""]
[null,3895,null,null,null,null,null,null,null,null,null,null,null,null,null,null,"",""]
[null,3898,null,null,null,null,null,null,null,null,null,null,null,null,null,null,"",""]
[null,3905,null,null,null,null,null,null,null,null,null,null,null,null,null,null,"",""]
[null,3910,null,null,null,null,null,null,null,null,null,null,null,null,null,null,"",""]
[null,3915,null,null,null,null,null,null,null,null,null,null,null,null,null,null,"",""]
[null,3917,null,null,null,null,null,null,null,null,null,null,null,null,null,null,"",""]
[null,3920,null,null,null,null,null,null,null,null,null,null,null,null,null,null,"",""]
[null,3926,null,null,null,null,null,null,null,null,null,null,null,null,null,null,"",""]
[null,3931,null,null,null,null,null,null,null,null,null,null,null,null,null,null,"",""]
[null,3936,null,null,null,null,null,null,null,null,null,null,null,null,null,null,"",""]
[null,3941,null,null,null,null,null,null,null,null,null,null,null,null,null,null,"",""]
[null,3946,null,null,null,null,null,null,null,null,null,null,null,null,null,null,"",""]
[null,3951,null,null,null,null,null,null,null,null,null,null,null,null,null,null,"",""]
[null,3955,null,null,null,null,null,null,null,null,null,null,null,null,null,null,"",""]
[null,3961,null,null,null,null,null,null,null,null,null,null,null,null,null,null,"",""]
[null,3967,null,null,null,null,null,null,null,null,null,null,null,null,null,null,"",""]
[null,3972,null,null,null,null,null,null,null,null,null,null,null,null,null,null,"",""]
[null,3974,null,null,null,null,null,null,null,null,null,null,null,null,null,null,"",""]
[null,3977,null,null,null,null,null,null,null,null,null,null,null,null,null,null,"",""]
[null,3982,null,null,null,null,null,null,null,null,null,null,null,null,null,null,"",""]
[null,3988,null,null,null,null,null,null,null,null,null,null,null,null,null,null,"",""]
[null,3993,null,null,null,null,null,null,null,null,null,null,null,null,null,null,"",""]
[null,3997,null,null,null,null,null,null,null,null,null,null,null,null,null,null,"",""]
[null,4003,null,null,null,null,null,null,null,null,null,null,null,null,null,null,"",""]
[null,4008,null,null,null,null,null,null,null,null,null,null,null,null,null,null,"",""]
[null,4012,null,null,null,null,null,null,null,null,null,null,null,null,null,null,"",""]
[null,4018,null,null,null,null,null,null,null,null,null,null,null,null,null,null,"",""]
[null,4023,null,null,null,null,null,null,null,null,null,null,null,null,null,null,"",""]
[null,4029,null,null,null,null,null,null,null,null,null,null,null,null,null,null,"",""]
[null,4031,null,null,null,null,null,null,null,null,null,null,null,null,null,null,"",""]
[null,4038,null,null,null,null,null,null,null,null,null,null,null,null,null,null,"",""]
[null,4039,null,null,null,null,null,null,null,null,null,null,null,null,null,null,"",""]
[null,4044,null,null,null,null,null,null,null,null,null,null,null,null,null,null,"",""]
[null,4050,null,null,null,null,null,null,null,null,null,null,null,null,null,null,"",""]
[null,4054,null,null,null,null,null,null,null,null,null,null,null,null,null,null,"",""]
[null,4059,null,null,null,null,null,null,null,null,null,null,null,null,null,null,"",""]
[null,4065,null,null,null,null,null,null,null,null,null,null,null,null,null,null,"",""]
[null,4069,null,null,null,null,null,null,null,null,null,null,null,null,null,null,"",""]
[null,4074,null,null,null,null,null,null,null,null,null,null,null,null,null,null,"",""]
[null,4080,null,null,null,null,null,null,null,null,null,null,null,null,null,null,{"$f":"IF(P4085=\"\",\"\",P4085-L4085)","v":""},{"$f":"IFERROR(Q4085/P4085,\"\")","v":""}]
[null,4085,null,null,null,null,null,null,null,null,null,null,null,null,null,null,"",""]
[null,4088,null,null,null,null,null,null,null,null,null,null,null,null,null,null,"",""]
[null,4095,null,null,null,null,null,null,null,null,null,null,null,null,null,null,"",""]
[null,4100,null,null,null,null,null,null,null,null,null,null,null,null,null,null,"",""]
[null,4101,null,null,null,null,null,null,null,null,null,null,null,null,null,null,"",""]
[null,4107,null,null,null,null,null,null,null,null,null,null,null,null,null,null,"",""]
[null,4110,null,null,null,null,null,null,null,null,null,null,null,null,null,null,"",""]
[null,4116,null,null,null,null,null,null,null,null,null,null,null,null,null,null,"",""]
[null,4121,null,null,null,null,null,null,null,null,null,null,null,null,null,null,"",""]
[null,4126,null,null,null,null,null,null,null,null,null,null,null,null,null,null,"",""]
[null,4131,null,null,null,null,null,null,null,null,null,null,null,null,null,null,"",""]
[null,4136,null,null,null,null,null,null,null,null,null,null,null,null,null,null,"",""]
[null,4142,null,null,null,null,null,null,null,null,null,null,null,null,null,null,"",""]
[null,4145,null,null,null,null,null,null,null,null,null,null,null,null,null,null,"",""]
[null,4152,null,null,null,null,null,null,null,null,null,null,null,null,null,null,"",""]
[null,4157,null,null,null,null,null,null,null,null,null,null,null,null,null,null,"",""]
[null,4162,null,null,null,null,null,null,null,null,null,null,null,null,null,null,"",""]
[null,4164,null,null,null,null,null,null,null,null,null,null,null,null,null,null,"",""]
[null,4167,null,null,null,null,null,null,null,null,null,null,null,null,null,null,"",""]
[null,4172,null,null,null,null,null,null,null,null,null,null,null,null,null,null,"",""]
[null,4178,null,null,null,null,null,null,null,null,null,null,null,null,null,null,"",""]
[null,4183,null,null,null,null,null,null,null,null,null,null,null,null,null,null,"",""]
[null,4188,null,null,null,null,null,null,null,null,null,null,null,null,null,null,"",""]
[null,4193,null,null,null,null,null,null,null,null,null,null,null,null,null,null,"",""]
[null,4198,null,null,null,null,null,null,null,null,null,null,null,null,null,null,"",""]
[null,4202,null,null,null,null,null,null,null,null,null,null,null,null,null,null,"",""]
[null,4208,null,null,null,null,null,null,null,null,null,null,null,null,null,null,{"$f":"IF(P4213=\"\",\"\",P4213-L4213)","v":""},{"$f":"IFERROR(Q4213/P4213,\"\")","v":""}]
[null,4213,null,null,null,null,null,null,null,null,null,null,null,null,null,null,"",""]
[null,4219,null,null,null,null,null,null,null,null,null,null,null,null,null,null,"",""]
[null,4221,null,null,null,null,null,null,null,null,null,null,null,null,null,null,"",""]
[null,4224,null,null,null,null,null,null,null,null,null,null,null,null,null,null,"",""]
[null,4229,null,null,null,null,null,null,null,null,null,null,null,null,null,null,"",""]
[null,4234,null,null,null,null,null,null,null,null,null,null,null,null,null,null,"",""]
[null,4240,null,null,null,null,null,null,null,null,null,null,null,null,null,null,"",""]
[null,4244,null,null,null,null,null,null,null,null,null,null,null,null,null,null,"",""]
[null,4250,null,null,null,null,null,null,null,null,null,null,null,null,null,null,"",""]
[null,4255,null,null,null,null,null,null,null,null,null,null,null,null,null,null,"",""]
[null,4259,null,null,null,null,null,null,null,null,null,null,null,null,null,null,"",""]
[null,4265,null,null,null,null,null,null,null,null,null,null,null,null,null,null,"",""]
[null,4270,null,null,null,null,null,null,null,null,null,null,null,null,null,null,"",""]
[null,4275,null,null,null,null,null,null,null,null,null,null,null,null,null,null,"",""]
[null,4278,null,null,null,null,null,null,null,null,null,null,null,null,null,null,"",""]
[null,4285,null,null,null,null,null,null,null,null,null,null,null,null,null,null,"",""]
[null,4286,null,null,null,null,null,null,null,null,null,null,null,null,null,null,"",""]
[null,4291,null,null,null,null,null,null,null,null,null,null,null,null,null,null,"",""]
[null,4297,null,null,null,null,null,null,null,null,null,null,null,null,null,null,"",""]
[null,4301,null,null,null,null,null,null,null,null,null,null,null,null,null,null,"",""]
[null,4306,null,null,null,null,null,null,null,null,null,null,null,null,null,null,"",""]
[null,4312,null,null,null,null,null,null,null,null,null,null,null,null,null,null,"",""]
[null,4316,null,null,null,null,null,null,null,null,null,null,null,null,null,null,"",""]
[null,4321,null,null,null,null,null,null,null,null,null,null,null,null,null,null,"",""]
[null,4327,null,null,null,null,null,null,null,null,null,null,null,null,null,null,"",""]
[null,4332,null,null,null,null,null,null,null,null,null,null,null,null,null,null,"",""]
[null,4335,null,null,null,null,null,null,null,null,null,null,null,null,null,null,"",""]
[null,4342,null,null,null,null,null,null,null,null,null,null,null,null,null,null,"",""]
[null,4347,null,null,null,null,null,null,null,null,null,null,null,null,null,null,"",""]
[null,4348,null,null,null,null,null,null,null,null,null,null,null,null,null,null,"",""]
[null,4354,null,null,null,null,null,null,null,null,null,null,null,null,null,null,"",""]
[null,4357,null,null,null,null,null,null,null,null,null,null,null,null,null,null,"",""]
[null,4363,null,null,null,null,null,null,null,null,null,null,null,null,null,null,"",""]
[null,4368,null,null,null,null,null,null,null,null,null,null,null,null,null,null,"",""]
[null,4373,null,null,null,null,null,null,null,null,null,null,null,null,null,null,"",""]
[null,4379,null,null,null,null,null,null,null,null,null,null,null,null,null,null,"",""]
[null,4383,null,null,null,null,null,null,null,null,null,null,null,null,null,null,"",""]
[null,4389,null,null,null,null,null,null,null,null,null,null,null,null,null,null,"",""]
[null,4394,null,null,null,null,null,null,null,null,null,null,null,null,null,null,"",""]
[null,4398,null,null,null,null,null,null,null,null,null,null,null,null,null,null,"",""]
[null,4404,null,null,null,null,null,null,null,null,null,null,null,null,null,null,"",""]
[null,4409,null,null,null,null,null,null,null,null,null,null,null,null,null,null,"",""]
[null,4410,null,null,null,null,null,null,null,null,null,null,null,null,null,null,"",""]
[null,4417,null,null,null,null,null,null,null,null,null,null,null,null,null,null,"",""]
[null,4419,null,null,null,null,null,null,null,null,null,null,null,null,null,null,"",""]
[null,4425,null,null,null,null,null,null,null,null,null,null,null,null,null,null,"",""]
[null,4430,null,null,null,null,null,null,null,null,null,null,null,null,null,null,"",""]
[null,4436,null,null,null,null,null,null,null,null,null,null,null,null,null,null,"",""]
[null,4440,null,null,null,null,null,null,null,null,null,null,null,null,null,null,"",""]
[null,4445,null,null,null,null,null,null,null,null,null,null,null,null,null,null,"",""]
[null,4451,null,null,null,null,null,null,null,null,null,null,null,null,null,null,"",""]
[null,4455,null,null,null,null,null,null,null,null,null,null,null,null,null,null,"",""]
[null,4460,null,null,null,null,null,null,null,null,null,null,null,null,null,null,"",""]
[null,4466,null,null,null,null,null,null,null,null,null,null,null,null,null,null,"",""]
[null,4471,null,null,null,null,null,null,null,null,null,null,null,null,null,null,"",""]
[null,4474,null,null,null,null,null,null,null,null,null,null,null,null,null,null,"",""]
[null,4476,null,null,null,null,null,null,null,null,null,null,null,null,null,null,"",""]
[null,4481,null,null,null,null,null,null,null,null,null,null,null,null,null,null,"",""]
[null,4487,null,null,null,null,null,null,null,null,null,null,null,null,null,null,"",""]
[null,4493,null,null,null,null,null,null,null,null,null,null,null,null,null,null,"",""]
[null,4496,null,null,null,null,null,null,null,null,null,null,null,null,null,null,"",""]
[null,4502,null,null,null,null,null,null,null,null,null,null,null,null,null,null,"",""]
[null,4507,null,null,null,null,null,null,null,null,null,null,null,null,null,null,"",""]
[null,4512,null,null,null,null,null,null,null,null,null,null,null,null,null,null,"",""]
[null,4517,null,null,null,null,null,null,null,null,null,null,null,null,null,null,"",""]
[null,4522,null,null,null,null,null,null,null,null,null,null,null,null,null,null,"",""]
[null,4528,null,null,null,null,null,null,null,null,null,null,null,null,null,null,{"$f":"IF(P4533=\"\",\"\",P4533-L4533)","v":""},{"$f":"IFERROR(Q4533/P4533,\"\")","v":""}]
[null,4531,null,null,null,null,null,null,null,null,null,null,null,null,null,null,"",""]
[null,4537,null,null,null,null,null,null,null,null,null,null,null,null,null,null,"",""]
[null,4538,null,null,null,null,null,null,null,null,null,null,null,null,null,null,"",""]
[null,4543,null,null,null,null,null,null,null,null,null,null,null,null,null,null,"",""]
[null,4550,null,null,null,null,null,null,null,null,null,null,null,null,null,null,"",""]
[null,4553,null,null,null,null,null,null,null,null,null,null,null,null,null,null,"",""]
[null,4558,null,null,null,null,null,null,null,null,null,null,null,null,null,null,"",""]
[null,4564,null,null,null,null,null,null,null,null,null,null,null,null,null,null,"",""]
[null,4569,null,null,null,null,null,null,null,null,null,null,null,null,null,null,"",""]
[null,4574,null,null,null,null,null,null,null,null,null,null,null,null,null,null,"",""]
[null,4579,null,null,null,null,null,null,null,null,null,null,null,null,null,null,"",""]
[null,4584,null,null,null,null,null,null,null,null,null,null,null,null,null,null,"",""]
[null,4588,null,null,null,null,null,null,null,null,null,null,null,null,null,null,"",""]
[null,4594,null,null,null,null,null,null,null,null,null,null,null,null,null,null,"",""]
[null,4599,null,null,null,null,null,null,null,null,null,null,null,null,null,null,"",""]
[null,4600,null,null,null,null,null,null,null,null,null,null,null,null,null,null,"",""]
[null,4607,null,null,null,null,null,null,null,null,null,null,null,null,null,null,"",""]
[null,4610,null,null,null,null,null,null,null,null,null,null,null,null,null,null,"",""]
[null,4615,null,null,null,null,null,null,null,null,null,null,null,null,null,null,"",""]
[null,4620,null,null,null,null,null,null,null,null,null,null,null,null,null,null,"",""]
[null,4626,null,null,null,null,null,null,null,null,null,null,null,null,null,null,"",""]
[null,4630,null,null,null,null,null,null,null,null,null,null,null,null,null,null,"",""]
[null,4635,null,null,null,null,null,null,null,null,null,null,null,null,null,null,"",""]
[null,4641,null,null,null,null,null,null,null,null,null,null,null,null,null,null,"",""]
[null,4645,null,null,null,null,null,null,null,null,null,null,null,null,null,null,"",""]
[null,4651,null,null,null,null,null,null,null,null,null,null,null,null,null,null,"",""]
[null,4656,null,null,null,null,null,null,null,null,null,null,null,null,null,null,{"$f":"IF(P4661=\"\",\"\",P4661-L4661)","v":""},{"$f":"IFERROR(Q4661/P4661,\"\")","v":""}]
[null,4661,null,null,null,null,null,null,null,null,null,null,null,null,null,null,"",""]
[null,4664,null,null,null,null,null,null,null,null,null,null,null,null,null,null,"",""]
[null,4666,null,null,null,null,null,null,null,null,null,null,null,null,null,null,"",""]
[null,4672,null,null,null,null,null,null,null,null,null,null,null,null,null,null,"",""]
[null,4677,null,null,null,null,null,null,null,null,null,null,null,null,null,null,"",""]
[null,4683,null,null,null,null,null,null,null,null,null,null,null,null,null,null,"",""]
[null,4687,null,null,null,null,null,null,null,null,null,null,null,null,null,null,"",""]
[null,4692,null,null,null,null,null,null,null,null,null,null,null,null,null,null,"",""]
[null,4697,null,null,null,null,null,null,null,null,null,null,null,null,null,null,"",""]
[null,4702,null,null,null,null,null,null,null,null,null,null,null,null,null,null,"",""]
[null,4707,null,null,null,null,null,null,null,null,null,null,null,null,null,null,"",""]
[null,4713,null,null,null,null,null,null,null,null,null,null,null,null,null,null,"",""]
[null,4718,null,null,null,null,null,null,null,null,null,null,null,null,null,null,"",""]
[null,4721,null,null,null,null,null,null,null,null,null,null,null,null,null,null,"",""]
[null,4723,null,null,null,null,null,null,null,null,null,null,null,null,null,null,"",""]
[null,4728,null,null,null,null,null,null,null,null,null,null,null,null,null,null,"",""]
[null,4734,null,null,null,null,null,null,null,null,null,null,null,null,null,null,"",""]
[null,4740,null,null,null,null,null,null,null,null,null,null,null,null,null,null,"",""]
[null,4743,null,null,null,null,null,null,null,null,null,null,null,null,null,null,"",""]
[null,4749,null,null,null,null,null,null,null,null,null,null,null,null,null,null,"",""]
[null,4754,null,null,null,null,null,null,null,null,null,null,null,null,null,null,"",""]
[null,4759,null,null,null,null,null,null,null,null,null,null,null,null,null,null,"",""]
[null,4764,null,null,null,null,null,null,null,null,null,null,null,null,null,null,"",""]
[null,4769,null,null,null,null,null,null,null,null,null,null,null,null,null,null,"",""]
[null,4775,null,null,null,null,null,null,null,null,null,null,null,null,null,null,"",""]
[null,4778,null,null,null,null,null,null,null,null,null,null,null,null,null,null,"",""]
[null,4784,null,null,null,null,null,null,null,null,null,null,null,null,null,null,"",""]
[null,4785,null,null,null,null,null,null,null,null,null,null,null,null,null,null,"",""]
[null,4790,null,null,null,null,null,null,null,null,null,null,null,null,null,null,"",""]
[null,4797,null,null,null,null,null,null,null,null,null,null,null,null,null,null,"",""]
[null,4800,null,null,null,null,null,null,null,null,null,null,null,null,null,null,"",""]
[null,4805,null,null,null,null,null,null,null,null,null,null,null,null,null,null,"",""]
[null,4811,null,null,null,null,null,null,null,null,null,null,null,null,null,null,"",""]
[null,4816,null,null,null,null,null,null,null,null,null,null,null,null,null,null,"",""]
[null,4820,null,null,null,null,null,null,null,null,null,null,null,null,null,null,"",""]
[null,4826,null,null,null,null,null,null,null,null,null,null,null,null,null,null,"",""]
[null,4831,null,null,null,null,null,null,null,null,null,null,null,null,null,null,"",""]
[null,4835,null,null,null,null,null,null,null,null,null,null,null,null,null,null,"",""]
[null,4841,null,null,null,null,null,null,null,null,null,null,null,null,null,null,"",""]
[null,4846,null,null,null,null,null,null,null,null,null,null,null,null,null,null,"",""]
[null,4847,null,null,null,null,null,null,null,null,null,null,null,null,null,null,"",""]
[null,4852,null,null,null,null,null,null,null,null,null,null,null,null,null,null,"",""]
[null,4860,null,null,null,null,null,null,null,null,null,null,null,null,null,null,"",""]
[null,4862,null,null,null,null,null,null,null,null,null,null,null,null,null,null,"",""]
[null,4867,null,null,null,null,null,null,null,null,null,null,null,null,null,null,"",""]
[null,4873,null,null,null,null,null,null,null,null,null,null,null,null,null,null,"",""]
[null,4879,null,null,null,null,null,null,null,null,null,null,null,null,null,null,"",""]
[null,4882,null,null,null,null,null,null,null,null,null,null,null,null,null,null,"",""]
[null,4888,null,null,null,null,null,null,null,null,null,null,null,null,null,null,"",""]
[null,4893,null,null,null,null,null,null,null,null,null,null,null,null,null,null,"",""]
[null,4898,null,null,null,null,null,null,null,null,null,null,null,null,null,null,"",""]
[null,4903,null,null,null,null,null,null,null,null,null,null,null,null,null,null,"",""]
[null,4908,null,null,null,null,null,null,null,null,null,null,null,null,null,null,"",""]
[null,4909,null,null,null,null,null,null,null,null,null,null,null,null,null,null,"",""]
[null,4917,null,null,null,null,null,null,null,null,null,null,null,null,null,null,"",""]
[null,4918,null,null,null,null,null,null,null,null,null,null,null,null,null,null,"",""]
[null,4924,null,null,null,null,null,null,null,null,null,null,null,null,null,null,"",""]
[null,4929,null,null,null,null,null,null,null,null,null,null,null,null,null,null,"",""]
[null,4936,null,null,null,null,null,null,null,null,null,null,null,null,null,null,"",""]
[null,4939,null,null,null,null,null,null,null,null,null,null,null,null,null,null,"",""]
[null,4944,null,null,null,null,null,null,null,null,null,null,null,null,null,null,"",""]
[null,4950,null,null,null,null,null,null,null,null,null,null,null,null,null,null,"",""]
[null,4955,null,null,null,null,null,null,null,null,null,null,null,null,null,null,"",""]
[null,4959,null,null,null,null,null,null,null,null,null,null,null,null,null,null,"",""]
[null,4965,null,null,null,null,null,null,null,null,null,null,null,null,null,null,"",""]
[null,4970,null,null,null,null,null,null,null,null,null,null,null,null,null,null,"",""]
[null,4974,null,null,null,null,null,null,null,null,null,null,null,null,null,null,"",""]
[null,4975,null,null,null,null,null,null,null,null,null,null,null,null,null,null,"",""]
[null,4980,null,null,null,null,null,null,null,null,null,null,null,null,null,null,"",""]
[null,4986,null,null,null,null,null,null,null,null,null,null,null,null,null,null,"",""]
[null,4993,null,null,null,null,null,null,null,null,null,null,null,null,null,null,"",""]
[null,4996,null,null,null,null,null,null,null,null,null,null,null,null,null,null,"",""]
[null,5001,null,null,null,null,null,null,null,null,null,null,null,null,null,null,"",""]
[null,5006,null,null,null,null,null,null,null,null,null,null,null,null,null,null,"",""]
[null,5012,null,null,null,null,null,null,null,null,null,null,null,null,null,null,"",""]
[null,5016,null,null,null,null,null,null,null,null,null,null,null,null,null,null,"",""]
[null,5021,null,null,null,null,null,null,null,null,null,null,null,null,null,null,"",""]
[null,5027,null,null,null,null,null,null,null,null,null,null,null,null,null,null,"",""]
[null,5031,null,null,null,null,null,null,null,null,null,null,null,null,null,null,"",""]
[null,5032,null,null,null,null,null,null,null,null,null,null,null,null,null,null,"",""]
[null,5037,null,null,null,null,null,null,null,null,null,null,null,null,null,null,"",""]
[null,5042,null,null,null,null,null,null,null,null,null,null,null,null,null,null,"",""]
[null,5050,null,null,null,null,null,null,null,null,null,null,null,null,null,null,"",""]
[null,5052,null,null,null,null,null,null,null,null,null,null,null,null,null,null,"",""]
[null,5057,null,null,null,null,null,null,null,null,null,null,null,null,null,null,"",""]
[null,5063,null,null,null,null,null,null,null,null,null,null,null,null,null,null,"",""]
[null,5069,null,null,null,null,null,null,null,null,null,null,null,null,null,null,"",""]
[null,5073,null,null,null,null,null,null,null,null,null,null,null,null,null,null,"",""]
[null,5078,null,null,null,null,null,null,null,null,null,null,null,null,null,null,"",""]
[null,5083,null,null,null,null,null,null,null,null,null,null,null,null,null,null,"",""]
[null,5088,null,null,null,null,null,null,null,null,null,null,null,null,null,null,"",""]
[null,5093,null,null,null,null,null,null,null,null,null,null,null,null,null,null,"",""]
[null,5094,null,null,null,null,null,null,null,null,null,null,null,null,null,null,"",""]
[null,5099,null,null,null,null,null,null,null,null,null,null,null,null,null,null,"",""]
[null,5107,null,null,null,null,null,null,null,null,null,null,null,null,null,null,"",""]
[null,5109,null,null,null,null,null,null,null,null,null,null,null,null,null,null,"",""]
[null,5114,null,null,null,null,null,null,null,null,null,null,null,null,null,null,"",""]
[null,5119,null,null,null,null,null,null,null,null,null,null,null,null,null,null,{"$f":"IF(P5124=\"\",\"\",P5124-L5124)","v":""},{"$f":"IFERROR(Q5124/P5124,\"\")","v":""}]
[null,5126,null,null,null,null,null,null,null,null,null,null,null,null,null,null,"",""]
[null,5129,null,null,null,null,null,null,null,null,null,null,null,null,null,null,"",""]
[null,5135,null,null,null,null,null,null,null,null,null,null,null,null,null,null,"",""]
[null,5140,null,null,null,null,null,null,null,null,null,null,null,null,null,null,"",""]
[null,5145,null,null,null,null,null,null,null,null,null,null,null,null,null,null,"",""]
[null,5150,null,null,null,null,null,null,null,null,null,null,null,null,null,null,"",""]
[null,5155,null,null,null,null,null,null,null,null,null,null,null,null,null,null,"",""]
[null,5156,null,null,null,null,null,null,null,null,null,null,null,null,null,null,"",""]
[null,5164,null,null,null,null,null,null,null,null,null,null,null,null,null,null,"",""]
[null,5165,null,null,null,null,null,null,null,null,null,null,null,null,null,null,"",""]
[null,5171,null,null,null,null,null,null,null,null,null,null,null,null,null,null,"",""]
[null,5176,null,null,null,null,null,null,null,null,null,null,null,null,null,null,"",""]
[null,5183,null,null,null,null,null,null,null,null,null,null,null,null,null,null,{"$f":"IF(P5188=\"\",\"\",P5188-L5188)","v":""},{"$f":"IFERROR(Q5188/P5188,\"\")","v":""}]
[null,5186,null,null,null,null,null,null,null,null,null,null,null,null,null,null,"",""]
[null,5191,null,null,null,null,null,null,null,null,null,null,null,null,null,null,"",""]
[null,5197,null,null,null,null,null,null,null,null,null,null,null,null,null,null,"",""]
[null,5202,null,null,null,null,null,null,null,null,null,null,null,null,null,null,"",""]
[null,5206,null,null,null,null,null,null,null,null,null,null,null,null,null,null,"",""]
[null,5212,null,null,null,null,null,null,null,null,null,null,null,null,null,null,"",""]
[null,5217,null,null,null,null,null,null,null,null,null,null,null,null,null,null,"",""]
[null,5221,null,null,null,null,null,null,null,null,null,null,null,null,null,null,"",""]
[null,5222,null,null,null,null,null,null,null,null,null,null,null,null,null,null,"",""]
[null,5227,null,null,null,null,null,null,null,null,null,null,null,null,null,null,"",""]
[null,5233,null,null,null,null,null,null,null,null,null,null,null,null,null,null,"",""]
[null,5240,null,null,null,null,null,null,null,null,null,null,null,null,null,null,"",""]
[null,5242,null,null,null,null,null,null,null,null,null,null,null,null,null,null,"",""]
[null,5248,null,null,null,null,null,null,null,null,null,null,null,null,null,null,"",""]
[null,5253,null,null,null,null,null,null,null,null,null,null,null,null,null,null,"",""]
[null,5259,null,null,null,null,null,null,null,null,null,null,null,null,null,null,"",""]
[null,5263,null,null,null,null,null,null,null,null,null,null,null,null,null,null,"",""]
[null,5268,null,null,null,null,null,null,null,null,null,null,null,null,null,null,"",""]
[null,5274,null,null,null,null,null,null,null,null,null,null,null,null,null,null,"",""]
[null,5278,null,null,null,null,null,null,null,null,null,null,null,null,null,null,"",""]
[null,5283,null,null,null,null,null,null,null,null,null,null,null,null,null,null,"",""]
[null,5284,null,null,null,null,null,null,null,null,null,null,null,null,null,null,"",""]
[null,5289,null,null,null,null,null,null,null,null,null,null,null,null,null,null,"",""]
[null,5297,null,null,null,null,null,null,null,null,null,null,null,null,null,null,"",""]
[null,5299,null,null,null,null,null,null,null,null,null,null,null,null,null,null,"",""]
[null,5304,null,null,null,null,null,null,null,null,null,null,null,null,null,null,"",""]
[null,5310,null,null,null,null,null,null,null,null,null,null,null,null,null,null,"",""]
[null,5316,null,null,null,null,null,null,null,null,null,null,null,null,null,null,"",""]
[null,5319,null,null,null,null,null,null,null,null,null,null,null,null,null,null,"",""]
[null,5325,null,null,null,null,null,null,null,null,null,null,null,null,null,null,"",""]
[null,5330,null,null,null,null,null,null,null,null,null,null,null,null,null,null,"",""]
[null,5336,null,null,null,null,null,null,null,null,null,null,null,null,null,null,"",""]
[null,5337,null,null,null,null,null,null,null,null,null,null,null,null,null,null,"",""]
[null,5345,null,null,null,null,null,null,null,null,null,null,null,null,null,null,"",""]
[null,5346,null,null,null,null,null,null,null,null,null,null,null,null,null,null,"",""]
[null,5351,null,null,null,null,null,null,null,null,null,null,null,null,null,null,"",""]
[null,5356,null,null,null,null,null,null,null,null,null,null,null,null,null,null,"",""]
[null,5361,null,null,null,null,null,null,null,null,null,null,null,null,null,null,"",""]
[null,5366,null,null,null,null,null,null,null,null,null,null,null,null,null,null,"",""]
[null,5372,null,null,null,null,null,null,null,null,null,null,null,null,null,null,"",""]
[null,5375,null,null,null,null,null,null,null,null,null,null,null,null,null,null,{"$f":"IF(P5380=\"\",\"\",P5380-L5380)","v":""},{"$f":"IFERROR(Q5380/P5380,\"\")","v":""}]
[null,5381,null,null,null,null,null,null,null,null,null,null,null,null,null,null,"",""]
[null,5387,null,null,null,null,null,null,null,null,null,null,null,null,null,null,"",""]
[null,5392,null,null,null,null,null,null,null,null,null,null,null,null,null,null,"",""]
[null,5394,null,null,null,null,null,null,null,null,null,null,null,null,null,null,"",""]
[null,5402,null,null,null,null,null,null,null,null,null,null,null,null,null,null,"",""]
[null,5407,null,null,null,null,null,null,null,null,null,null,null,null,null,null,"",""]
[null,5408,null,null,null,null,null,null,null,null,null,null,null,null,null,null,"",""]
[null,5413,null,null,null,null,null,null,null,null,null,null,null,null,null,null,"",""]
[null,5418,null,null,null,null,null,null,null,null,null,null,null,null,null,null,"",""]
[null,5423,null,null,null,null,null,null,null,null,null,null,null,null,null,null,"",""]
[null,5428,null,null,null,null,null,null,null,null,null,null,null,null,null,null,"",""]
[null,5432,null,null,null,null,null,null,null,null,null,null,null,null,null,null,"",""]
[null,5438,null,null,null,null,null,null,null,null,null,null,null,null,null,null,"",""]
[null,5443,null,null,null,null,null,null,null,null,null,null,null,null,null,null,"",""]
[null,5449,null,null,null,null,null,null,null,null,null,null,null,null,null,null,"",""]
[null,5451,null,null,null,null,null,null,null,null,null,null,null,null,null,null,"",""]
[null,5459,null,null,null,null,null,null,null,null,null,null,null,null,null,null,"",""]
[null,5464,null,null,null,null,null,null,null,null,null,null,null,null,null,null,"",""]
[null,5469,null,null,null,null,null,null,null,null,null,null,null,null,null,null,"",""]
[null,5470,null,null,null,null,null,null,null,null,null,null,null,null,null,null,"",""]
[null,5474,null,null,null,null,null,null,null,null,null,null,null,null,null,null,"",""]
[null,5479,null,null,null,null,null,null,null,null,null,null,null,null,null,null,"",""]
[null,5485,null,null,null,null,null,null,null,null,null,null,null,null,null,null,"",""]
[null,5489,null,null,null,null,null,null,null,null,null,null,null,null,null,null,"",""]
[null,5495,null,null,null,null,null,null,null,null,null,null,null,null,null,null,"",""]
[null,5500,null,null,null,null,null,null,null,null,null,null,null,null,null,null,"",""]
[null,5505,null,null,null,null,null,null,null,null,null,null,null,null,null,null,"",""]
[null,5508,null,null,null,null,null,null,null,null,null,null,null,null,null,null,"",""]
[null,5515,null,null,null,null,null,null,null,null,null,null,null,null,null,null,"",""]
[null,5521,null,null,null,null,null,null,null,null,null,null,null,null,null,null,"",""]
[null,5526,null,null,null,null,null,null,null,null,null,null,null,null,null,null,"",""]
[null,5527,null,null,null,null,null,null,null,null,null,null,null,null,null,null,"",""]
[null,5531,null,null,null,null,null,null,null,null,null,null,null,null,null,null,"",""]
[null,5536,null,null,null,null,null,null,null,null,null,null,null,null,null,null,"",""]
[null,5541,null,null,null,null,null,null,null,null,null,null,null,null,null,null,"",""]
[null,5546,null,null,null,null,null,null,null,null,null,null,null,null,null,null,"",""]
[null,5551,null,null,null,null,null,null,null,null,null,null,null,null,null,null,"",""]
[null,5557,null,null,null,null,null,null,null,null,null,null,null,null,null,null,"",""]
[null,5562,null,null,null,null,null,null,null,null,null,null,null,null,null,null,"",""]
[null,5565,null,null,null,null,null,null,null,null,null,null,null,null,null,null,"",""]
[null,5572,null,null,null,null,null,null,null,null,null,null,null,null,null,null,"",""]
[null,5577,null,null,null,null,null,null,null,null,null,null,null,null,null,null,"",""]
[null,5583,null,null,null,null,null,null,null,null,null,null,null,null,null,null,"",""]
[null,5584,null,null,null,null,null,null,null,null,null,null,null,null,null,null,"",""]
[null,5592,null,null,null,null,null,null,null,null,null,null,null,null,null,null,"",""]
[null,5593,null,null,null,null,null,null,null,null,null,null,null,null,null,null,"",""]
[null,5598,null,null,null,null,null,null,null,null,null,null,null,null,null,null,"",""]
[null,5603,null,null,null,null,null,null,null,null,null,null,null,null,null,null,"",""]
[null,5608,null,null,null,null,null,null,null,null,null,null,null,null,null,null,"",""]
[null,5613,null,null,null,null,null,null,null,null,null,null,null,null,null,null,"",""]
[null,5619,null,null,null,null,null,null,null,null,null,null,null,null,null,null,"",""]
[null,5622,null,null,null,null,null,null,null,null,null,null,null,null,null,null,"",""]
[null,5628,null,null,null,null,null,null,null,null,null,null,null,null,null,null,"",""]
[null,5634,null,null,null,null,null,null,null,null,null,null,null,null,null,null,"",""]
[null,5639,null,null,null,null,null,null,null,null,null,null,null,null,null,null,"",""]
[null,5641,null,null,null,null,null,null,null,null,null,null,null,null,null,null,"",""]
[null,5649,null,null,null,null,null,null,null,null,null,null,null,null,null,null,"",""]
[null,5654,null,null,null,null,null,null,null,null,null,null,null,null,null,null,"",""]
[null,5655,null,null,null,null,null,null,null,null,null,null,null,null,null,null,"",""]
[null,5660,null,null,null,null,null,null,null,null,null,null,null,null,null,null,"",""]
[null,5664,null,null,null,null,null,null,null,null,null,null,null,null,null,null,"",""]
[null,5670,null,null,null,null,null,null,null,null,null,null,null,null,null,null,"",""]
[null,5675,null,null,null,null,null,null,null,null,null,null,null,null,null,null,"",""]
[null,5679,null,null,null,null,null,null,null,null,null,null,null,null,null,null,"",""]
[null,5685,null,null,null,null,null,null,null,null,null,null,null,null,null,null,"",""]
[null,5690,null,null,null,null,null,null,null,null,null,null,null,null,null,null,"",""]
[null,5696,null,null,null,null,null,null,null,null,null,null,null,null,null,null,"",""]
[null,5698,null,null,null,null,null,null,null,null,null,null,null,null,null,null,"",""]
[null,5705,null,null,null,null,null,null,null,null,null,null,null,null,null,null,"",""]
[null,5711,null,null,null,null,null,null,null,null,null,null,null,null,null,null,"",""]
[null,5716,null,null,null,null,null,null,null,null,null,null,null,null,null,null,"",""]
[null,5717,null,null,null,null,null,null,null,null,null,null,null,null,null,null,"",""]
[null,5721,null,null,null,null,null,null,null,null,null,null,null,null,null,null,"",""]
[null,5726,null,null,null,null,null,null,null,null,null,null,null,null,null,null,"",""]
[null,5732,null,null,null,null,null,null,null,null,null,null,null,null,null,null,"",""]
[null,5736,null,null,null,null,null,null,null,null,null,null,null,null,null,null,"",""]
[null,5741,null,null,null,null,null,null,null,null,null,null,null,null,null,null,"",""]
[null,5747,null,null,null,null,null,null,null,null,null,null,null,null,null,null,"",""]
[null,5752,null,null,null,null,null,null,null,null,null,null,null,null,null,null,"",""]
[null,5755,null,null,null,null,null,null,null,null,null,null,null,null,null,null,"",""]
[null,5762,null,null,null,null,null,null,null,null,null,null,null,null,null,null,"",""]
[null,5767,null,null,null,null,null,null,null,null,null,null,null,null,null,null,"",""]
[null,5773,null,null,null,null,null,null,null,null,null,null,null,null,null,null,"",""]
[null,5774,null,null,null,null,null,null,null,null,null,null,null,null,null,null,"",""]
[null,5778,null,null,null,null,null,null,null,null,null,null,null,null,null,null,"",""]
[null,5783,null,null,null,null,null,null,null,null,null,null,null,null,null,null,"",""]
[null,5788,null,null,null,null,null,null,null,null,null,null,null,null,null,null,"",""]
[null,5794,null,null,null,null,null,null,null,null,null,null,null,null,null,null,"",""]
[null,5799,null,null,null,null,null,null,null,null,null,null,null,null,null,null,"",""]
[null,5803,null,null,null,null,null,null,null,null,null,null,null,null,null,null,"",""]
[null,5809,null,null,null,null,null,null,null,null,null,null,null,null,null,null,"",""]
[null,5814,null,null,null,null,null,null,null,null,null,null,null,null,null,null,"",""]
[null,5818,null,null,null,null,null,null,null,null,null,null,null,null,null,null,"",""]
[null,5824,null,null,null,null,null,null,null,null,null,null,null,null,null,null,"",""]
[null,5829,null,null,null,null,null,null,null,null,null,null,null,null,null,null,"",""]
[null,5835,null,null,null,null,null,null,null,null,null,null,null,null,null,null,"",""]
[null,5837,null,null,null,null,null,null,null,null,null,null,null,null,null,null,"",""]
[null,5840,null,null,null,null,null,null,null,null,null,null,null,null,null,null,"",""]
[null,5845,null,null,null,null,null,null,null,null,null,null,null,null,null,null,"",""]
[null,5850,null,null,null,null,null,null,null,null,null,null,null,null,null,null,"",""]
[null,5856,null,null,null,null,null,null,null,null,null,null,null,null,null,null,"",""]
[null,5860,null,null,null,null,null,null,null,null,null,null,null,null,null,null,"",""]
[null,5865,null,null,null,null,null,null,null,null,null,null,null,null,null,null,"",""]
[null,5871,null,null,null,null,null,null,null,null,null,null,null,null,null,null,"",""]
[null,5875,null,null,null,null,null,null,null,null,null,null,null,null,null,null,"",""]
[null,5881,null,null,null,null,null,null,null,null,null,null,null,null,null,null,"",""]
[null,5886,null,null,null,null,null,null,null,null,null,null,null,null,null,null,"",""]
[null,5891,null,null,null,null,null,null,null,null,null,null,null,null,null,null,"",""]
[null,5894,null,null,null,null,null,null,null,null,null,null,null,null,null,null,"",""]
[null,5901,null,null,null,null,null,null,null,null,null,null,null,null,null,null,"",""]
[null,5906,null,null,null,null,null,null,null,null,null,null,null,null,null,null,"",""]
[null,5907,null,null,null,null,null,null,null,null,null,null,null,null,null,null,"",""]
[null,5913,null,null,null,null,null,null,null,null,null,null,null,null,null,null,"",""]
[null,5917,null,null,null,null,null,null,null,null,null,null,null,null,null,null,"",""]
[null,5922,null,null,null,null,null,null,null,null,null,null,null,null,null,null,"",""]
[null,5927,null,null,null,null,null,null,null,null,null,null,null,null,null,null,"",""]
[null,5932,null,null,null,null,null,null,null,null,null,null,null,null,null,null,"",""]
[null,5937,null,null,null,null,null,null,null,null,null,null,null,null,null,null,"",""]
[null,5943,null,null,null,null,null,null,null,null,null,null,null,null,null,null,"",""]
[null,5948,null,null,null,null,null,null,null,null,null,null,null,null,null,null,"",""]
[null,5951,null,null,null,null,null,null,null,null,null,null,null,null,null,null,{"$f":"IF(P5956=\"\",\"\",P5956-L5956)","v":""},{"$f":"IFERROR(Q5956/P5956,\"\")","v":""}]
[null,5958,null,null,null,null,null,null,null,null,null,null,null,null,null,null,"",""]
[null,5963,null,null,null,null,null,null,null,null,null,null,null,null,null,null,"",""]
[null,5968,null,null,null,null,null,null,null,null,null,null,null,null,null,null,"",""]
[null,5970,null,null,null,null,null,null,null,null,null,null,null,null,null,null,"",""]
[null,5973,null,null,null,null,null,null,null,null,null,null,null,null,null,null,"",""]
[null,5979,null,null,null,null,null,null,null,null,null,null,null,null,null,null,"",""]
[null,5984,null,null,null,null,null,null,null,null,null,null,null,null,null,null,"",""]
[null,5989,null,null,null,null,null,null,null,null,null,null,null,null,null,null,"",""]
[null,5994,null,null,null,null,null,null,null,null,null,null,null,null,null,null,"",""]
[null,5999,null,null,null,null,null,null,null,null,null,null,null,null,null,null,"",""]
[null,6004,null,null,null,null,null,null,null,null,null,null,null,null,null,null,"",""]
[null,6008,null,null,null,null,null,null,null,null,null,null,null,null,null,null,"",""]
[null,6014,null,null,null,null,null,null,null,null,null,null,null,null,null,null,"",""]
[null,6020,null,null,null,null,null,null,null,null,null,null,null,null,null,null,"",""]
[null,6025,null,null,null,null,null,null,null,null,null,null,null,null,null,null,"",""]
[null,6027,null,null,null,null,null,null,null,null,null,null,null,null,null,null,"",""]
[null,6030,null,null,null,null,null,null,null,null,null,null,null,null,null,null,"",""]
[null,6035,null,null,null,null,null,null,null,null,null,null,null,null,null,null,"",""]
[null,6041,null,null,null,null,null,null,null,null,null,null,null,null,null,null,"",""]
[null,6046,null,null,null,null,null,null,null,null,null,null,null,null,null,null,"",""]
[null,6050,null,null,null,null,null,null,null,null,null,null,null,null,null,null,"",""]
[null,6056,null,null,null,null,null,null,null,null,null,null,null,null,null,null,"",""]
[null,6061,null,null,null,null,null,null,null,null,null,null,null,null,null,null,"",""]
[null,6065,null,null,null,null,null,null,null,null,null,null,null,null,null,null,"",""]
[null,6071,null,null,null,null,null,null,null,null,null,null,null,null,null,null,"",""]
[null,6076,null,null,null,null,null,null,null,null,null,null,null,null,null,null,"",""]
[null,6082,null,null,null,null,null,null,null,null,null,null,null,null,null,null,"",""]
[null,6084,null,null,null,null,null,null,null,null,null,null,null,null,null,null,"",""]
[null,6091,null,null,null,null,null,null,null,null,null,null,null,null,null,null,"",""]
[null,6092,null,null,null,null,null,null,null,null,null,null,null,null,null,null,"",""]
[null,6097,null,null,null,null,null,null,null,null,null,null,null,null,null,null,"",""]
[null,6103,null,null,null,null,null,null,null,null,null,null,null,null,null,null,"",""]
[null,6107,null,null,null,null,null,null,null,null,null,null,null,null,null,null,"",""]
[null,6112,null,null,null,null,null,null,null,null,null,null,null,null,null,null,"",""]
[null,6118,null,null,null,null,null,null,null,null,null,null,null,null,null,null,"",""]
[null,6122,null,null,null,null,null,null,null,null,null,null,null,null,null,null,"",""]
[null,6127,null,null,null,null,null,null,null,null,null,null,null,null,null,null,"",""]
[null,6133,null,null,null,null,null,null,null,null,null,null,null,null,null,null,"",""]
[null,6138,null,null,null,null,null,null,null,null,null,null,null,null,null,null,"",""]
[null,6141,null,null,null,null,null,null,null,null,null,null,null,null,null,null,"",""]
[null,6148,null,null,null,null,null,null,null,null,null,null,null,null,null,null,"",""]
[null,6153,null,null,null,null,null,null,null,null,null,null,null,null,null,null,"",""]
[null,6154,null,null,null,null,null,null,null,null,null,null,null,null,null,null,"",""]
[null,6160,null,null,null,null,null,null,null,null,null,null,null,null,null,null,"",""]
[null,6163,null,null,null,null,null,null,null,null,null,null,null,null,null,null,"",""]
[null,6169,null,null,null,null,null,null,null,null,null,null,null,null,null,null,"",""]
[null,6174,null,null,null,null,null,null,null,null,null,null,null,null,null,null,"",""]
[null,6179,null,null,null,null,null,null,null,null,null,null,null,null,null,null,"",""]
[null,6184,null,null,null,null,null,null,null,null,null,null,null,null,null,null,"",""]
[null,6189,null,null,null,null,null,null,null,null,null,null,null,null,null,null,"",""]
[null,6195,null,null,null,null,null,null,null,null,null,null,null,null,null,null,"",""]
[null,6198,null,null,null,null,null,null,null,null,null,null,null,null,null,null,"",""]
[null,6205,null,null,null,null,null,null,null,null,null,null,null,null,null,null,"",""]
[null,6210,null,null,null,null,null,null,null,null,null,null,null,null,null,null,"",""]
[null,6215,null,null,null,null,null,null,null,null,null,null,null,null,null,null,"",""]
[null,6217,null,null,null,null,null,null,null,null,null,null,null,null,null,null,"",""]
[null,6220,null,null,null,null,null,null,null,null,null,null,null,null,null,null,"",""]
[null,6225,null,null,null,null,null,null,null,null,null,null,null,null,null,null,"",""]
[null,6231,null,null,null,null,null,null,null,null,null,null,null,null,null,null,"",""]
[null,6236,null,null,null,null,null,null,null,null,null,null,null,null,null,null,"",""]
[null,6241,null,null,null,null,null,null,null,null,null,null,null,null,null,null,"",""]
[null,6246,null,null,null,null,null,null,null,null,null,null,null,null,null,null,"",""]
[null,6251,null,null,null,null,null,null,null,null,null,null,null,null,null,null,"",""]
[null,6255,null,null,null,null,null,null,null,null,null,null,null,null,null,null,"",""]
[null,6261,null,null,null,null,null,null,null,null,null,null,null,null,null,null,"",""]
[null,6267,null,null,null,null,null,null,null,null,null,null,null,null,null,null,"",""]
[null,6272,null,null,null,null,null,null,null,null,null,null,null,null,null,null,"",""]
[null,6277,null,null,null,null,null,null,null,null,null,null,null,null,null,null,"",""]
[null,6280,null,null,null,null,null,null,null,null,null,null,null,null,null,null,"",""]
[null,6282,null,null,null,null,null,null,null,null,null,null,null,null,null,null,"",""]
[null,6287,null,null,null,null,null,null,null,null,null,null,null,null,null,null,"",""]
[null,6293,null,null,null,null,null,null,null,null,null,null,null,null,null,null,"",""]
[null,6299,null,null,null,null,null,null,null,null,null,null,null,null,null,null,"",""]
[null,6303,null,null,null,null,null,null,null,null,null,null,null,null,null,null,"",""]
[null,6308,null,null,null,null,null,null,null,null,null,null,null,null,null,null,"",""]
[null,6313,null,null,null,null,null,null,null,null,null,null,null,null,null,null,"",""]
[null,6318,null,null,null,null,null,null,null,null,null,null,null,null,null,null,"",""]
[null,6323,null,null,null,null,null,null,null,null,null,null,null,null,null,null,"",""]
[null,6328,null,null,null,null,null,null,null,null,null,null,null,null,null,null,"",""]
[null,6334,null,null,null,null,null,null,null,null,null,null,null,null,null,null,"",""]
[null,6337,null,null,null,null,null,null,null,null,null,null,null,null,null,null,"",""]
[null,6339,null,null,null,null,null,null,null,null,null,null,null,null,null,null,"",""]
[null,6344,null,null,null,null,null,null,null,null,null,null,null,null,null,null,"",""]
[null,6349,null,null,null,null,null,null,null,null,null,null,null,null,null,null,"",""]
[null,6356,null,null,null,null,null,null,null,null,null,null,null,null,null,null,"",""]
[null,6359,null,null,null,null,null,null,null,null,null,null,null,null,null,null,"",""]
[null,6365,null,null,null,null,null,null,null,null,null,null,null,null,null,null,"",""]
[null,6370,null,null,null,null,null,null,null,null,null,null,null,null,null,null,"",""]
[null,6375,null,null,null,null,null,null,null,null,null,null,null,null,null,null,"",""]
[null,6380,null,null,null,null,null,null,null,null,null,null,null,null,null,null,"",""]
[null,6385,null,null,null,null,null,null,null,null,null,null,null,null,null,null,"",""]
[null,6390,null,null,null,null,null,null,null,null,null,null,null,null,null,null,"",""]
[null,6394,null,null,null,null,null,null,null,null,null,null,null,null,null,null,"",""]
[null,6400,null,null,null,null,null,null,null,null,null,null,null,null,null,null,"",""]
[null,6401,null,null,null,null,null,null,null,null,null,null,null,null,null,null,"",""]
[null,6406,null,null,null,null,null,null,null,null,null,null,null,null,null,null,"",""]
[null,6413,null,null,null,null,null,null,null,null,null,null,null,null,null,null,"",""]
[null,6416,null,null,null,null,null,null,null,null,null,null,null,null,null,null,"",""]
[null,6421,null,null,null,null,null,null,null,null,null,null,null,null,null,null,"",""]
[null,6426,null,null,null,null,null,null,null,null,null,null,null,null,null,null,"",""]
[null,6432,null,null,null,null,null,null,null,null,null,null,null,null,null,null,"",""]
[null,6436,null,null,null,null,null,null,null,null,null,null,null,null,null,null,"",""]
[null,6442,null,null,null,null,null,null,null,null,null,null,null,null,null,null,"",""]
[null,6447,null,null,null,null,null,null,null,null,null,null,null,null,null,null,"",""]
[null,6451,null,null,null,null,null,null,null,null,null,null,null,null,null,null,"",""]
[null,6457,null,null,null,null,null,null,null,null,null,null,null,null,null,null,"",""]
[null,6462,null,null,null,null,null,null,null,null,null,null,null,null,null,null,"",""]
[null,6463,null,null,null,null,null,null,null,null,null,null,null,null,null,null,{"$f":"IF(P6468=\"\",\"\",P6468-L6468)","v":""},{"$f":"IFERROR(Q6468/P6468,\"\")","v":""}]
[null,6470,null,null,null,null,null,null,null,null,null,null,null,null,null,null,"",""]
[null,6472,null,null,null,null,null,null,null,null,null,null,null,null,null,null,"",""]
[null,6478,null,null,null,null,null,null,null,null,null,null,null,null,null,null,"",""]
[null,6483,null,null,null,null,null,null,null,null,null,null,null,null,null,null,"",""]
[null,6489,null,null,null,null,null,null,null,null,null,null,null,null,null,null,"",""]
[null,6493,null,null,null,null,null,null,null,null,null,null,null,null,null,null,"",""]
[null,6498,null,null,null,null,null,null,null,null,null,null,null,null,null,null,"",""]
[null,6504,null,null,null,null,null,null,null,null,null,null,null,null,null,null,"",""]
[null,6508,null,null,null,null,null,null,null,null,null,null,null,null,null,null,"",""]
[null,6513,null,null,null,null,null,null,null,null,null,null,null,null,null,null,"",""]
[null,6519,null,null,null,null,null,null,null,null,null,null,null,null,null,null,"",""]
[null,6524,null,null,null,null,null,null,null,null,null,null,null,null,null,null,"",""]
[null,6527,null,null,null,null,null,null,null,null,null,null,null,null,null,null,{"$f":"IF(P6532=\"\",\"\",P6532-L6532)","v":""},{"$f":"IFERROR(Q6532/P6532,\"\")","v":""}]
[null,6529,null,null,null,null,null,null,null,null,null,null,null,null,null,null,"",""]
[null,6534,null,null,null,null,null,null,null,null,null,null,null,null,null,null,"",""]
[null,6540,null,null,null,null,null,null,null,null,null,null,null,null,null,null,"",""]
[null,6546,null,null,null,null,null,null,null,null,null,null,null,null,null,null,"",""]
[null,6549,null,null,null,null,null,null,null,null,null,null,null,null,null,null,"",""]
[null,6555,null,null,null,null,null,null,null,null,null,null,null,null,null,null,"",""]
[null,6560,null,null,null,null,null,null,null,null,null,null,null,null,null,null,"",""]
[null,6565,null,null,null,null,null,null,null,null,null,null,null,null,null,null,"",""]
[null,6570,null,null,null,null,null,null,null,null,null,null,null,null,null,null,"",""]
[null,6575,null,null,null,null,null,null,null,null,null,null,null,null,null,null,"",""]
[null,6581,null,null,null,null,null,null,null,null,null,null,null,null,null,null,"",""]
[null,6584,null,null,null,null,null,null,null,null,null,null,null,null,null,null,"",""]
[null,6590,null,null,null,null,null,null,null,null,null,null,null,null,null,null,"",""]
[null,6591,null,null,null,null,null,null,null,null,null,null,null,null,null,null,{"$f":"IF(P6596=\"\",\"\",P6596-L6596)","v":""},{"$f":"IFERROR(Q6596/P6596,\"\")","v":""}]
[null,6596,null,null,null,null,null,null,null,null,null,null,null,null,null,null,"",""]
[null,6603,null,null,null,null,null,null,null,null,null,null,null,null,null,null,"",""]
[null,6606,null,null,null,null,null,null,null,null,null,null,null,null,null,null,"",""]
[null,6611,null,null,null,null,null,null,null,null,null,null,null,null,null,null,"",""]
[null,6617,null,null,null,null,null,null,null,null,null,null,null,null,null,null,"",""]
[null,6622,null,null,null,null,null,null,null,null,null,null,null,null,null,null,"",""]
[null,6627,null,null,null,null,null,null,null,null,null,null,null,null,null,null,"",""]
[null,6632,null,null,null,null,null,null,null,null,null,null,null,null,null,null,"",""]
[null,6637,null,null,null,null,null,null,null,null,null,null,null,null,null,null,"",""]
[null,6641,null,null,null,null,null,null,null,null,null,null,null,null,null,null,"",""]
[null,6647,null,null,null,null,null,null,null,null,null,null,null,null,null,null,"",""]
[null,6652,null,null,null,null,null,null,null,null,null,null,null,null,null,null,"",""]
[null,6653,null,null,null,null,null,null,null,null,null,null,null,null,null,null,"",""]
[null,6660,null,null,null,null,null,null,null,null,null,null,null,null,null,null,"",""]
[null,6663,null,null,null,null,null,null,null,null,null,null,null,null,null,null,"",""]
[null,6668,null,null,null,null,null,null,null,null,null,null,null,null,null,null,"",""]
[null,6673,null,null,null,null,null,null,null,null,null,null,null,null,null,null,"",""]
[null,6679,null,null,null,null,null,null,null,null,null,null,null,null,null,null,"",""]
[null,6683,null,null,null,null,null,null,null,null,null,null,null,null,null,null,"",""]
[null,6689,null,null,null,null,null,null,null,null,null,null,null,null,null,null,"",""]
[null,6694,null,null,null,null,null,null,null,null,null,null,null,null,null,null,"",""]
[null,6698,null,null,null,null,null,null,null,null,null,null,null,null,null,null,"",""]
[null,6704,null,null,null,null,null,null,null,null,null,null,null,null,null,null,"",""]
[null,6709,null,null,null,null,null,null,null,null,null,null,null,null,null,null,"",""]
[null,6714,null,null,null,null,null,null,null,null,null,null,null,null,null,null,"",""]
[null,6717,null,null,null,null,null,null,null,null,null,null,null,null,null,null,"",""]
[null,6719,null,null,null,null,null,null,null,null,null,null,null,null,null,null,{"$f":"IF(P6724=\"\",\"\",P6724-L6724)","v":""},{"$f":"IFERROR(Q6724/P6724,\"\")","v":""}]
[null,6725,null,null,null,null,null,null,null,null,null,null,null,null,null,null,"",""]
[null,6730,null,null,null,null,null,null,null,null,null,null,null,null,null,null,"",""]
[null,6736,null,null,null,null,null,null,null,null,null,null,null,null,null,null,"",""]
[null,6740,null,null,null,null,null,null,null,null,null,null,null,null,null,null,"",""]
[null,6745,null,null,null,null,null,null,null,null,null,null,null,null,null,null,"",""]
[null,6750,null,null,null,null,null,null,null,null,null,null,null,null,null,null,"",""]
[null,6756,null,null,null,null,null,null,null,null,null,null,null,null,null,null,"",""]
[null,6761,null,null,null,null,null,null,null,null,null,null,null,null,null,null,"",""]
[null,6766,null,null,null,null,null,null,null,null,null,null,null,null,null,null,"",""]
[null,6771,null,null,null,null,null,null,null,null,null,null,null,null,null,null,"",""]
[null,6776,null,null,null,null,null,null,null,null,null,null,null,null,null,null,"",""]
[null,6780,null,null,null,null,null,null,null,null,null,null,null,null,null,null,"",""]
[null,6781,null,null,null,null,null,null,null,null,null,null,null,null,null,null,"",""]
[null,6787,null,null,null,null,null,null,null,null,null,null,null,null,null,null,"",""]
[null,6792,null,null,null,null,null,null,null,null,null,null,null,null,null,null,"",""]
[null,6799,null,null,null,null,null,null,null,null,null,null,null,null,null,null,"",""]
[null,6802,null,null,null,null,null,null,null,null,null,null,null,null,null,null,"",""]
[null,6807,null,null,null,null,null,null,null,null,null,null,null,null,null,null,"",""]
[null,6812,null,null,null,null,null,null,null,null,null,null,null,null,null,null,"",""]
[null,6818,null,null,null,null,null,null,null,null,null,null,null,null,null,null,"",""]
[null,6822,null,null,null,null,null,null,null,null,null,null,null,null,null,null,"",""]
[null,6828,null,null,null,null,null,null,null,null,null,null,null,null,null,null,"",""]
[null,6833,null,null,null,null,null,null,null,null,null,null,null,null,null,null,"",""]
[null,6837,null,null,null,null,null,null,null,null,null,null,null,null,null,null,"",""]
[null,6838,null,null,null,null,null,null,null,null,null,null,null,null,null,null,"",""]
[null,6843,null,null,null,null,null,null,null,null,null,null,null,null,null,null,"",""]
[null,6848,null,null,null,null,null,null,null,null,null,null,null,null,null,null,"",""]
[null,6856,null,null,null,null,null,null,null,null,null,null,null,null,null,null,"",""]
[null,6858,null,null,null,null,null,null,null,null,null,null,null,null,null,null,"",""]
[null,6864,null,null,null,null,null,null,null,null,null,null,null,null,null,null,"",""]
[null,6869,null,null,null,null,null,null,null,null,null,null,null,null,null,null,"",""]
[null,6875,null,null,null,null,null,null,null,null,null,null,null,null,null,null,"",""]
[null,6879,null,null,null,null,null,null,null,null,null,null,null,null,null,null,"",""]
[null,6884,null,null,null,null,null,null,null,null,null,null,null,null,null,null,"",""]
[null,6890,null,null,null,null,null,null,null,null,null,null,null,null,null,null,"",""]
[null,6894,null,null,null,null,null,null,null,null,null,null,null,null,null,null,"",""]
[null,6899,null,null,null,null,null,null,null,null,null,null,null,null,null,null,"",""]
[null,6900,null,null,null,null,null,null,null,null,null,null,null,null,null,null,"",""]
[null,6905,null,null,null,null,null,null,null,null,null,null,null,null,null,null,"",""]
[null,6913,null,null,null,null,null,null,null,null,null,null,null,null,null,null,"",""]
[null,6915,null,null,null,null,null,null,null,null,null,null,null,null,null,null,"",""]
[null,6920,null,null,null,null,null,null,null,null,null,null,null,null,null,null,"",""]
[null,6926,null,null,null,null,null,null,null,null,null,null,null,null,null,null,"",""]
[null,6932,null,null,null,null,null,null,null,null,null,null,null,null,null,null,"",""]
[null,6935,null,null,null,null,null,null,null,null,null,null,null,null,null,null,"",""]
[null,6941,null,null,null,null,null,null,null,null,null,null,null,null,null,null,"",""]
[null,6946,null,null,null,null,null,null,null,null,null,null,null,null,null,null,"",""]
[null,6951,null,null,null,null,null,null,null,null,null,null,null,null,null,null,"",""]
[null,6956,null,null,null,null,null,null,null,null,null,null,null,null,null,null,"",""]
[null,6961,null,null,null,null,null,null,null,null,null,null,null,null,null,null,"",""]
[null,6962,null,null,null,null,null,null,null,null,null,null,null,null,null,null,"",""]
[null,6970,null,null,null,null,null,null,null,null,null,null,null,null,null,null,"",""]
[null,6971,null,null,null,null,null,null,null,null,null,null,null,null,null,null,"",""]
[null,6977,null,null,null,null,null,null,null,null,null,null,null,null,null,null,"",""]
[null,6982,null,null,null,null,null,null,null,null,null,null,null,null,null,null,"",""]
[null,6989,null,null,null,null,null,null,null,null,null,null,null,null,null,null,"",""]
[null,6992,null,null,null,null,null,null,null,null,null,null,null,null,null,null,"",""]
[null,6997,null,null,null,null,null,null,null,null,null,null,null,null,null,null,"",""]
[null,7003,null,null,null,null,null,null,null,null,null,null,null,null,null,null,"",""]
[null,7008,null,null,null,null,null,null,null,null,null,null,null,null,null,null,"",""]
[null,7012,null,null,null,null,null,null,null,null,null,null,null,null,null,null,"",""]
[null,7018,null,null,null,null,null,null,null,null,null,null,null,null,null,null,"",""]
[null,7023,null,null,null,null,null,null,null,null,null,null,null,null,null,null,"",""]
[null,7027,null,null,null,null,null,null,null,null,null,null,null,null,null,null,"",""]
[null,7028,null,null,null,null,null,null,null,null,null,null,null,null,null,null,"",""]
[null,7033,null,null,null,null,null,null,null,null,null,null,null,null,null,null,"",""]
[null,7039,null,null,null,null,null,null,null,null,null,null,null,null,null,null,{"$f":"IF(P7044=\"\",\"\",P7044-L7044)","v":""},{"$f":"IFERROR(Q7044/P7044,\"\")","v":""}]
[null,7046,null,null,null,null,null,null,null,null,null,null,null,null,null,null,"",""]
[null,7049,null,null,null,null,null,null,null,null,null,null,null,null,null,null,"",""]
[null,7054,null,null,null,null,null,null,null,null,null,null,null,null,null,null,"",""]
[null,7059,null,null,null,null,null,null,null,null,null,null,null,null,null,null,"",""]
[null,7065,null,null,null,null,null,null,null,null,null,null,null,null,null,null,"",""]
[null,7069,null,null,null,null,null,null,null,null,null,null,null,null,null,null,"",""]
[null,7074,null,null,null,null,null,null,null,null,null,null,null,null,null,null,"",""]
[null,7080,null,null,null,null,null,null,null,null,null,null,null,null,null,null,"",""]
[null,7084,null,null,null,null,null,null,null,null,null,null,null,null,null,null,"",""]
[null,7085,null,null,null,null,null,null,null,null,null,null,null,null,null,null,"",""]
[null,7090,null,null,null,null,null,null,null,null,null,null,null,null,null,null,"",""]
[null,7095,null,null,null,null,null,null,null,null,null,null,null,null,null,null,"",""]
[null,7103,null,null,null,null,null,null,null,null,null,null,null,null,null,null,{"$f":"IF(P7108=\"\",\"\",P7108-L7108)","v":""},{"$f":"IFERROR(Q7108/P7108,\"\")","v":""}]
[null,7105,null,null,null,null,null,null,null,null,null,null,null,null,null,null,"",""]
[null,7110,null,null,null,null,null,null,null,null,null,null,null,null,null,null,"",""]
[null,7116,null,null,null,null,null,null,null,null,null,null,null,null,null,null,"",""]
[null,7122,null,null,null,null,null,null,null,null,null,null,null,null,null,null,"",""]
[null,7126,null,null,null,null,null,null,null,null,null,null,null,null,null,null,"",""]
[null,7131,null,null,null,null,null,null,null,null,null,null,null,null,null,null,"",""]
[null,7136,null,null,null,null,null,null,null,null,null,null,null,null,null,null,"",""]
[null,7141,null,null,null,null,null,null,null,null,null,null,null,null,null,null,"",""]
[null,7146,null,null,null,null,null,null,null,null,null,null,null,null,null,null,"",""]
[null,7147,null,null,null,null,null,null,null,null,null,null,null,null,null,null,"",""]
[null,7152,null,null,null,null,null,null,null,null,null,null,null,null,null,null,"",""]
[null,7160,null,null,null,null,null,null,null,null,null,null,null,null,null,null,"",""]
[null,7162,null,null,null,null,null,null,null,null,null,null,null,null,null,null,"",""]
[null,7167,null,null,null,null,null,null,null,null,null,null,null,null,null,null,{"$f":"IF(P7172=\"\",\"\",P7172-L7172)","v":""},{"$f":"IFERROR(Q7172/P7172,\"\")","v":""}]
[null,7172,null,null,null,null,null,null,null,null,null,null,null,null,null,null,"",""]
[null,7179,null,null,null,null,null,null,null,null,null,null,null,null,null,null,"",""]
[null,7182,null,null,null,null,null,null,null,null,null,null,null,null,null,null,"",""]
[null,7188,null,null,null,null,null,null,null,null,null,null,null,null,null,null,"",""]
[null,7193,null,null,null,null,null,null,null,null,null,null,null,null,null,null,"",""]
[null,7198,null,null,null,null,null,null,null,null,null,null,null,null,null,null,"",""]
[null,7203,null,null,null,null,null,null,null,null,null,null,null,null,null,null,"",""]
[null,7208,null,null,null,null,null,null,null,null,null,null,null,null,null,null,"",""]
[null,7209,null,null,null,null,null,null,null,null,null,null,null,null,null,null,"",""]
[null,7217,null,null,null,null,null,null,null,null,null,null,null,null,null,null,"",""]
[null,7218,null,null,null,null,null,null,null,null,null,null,null,null,null,null,"",""]
[null,7224,null,null,null,null,null,null,null,null,null,null,null,null,null,null,"",""]
[null,7229,null,null,null,null,null,null,null,null,null,null,null,null,null,null,"",""]
[null,7234,null,null,null,null,null,null,null,null,null,null,null,null,null,null,"",""]
[null,7238,null,null,null,null,null,null,null,null,null,null,null,null,null,null,"",""]
[null,7244,null,null,null,null,null,null,null,null,null,null,null,null,null,null,"",""]
[null,7250,null,null,null,null,null,null,null,null,null,null,null,null,null,null,"",""]
[null,7255,null,null,null,null,null,null,null,null,null,null,null,null,null,null,"",""]
[null,7257,null,null,null,null,null,null,null,null,null,null,null,null,null,null,"",""]
[null,7265,null,null,null,null,null,null,null,null,null,null,null,null,null,null,"",""]
[null,7270,null,null,null,null,null,null,null,null,null,null,null,null,null,null,"",""]
[null,7275,null,null,null,null,null,null,null,null,null,null,null,null,null,null,"",""]
[null,7276,null,null,null,null,null,null,null,null,null,null,null,null,null,null,"",""]
[null,7280,null,null,null,null,null,null,null,null,null,null,null,null,null,null,"",""]
[null,7286,null,null,null,null,null,null,null,null,null,null,null,null,null,null,"",""]
[null,7291,null,null,null,null,null,null,null,null,null,null,null,null,null,null,"",""]
[null,7295,null,null,null,null,null,null,null,null,null,null,null,null,null,null,{"$f":"IF(P7300=\"\",\"\",P7300-L7300)","v":""},{"$f":"IFERROR(Q7300/P7300,\"\")","v":""}]
[null,7301,null,null,null,null,null,null,null,null,null,null,null,null,null,null,"",""]
[null,7306,null,null,null,null,null,null,null,null,null,null,null,null,null,null,"",""]
[null,7312,null,null,null,null,null,null,null,null,null,null,null,null,null,null,"",""]
[null,7314,null,null,null,null,null,null,null,null,null,null,null,null,null,null,"",""]
[null,7321,null,null,null,null,null,null,null,null,null,null,null,null,null,null,"",""]
[null,7327,null,null,null,null,null,null,null,null,null,null,null,null,null,null,"",""]
[null,7332,null,null,null,null,null,null,null,null,null,null,null,null,null,null,"",""]
[null,7333,null,null,null,null,null,null,null,null,null,null,null,null,null,null,"",""]
[null,7337,null,null,null,null,null,null,null,null,null,null,null,null,null,null,"",""]
[null,7342,null,null,null,null,null,null,null,null,null,null,null,null,null,null,"",""]
[null,7348,null,null,null,null,null,null,null,null,null,null,null,null,null,null,"",""]
[null,7352,null,null,null,null,null,null,null,null,null,null,null,null,null,null,"",""]
[null,7357,null,null,null,null,null,null,null,null,null,null,null,null,null,null,"",""]
[null,7363,null,null,null,null,null,null,null,null,null,null,null,null,null,null,"",""]
[null,7368,null,null,null,null,null,null,null,null,null,null,null,null,null,null,"",""]
[null,7371,null,null,null,null,null,null,null,null,null,null,null,null,null,null,"",""]
[null,7378,null,null,null,null,null,null,null,null,null,null,null,null,null,null,"",""]
[null,7383,null,null,null,null,null,null,null,null,null,null,null,null,null,null,"",""]
[null,7389,null,null,null,null,null,null,null,null,null,null,null,null,null,null,"",""]
[null,7390,null,null,null,null,null,null,null,null,null,null,null,null,null,null,"",""]
[null,7398,null,null,null,null,null,null,null,null,null,null,null,null,null,null,"",""]
[null,7399,null,null,null,null,null,null,null,null,null,null,null,null,null,null,"",""]
[null,7404,null,null,null,null,null,null,null,null,null,null,null,null,null,null,"",""]
[null,7409,null,null,null,null,null,null,null,null,null,null,null,null,null,null,"",""]
[null,7414,null,null,null,null,null,null,null,null,null,null,null,null,null,null,"",""]
[null,7419,null,null,null,null,null,null,null,null,null,null,null,null,null,null,"",""]
[null,7425,null,null,null,null,null,null,null,null,null,null,null,null,null,null,"",""]
[null,7428,null,null,null,null,null,null,null,null,null,null,null,null,null,null,"",""]
[null,7434,null,null,null,null,null,null,null,null,null,null,null,null,null,null,"",""]
[null,7440,null,null,null,null,null,null,null,null,null,null,null,null,null,null,"",""]
[null,7445,null,null,null,null,null,null,null,null,null,null,null,null,null,null,"",""]
[null,7447,null,null,null,null,null,null,null,null,null,null,null,null,null,null,"",""]
[null,7455,null,null,null,null,null,null,null,null,null,null,null,null,null,null,"",""]
[null,7460,null,null,null,null,null,null,null,null,null,null,null,null,null,null,"",""]
[null,7461,null,null,null,null,null,null,null,null,null,null,null,null,null,null,"",""]
[null,7466,null,null,null,null,null,null,null,null,null,null,null,null,null,null,"",""]
[null,7471,null,null,null,null,null,null,null,null,null,null,null,null,null,null,"",""]
[null,7476,null,null,null,null,null,null,null,null,null,null,null,null,null,null,"",""]
[null,7481,null,null,null,null,null,null,null,null,null,null,null,null,null,null,"",""]
[null,7485,null,null,null,null,null,null,null,null,null,null,null,null,null,null,"",""]
[null,7491,null,null,null,null,null,null,null,null,null,null,null,null,null,null,"",""]
[null,7496,null,null,null,null,null,null,null,null,null,null,null,null,null,null,"",""]
[null,7502,null,null,null,null,null,null,null,null,null,null,null,null,null,null,"",""]
[null,7504,null,null,null,null,null,null,null,null,null,null,null,null,null,null,"",""]
[null,7512,null,null,null,null,null,null,null,null,null,null,null,null,null,null,"",""]
[null,7517,null,null,null,null,null,null,null,null,null,null,null,null,null,null,"",""]
[null,7522,null,null,null,null,null,null,null,null,null,null,null,null,null,null,"",""]
[null,7523,null,null,null,null,null,null,null,null,null,null,null,null,null,null,"",""]
[null,7527,null,null,null,null,null,null,null,null,null,null,null,null,null,null,"",""]
[null,7532,null,null,null,null,null,null,null,null,null,null,null,null,null,null,"",""]
[null,7538,null,null,null,null,null,null,null,null,null,null,null,null,null,null,"",""]
[null,7542,null,null,null,null,null,null,null,null,null,null,null,null,null,null,"",""]
[null,7548,null,null,null,null,null,null,null,null,null,null,null,null,null,null,"",""]
[null,7553,null,null,null,null,null,null,null,null,null,null,null,null,null,null,"",""]
[null,7558,null,null,null,null,null,null,null,null,null,null,null,null,null,null,"",""]
[null,7561,null,null,null,null,null,null,null,null,null,null,null,null,null,null,"",""]
[null,7568,null,null,null,null,null,null,null,null,null,null,null,null,null,null,"",""]
[null,7574,null,null,null,null,null,null,null,null,null,null,null,null,null,null,"",""]
[null,7579,null,null,null,null,null,null,null,null,null,null,null,null,null,null,"",""]
[null,7580,null,null,null,null,null,null,null,null,null,null,null,null,null,null,"",""]
[null,7584,null,null,null,null,null,null,null,null,null,null,null,null,null,null,"",""]
[null,7589,null,null,null,null,null,null,null,null,null,null,null,null,null,null,"",""]
[null,7594,null,null,null,null,null,null,null,null,null,null,null,null,null,null,"",""]
[null,7599,null,null,null,null,null,null,null,null,null,null,null,null,null,null,"",""]
[null,7604,null,null,null,null,null,null,null,null,null,null,null,null,null,null,"",""]
[null,7610,null,null,null,null,null,null,null,null,null,null,null,null,null,null,"",""]
[null,7615,null,null,null,null,null,null,null,null,null,null,null,null,null,null,{"$f":"IF(P7620=\"\",\"\",P7620-L7620)","v":""},{"$f":"IFERROR(Q7620/P7620,\"\")","v":""}]
[null,7618,null,null,null,null,null,null,null,null,null,null,null,null,null,null,"",""]
[null,7625,null,null,null,null,null,null,null,null,null,null,null,null,null,null,"",""]
[null,7630,null,null,null,null,null,null,null,null,null,null,null,null,null,null,"",""]
[null,7636,null,null,null,null,null,null,null,null,null,null,null,null,null,null,"",""]
[null,7637,null,null,null,null,null,null,null,null,null,null,null,null,null,null,"",""]
[null,7645,null,null,null,null,null,null,null,null,null,null,null,null,null,null,"",""]
[null,7646,null,null,null,null,null,null,null,null,null,null,null,null,null,null,"",""]
[null,7651,null,null,null,null,null,null,null,null,null,null,null,null,null,null,"",""]
[null,7656,null,null,null,null,null,null,null,null,null,null,null,null,null,null,"",""]
[null,7661,null,null,null,null,null,null,null,null,null,null,null,null,null,null,"",""]
[null,7666,null,null,null,null,null,null,null,null,null,null,null,null,null,null,"",""]
[null,7672,null,null,null,null,null,null,null,null,null,null,null,null,null,null,"",""]
[null,7675,null,null,null,null,null,null,null,null,null,null,null,null,null,null,"",""]
[null,7681,null,null,null,null,null,null,null,null,null,null,null,null,null,null,"",""]
[null,7687,null,null,null,null,null,null,null,null,null,null,null,null,null,null,"",""]
[null,7692,null,null,null,null,null,null,null,null,null,null,null,null,null,null,"",""]
[null,7697,null,null,null,null,null,null,null,null,null,null,null,null,null,null,"",""]
[null,7700,null,null,null,null,null,null,null,null,null,null,null,null,null,null,"",""]
[null,7707,null,null,null,null,null,null,null,null,null,null,null,null,null,null,"",""]
[null,7708,null,null,null,null,null,null,null,null,null,null,null,null,null,null,"",""]
[null,7713,null,null,null,null,null,null,null,null,null,null,null,null,null,null,"",""]
[null,7719,null,null,null,null,null,null,null,null,null,null,null,null,null,null,"",""]
[null,7723,null,null,null,null,null,null,null,null,null,null,null,null,null,null,"",""]
[null,7728,null,null,null,null,null,null,null,null,null,null,null,null,null,null,"",""]
[null,7734,null,null,null,null,null,null,null,null,null,null,null,null,null,null,"",""]
[null,7738,null,null,null,null,null,null,null,null,null,null,null,null,null,null,"",""]
[null,7743,null,null,null,null,null,null,null,null,null,null,null,null,null,null,{"$f":"IF(P7748=\"\",\"\",P7748-L7748)","v":""},{"$f":"IFERROR(Q7748/P7748,\"\")","v":""}]
[null,7749,null,null,null,null,null,null,null,null,null,null,null,null,null,null,"",""]
[null,7754,null,null,null,null,null,null,null,null,null,null,null,null,null,null,"",""]
[null,7757,null,null,null,null,null,null,null,null,null,null,null,null,null,null,"",""]
[null,7764,null,null,null,null,null,null,null,null,null,null,null,null,null,null,"",""]
[null,7769,null,null,null,null,null,null,null,null,null,null,null,null,null,null,"",""]
[null,7770,null,null,null,null,null,null,null,null,null,null,null,null,null,null,"",""]
[null,7776,null,null,null,null,null,null,null,null,null,null,null,null,null,null,"",""]
[null,7779,null,null,null,null,null,null,null,null,null,null,null,null,null,null,"",""]
[null,7785,null,null,null,null,null,null,null,null,null,null,null,null,null,null,"",""]
[null,7790,null,null,null,null,null,null,null,null,null,null,null,null,null,null,"",""]
[null,7795,null,null,null,null,null,null,null,null,null,null,null,null,null,null,"",""]
[null,7800,null,null,null,null,null,null,null,null,null,null,null,null,null,null,"",""]
[null,7805,null,null,null,null,null,null,null,null,null,null,null,null,null,null,"",""]
[null,7811,null,null,null,null,null,null,null,null,null,null,null,null,null,null,"",""]
[null,7814,null,null,null,null,null,null,null,null,null,null,null,null,null,null,"",""]
[null,7820,null,null,null,null,null,null,null,null,null,null,null,null,null,null,"",""]
[null,7826,null,null,null,null,null,null,null,null,null,null,null,null,null,null,"",""]
[null,7831,null,null,null,null,null,null,null,null,null,null,null,null,null,null,"",""]
[null,7833,null,null,null,null,null,null,null,null,null,null,null,null,null,null,"",""]
[null,7836,null,null,null,null,null,null,null,null,null,null,null,null,null,null,"",""]
[null,7841,null,null,null,null,null,null,null,null,null,null,null,null,null,null,"",""]
[null,7847,null,null,null,null,null,null,null,null,null,null,null,null,null,null,"",""]
[null,7852,null,null,null,null,null,null,null,null,null,null,null,null,null,null,"",""]
[null,7856,null,null,null,null,null,null,null,null,null,null,null,null,null,null,"",""]
[null,7862,null,null,null,null,null,null,null,null,null,null,null,null,null,null,"",""]
[null,7867,null,null,null,null,null,null,null,null,null,null,null,null,null,null,"",""]
[null,7871,null,null,null,null,null,null,null,null,null,null,null,null,null,null,{"$f":"IF(P7876=\"\",\"\",P7876-L7876)","v":""},{"$f":"IFERROR(Q7876/P7876,\"\")","v":""}]
[null,7877,null,null,null,null,null,null,null,null,null,null,null,null,null,null,"",""]
[null,7882,null,null,null,null,null,null,null,null,null,null,null,null,null,null,"",""]
[null,7888,null,null,null,null,null,null,null,null,null,null,null,null,null,null,"",""]
[null,7890,null,null,null,null,null,null,null,null,null,null,null,null,null,null,"",""]
[null,7893,null,null,null,null,null,null,null,null,null,null,null,null,null,null,"",""]
[null,7898,null,null,null,null,null,null,null,null,null,null,null,null,null,null,"",""]
[null,7903,null,null,null,null,null,null,null,null,null,null,null,null,null,null,"",""]
[null,7909,null,null,null,null,null,null,null,null,null,null,null,null,null,null,"",""]
[null,7913,null,null,null,null,null,null,null,null,null,null,null,null,null,null,"",""]
[null,7918,null,null,null,null,null,null,null,null,null,null,null,null,null,null,"",""]
[null,7924,null,null,null,null,null,null,null,null,null,null,null,null,null,null,"",""]
[null,7928,null,null,null,null,null,null,null,null,null,null,null,null,null,null,"",""]
[null,7934,null,null,null,null,null,null,null,null,null,null,null,null,null,null,"",""]
[null,7939,null,null,null,null,null,null,null,null,null,null,null,null,null,null,"",""]
[null,7944,null,null,null,null,null,null,null,null,null,null,null,null,null,null,"",""]
[null,7947,null,null,null,null,null,null,null,null,null,null,null,null,null,null,"",""]
[null,7954,null,null,null,null,null,null,null,null,null,null,null,null,null,null,"",""]
[null,7959,null,null,null,null,null,null,null,null,null,null,null,null,null,null,"",""]
[null,7960,null,null,null,null,null,null,null,null,null,null,null,null,null,null,"",""]
[null,7966,null,null,null,null,null,null,null,null,null,null,null,null,null,null,"",""]
[null,7970,null,null,null,null,null,null,null,null,null,null,null,null,null,null,"",""]
[null,7975,null,null,null,null,null,null,null,null,null,null,null,null,null,null,"",""]
[null,7980,null,null,null,null,null,null,null,null,null,null,null,null,null,null,"",""]
[null,7985,null,null,null,null,null,null,null,null,null,null,null,null,null,null,"",""]
[null,7990,null,null,null,null,null,null,null,null,null,null,null,null,null,null,"",""]
[null,7996,null,null,null,null,null,null,null,null,null,null,null,null,null,null,"",""]
[null,8001,null,null,null,null,null,null,null,null,null,null,null,null,null,null,"",""]
[null,8004,null,null,null,null,null,null,null,null,null,null,null,null,null,null,"",""]
[null,8011,null,null,null,null,null,null,null,null,null,null,null,null,null,null,"",""]
[null,8016,null,null,null,null,null,null,null,null,null,null,null,null,null,null,"",""]
[null,8021,null,null,null,null,null,null,null,null,null,null,null,null,null,null,"",""]
[null,8023,null,null,null,null,null,null,null,null,null,null,null,null,null,null,"",""]
[null,8026,null,null,null,null,null,null,null,null,null,null,null,null,null,null,"",""]
[null,8032,null,null,null,null,null,null,null,null,null,null,null,null,null,null,"",""]
[null,8037,null,null,null,null,null,null,null,null,null,null,null,null,null,null,"",""]
[null,8042,null,null,null,null,null,null,null,null,null,null,null,null,null,null,"",""]
[null,8047,null,null,null,null,null,null,null,null,null,null,null,null,null,null,"",""]
[null,8052,null,null,null,null,null,null,null,null,null,null,null,null,null,null,"",""]
[null,8058,null,null,null,null,null,null,null,null,null,null,null,null,null,null,"",""]
[null,8061,null,null,null,null,null,null,null,null,null,null,null,null,null,null,"",""]
[null,8067,null,null,null,null,null,null,null,null,null,null,null,null,null,null,"",""]
[null,8073,null,null,null,null,null,null,null,null,null,null,null,null,null,null,"",""]
[null,8078,null,null,null,null,null,null,null,null,null,null,null,null,null,null,"",""]
[null,8080,null,null,null,null,null,null,null,null,null,null,null,null,null,null,"",""]
[null,8083,null,null,null,null,null,null,null,null,null,null,null,null,null,null,"",""]
[null,8088,null,null,null,null,null,null,null,null,null,null,null,null,null,null,"",""]
[null,8094,null,null,null,null,null,null,null,null,null,null,null,null,null,null,"",""]
[null,8099,null,null,null,null,null,null,null,null,null,null,null,null,null,null,"",""]
[null,8103,null,null,null,null,null,null,null,null,null,null,null,null,null,null,"",""]
[null,8109,null,null,null,null,null,null,null,null,null,null,null,null,null,null,"",""]
[null,8114,null,null,null,null,null,null,null,null,null,null,null,null,null,null,"",""]
[null,8118,null,null,null,null,null,null,null,null,null,null,null,null,null,null,"",""]
[null,8124,null,null,null,null,null,null,null,null,null,null,null,null,null,null,"",""]
[null,8129,null,null,null,null,null,null,null,null,null,null,null,null,null,null,"",""]
[null,8135,null,null,null,null,null,null,null,null,null,null,null,null,null,null,"",""]
[null,8137,null,null,null,null,null,null,null,null,null,null,null,null,null,null,"",""]
[null,8144,null,null,null,null,null,null,null,null,null,null,null,null,null,null,"",""]
[null,8145,null,null,null,null,null,null,null,null,null,null,null,null,null,null,"",""]
[null,8150,null,null,null,null,null,null,null,null,null,null,null,null,null,null,"",""]
[null,8156,null,null,null,null,null,null,null,null,null,null,null,null,null,null,"",""]
[null,8160,null,null,null,null,null,null,null,null,null,null,null,null,null,null,"",""]
[null,8165,null,null,null,null,null,null,null,null,null,null,null,null,null,null,"",""]
[null,8171,null,null,null,null,null,null,null,null,null,null,null,null,null,null,"",""]
[null,8176,null,null,null,null,null,null,null,null,null,null,null,null,null,null,"",""]
[null,8181,null,null,null,null,null,null,null,null,null,null,null,null,null,null,"",""]
[null,8186,null,null,null,null,null,null,null,null,null,null,null,null,null,null,"",""]
[null,8191,null,null,null,null,null,null,null,null,null,null,null,null,null,null,{"$f":"IF(P8196=\"\",\"\",P8196-L8196)","v":""},{"$f":"IFERROR(Q8196/P8196,\"\")","v":""}]
[null,8197,null,null,null,null,null,null,null,null,null,null,null,null,null,null,"",""]
[null,8200,null,null,null,null,null,null,null,null,null,null,null,null,null,null,"",""]
[null,8206,null,null,null,null,null,null,null,null,null,null,null,null,null,null,"",""]
[null,8207,null,null,null,null,null,null,null,null,null,null,null,null,null,null,"",""]
[null,8212,null,null,null,null,null,null,null,null,null,null,null,null,null,null,"",""]
[null,8219,null,null,null,null,null,null,null,null,null,null,null,null,null,null,"",""]
[null,8222,null,null,null,null,null,null,null,null,null,null,null,null,null,null,"",""]
[null,8227,null,null,null,null,null,null,null,null,null,null,null,null,null,null,"",""]
[null,8233,null,null,null,null,null,null,null,null,null,null,null,null,null,null,"",""]
[null,8238,null,null,null,null,null,null,null,null,null,null,null,null,null,null,"",""]
[null,8242,null,null,null,null,null,null,null,null,null,null,null,null,null,null,"",""]
[null,8248,null,null,null,null,null,null,null,null,null,null,null,null,null,null,"",""]
[null,8253,null,null,null,null,null,null,null,null,null,null,null,null,null,null,"",""]
[null,8257,null,null,null,null,null,null,null,null,null,null,null,null,null,null,"",""]
[null,8263,null,null,null,null,null,null,null,null,null,null,null,null,null,null,"",""]
[null,8268,null,null,null,null,null,null,null,null,null,null,null,null,null,null,"",""]
[null,8269,null,null,null,null,null,null,null,null,null,null,null,null,null,null,"",""]
[null,8276,null,null,null,null,null,null,null,null,null,null,null,null,null,null,"",""]
[null,8278,null,null,null,null,null,null,null,null,null,null,null,null,null,null,"",""]
[null,8284,null,null,null,null,null,null,null,null,null,null,null,null,null,null,"",""]
[null,8289,null,null,null,null,null,null,null,null,null,null,null,null,null,null,"",""]
[null,8295,null,null,null,null,null,null,null,null,null,null,null,null,null,null,"",""]
[null,8299,null,null,null,null,null,null,null,null,null,null,null,null,null,null,"",""]
[null,8304,null,null,null,null,null,null,null,null,null,null,null,null,null,null,"",""]
[null,8310,null,null,null,null,null,null,null,null,null,null,null,null,null,null,"",""]
[null,8314,null,null,null,null,null,null,null,null,null,null,null,null,null,null,"",""]
[null,8320,null,null,null,null,null,null,null,null,null,null,null,null,null,null,"",""]
[null,8325,null,null,null,null,null,null,null,null,null,null,null,null,null,null,"",""]
[null,8330,null,null,null,null,null,null,null,null,null,null,null,null,null,null,"",""]
[null,8333,null,null,null,null,null,null,null,null,null,null,null,null,null,null,"",""]
[null,8335,null,null,null,null,null,null,null,null,null,null,null,null,null,null,"",""]
[null,8340,null,null,null,null,null,null,null,null,null,null,null,null,null,null,"",""]
[null,8346,null,null,null,null,null,null,null,null,null,null,null,null,null,null,"",""]
[null,8352,null,null,null,null,null,null,null,null,null,null,null,null,null,null,"",""]
[null,8356,null,null,null,null,null,null,null,null,null,null,null,null,null,null,"",""]
[null,8361,null,null,null,null,null,null,null,null,null,null,null,null,null,null,"",""]
[null,8366,null,null,null,null,null,null,null,null,null,null,null,null,null,null,"",""]
[null,8371,null,null,null,null,null,null,null,null,null,null,null,null,null,null,"",""]
[null,8376,null,null,null,null,null,null,null,null,null,null,null,null,null,null,"",""]
[null,8381,null,null,null,null,null,null,null,null,null,null,null,null,null,null,"",""]
[null,8387,null,null,null,null,null,null,null,null,null,null,null,null,null,null,"",""]
[null,8390,null,null,null,null,null,null,null,null,null,null,null,null,null,null,"",""]
[null,8392,null,null,null,null,null,null,null,null,null,null,null,null,null,null,"",""]
[null,8397,null,null,null,null,null,null,null,null,null,null,null,null,null,null,"",""]
[null,8402,null,null,null,null,null,null,null,null,null,null,null,null,null,null,"",""]
[null,8409,null,null,null,null,null,null,null,null,null,null,null,null,null,null,"",""]
[null,8412,null,null,null,null,null,null,null,null,null,null,null,null,null,null,"",""]
[null,8418,null,null,null,null,null,null,null,null,null,null,null,null,null,null,"",""]
[null,8423,null,null,null,null,null,null,null,null,null,null,null,null,null,null,"",""]
[null,8428,null,null,null,null,null,null,null,null,null,null,null,null,null,null,"",""]
[null,8433,null,null,null,null,null,null,null,null,null,null,null,null,null,null,"",""]
[null,8438,null,null,null,null,null,null,null,null,null,null,null,null,null,null,"",""]
[null,8443,null,null,null,null,null,null,null,null,null,null,null,null,null,null,"",""]
[null,8447,null,null,null,null,null,null,null,null,null,null,null,null,null,null,{"$f":"IF(P8452=\"\",\"\",P8452-L8452)","v":""},{"$f":"IFERROR(Q8452/P8452,\"\")","v":""}]
[null,8453,null,null,null,null,null,null,null,null,null,null,null,null,null,null,"",""]
[null,8454,null,null,null,null,null,null,null,null,null,null,null,null,null,null,"",""]
[null,8459,null,null,null,null,null,null,null,null,null,null,null,null,null,null,"",""]
[null,8466,null,null,null,null,null,null,null,null,null,null,null,null,null,null,"",""]
[null,8469,null,null,null,null,null,null,null,null,null,null,null,null,null,null,"",""]
[null,8474,null,null,null,null,null,null,null,null,null,null,null,null,null,null,"",""]
[null,8480,null,null,null,null,null,null,null,null,null,null,null,null,null,null,"",""]
[null,8485,null,null,null,null,null,null,null,null,null,null,null,null,null,null,"",""]
[null,8489,null,null,null,null,null,null,null,null,null,null,null,null,null,null,"",""]
[null,8495,null,null,null,null,null,null,null,null,null,null,null,null,null,null,"",""]
[null,8500,null,null,null,null,null,null,null,null,null,null,null,null,null,null,"",""]
[null,8504,null,null,null,null,null,null,null,null,null,null,null,null,null,null,"",""]
[null,8510,null,null,null,null,null,null,null,null,null,null,null,null,null,null,"",""]
[null,8515,null,null,null,null,null,null,null,null,null,null,null,null,null,null,"",""]
[null,8516,null,null,null,null,null,null,null,null,null,null,null,null,null,null,"",""]
[null,8523,null,null,null,null,null,null,null,null,null,null,null,null,null,null,"",""]
[null,8525,null,null,null,null,null,null,null,null,null,null,null,null,null,null,"",""]
[null,8531,null,null,null,null,null,null,null,null,null,null,null,null,null,null,"",""]
[null,8536,null,null,null,null,null,null,null,null,null,null,null,null,null,null,"",""]
[null,8542,null,null,null,null,null,null,null,null,null,null,null,null,null,null,"",""]
[null,8546,null,null,null,null,null,null,null,null,null,null,null,null,null,null,"",""]
[null,8551,null,null,null,null,null,null,null,null,null,null,null,null,null,null,"",""]
[null,8557,null,null,null,null,null,null,null,null,null,null,null,null,null,null,"",""]
[null,8561,null,null,null,null,null,null,null,null,null,null,null,null,null,null,"",""]
[null,8566,null,null,null,null,null,null,null,null,null,null,null,null,null,null,"",""]
[null,8572,null,null,null,null,null,null,null,null,null,null,null,null,null,null,"",""]
[null,8577,null,null,null,null,null,null,null,null,null,null,null,null,null,null,"",""]
[null,8580,null,null,null,null,null,null,null,null,null,null,null,null,null,null,"",""]
[null,8582,null,null,null,null,null,null,null,null,null,null,null,null,null,null,"",""]
[null,8587,null,null,null,null,null,null,null,null,null,null,null,null,null,null,"",""]
[null,8593,null,null,null,null,null,null,null,null,null,null,null,null,null,null,"",""]
[null,8599,null,null,null,null,null,null,null,null,null,null,null,null,null,null,"",""]
[null,8602,null,null,null,null,null,null,null,null,null,null,null,null,null,null,"",""]
[null,8608,null,null,null,null,null,null,null,null,null,null,null,null,null,null,"",""]
[null,8613,null,null,null,null,null,null,null,null,null,null,null,null,null,null,"",""]
[null,8618,null,null,null,null,null,null,null,null,null,null,null,null,null,null,"",""]
[null,8623,null,null,null,null,null,null,null,null,null,null,null,null,null,null,"",""]
[null,8628,null,null,null,null,null,null,null,null,null,null,null,null,null,null,"",""]
[null,8634,null,null,null,null,null,null,null,null,null,null,null,null,null,null,"",""]
[null,8637,null,null,null,null,null,null,null,null,null,null,null,null,null,null,"",""]
[null,8643,null,null,null,null,null,null,null,null,null,null,null,null,null,null,"",""]
[null,8644,null,null,null,null,null,null,null,null,null,null,null,null,null,null,"",""]
[null,8649,null,null,null,null,null,null,null,null,null,null,null,null,null,null,"",""]
[null,8655,null,null,null,null,null,null,null,null,null,null,null,null,null,null,"",""]
[null,8662,null,null,null,null,null,null,null,null,null,null,null,null,null,null,"",""]
[null,8664,null,null,null,null,null,null,null,null,null,null,null,null,null,null,"",""]
[null,8670,null,null,null,null,null,null,null,null,null,null,null,null,null,null,"",""]
[null,8675,null,null,null,null,null,null,null,null,null,null,null,null,null,null,"",""]
[null,8681,null,null,null,null,null,null,null,null,null,null,null,null,null,null,"",""]
[null,8685,null,null,null,null,null,null,null,null,null,null,null,null,null,null,"",""]
[null,8690,null,null,null,null,null,null,null,null,null,null,null,null,null,null,"",""]
[null,8696,null,null,null,null,null,null,null,null,null,null,null,null,null,null,"",""]
[null,8700,null,null,null,null,null,null,null,null,null,null,null,null,null,null,"",""]
[null,8705,null,null,null,null,null,null,null,null,null,null,null,null,null,null,"",""]
[null,8706,null,null,null,null,null,null,null,null,null,null,null,null,null,null,"",""]
[null,8711,null,null,null,null,null,null,null,null,null,null,null,null,null,null,"",""]
[null,8719,null,null,null,null,null,null,null,null,null,null,null,null,null,null,"",""]
[null,8721,null,null,null,null,null,null,null,null,null,null,null,null,null,null,"",""]
[null,8726,null,null,null,null,null,null,null,null,null,null,null,null,null,null,"",""]
[null,8732,null,null,null,null,null,null,null,null,null,null,null,null,null,null,"",""]
[null,8738,null,null,null,null,null,null,null,null,null,null,null,null,null,null,"",""]
[null,8742,null,null,null,null,null,null,null,null,null,null,null,null,null,null,"",""]
[null,8747,null,null,null,null,null,null,null,null,null,null,null,null,null,null,"",""]
[null,8752,null,null,null,null,null,null,null,null,null,null,null,null,null,null,"",""]
[null,8757,null,null,null,null,null,null,null,null,null,null,null,null,null,null,"",""]
[null,8762,null,null,null,null,null,null,null,null,null,null,null,null,null,null,"",""]
[null,8767,null,null,null,null,null,null,null,null,null,null,null,null,null,null,{"$f":"IF(P8772=\"\",\"\",P8772-L8772)","v":""},{"$f":"IFERROR(Q8772/P8772,\"\")","v":""}]
[null,8768,null,null,null,null,null,null,null,null,null,null,null,null,null,null,"",""]
[null,8776,null,null,null,null,null,null,null,null,null,null,null,null,null,null,"",""]
[null,8778,null,null,null,null,null,null,null,null,null,null,null,null,null,null,"",""]
[null,8783,null,null,null,null,null,null,null,null,null,null,null,null,null,null,"",""]
[null,8788,null,null,null,null,null,null,null,null,null,null,null,null,null,null,"",""]
[null,8795,null,null,null,null,null,null,null,null,null,null,null,null,null,null,"",""]
[null,8798,null,null,null,null,null,null,null,null,null,null,null,null,null,null,"",""]
[null,8803,null,null,null,null,null,null,null,null,null,null,null,null,null,null,"",""]
[null,8809,null,null,null,null,null,null,null,null,null,null,null,null,null,null,"",""]
[null,8814,null,null,null,null,null,null,null,null,null,null,null,null,null,null,"",""]
[null,8819,null,null,null,null,null,null,null,null,null,null,null,null,null,null,"",""]
[null,8824,null,null,null,null,null,null,null,null,null,null,null,null,null,null,"",""]
[null,8829,null,null,null,null,null,null,null,null,null,null,null,null,null,null,"",""]
[null,8833,null,null,null,null,null,null,null,null,null,null,null,null,null,null,"",""]
[null,8834,null,null,null,null,null,null,null,null,null,null,null,null,null,null,"",""]
[null,8840,null,null,null,null,null,null,null,null,null,null,null,null,null,null,"",""]
[null,8845,null,null,null,null,null,null,null,null,null,null,null,null,null,null,"",""]
[null,8852,null,null,null,null,null,null,null,null,null,null,null,null,null,null,"",""]
[null,8855,null,null,null,null,null,null,null,null,null,null,null,null,null,null,"",""]
[null,8860,null,null,null,null,null,null,null,null,null,null,null,null,null,null,"",""]
[null,8865,null,null,null,null,null,null,null,null,null,null,null,null,null,null,"",""]
[null,8871,null,null,null,null,null,null,null,null,null,null,null,null,null,null,"",""]
[null,8875,null,null,null,null,null,null,null,null,null,null,null,null,null,null,"",""]
[null,8881,null,null,null,null,null,null,null,null,null,null,null,null,null,null,"",""]
[null,8886,null,null,null,null,null,null,null,null,null,null,null,null,null,null,"",""]
[null,8890,null,null,null,null,null,null,null,null,null,null,null,null,null,null,"",""]
[null,8891,null,null,null,null,null,null,null,null,null,null,null,null,null,null,"",""]
[null,8896,null,null,null,null,null,null,null,null,null,null,null,null,null,null,"",""]
[null,8901,null,null,null,null,null,null,null,null,null,null,null,null,null,null,"",""]
[null,8909,null,null,null,null,null,null,null,null,null,null,null,null,null,null,"",""]
[null,8911,null,null,null,null,null,null,null,null,null,null,null,null,null,null,"",""]
[null,8917,null,null,null,null,null,null,null,null,null,null,null,null,null,null,"",""]
[null,8922,null,null,null,null,null,null,null,null,null,null,null,null,null,null,"",""]
[null,8928,null,null,null,null,null,null,null,null,null,null,null,null,null,null,"",""]
[null,8932,null,null,null,null,null,null,null,null,null,null,null,null,null,null,"",""]
[null,8937,null,null,null,null,null,null,null,null,null,null,null,null,null,null,"",""]
[null,8943,null,null,null,null,null,null,null,null,null,null,null,null,null,null,"",""]
[null,8947,null,null,null,null,null,null,null,null,null,null,null,null,null,null,"",""]
[null,8952,null,null,null,null,null,null,null,null,null,null,null,null,null,null,"",""]
[null,8953,null,null,null,null,null,null,null,null,null,null,null,null,null,null,"",""]
[null,8958,null,null,null,null,null,null,null,null,null,null,null,null,null,null,"",""]
[null,8966,null,null,null,null,null,null,null,null,null,null,null,null,null,null,"",""]
[null,8968,null,null,null,null,null,null,null,null,null,null,null,null,null,null,"",""]
[null,8973,null,null,null,null,null,null,null,null,null,null,null,null,null,null,"",""]
[null,8979,null,null,null,null,null,null,null,null,null,null,null,null,null,null,"",""]
[null,8985,null,null,null,null,null,null,null,null,null,null,null,null,null,null,"",""]
[null,8988,null,null,null,null,null,null,null,null,null,null,null,null,null,null,"",""]
[null,8994,null,null,null,null,null,null,null,null,null,null,null,null,null,null,"",""]
[null,8999,null,null,null,null,null,null,null,null,null,null,null,null,null,null,"",""]
[null,9004,null,null,null,null,null,null,null,null,null,null,null,null,null,null,"",""]
[null,9009,null,null,null,null,null,null,null,null,null,null,null,null,null,null,"",""]
[null,9014,null,null,null,null,null,null,null,null,null,null,null,null,null,null,"",""]
[null,9015,null,null,null,null,null,null,null,null,null,null,null,null,null,null,"",""]
[null,9023,null,null,null,null,null,null,null,null,null,null,null,null,null,null,{"$f":"IF(P9028=\"\",\"\",P9028-L9028)","v":""},{"$f":"IFERROR(Q9028/P9028,\"\")","v":""}]
[null,9024,null,null,null,null,null,null,null,null,null,null,null,null,null,null,"",""]
[null,9030,null,null,null,null,null,null,null,null,null,null,null,null,null,null,"",""]
[null,9035,null,null,null,null,null,null,null,null,null,null,null,null,null,null,"",""]
[null,9042,null,null,null,null,null,null,null,null,null,null,null,null,null,null,"",""]
[null,9045,null,null,null,null,null,null,null,null,null,null,null,null,null,null,"",""]
[null,9050,null,null,null,null,null,null,null,null,null,null,null,null,null,null,"",""]
[null,9056,null,null,null,null,null,null,null,null,null,null,null,null,null,null,"",""]
[null,9061,null,null,null,null,null,null,null,null,null,null,null,null,null,null,"",""]
[null,9065,null,null,null,null,null,null,null,null,null,null,null,null,null,null,"",""]
[null,9071,null,null,null,null,null,null,null,null,null,null,null,null,null,null,"",""]
[null,9076,null,null,null,null,null,null,null,null,null,null,null,null,null,null,"",""]
[null,9080,null,null,null,null,null,null,null,null,null,null,null,null,null,null,"",""]
[null,9081,null,null,null,null,null,null,null,null,null,null,null,null,null,null,"",""]
[null,9086,null,null,null,null,null,null,null,null,null,null,null,null,null,null,"",""]
[null,9092,null,null,null,null,null,null,null,null,null,null,null,null,null,null,"",""]
[null,9099,null,null,null,null,null,null,null,null,null,null,null,null,null,null,"",""]
[null,9102,null,null,null,null,null,null,null,null,null,null,null,null,null,null,"",""]
[null,9107,null,null,null,null,null,null,null,null,null,null,null,null,null,null,"",""]
[null,9112,null,null,null,null,null,null,null,null,null,null,null,null,null,null,"",""]
[null,9118,null,null,null,null,null,null,null,null,null,null,null,null,null,null,"",""]
[null,9122,null,null,null,null,null,null,null,null,null,null,null,null,null,null,"",""]
[null,9127,null,null,null,null,null,null,null,null,null,null,null,null,null,null,"",""]
[null,9133,null,null,null,null,null,null,null,null,null,null,null,null,null,null,"",""]
[null,9138,null,null,null,null,null,null,null,null,null,null,null,null,null,null,"",""]
[null,9139,null,null,null,null,null,null,null,null,null,null,null,null,null,null,"",""]
[null,9143,null,null,null,null,null,null,null,null,null,null,null,null,null,null,"",""]
[null,9148,null,null,null,null,null,null,null,null,null,null,null,null,null,null,"",""]
[null,9154,null,null,null,null,null,null,null,null,null,null,null,null,null,null,"",""]
[null,9158,null,null,null,null,null,null,null,null,null,null,null,null,null,null,"",""]
[null,9164,null,null,null,null,null,null,null,null,null,null,null,null,null,null,"",""]
[null,9169,null,null,null,null,null,null,null,null,null,null,null,null,null,null,"",""]
[null,9174,null,null,null,null,null,null,null,null,null,null,null,null,null,null,"",""]
[null,9177,null,null,null,null,null,null,null,null,null,null,null,null,null,null,"",""]
[null,9184,null,null,null,null,null,null,null,null,null,null,null,null,null,null,"",""]
[null,9189,null,null,null,null,null,null,null,null,null,null,null,null,null,null,"",""]
[null,9195,null,null,null,null,null,null,null,null,null,null,null,null,null,null,"",""]
[null,9196,null,null,null,null,null,null,null,null,null,null,null,null,null,null,"",""]
[null,9200,null,null,null,null,null,null,null,null,null,null,null,null,null,null,"",""]
[null,9205,null,null,null,null,null,null,null,null,null,null,null,null,null,null,"",""]
[null,9210,null,null,null,null,null,null,null,null,null,null,null,null,null,null,"",""]
[null,9215,null,null,null,null,null,null,null,null,null,null,null,null,null,null,{"$f":"IF(P9220=\"\",\"\",P9220-L9220)","v":""},{"$f":"IFERROR(Q9220/P9220,\"\")","v":""}]
[null,9220,null,null,null,null,null,null,null,null,null,null,null,null,null,null,"",""]
[null,9225,null,null,null,null,null,null,null,null,null,null,null,null,null,null,"",""]
[null,9231,null,null,null,null,null,null,null,null,null,null,null,null,null,null,"",""]
[null,9234,null,null,null,null,null,null,null,null,null,null,null,null,null,null,"",""]
[null,9241,null,null,null,null,null,null,null,null,null,null,null,null,null,null,"",""]
[null,9246,null,null,null,null,null,null,null,null,null,null,null,null,null,null,"",""]
[null,9251,null,null,null,null,null,null,null,null,null,null,null,null,null,null,"",""]
[null,9253,null,null,null,null,null,null,null,null,null,null,null,null,null,null,"",""]
[null,9261,null,null,null,null,null,null,null,null,null,null,null,null,null,null,"",""]
[null,9262,null,null,null,null,null,null,null,null,null,null,null,null,null,null,"",""]
[null,9267,null,null,null,null,null,null,null,null,null,null,null,null,null,null,"",""]
[null,9272,null,null,null,null,null,null,null,null,null,null,null,null,null,null,"",""]
[null,9277,null,null,null,null,null,null,null,null,null,null,null,null,null,null,"",""]
[null,9282,null,null,null,null,null,null,null,null,null,null,null,null,null,null,"",""]
[null,9287,null,null,null,null,null,null,null,null,null,null,null,null,null,null,"",""]
[null,9291,null,null,null,null,null,null,null,null,null,null,null,null,null,null,"",""]
[null,9297,null,null,null,null,null,null,null,null,null,null,null,null,null,null,"",""]
[null,9303,null,null,null,null,null,null,null,null,null,null,null,null,null,null,"",""]
[null,9308,null,null,null,null,null,null,null,null,null,null,null,null,null,null,"",""]
[null,9310,null,null,null,null,null,null,null,null,null,null,null,null,null,null,"",""]
[null,9318,null,null,null,null,null,null,null,null,null,null,null,null,null,null,"",""]
[null,9323,null,null,null,null,null,null,null,null,null,null,null,null,null,null,"",""]
[null,9328,null,null,null,null,null,null,null,null,null,null,null,null,null,null,"",""]
[null,9329,null,null,null,null,null,null,null,null,null,null,null,null,null,null,"",""]
[null,9333,null,null,null,null,null,null,null,null,null,null,null,null,null,null,"",""]
[null,9339,null,null,null,null,null,null,null,null,null,null,null,null,null,null,"",""]
[null,9344,null,null,null,null,null,null,null,null,null,null,null,null,null,null,"",""]
[null,9348,null,null,null,null,null,null,null,null,null,null,null,null,null,null,"",""]
[null,9354,null,null,null,null,null,null,null,null,null,null,null,null,null,null,"",""]
[null,9359,null,null,null,null,null,null,null,null,null,null,null,null,null,null,"",""]
[null,9365,null,null,null,null,null,null,null,null,null,null,null,null,null,null,"",""]
[null,9367,null,null,null,null,null,null,null,null,null,null,null,null,null,null,"",""]
[null,9374,null,null,null,null,null,null,null,null,null,null,null,null,null,null,"",""]
[null,9380,null,null,null,null,null,null,null,null,null,null,null,null,null,null,"",""]
[null,9385,null,null,null,null,null,null,null,null,null,null,null,null,null,null,"",""]
[null,9386,null,null,null,null,null,null,null,null,null,null,null,null,null,null,"",""]
[null,9390,null,null,null,null,null,null,null,null,null,null,null,null,null,null,"",""]
[null,9395,null,null,null,null,null,null,null,null,null,null,null,null,null,null,"",""]
[null,9401,null,null,null,null,null,null,null,null,null,null,null,null,null,null,"",""]
[null,9405,null,null,null,null,null,null,null,null,null,null,null,null,null,null,"",""]
[null,9410,null,null,null,null,null,null,null,null,null,null,null,null,null,null,"",""]
[null,9416,null,null,null,null,null,null,null,null,null,null,null,null,null,null,"",""]
[null,9421,null,null,null,null,null,null,null,null,null,null,null,null,null,null,"",""]
[null,9424,null,null,null,null,null,null,null,null,null,null,null,null,null,null,"",""]
[null,9431,null,null,null,null,null,null,null,null,null,null,null,null,null,null,"",""]
[null,9436,null,null,null,null,null,null,null,null,null,null,null,null,null,null,"",""]
[null,9442,null,null,null,null,null,null,null,null,null,null,null,null,null,null,"",""]
[null,9443,null,null,null,null,null,null,null,null,null,null,null,null,null,null,"",""]
[null,9451,null,null,null,null,null,null,null,null,null,null,null,null,null,null,"",""]
[null,9452,null,null,null,null,null,null,null,null,null,null,null,null,null,null,"",""]
[null,9457,null,null,null,null,null,null,null,null,null,null,null,null,null,null,"",""]
[null,9462,null,null,null,null,null,null,null,null,null,null,null,null,null,null,"",""]
[null,9467,null,null,null,null,null,null,null,null,null,null,null,null,null,null,"",""]
[null,9472,null,null,null,null,null,null,null,null,null,null,null,null,null,null,"",""]
[null,9478,null,null,null,null,null,null,null,null,null,null,null,null,null,null,"",""]
[null,9481,null,null,null,null,null,null,null,null,null,null,null,null,null,null,"",""]
[null,9487,null,null,null,null,null,null,null,null,null,null,null,null,null,null,"",""]
[null,9493,null,null,null,null,null,null,null,null,null,null,null,null,null,null,"",""]
[null,9498,null,null,null,null,null,null,null,null,null,null,null,null,null,null,"",""]
[null,9500,null,null,null,null,null,null,null,null,null,null,null,null,null,null,"",""]
[null,9508,null,null,null,null,null,null,null,null,null,null,null,null,null,null,"",""]
[null,9513,null,null,null,null,null,null,null,null,null,null,null,null,null,null,"",""]
[null,9514,null,null,null,null,null,null,null,null,null,null,null,null,null,null,"",""]
[null,9519,null,null,null,null,null,null,null,null,null,null,null,null,null,null,"",""]
[null,9524,null,null,null,null,null,null,null,null,null,null,null,null,null,null,"",""]
[null,9529,null,null,null,null,null,null,null,null,null,null,null,null,null,null,"",""]
[null,9534,null,null,null,null,null,null,null,null,null,null,null,null,null,null,"",""]
[null,9538,null,null,null,null,null,null,null,null,null,null,null,null,null,null,"",""]
[null,9544,null,null,null,null,null,null,null,null,null,null,null,null,null,null,"",""]
[null,9549,null,null,null,null,null,null,null,null,null,null,null,null,null,null,"",""]
[null,9555,null,null,null,null,null,null,null,null,null,null,null,null,null,null,"",""]
[null,9557,null,null,null,null,null,null,null,null,null,null,null,null,null,null,"",""]
[null,9565,null,null,null,null,null,null,null,null,null,null,null,null,null,null,"",""]
[null,9570,null,null,null,null,null,null,null,null,null,null,null,null,null,null,"",""]
[null,9575,null,null,null,null,null,null,null,null,null,null,null,null,null,null,"",""]
[null,9576,null,null,null,null,null,null,null,null,null,null,null,null,null,null,"",""]
[null,9580,null,null,null,null,null,null,null,null,null,null,null,null,null,null,"",""]
[null,9585,null,null,null,null,null,null,null,null,null,null,null,null,null,null,"",""]
[null,9591,null,null,null,null,null,null,null,null,null,null,null,null,null,null,"",""]
[null,9596,null,null,null,null,null,null,null,null,null,null,null,null,null,null,"",""]
[null,9601,null,null,null,null,null,null,null,null,null,null,null,null,null,null,"",""]
[null,9606,null,null,null,null,null,null,null,null,null,null,null,null,null,null,"",""]
[null,9611,null,null,null,null,null,null,null,null,null,null,null,null,null,null,"",""]
[null,9617,null,null,null,null,null,null,null,null,null,null,null,null,null,null,"",""]
[null,9620,null,null,null,null,null,null,null,null,null,null,null,null,null,null,"",""]
[null,9627,null,null,null,null,null,null,null,null,null,null,null,null,null,null,"",""]
[null,9632,null,null,null,null,null,null,null,null,null,null,null,null,null,null,"",""]
[null,9637,null,null,null,null,null,null,null,null,null,null,null,null,null,null,"",""]
[null,9639,null,null,null,null,null,null,null,null,null,null,null,null,null,null,"",""]
[null,9642,null,null,null,null,null,null,null,null,null,null,null,null,null,null,"",""]
[null,9647,null,null,null,null,null,null,null,null,null,null,null,null,null,null,"",""]
[null,9653,null,null,null,null,null,null,null,null,null,null,null,null,null,null,"",""]
[null,9658,null,null,null,null,null,null,null,null,null,null,null,null,null,null,"",""]
[null,9663,null,null,null,null,null,null,null,null,null,null,null,null,null,null,{"$f":"IF(P9668=\"\",\"\",P9668-L9668)","v":""},{"$f":"IFERROR(Q9668/P9668,\"\")","v":""}]
[null,9668,null,null,null,null,null,null,null,null,null,null,null,null,null,null,"",""]
[null,9673,null,null,null,null,null,null,null,null,null,null,null,null,null,null,"",""]
[null,9677,null,null,null,null,null,null,null,null,null,null,null,null,null,null,"",""]
[null,9683,null,null,null,null,null,null,null,null,null,null,null,null,null,null,"",""]
[null,9689,null,null,null,null,null,null,null,null,null,null,null,null,null,null,"",""]
[null,9694,null,null,null,null,null,null,null,null,null,null,null,null,null,null,"",""]
[null,9696,null,null,null,null,null,null,null,null,null,null,null,null,null,null,"",""]
[null,9699,null,null,null,null,null,null,null,null,null,null,null,null,null,null,"",""]
[null,9704,null,null,null,null,null,null,null,null,null,null,null,null,null,null,"",""]
[null,9709,null,null,null,null,null,null,null,null,null,null,null,null,null,null,"",""]
[null,9715,null,null,null,null,null,null,null,null,null,null,null,null,null,null,"",""]
[null,9719,null,null,null,null,null,null,null,null,null,null,null,null,null,null,"",""]
[null,9725,null,null,null,null,null,null,null,null,null,null,null,null,null,null,"",""]
[null,9730,null,null,null,null,null,null,null,null,null,null,null,null,null,null,"",""]
[null,9734,null,null,null,null,null,null,null,null,null,null,null,null,null,null,"",""]
[null,9740,null,null,null,null,null,null,null,null,null,null,null,null,null,null,"",""]
[null,9745,null,null,null,null,null,null,null,null,null,null,null,null,null,null,"",""]
[null,9750,null,null,null,null,null,null,null,null,null,null,null,null,null,null,"",""]
[null,9753,null,null,null,null,null,null,null,null,null,null,null,null,null,null,"",""]
[null,9760,null,null,null,null,null,null,null,null,null,null,null,null,null,null,"",""]
[null,9761,null,null,null,null,null,null,null,null,null,null,null,null,null,null,"",""]
[null,9766,null,null,null,null,null,null,null,null,null,null,null,null,null,null,"",""]
[null,9772,null,null,null,null,null,null,null,null,null,null,null,null,null,null,"",""]
[null,9776,null,null,null,null,null,null,null,null,null,null,null,null,null,null,"",""]
[null,9781,null,null,null,null,null,null,null,null,null,null,null,null,null,null,"",""]
[null,9787,null,null,null,null,null,null,null,null,null,null,null,null,null,null,"",""]
[null,9791,null,null,null,null,null,null,null,null,null,null,null,null,null,null,{"$f":"IF(P9796=\"\",\"\",P9796-L9796)","v":""},{"$f":"IFERROR(Q9796/P9796,\"\")","v":""}]
[null,9796,null,null,null,null,null,null,null,null,null,null,null,null,null,null,"",""]
[null,9802,null,null,null,null,null,null,null,null,null,null,null,null,null,null,"",""]
[null,9807,null,null,null,null,null,null,null,null,null,null,null,null,null,null,"",""]
[null,9810,null,null,null,null,null,null,null,null,null,null,null,null,null,null,"",""]
[null,9817,null,null,null,null,null,null,null,null,null,null,null,null,null,null,"",""]
[null,9822,null,null,null,null,null,null,null,null,null,null,null,null,null,null,"",""]
[null,9823,null,null,null,null,null,null,null,null,null,null,null,null,null,null,"",""]
[null,9829,null,null,null,null,null,null,null,null,null,null,null,null,null,null,"",""]
[null,9832,null,null,null,null,null,null,null,null,null,null,null,null,null,null,"",""]
[null,9838,null,null,null,null,null,null,null,null,null,null,null,null,null,null,"",""]
[null,9843,null,null,null,null,null,null,null,null,null,null,null,null,null,null,"",""]
[null,9848,null,null,null,null,null,null,null,null,null,null,null,null,null,null,"",""]
[null,9853,null,null,null,null,null,null,null,null,null,null,null,null,null,null,"",""]
[null,9858,null,null,null,null,null,null,null,null,null,null,null,null,null,null,"",""]
[null,9864,null,null,null,null,null,null,null,null,null,null,null,null,null,null,"",""]
[null,9867,null,null,null,null,null,null,null,null,null,null,null,null,null,null,"",""]
[null,9873,null,null,null,null,null,null,null,null,null,null,null,null,null,null,"",""]
[null,9879,null,null,null,null,null,null,null,null,null,null,null,null,null,null,"",""]
[null,9884,null,null,null,null,null,null,null,null,null,null,null,null,null,null,"",""]
[null,9886,null,null,null,null,null,null,null,null,null,null,null,null,null,null,"",""]
[null,9889,null,null,null,null,null,null,null,null,null,null,null,null,null,null,"",""]
[null,9894,null,null,null,null,null,null,null,null,null,null,null,null,null,null,"",""]
[null,9900,null,null,null,null,null,null,null,null,null,null,null,null,null,null,"",""]
[null,9905,null,null,null,null,null,null,null,null,null,null,null,null,null,null,"",""]
[null,9909,null,null,null,null,null,null,null,null,null,null,null,null,null,null,"",""]
[null,9915,null,null,null,null,null,null,null,null,null,null,null,null,null,null,"",""]
[null,9920,null,null,null,null,null,null,null,null,null,null,null,null,null,null,"",""]
[null,9924,null,null,null,null,null,null,null,null,null,null,null,null,null,null,"",""]
[null,9930,null,null,null,null,null,null,null,null,null,null,null,null,null,null,"",""]
[null,9935,null,null,null,null,null,null,null,null,null,null,null,null,null,null,"",""]
[null,9941,null,null,null,null,null,null,null,null,null,null,null,null,null,null,"",""]
[null,9943,null,null,null,null,null,null,null,null,null,null,null,null,null,null,"",""]
[null,9946,null,null,null,null,null,null,null,null,null,null,null,null,null,null,"",""]
[null,9951,null,null,null,null,null,null,null,null,null,null,null,null,null,null,"",""]
[null,9956,null,null,null,null,null,null,null,null,null,null,null,null,null,null,"",""]
[null,9962,null,null,null,null,null,null,null,null,null,null,null,null,null,null,"",""]
[null,9966,null,null,null,null,null,null,null,null,null,null,null,null,null,null,"",""]
[null,9971,null,null,null,null,null,null,null,null,null,null,null,null,null,null,"",""]
[null,9977,null,null,null,null,null,null,null,null,null,null,null,null,null,null,"",""]
[null,9981,null,null,null,null,null,null,null,null,null,null,null,null,null,null,"",""]
[null,9987,null,null,null,null,null,null,null,null,null,null,null,null,null,null,"",""]
[null,9992,null,null,null,null,null,null,null,null,null,null,null,null,null,null,"",""]
[null,9997,null,null,null,null,null,null,null,null,null,null,null,null,null,null,"",""]
[null,10000,null,null,null,null,null,null,null,null,null,null,null,null,null,null,"",""]
[null,10007,null,null,null,null,null,null,null,null,null,null,null,null,null,null,"",""]
[null,10012,null,null,null,null,null,null,null,null,null,null,null,null,null,null,"",""]
[null,10013,null,null,null,null,null,null,null,null,null,null,null,null,null,null,"",""]
[null,10019,null,null,null,null,null,null,null,null,null,null,null,null,null,null,"",""]
[null,10023,null,null,null,null,null,null,null,null,null,null,null,null,null,null,"",""]
[null,10028,null,null,null,null,null,null,null,null,null,null,null,null,null,null,"",""]
[null,10033,null,null,null,null,null,null,null,null,null,null,null,null,null,null,"",""]
[null,10038,null,null,null,null,null,null,null,null,null,null,null,null,null,null,"",""]
[null,10043,null,null,null,null,null,null,null,null,null,null,null,null,null,null,"",""]
[null,10049,null,null,null,null,null,null,null,null,null,null,null,null,null,null,"",""]
[null,10054,null,null,null,null,null,null,null,null,null,null,null,null,null,null,"",""]
[null,10057,null,null,null,null,null,null,null,null,null,null,null,null,null,null,"",""]
[null,10064,null,null,null,null,null,null,null,null,null,null,null,null,null,null,"",""]
[null,10069,null,null,null,null,null,null,null,null,null,null,null,null,null,null,"",""]
[null,10074,null,null,null,null,null,null,null,null,null,null,null,null,null,null,"",""]
[null,10075,null,null,null,null,null,null,null,null,null,null,null,null,null,null,"",""]
[null,10082,null,null,null,null,null,null,null,null,null,null,null,null,null,null,"",""]
[null,10085,null,null,null,null,null,null,null,null,null,null,null,null,null,null,"",""]
[null,10090,null,null,null,null,null,null,null,null,null,null,null,null,null,null,"",""]
[null,10095,null,null,null,null,null,null,null,null,null,null,null,null,null,null,"",""]
[null,10101,null,null,null,null,null,null,null,null,null,null,null,null,null,null,"",""]
[null,10105,null,null,null,null,null,null,null,null,null,null,null,null,null,null,"",""]
[null,10111,null,null,null,null,null,null,null,null,null,null,null,null,null,null,{"$f":"IF(P10116=\"\",\"\",P10116-L10116)","v":""},{"$f":"IFERROR(Q10116/P10116,\"\")","v":""}]
[null,10116,null,null,null,null,null,null,null,null,null,null,null,null,null,null,"",""]
[null,10120,null,null,null,null,null,null,null,null,null,null,null,null,null,null,"",""]
[null,10126,null,null,null,null,null,null,null,null,null,null,null,null,null,null,"",""]
[null,10131,null,null,null,null,null,null,null,null,null,null,null,null,null,null,"",""]
[null,10136,null,null,null,null,null,null,null,null,null,null,null,null,null,null,"",""]
[null,10139,null,null,null,null,null,null,null,null,null,null,null,null,null,null,"",""]
[null,10141,null,null,null,null,null,null,null,null,null,null,null,null,null,null,"",""]
[null,10147,null,null,null,null,null,null,null,null,null,null,null,null,null,null,"",""]
[null,10152,null,null,null,null,null,null,null,null,null,null,null,null,null,null,"",""]
[null,10158,null,null,null,null,null,null,null,null,null,null,null,null,null,null,"",""]
[null,10162,null,null,null,null,null,null,null,null,null,null,null,null,null,null,"",""]
[null,10167,null,null,null,null,null,null,null,null,null,null,null,null,null,null,"",""]
[null,10172,null,null,null,null,null,null,null,null,null,null,null,null,null,null,"",""]
[null,10177,null,null,null,null,null,null,null,null,null,null,null,null,null,null,"",""]
[null,10182,null,null,null,null,null,null,null,null,null,null,null,null,null,null,"",""]
[null,10188,null,null,null,null,null,null,null,null,null,null,null,null,null,null,"",""]
[null,10193,null,null,null,null,null,null,null,null,null,null,null,null,null,null,"",""]
[null,10196,null,null,null,null,null,null,null,null,null,null,null,null,null,null,"",""]
[null,10198,null,null,null,null,null,null,null,null,null,null,null,null,null,null,"",""]
[null,10203,null,null,null,null,null,null,null,null,null,null,null,null,null,null,"",""]
[null,10209,null,null,null,null,null,null,null,null,null,null,null,null,null,null,"",""]
[null,10215,null,null,null,null,null,null,null,null,null,null,null,null,null,null,"",""]
[null,10218,null,null,null,null,null,null,null,null,null,null,null,null,null,null,"",""]
[null,10224,null,null,null,null,null,null,null,null,null,null,null,null,null,null,"",""]
[null,10229,null,null,null,null,null,null,null,null,null,null,null,null,null,null,"",""]
[null,10234,null,null,null,null,null,null,null,null,null,null,null,null,null,null,"",""]
[null,10239,null,null,null,null,null,null,null,null,null,null,null,null,null,null,{"$f":"IF(P10244=\"\",\"\",P10244-L10244)","v":""},{"$f":"IFERROR(Q10244/P10244,\"\")","v":""}]
[null,10244,null,null,null,null,null,null,null,null,null,null,null,null,null,null,"",""]
[null,10250,null,null,null,null,null,null,null,null,null,null,null,null,null,null,"",""]
[null,10253,null,null,null,null,null,null,null,null,null,null,null,null,null,null,"",""]
[null,10259,null,null,null,null,null,null,null,null,null,null,null,null,null,null,"",""]
[null,10260,null,null,null,null,null,null,null,null,null,null,null,null,null,null,"",""]
[null,10265,null,null,null,null,null,null,null,null,null,null,null,null,null,null,"",""]
[null,10272,null,null,null,null,null,null,null,null,null,null,null,null,null,null,"",""]
[null,10275,null,null,null,null,null,null,null,null,null,null,null,null,null,null,"",""]
[null,10280,null,null,null,null,null,null,null,null,null,null,null,null,null,null,"",""]
[null,10286,null,null,null,null,null,null,null,null,null,null,null,null,null,null,"",""]
[null,10291,null,null,null,null,null,null,null,null,null,null,null,null,null,null,"",""]
[null,10295,null,null,null,null,null,null,null,null,null,null,null,null,null,null,"",""]
[null,10301,null,null,null,null,null,null,null,null,null,null,null,null,null,null,"",""]
[null,10306,null,null,null,null,null,null,null,null,null,null,null,null,null,null,"",""]
[null,10310,null,null,null,null,null,null,null,null,null,null,null,null,null,null,"",""]
[null,10316,null,null,null,null,null,null,null,null,null,null,null,null,null,null,"",""]
[null,10321,null,null,null,null,null,null,null,null,null,null,null,null,null,null,"",""]
[null,10322,null,null,null,null,null,null,null,null,null,null,null,null,null,null,"",""]
[null,10329,null,null,null,null,null,null,null,null,null,null,null,null,null,null,"",""]
[null,10331,null,null,null,null,null,null,null,null,null,null,null,null,null,null,"",""]
[null,10337,null,null,null,null,null,null,null,null,null,null,null,null,null,null,"",""]
[null,10342,null,null,null,null,null,null,null,null,null,null,null,null,null,null,"",""]
[null,10348,null,null,null,null,null,null,null,null,null,null,null,null,null,null,"",""]
[null,10352,null,null,null,null,null,null,null,null,null,null,null,null,null,null,"",""]
[null,10357,null,null,null,null,null,null,null,null,null,null,null,null,null,null,"",""]
[null,10363,null,null,null,null,null,null,null,null,null,null,null,null,null,null,"",""]
[null,10367,null,null,null,null,null,null,null,null,null,null,null,null,null,null,{"$f":"IF(P10372=\"\",\"\",P10372-L10372)","v":""},{"$f":"IFERROR(Q10372/P10372,\"\")","v":""}]
[null,10373,null,null,null,null,null,null,null,null,null,null,null,null,null,null,"",""]
[null,10378,null,null,null,null,null,null,null,null,null,null,null,null,null,null,"",""]
[null,10383,null,null,null,null,null,null,null,null,null,null,null,null,null,null,"",""]
[null,10386,null,null,null,null,null,null,null,null,null,null,null,null,null,null,"",""]
[null,10388,null,null,null,null,null,null,null,null,null,null,null,null,null,null,"",""]
[null,10393,null,null,null,null,null,null,null,null,null,null,null,null,null,null,"",""]
[null,10399,null,null,null,null,null,null,null,null,null,null,null,null,null,null,"",""]
[null,10405,null,null,null,null,null,null,null,null,null,null,null,null,null,null,"",""]
[null,10409,null,null,null,null,null,null,null,null,null,null,null,null,null,null,"",""]
[null,10414,null,null,null,null,null,null,null,null,null,null,null,null,null,null,"",""]
[null,10419,null,null,null,null,null,null,null,null,null,null,null,null,null,null,"",""]
[null,10424,null,null,null,null,null,null,null,null,null,null,null,null,null,null,"",""]
[null,10429,null,null,null,null,null,null,null,null,null,null,null,null,null,null,"",""]
[null,10434,null,null,null,null,null,null,null,null,null,null,null,null,null,null,"",""]
[null,10440,null,null,null,null,null,null,null,null,null,null,null,null,null,null,"",""]
[null,10443,null,null,null,null,null,null,null,null,null,null,null,null,null,null,"",""]
[null,10445,null,null,null,null,null,null,null,null,null,null,null,null,null,null,"",""]
[null,10450,null,null,null,null,null,null,null,null,null,null,null,null,null,null,"",""]
[null,10455,null,null,null,null,null,null,null,null,null,null,null,null,null,null,"",""]
[null,10462,null,null,null,null,null,null,null,null,null,null,null,null,null,null,"",""]
[null,10465,null,null,null,null,null,null,null,null,null,null,null,null,null,null,"",""]
[null,10471,null,null,null,null,null,null,null,null,null,null,null,null,null,null,"",""]
[null,10476,null,null,null,null,null,null,null,null,null,null,null,null,null,null,"",""]
[null,10481,null,null,null,null,null,null,null,null,null,null,null,null,null,null,"",""]
[null,10486,null,null,null,null,null,null,null,null,null,null,null,null,null,null,"",""]
[null,10491,null,null,null,null,null,null,null,null,null,null,null,null,null,null,"",""]
[null,10496,null,null,null,null,null,null,null,null,null,null,null,null,null,null,"",""]
[null,10500,null,null,null,null,null,null,null,null,null,null,null,null,null,null,"",""]
[null,10506,null,null,null,null,null,null,null,null,null,null,null,null,null,null,"",""]
[null,10507,null,null,null,null,null,null,null,null,null,null,null,null,null,null,"",""]
[null,10512,null,null,null,null,null,null,null,null,null,null,null,null,null,null,"",""]
[null,10519,null,null,null,null,null,null,null,null,null,null,null,null,null,null,"",""]
[null,10522,null,null,null,null,null,null,null,null,null,null,null,null,null,null,"",""]
[null,10527,null,null,null,null,null,null,null,null,null,null,null,null,null,null,"",""]
[null,10533,null,null,null,null,null,null,null,null,null,null,null,null,null,null,"",""]
[null,10538,null,null,null,null,null,null,null,null,null,null,null,null,null,null,"",""]
[null,10542,null,null,null,null,null,null,null,null,null,null,null,null,null,null,"",""]
[null,10548,null,null,null,null,null,null,null,null,null,null,null,null,null,null,"",""]
[null,10553,null,null,null,null,null,null,null,null,null,null,null,null,null,null,"",""]
[null,10558,null,null,null,null,null,null,null,null,null,null,null,null,null,null,"",""]
[null,10563,null,null,null,null,null,null,null,null,null,null,null,null,null,null,"",""]
[null,10568,null,null,null,null,null,null,null,null,null,null,null,null,null,null,"",""]
[null,10569,null,null,null,null,null,null,null,null,null,null,null,null,null,null,"",""]
[null,10574,null,null,null,null,null,null,null,null,null,null,null,null,null,null,"",""]
[null,10582,null,null,null,null,null,null,null,null,null,null,null,null,null,null,"",""]
[null,10584,null,null,null,null,null,null,null,null,null,null,null,null,null,null,"",""]
[null,10589,null,null,null,null,null,null,null,null,null,null,null,null,null,null,"",""]
[null,10594,null,null,null,null,null,null,null,null,null,null,null,null,null,null,"",""]
[null,10601,null,null,null,null,null,null,null,null,null,null,null,null,null,null,"",""]
[null,10604,null,null,null,null,null,null,null,null,null,null,null,null,null,null,"",""]
[null,10610,null,null,null,null,null,null,null,null,null,null,null,null,null,null,"",""]
[null,10615,null,null,null,null,null,null,null,null,null,null,null,null,null,null,"",""]
[null,10620,null,null,null,null,null,null,null,null,null,null,null,null,null,null,"",""]
[null,10625,null,null,null,null,null,null,null,null,null,null,null,null,null,null,"",""]
[null,10630,null,null,null,null,null,null,null,null,null,null,null,null,null,null,"",""]
[null,10631,null,null,null,null,null,null,null,null,null,null,null,null,null,null,"",""]
[null,10639,null,null,null,null,null,null,null,null,null,null,null,null,null,null,"",""]
[null,10640,null,null,null,null,null,null,null,null,null,null,null,null,null,null,"",""]
[null,10646,null,null,null,null,null,null,null,null,null,null,null,null,null,null,"",""]
[null,10651,null,null,null,null,null,null,null,null,null,null,null,null,null,null,"",""]
[null,10658,null,null,null,null,null,null,null,null,null,null,null,null,null,null,"",""]
[null,10661,null,null,null,null,null,null,null,null,null,null,null,null,null,null,"",""]
[null,10666,null,null,null,null,null,null,null,null,null,null,null,null,null,null,"",""]
[null,10672,null,null,null,null,null,null,null,null,null,null,null,null,null,null,"",""]
[null,10677,null,null,null,null,null,null,null,null,null,null,null,null,null,null,"",""]
[null,10681,null,null,null,null,null,null,null,null,null,null,null,null,null,null,"",""]
[null,10687,null,null,null,null,null,null,null,null,null,null,null,null,null,null,{"$f":"IF(P10692=\"\",\"\",P10692-L10692)","v":""},{"$f":"IFERROR(Q10692/P10692,\"\")","v":""}]
[null,10692,null,null,null,null,null,null,null,null,null,null,null,null,null,null,"",""]
[null,10696,null,null,null,null,null,null,null,null,null,null,null,null,null,null,"",""]
[null,10697,null,null,null,null,null,null,null,null,null,null,null,null,null,null,"",""]
[null,10702,null,null,null,null,null,null,null,null,null,null,null,null,null,null,"",""]
[null,10708,null,null,null,null,null,null,null,null,null,null,null,null,null,null,"",""]
[null,10715,null,null,null,null,null,null,null,null,null,null,null,null,null,null,"",""]
[null,10717,null,null,null,null,null,null,null,null,null,null,null,null,null,null,"",""]
[null,10723,null,null,null,null,null,null,null,null,null,null,null,null,null,null,"",""]
[null,10728,null,null,null,null,null,null,null,null,null,null,null,null,null,null,"",""]
[null,10734,null,null,null,null,null,null,null,null,null,null,null,null,null,null,"",""]
[null,10738,null,null,null,null,null,null,null,null,null,null,null,null,null,null,"",""]
[null,10743,null,null,null,null,null,null,null,null,null,null,null,null,null,null,"",""]
[null,10749,null,null,null,null,null,null,null,null,null,null,null,null,null,null,"",""]
[null,10753,null,null,null,null,null,null,null,null,null,null,null,null,null,null,"",""]
[null,10758,null,null,null,null,null,null,null,null,null,null,null,null,null,null,"",""]
[null,10759,null,null,null,null,null,null,null,null,null,null,null,null,null,null,"",""]
[null,10764,null,null,null,null,null,null,null,null,null,null,null,null,null,null,"",""]
[null,10772,null,null,null,null,null,null,null,null,null,null,null,null,null,null,"",""]
[null,10774,null,null,null,null,null,null,null,null,null,null,null,null,null,null,"",""]
[null,10779,null,null,null,null,null,null,null,null,null,null,null,null,null,null,"",""]
[null,10785,null,null,null,null,null,null,null,null,null,null,null,null,null,null,"",""]
[null,10791,null,null,null,null,null,null,null,null,null,null,null,null,null,null,"",""]
[null,10795,null,null,null,null,null,null,null,null,null,null,null,null,null,null,"",""]
[null,10800,null,null,null,null,null,null,null,null,null,null,null,null,null,null,"",""]
[null,10805,null,null,null,null,null,null,null,null,null,null,null,null,null,null,"",""]
[null,10810,null,null,null,null,null,null,null,null,null,null,null,null,null,null,"",""]
[null,10815,null,null,null,null,null,null,null,null,null,null,null,null,null,null,{"$f":"IF(P10820=\"\",\"\",P10820-L10820)","v":""},{"$f":"IFERROR(Q10820/P10820,\"\")","v":""}]
[null,10820,null,null,null,null,null,null,null,null,null,null,null,null,null,null,"",""]
[null,10821,null,null,null,null,null,null,null,null,null,null,null,null,null,null,"",""]
[null,10829,null,null,null,null,null,null,null,null,null,null,null,null,null,null,"",""]
[null,10831,null,null,null,null,null,null,null,null,null,null,null,null,null,null,"",""]
[null,10836,null,null,null,null,null,null,null,null,null,null,null,null,null,null,"",""]
[null,10841,null,null,null,null,null,null,null,null,null,null,null,null,null,null,"",""]
[null,10848,null,null,null,null,null,null,null,null,null,null,null,null,null,null,"",""]
[null,10851,null,null,null,null,null,null,null,null,null,null,null,null,null,null,"",""]
[null,10856,null,null,null,null,null,null,null,null,null,null,null,null,null,null,"",""]
[null,10862,null,null,null,null,null,null,null,null,null,null,null,null,null,null,"",""]
[null,10867,null,null,null,null,null,null,null,null,null,null,null,null,null,null,"",""]
[null,10872,null,null,null,null,null,null,null,null,null,null,null,null,null,null,"",""]
[null,10877,null,null,null,null,null,null,null,null,null,null,null,null,null,null,"",""]
[null,10882,null,null,null,null,null,null,null,null,null,null,null,null,null,null,"",""]
[null,10886,null,null,null,null,null,null,null,null,null,null,null,null,null,null,"",""]
[null,10887,null,null,null,null,null,null,null,null,null,null,null,null,null,null,"",""]
[null,10893,null,null,null,null,null,null,null,null,null,null,null,null,null,null,"",""]
[null,10898,null,null,null,null,null,null,null,null,null,null,null,null,null,null,"",""]
[null,10905,null,null,null,null,null,null,null,null,null,null,null,null,null,null,"",""]
[null,10908,null,null,null,null,null,null,null,null,null,null,null,null,null,null,"",""]
[null,10913,null,null,null,null,null,null,null,null,null,null,null,null,null,null,"",""]
[null,10918,null,null,null,null,null,null,null,null,null,null,null,null,null,null,"",""]
[null,10924,null,null,null,null,null,null,null,null,null,null,null,null,null,null,"",""]
[null,10928,null,null,null,null,null,null,null,null,null,null,null,null,null,null,"",""]
[null,10934,null,null,null,null,null,null,null,null,null,null,null,null,null,null,"",""]
[null,10939,null,null,null,null,null,null,null,null,null,null,null,null,null,null,"",""]
[null,10943,null,null,null,null,null,null,null,null,null,null,null,null,null,null,{"$f":"IF(P10948=\"\",\"\",P10948-L10948)","v":""},{"$f":"IFERROR(Q10948/P10948,\"\")","v":""}]
[null,10944,null,null,null,null,null,null,null,null,null,null,null,null,null,null,"",""]
[null,10949,null,null,null,null,null,null,null,null,null,null,null,null,null,null,"",""]
[null,10955,null,null,null,null,null,null,null,null,null,null,null,null,null,null,"",""]
[null,10962,null,null,null,null,null,null,null,null,null,null,null,null,null,null,"",""]
[null,10964,null,null,null,null,null,null,null,null,null,null,null,null,null,null,"",""]
[null,10970,null,null,null,null,null,null,null,null,null,null,null,null,null,null,"",""]
[null,10975,null,null,null,null,null,null,null,null,null,null,null,null,null,null,"",""]
[null,10981,null,null,null,null,null,null,null,null,null,null,null,null,null,null,"",""]
[null,10985,null,null,null,null,null,null,null,null,null,null,null,null,null,null,"",""]
[null,10990,null,null,null,null,null,null,null,null,null,null,null,null,null,null,"",""]
[null,10996,null,null,null,null,null,null,null,null,null,null,null,null,null,null,"",""]
[null,11000,null,null,null,null,null,null,null,null,null,null,null,null,null,null,"",""]
[null,11005,null,null,null,null,null,null,null,null,null,null,null,null,null,null,"",""]
[null,11006,null,null,null,null,null,null,null,null,null,null,null,null,null,null,"",""]
[null,11011,null,null,null,null,null,null,null,null,null,null,null,null,null,null,"",""]
[null,11019,null,null,null,null,null,null,null,null,null,null,null,null,null,null,"",""]
[null,11021,null,null,null,null,null,null,null,null,null,null,null,null,null,null,"",""]
[null,11026,null,null,null,null,null,null,null,null,null,null,null,null,null,null,"",""]
[null,11032,null,null,null,null,null,null,null,null,null,null,null,null,null,null,"",""]
[null,11037,null,null,null,null,null,null,null,null,null,null,null,null,null,null,"",""]
[null,11040,null,null,null,null,null,null,null,null,null,null,null,null,null,null,"",""]
[null,11047,null,null,null,null,null,null,null,null,null,null,null,null,null,null,"",""]
[null,11052,null,null,null,null,null,null,null,null,null,null,null,null,null,null,"",""]
[null,11058,null,null,null,null,null,null,null,null,null,null,null,null,null,null,"",""]
[null,11059,null,null,null,null,null,null,null,null,null,null,null,null,null,null,"",""]
[null,11067,null,null,null,null,null,null,null,null,null,null,null,null,null,null,"",""]
[null,11068,null,null,null,null,null,null,null,null,null,null,null,null,null,null,"",""]
[null,11073,null,null,null,null,null,null,null,null,null,null,null,null,null,null,"",""]
[null,11078,null,null,null,null,null,null,null,null,null,null,null,null,null,null,"",""]
[null,11083,null,null,null,null,null,null,null,null,null,null,null,null,null,null,"",""]
[null,11088,null,null,null,null,null,null,null,null,null,null,null,null,null,null,"",""]
[null,11094,null,null,null,null,null,null,null,null,null,null,null,null,null,null,"",""]
[null,11097,null,null,null,null,null,null,null,null,null,null,null,null,null,null,"",""]
[null,11103,null,null,null,null,null,null,null,null,null,null,null,null,null,null,"",""]
[null,11109,null,null,null,null,null,null,null,null,null,null,null,null,null,null,"",""]
[null,11114,null,null,null,null,null,null,null,null,null,null,null,null,null,null,"",""]
[null,11116,null,null,null,null,null,null,null,null,null,null,null,null,null,null,"",""]
[null,11124,null,null,null,null,null,null,null,null,null,null,null,null,null,null,"",""]
[null,11129,null,null,null,null,null,null,null,null,null,null,null,null,null,null,"",""]
[null,11130,null,null,null,null,null,null,null,null,null,null,null,null,null,null,"",""]
[null,11135,null,null,null,null,null,null,null,null,null,null,null,null,null,null,{"$f":"IF(P11140=\"\",\"\",P11140-L11140)","v":""},{"$f":"IFERROR(Q11140/P11140,\"\")","v":""}]
[null,11139,null,null,null,null,null,null,null,null,null,null,null,null,null,null,"",""]
[null,11145,null,null,null,null,null,null,null,null,null,null,null,null,null,null,"",""]
[null,11150,null,null,null,null,null,null,null,null,null,null,null,null,null,null,"",""]
[null,11154,null,null,null,null,null,null,null,null,null,null,null,null,null,null,"",""]
[null,11160,null,null,null,null,null,null,null,null,null,null,null,null,null,null,"",""]
[null,11165,null,null,null,null,null,null,null,null,null,null,null,null,null,null,"",""]
[null,11171,null,null,null,null,null,null,null,null,null,null,null,null,null,null,"",""]
[null,11173,null,null,null,null,null,null,null,null,null,null,null,null,null,null,"",""]
[null,11180,null,null,null,null,null,null,null,null,null,null,null,null,null,null,"",""]
[null,11186,null,null,null,null,null,null,null,null,null,null,null,null,null,null,"",""]
[null,11191,null,null,null,null,null,null,null,null,null,null,null,null,null,null,"",""]
[null,11192,null,null,null,null,null,null,null,null,null,null,null,null,null,null,"",""]
[null,11196,null,null,null,null,null,null,null,null,null,null,null,null,null,null,"",""]
[null,11201,null,null,null,null,null,null,null,null,null,null,null,null,null,null,"",""]
[null,11207,null,null,null,null,null,null,null,null,null,null,null,null,null,null,"",""]
[null,11211,null,null,null,null,null,null,null,null,null,null,null,null,null,null,"",""]
[null,11217,null,null,null,null,null,null,null,null,null,null,null,null,null,null,"",""]
[null,11222,null,null,null,null,null,null,null,null,null,null,null,null,null,null,"",""]
[null,11227,null,null,null,null,null,null,null,null,null,null,null,null,null,null,"",""]
[null,11230,null,null,null,null,null,null,null,null,null,null,null,null,null,null,"",""]
[null,11237,null,null,null,null,null,null,null,null,null,null,null,null,null,null,"",""]
[null,11242,null,null,null,null,null,null,null,null,null,null,null,null,null,null,"",""]
[null,11248,null,null,null,null,null,null,null,null,null,null,null,null,null,null,"",""]
[null,11249,null,null,null,null,null,null,null,null,null,null,null,null,null,null,"",""]
[null,11253,null,null,null,null,null,null,null,null,null,null,null,null,null,null,"",""]
[null,11258,null,null,null,null,null,null,null,null,null,null,null,null,null,null,"",""]
[null,11263,null,null,null,null,null,null,null,null,null,null,null,null,null,null,{"$f":"IF(P11268=\"\",\"\",P11268-L11268)","v":""},{"$f":"IFERROR(Q11268/P11268,\"\")","v":""}]
[null,11268,null,null,null,null,null,null,null,null,null,null,null,null,null,null,"",""]
[null,11273,null,null,null,null,null,null,null,null,null,null,null,null,null,null,"",""]
[null,11278,null,null,null,null,null,null,null,null,null,null,null,null,null,null,"",""]
[null,11284,null,null,null,null,null,null,null,null,null,null,null,null,null,null,"",""]
[null,11287,null,null,null,null,null,null,null,null,null,null,null,null,null,null,"",""]
[null,11294,null,null,null,null,null,null,null,null,null,null,null,null,null,null,"",""]
[null,11299,null,null,null,null,null,null,null,null,null,null,null,null,null,null,"",""]
[null,11304,null,null,null,null,null,null,null,null,null,null,null,null,null,null,"",""]
[null,11306,null,null,null,null,null,null,null,null,null,null,null,null,null,null,"",""]
[null,11314,null,null,null,null,null,null,null,null,null,null,null,null,null,null,"",""]
[null,11315,null,null,null,null,null,null,null,null,null,null,null,null,null,null,"",""]
[null,11320,null,null,null,null,null,null,null,null,null,null,null,null,null,null,"",""]
[null,11325,null,null,null,null,null,null,null,null,null,null,null,null,null,null,"",""]
[null,11330,null,null,null,null,null,null,null,null,null,null,null,null,null,null,"",""]
[null,11335,null,null,null,null,null,null,null,null,null,null,null,null,null,null,"",""]
[null,11340,null,null,null,null,null,null,null,null,null,null,null,null,null,null,"",""]
[null,11344,null,null,null,null,null,null,null,null,null,null,null,null,null,null,"",""]
[null,11350,null,null,null,null,null,null,null,null,null,null,null,null,null,null,"",""]
[null,11356,null,null,null,null,null,null,null,null,null,null,null,null,null,null,"",""]
[null,11361,null,null,null,null,null,null,null,null,null,null,null,null,null,null,"",""]
[null,11363,null,null,null,null,null,null,null,null,null,null,null,null,null,null,"",""]
[null,11371,null,null,null,null,null,null,null,null,null,null,null,null,null,null,"",""]
[null,11376,null,null,null,null,null,null,null,null,null,null,null,null,null,null,"",""]
[null,11377,null,null,null,null,null,null,null,null,null,null,null,null,null,null,"",""]
[null,11382,null,null,null,null,null,null,null,null,null,null,null,null,null,null,"",""]
[null,11386,null,null,null,null,null,null,null,null,null,null,null,null,null,null,"",""]
[null,11392,null,null,null,null,null,null,null,null,null,null,null,null,null,null,"",""]
[null,11397,null,null,null,null,null,null,null,null,null,null,null,null,null,null,"",""]
[null,11401,null,null,null,null,null,null,null,null,null,null,null,null,null,null,"",""]
[null,11407,null,null,null,null,null,null,null,null,null,null,null,null,null,null,"",""]
[null,11412,null,null,null,null,null,null,null,null,null,null,null,null,null,null,"",""]
[null,11418,null,null,null,null,null,null,null,null,null,null,null,null,null,null,"",""]
[null,11420,null,null,null,null,null,null,null,null,null,null,null,null,null,null,"",""]
[null,11427,null,null,null,null,null,null,null,null,null,null,null,null,null,null,"",""]
[null,11433,null,null,null,null,null,null,null,null,null,null,null,null,null,null,"",""]
[null,11438,null,null,null,null,null,null,null,null,null,null,null,null,null,null,"",""]
[null,11439,null,null,null,null,null,null,null,null,null,null,null,null,null,null,"",""]
[null,11443,null,null,null,null,null,null,null,null,null,null,null,null,null,null,"",""]
[null,11448,null,null,null,null,null,null,null,null,null,null,null,null,null,null,"",""]
[null,11454,null,null,null,null,null,null,null,null,null,null,null,null,null,null,"",""]
[null,11458,null,null,null,null,null,null,null,null,null,null,null,null,null,null,"",""]
[null,11463,null,null,null,null,null,null,null,null,null,null,null,null,null,null,"",""]
[null,11469,null,null,null,null,null,null,null,null,null,null,null,null,null,null,"",""]
[null,11474,null,null,null,null,null,null,null,null,null,null,null,null,null,null,"",""]
[null,11477,null,null,null,null,null,null,null,null,null,null,null,null,null,null,"",""]
[null,11484,null,null,null,null,null,null,null,null,null,null,null,null,null,null,"",""]
[null,11489,null,null,null,null,null,null,null,null,null,null,null,null,null,null,"",""]
[null,11495,null,null,null,null,null,null,null,null,null,null,null,null,null,null,"",""]
[null,11500,null,null,null,null,null,null,null,null,null,null,null,null,null,null,"",""]
[null,11501,null,null,null,null,null,null,null,null,null,null,null,null,null,null,"",""]
[null,11502,null,null,null,null,null,null,null,null,null,null,null,null,null,null,"",""]
[null,11503,null,null,null,null,null,null,null,null,null,null,null,null,null,null,"",""]
[null,11504,null,null,null,null,null,null,null,null,null,null,null,null,null,null,"",""]
[null,11505,null,null,null,null,null,null,null,null,null,null,null,null,null,null,"",""]
[null,11506,null,null,null,null,null,null,null,null,null,null,null,null,null,null,"",""]
[null,11507,null,null,null,null,null,null,null,null,null,null,null,null,null,null,"",""]
[null,11508,null,null,null,null,null,null,null,null,null,null,null,null,null,null,"",""]
[null,11509,null,null,null,null,null,null,null,null,null,null,null,null,null,null,"",""]
[null,11510,null,null,null,null,null,null,null,null,null,null,null,null,null,null,"",""]
[null,11511,null,null,null,null,null,null,null,null,null,null,null,null,null,null,"",""]
[null,11512,null,null,null,null,null,null,null,null,null,null,null,null,null,null,"",""]
[null,11513,null,null,null,null,null,null,null,null,null,null,null,null,null,null,"",""]
[null,11514,null,null,null,null,null,null,null,null,null,null,null,null,null,null,"",""]
[null,11515,null,null,null,null,null,null,null,null,null,null,null,null,null,null,"",""]
[null,11516,null,null,null,null,null,null,null,null,null,null,null,null,null,null,"",""]
[null,11517,null,null,null,null,null,null,null,null,null,null,null,null,null,null,"",""]
[null,11518,null,null,null,null,null,null,null,null,null,null,null,null,null,null,"",""]
[null,11519,null,null,null,null,null,null,null,null,null,null,null,null,null,null,{"$f":"IF(P11524=\"\",\"\",P11524-L11524)","v":""},{"$f":"IFERROR(Q11524/P11524,\"\")","v":""}]
[null,11520,null,null,null,null,null,null,null,null,null,null,null,null,null,null,"",""]
[null,11521,null,null,null,null,null,null,null,null,null,null,null,null,null,null,"",""]
[null,11522,null,null,null,null,null,null,null,null,null,null,null,null,null,null,"",""]
[null,11523,null,null,null,null,null,null,null,null,null,null,null,null,null,null,"",""]
[null,11524,null,null,null,null,null,null,null,null,null,null,null,null,null,null,"",""]
[null,11525,null,null,null,null,null,null,null,null,null,null,null,null,null,null,"",""]
[null,11526,null,null,null,null,null,null,null,null,null,null,null,null,null,null,"",""]
[null,11527,null,null,null,null,null,null,null,null,null,null,null,null,null,null,"",""]
[null,11528,null,null,null,null,null,null,null,null,null,null,null,null,null,null,"",""]
[null,11529,null,null,null,null,null,null,null,null,null,null,null,null,null,null,"",""]
[null,11530,null,null,null,null,null,null,null,null,null,null,null,null,null,null,"",""]
[null,11531,null,null,null,null,null,null,null,null,null,null,null,null,null,null,"",""]
[null,11532,null,null,null,null,null,null,null,null,null,null,null,null,null,null,"",""]
[null,11533,null,null,null,null,null,null,null,null,null,null,null,null,null,null,"",""]
[null,11534,null,null,null,null,null,null,null,null,null,null,null,null,null,null,"",""]
[null,11535,null,null,null,null,null,null,null,null,null,null,null,null,null,null,"",""]
[null,11536,null,null,null,null,null,null,null,null,null,null,null,null,null,null,"",""]
[null,11537,null,null,null,null,null,null,null,null,null,null,null,null,null,null,"",""]
[null,11538,null,null,null,null,null,null,null,null,null,null,null,null,null,null,"",""]
[null,11539,null,null,null,null,null,null,null,null,null,null,null,null,null,null,"",""]
[null,11540,null,null,null,null,null,null,null,null,null,null,null,null,null,null,"",""]
[null,11541,null,null,null,null,null,null,null,null,null,null,null,null,null,null,"",""]
[null,11542,null,null,null,null,null,null,null,null,null,null,null,null,null,null,"",""]
[null,11543,null,null,null,null,null,null,null,null,null,null,null,null,null,null,"",""]
[null,11544,null,null,null,null,null,null,null,null,null,null,null,null,null,null,"",""]
[null,11545,null,null,null,null,null,null,null,null,null,null,null,null,null,null,"",""]
[null,11546,null,null,null,null,null,null,null,null,null,null,null,null,null,null,"",""]
[null,11547,null,null,null,null,null,null,null,null,null,null,null,null,null,null,"",""]
[null,11548,null,null,null,null,null,null,null,null,null,null,null,null,null,null,"",""]
[null,11549,null,null,null,null,null,null,null,null,null,null,null,null,null,null,"",""]
[null,11550,null,null,null,null,null,null,null,null,null,null,null,null,null,null,"",""]
[null,11551,null,null,null,null,null,null,null,null,null,null,null,null,null,null,"",""]
[null,11552,null,null,null,null,null,null,null,null,null,null,null,null,null,null,"",""]
[null,11553,null,null,null,null,null,null,null,null,null,null,null,null,null,null,"",""]
[null,11554,null,null,null,null,null,null,null,null,null,null,null,null,null,null,"",""]
[null,11555,null,null,null,null,null,null,null,null,null,null,null,null,null,null,"",""]
[null,11556,null,null,null,null,null,null,null,null,null,null,null,null,null,null,"",""]
[null,11557,null,null,null,null,null,null,null,null,null,null,null,null,null,null,"",""]
[null,11558,null,null,null,null,null,null,null,null,null,null,null,null,null,null,"",""]
[null,11559,null,null,null,null,null,null,null,null,null,null,null,null,null,null,"",""]
[null,11560,null,null,null,null,null,null,null,null,null,null,null,null,null,null,"",""]
[null,11561,null,null,null,null,null,null,null,null,null,null,null,null,null,null,"",""]
[null,11562,null,null,null,null,null,null,null,null,null,null,null,null,null,null,"",""]
[null,11563,null,null,null,null,null,null,null,null,null,null,null,null,null,null,"",""]
[null,11564,null,null,null,null,null,null,null,null,null,null,null,null,null,null,"",""]
[null,11565,null,null,null,null,null,null,null,null,null,null,null,null,null,null,"",""]
[null,11566,null,null,null,null,null,null,null,null,null,null,null,null,null,null,"",""]
[null,11567,null,null,null,null,null,null,null,null,null,null,null,null,null,null,"",""]
[null,11568,null,null,null,null,null,null,null,null,null,null,null,null,null,null,"",""]
[null,11569,null,null,null,null,null,null,null,null,null,null,null,null,null,null,"",""]
[null,11570,null,null,null,null,null,null,null,null,null,null,null,null,null,null,"",""]
[null,11571,null,null,null,null,null,null,null,null,null,null,null,null,null,null,"",""]
[null,11572,null,null,null,null,null,null,null,null,null,null,null,null,null,null,"",""]
[null,11573,null,null,null,null,null,null,null,null,null,null,null,null,null,null,"",""]
[null,11574,null,null,null,null,null,null,null,null,null,null,null,null,null,null,"",""]
[null,11575,null,null,null,null,null,null,null,null,null,null,null,null,null,null,"",""]
[null,11576,null,null,null,null,null,null,null,null,null,null,null,null,null,null,"",""]
[null,11577,null,null,null,null,null,null,null,null,null,null,null,null,null,null,"",""]
[null,11578,null,null,null,null,null,null,null,null,null,null,null,null,null,null,"",""]
[null,11579,null,null,null,null,null,null,null,null,null,null,null,null,null,null,"",""]
[null,11580,null,null,null,null,null,null,null,null,null,null,null,null,null,null,"",""]
[null,11581,null,null,null,null,null,null,null,null,null,null,null,null,null,null,"",""]
[null,11582,null,null,null,null,null,null,null,null,null,null,null,null,null,null,"",""]
[null,11583,null,null,null,null,null,null,null,null,null,null,null,null,null,null,{"$f":"IF(P11588=\"\",\"\",P11588-L11588)","v":""},{"$f":"IFERROR(Q11588/P11588,\"\")","v":""}]
[null,11584,null,null,null,null,null,null,null,null,null,null,null,null,null,null,"",""]
[null,11585,null,null,null,null,null,null,null,null,null,null,null,null,null,null,"",""]
[null,11586,null,null,null,null,null,null,null,null,null,null,null,null,null,null,"",""]
[null,11587,null,null,null,null,null,null,null,null,null,null,null,null,null,null,"",""]
[null,11588,null,null,null,null,null,null,null,null,null,null,null,null,null,null,"",""]
[null,11589,null,null,null,null,null,null,null,null,null,null,null,null,null,null,"",""]
[null,11590,null,null,null,null,null,null,null,null,null,null,null,null,null,null,"",""]
[null,11591,null,null,null,null,null,null,null,null,null,null,null,null,null,null,"",""]
[null,11592,null,null,null,null,null,null,null,null,null,null,null,null,null,null,"",""]
[null,11593,null,null,null,null,null,null,null,null,null,null,null,null,null,null,"",""]
[null,11594,null,null,null,null,null,null,null,null,null,null,null,null,null,null,"",""]
[null,11595,null,null,null,null,null,null,null,null,null,null,null,null,null,null,"",""]
[null,11596,null,null,null,null,null,null,null,null,null,null,null,null,null,null,"",""]
[null,11597,null,null,null,null,null,null,null,null,null,null,null,null,null,null,"",""]
[null,11598,null,null,null,null,null,null,null,null,null,null,null,null,null,null,"",""]
[null,11599,null,null,null,null,null,null,null,null,null,null,null,null,null,null,"",""]
[null,11600,null,null,null,null,null,null,null,null,null,null,null,null,null,null,"",""]
[null,11601,null,null,null,null,null,null,null,null,null,null,null,null,null,null,"",""]
[null,11602,null,null,null,null,null,null,null,null,null,null,null,null,null,null,"",""]
[null,11603,null,null,null,null,null,null,null,null,null,null,null,null,null,null,"",""]
[null,11604,null,null,null,null,null,null,null,null,null,null,null,null,null,null,"",""]
[null,11605,null,null,null,null,null,null,null,null,null,null,null,null,null,null,"",""]
[null,11606,null,null,null,null,null,null,null,null,null,null,null,null,null,null,"",""]
[null,11607,null,null,null,null,null,null,null,null,null,null,null,null,null,null,"",""]
[null,11608,null,null,null,null,null,null,null,null,null,null,null,null,null,null,"",""]
[null,11609,null,null,null,null,null,null,null,null,null,null,null,null,null,null,"",""]
[null,11610,null,null,null,null,null,null,null,null,null,null,null,null,null,null,"",""]
[null,11611,null,null,null,null,null,null,null,null,null,null,null,null,null,null,"",""]
[null,11612,null,null,null,null,null,null,null,null,null,null,null,null,null,null,"",""]
[null,11613,null,null,null,null,null,null,null,null,null,null,null,null,null,null,"",""]
[null,11614,null,null,null,null,null,null,null,null,null,null,null,null,null,null,"",""]
[null,11615,null,null,null,null,null,null,null,null,null,null,null,null,null,null,"",""]
[null,11616,null,null,null,null,null,null,null,null,null,null,null,null,null,null,"",""]
[null,11617,null,null,null,null,null,null,null,null,null,null,null,null,null,null,"",""]
[null,11618,null,null,null,null,null,null,null,null,null,null,null,null,null,null,"",""]
[null,11619,null,null,null,null,null,null,null,null,null,null,null,null,null,null,"",""]
[null,11620,null,null,null,null,null,null,null,null,null,null,null,null,null,null,"",""]
[null,11621,null,null,null,null,null,null,null,null,null,null,null,null,null,null,"",""]
[null,11622,null,null,null,null,null,null,null,null,null,null,null,null,null,null,"",""]
[null,11623,null,null,null,null,null,null,null,null,null,null,null,null,null,null,"",""]
[null,11624,null,null,null,null,null,null,null,null,null,null,null,null,null,null,"",""]
[null,11625,null,null,null,null,null,null,null,null,null,null,null,null,null,null,"",""]
[null,11626,null,null,null,null,null,null,null,null,null,null,null,null,null,null,"",""]
[null,11627,null,null,null,null,null,null,null,null,null,null,null,null,null,null,"",""]
[null,11628,null,null,null,null,null,null,null,null,null,null,null,null,null,null,"",""]
[null,11629,null,null,null,null,null,null,null,null,null,null,null,null,null,null,"",""]
[null,11630,null,null,null,null,null,null,null,null,null,null,null,null,null,null,"",""]
[null,11631,null,null,null,null,null,null,null,null,null,null,null,null,null,null,"",""]
[null,11632,null,null,null,null,null,null,null,null,null,null,null,null,null,null,"",""]
[null,11633,null,null,null,null,null,null,null,null,null,null,null,null,null,null,"",""]
[null,11634,null,null,null,null,null,null,null,null,null,null,null,null,null,null,"",""]
[null,11635,null,null,null,null,null,null,null,null,null,null,null,null,null,null,"",""]
[null,11636,null,null,null,null,null,null,null,null,null,null,null,null,null,null,"",""]
[null,11637,null,null,null,null,null,null,null,null,null,null,null,null,null,null,"",""]
[null,11638,null,null,null,null,null,null,null,null,null,null,null,null,null,null,"",""]
[null,11639,null,null,null,null,null,null,null,null,null,null,null,null,null,null,"",""]
[null,11640,null,null,null,null,null,null,null,null,null,null,null,null,null,null,"",""]
[null,11641,null,null,null,null,null,null,null,null,null,null,null,null,null,null,"",""]
[null,11642,null,null,null,null,null,null,null,null,null,null,null,null,null,null,"",""]
[null,11643,null,null,null,null,null,null,null,null,null,null,null,null,null,null,"",""]
[null,11644,null,null,null,null,null,null,null,null,null,null,null,null,null,null,"",""]
[null,11645,null,null,null,null,null,null,null,null,null,null,null,null,null,null,"",""]
[null,11646,null,null,null,null,null,null,null,null,null,null,null,null,null,null,"",""]
[null,11647,null,null,null,null,null,null,null,null,null,null,null,null,null,null,{"$f":"IF(P11652=\"\",\"\",P11652-L11652)","v":""},{"$f":"IFERROR(Q11652/P11652,\"\")","v":""}]
[null,11648,null,null,null,null,null,null,null,null,null,null,null,null,null,null,"",""]
[null,11649,null,null,null,null,null,null,null,null,null,null,null,null,null,null,"",""]
[null,11650,null,null,null,null,null,null,null,null,null,null,null,null,null,null,"",""]
[null,11651,null,null,null,null,null,null,null,null,null,null,null,null,null,null,"",""]
[null,11652,null,null,null,null,null,null,null,null,null,null,null,null,null,null,"",""]
[null,11653,null,null,null,null,null,null,null,null,null,null,null,null,null,null,"",""]
[null,11654,null,null,null,null,null,null,null,null,null,null,null,null,null,null,"",""]
[null,11655,null,null,null,null,null,null,null,null,null,null,null,null,null,null,"",""]
[null,11656,null,null,null,null,null,null,null,null,null,null,null,null,null,null,"",""]
[null,11657,null,null,null,null,null,null,null,null,null,null,null,null,null,null,"",""]
[null,11658,null,null,null,null,null,null,null,null,null,null,null,null,null,null,"",""]
[null,11659,null,null,null,null,null,null,null,null,null,null,null,null,null,null,"",""]
[null,11660,null,null,null,null,null,null,null,null,null,null,null,null,null,null,"",""]
[null,11661,null,null,null,null,null,null,null,null,null,null,null,null,null,null,"",""]
[null,11662,null,null,null,null,null,null,null,null,null,null,null,null,null,null,"",""]
[null,11663,null,null,null,null,null,null,null,null,null,null,null,null,null,null,"",""]
[null,11664,null,null,null,null,null,null,null,null,null,null,null,null,null,null,"",""]
[null,11665,null,null,null,null,null,null,null,null,null,null,null,null,null,null,"",""]
[null,11666,null,null,null,null,null,null,null,null,null,null,null,null,null,null,"",""]
[null,11667,null,null,null,null,null,null,null,null,null,null,null,null,null,null,"",""]
[null,11668,null,null,null,null,null,null,null,null,null,null,null,null,null,null,"",""]
[null,11669,null,null,null,null,null,null,null,null,null,null,null,null,null,null,"",""]
[null,11670,null,null,null,null,null,null,null,null,null,null,null,null,null,null,"",""]
[null,11671,null,null,null,null,null,null,null,null,null,null,null,null,null,null,"",""]
[null,11672,null,null,null,null,null,null,null,null,null,null,null,null,null,null,"",""]
[null,11673,null,null,null,null,null,null,null,null,null,null,null,null,null,null,"",""]
[null,11674,null,null,null,null,null,null,null,null,null,null,null,null,null,null,"",""]
[null,11675,null,null,null,null,null,null,null,null,null,null,null,null,null,null,"",""]
[null,11676,null,null,null,null,null,null,null,null,null,null,null,null,null,null,"",""]
[null,11677,null,null,null,null,null,null,null,null,null,null,null,null,null,null,"",""]
[null,11678,null,null,null,null,null,null,null,null,null,null,null,null,null,null,"",""]
[null,11679,null,null,null,null,null,null,null,null,null,null,null,null,null,null,"",""]
[null,11680,null,null,null,null,null,null,null,null,null,null,null,null,null,null,"",""]
[null,11681,null,null,null,null,null,null,null,null,null,null,null,null,null,null,"",""]
[null,11682,null,null,null,null,null,null,null,null,null,null,null,null,null,null,"",""]
[null,11683,null,null,null,null,null,null,null,null,null,null,null,null,null,null,"",""]
[null,11684,null,null,null,null,null,null,null,null,null,null,null,null,null,null,"",""]
[null,11685,null,null,null,null,null,null,null,null,null,null,null,null,null,null,"",""]
[null,11686,null,null,null,null,null,null,null,null,null,null,null,null,null,null,"",""]
[null,11687,null,null,null,null,null,null,null,null,null,null,null,null,null,null,"",""]
[null,11688,null,null,null,null,null,null,null,null,null,null,null,null,null,null,"",""]
[null,11689,null,null,null,null,null,null,null,null,null,null,null,null,null,null,"",""]
[null,11690,null,null,null,null,null,null,null,null,null,null,null,null,null,null,"",""]
[null,11691,null,null,null,null,null,null,null,null,null,null,null,null,null,null,"",""]
[null,11692,null,null,null,null,null,null,null,null,null,null,null,null,null,null,"",""]
[null,11693,null,null,null,null,null,null,null,null,null,null,null,null,null,null,"",""]
[null,11694,null,null,null,null,null,null,null,null,null,null,null,null,null,null,"",""]
[null,11695,null,null,null,null,null,null,null,null,null,null,null,null,null,null,"",""]
[null,11696,null,null,null,null,null,null,null,null,null,null,null,null,null,null,"",""]
[null,11697,null,null,null,null,null,null,null,null,null,null,null,null,null,null,"",""]
[null,11698,null,null,null,null,null,null,null,null,null,null,null,null,null,null,"",""]
[null,11699,null,null,null,null,null,null,null,null,null,null,null,null,null,null,"",""]
[null,11700,null,null,null,null,null,null,null,null,null,null,null,null,null,null,"",""]
[null,11701,null,null,null,null,null,null,null,null,null,null,null,null,null,null,"",""]
[null,11702,null,null,null,null,null,null,null,null,null,null,null,null,null,null,"",""]
[null,11703,null,null,null,null,null,null,null,null,null,null,null,null,null,null,"",""]
[null,11704,null,null,null,null,null,null,null,null,null,null,null,null,null,null,"",""]
[null,11705,null,null,null,null,null,null,null,null,null,null,null,null,null,null,"",""]
[null,11706,null,null,null,null,null,null,null,null,null,null,null,null,null,null,"",""]
[null,11707,null,null,null,null,null,null,null,null,null,null,null,null,null,null,"",""]
[null,11708,null,null,null,null,null,null,null,null,null,null,null,null,null,null,"",""]
[null,11709,null,null,null,null,null,null,null,null,null,null,null,null,null,null,"",""]
[null,11710,null,null,null,null,null,null,null,null,null,null,null,null,null,null,"",""]
[null,11711,null,null,null,null,null,null,null,null,null,null,null,null,null,null,{"$f":"IF(P11716=\"\",\"\",P11716-L11716)","v":""},{"$f":"IFERROR(Q11716/P11716,\"\")","v":""}]
[null,11712,null,null,null,null,null,null,null,null,null,null,null,null,null,null,"",""]
[null,11713,null,null,null,null,null,null,null,null,null,null,null,null,null,null,"",""]
[null,11714,null,null,null,null,null,null,null,null,null,null,null,null,null,null,"",""]
[null,11715,null,null,null,null,null,null,null,null,null,null,null,null,null,null,"",""]
[null,11716,null,null,null,null,null,null,null,null,null,null,null,null,null,null,"",""]
[null,11717,null,null,null,null,null,null,null,null,null,null,null,null,null,null,"",""]
[null,11718,null,null,null,null,null,null,null,null,null,null,null,null,null,null,"",""]
[null,11719,null,null,null,null,null,null,null,null,null,null,null,null,null,null,"",""]
[null,11720,null,null,null,null,null,null,null,null,null,null,null,null,null,null,"",""]
[null,11721,null,null,null,null,null,null,null,null,null,null,null,null,null,null,"",""]
[null,11722,null,null,null,null,null,null,null,null,null,null,null,null,null,null,"",""]
[null,11723,null,null,null,null,null,null,null,null,null,null,null,null,null,null,"",""]
[null,11724,null,null,null,null,null,null,null,null,null,null,null,null,null,null,"",""]
[null,11725,null,null,null,null,null,null,null,null,null,null,null,null,null,null,"",""]
[null,11726,null,null,null,null,null,null,null,null,null,null,null,null,null,null,"",""]
[null,11727,null,null,null,null,null,null,null,null,null,null,null,null,null,null,"",""]
[null,11728,null,null,null,null,null,null,null,null,null,null,null,null,null,null,"",""]
[null,11729,null,null,null,null,null,null,null,null,null,null,null,null,null,null,"",""]
[null,11730,null,null,null,null,null,null,null,null,null,null,null,null,null,null,"",""]
[null,11731,null,null,null,null,null,null,null,null,null,null,null,null,null,null,"",""]
[null,11732,null,null,null,null,null,null,null,null,null,null,null,null,null,null,"",""]
[null,11733,null,null,null,null,null,null,null,null,null,null,null,null,null,null,"",""]
[null,11734,null,null,null,null,null,null,null,null,null,null,null,null,null,null,"",""]
[null,11735,null,null,null,null,null,null,null,null,null,null,null,null,null,null,"",""]
[null,11736,null,null,null,null,null,null,null,null,null,null,null,null,null,null,"",""]
[null,11737,null,null,null,null,null,null,null,null,null,null,null,null,null,null,"",""]
[null,11738,null,null,null,null,null,null,null,null,null,null,null,null,null,null,"",""]
[null,11739,null,null,null,null,null,null,null,null,null,null,null,null,null,null,"",""]
[null,11740,null,null,null,null,null,null,null,null,null,null,null,null,null,null,"",""]
[null,11741,null,null,null,null,null,null,null,null,null,null,null,null,null,null,"",""]
[null,11742,null,null,null,null,null,null,null,null,null,null,null,null,null,null,"",""]
[null,11743,null,null,null,null,null,null,null,null,null,null,null,null,null,null,"",""]
[null,11744,null,null,null,null,null,null,null,null,null,null,null,null,null,null,"",""]
[null,11745,null,null,null,null,null,null,null,null,null,null,null,null,null,null,"",""]
[null,11746,null,null,null,null,null,null,null,null,null,null,null,null,null,null,"",""]
[null,11747,null,null,null,null,null,null,null,null,null,null,null,null,null,null,"",""]
[null,11748,null,null,null,null,null,null,null,null,null,null,null,null,null,null,"",""]
[null,11749,null,null,null,null,null,null,null,null,null,null,null,null,null,null,"",""]
[null,11750,null,null,null,null,null,null,null,null,null,null,null,null,null,null,"",""]
[null,11751,null,null,null,null,null,null,null,null,null,null,null,null,null,null,"",""]
[null,11752,null,null,null,null,null,null,null,null,null,null,null,null,null,null,"",""]
[null,11753,null,null,null,null,null,null,null,null,null,null,null,null,null,null,"",""]
[null,11754,null,null,null,null,null,null,null,null,null,null,null,null,null,null,"",""]
[null,11755,null,null,null,null,null,null,null,null,null,null,null,null,null,null,"",""]
[null,11756,null,null,null,null,null,null,null,null,null,null,null,null,null,null,"",""]
[null,11757,null,null,null,null,null,null,null,null,null,null,null,null,null,null,"",""]
[null,11758,null,null,null,null,null,null,null,null,null,null,null,null,null,null,"",""]
[null,11759,null,null,null,null,null,null,null,null,null,null,null,null,null,null,"",""]
[null,11760,null,null,null,null,null,null,null,null,null,null,null,null,null,null,"",""]
[null,11761,null,null,null,null,null,null,null,null,null,null,null,null,null,null,"",""]
[null,11762,null,null,null,null,null,null,null,null,null,null,null,null,null,null,"",""]
[null,11763,null,null,null,null,null,null,null,null,null,null,null,null,null,null,"",""]
[null,11764,null,null,null,null,null,null,null,null,null,null,null,null,null,null,"",""]
[null,11765,null,null,null,null,null,null,null,null,null,null,null,null,null,null,"",""]
[null,11766,null,null,null,null,null,null,null,null,null,null,null,null,null,null,"",""]
[null,11767,null,null,null,null,null,null,null,null,null,null,null,null,null,null,"",""]
[null,11768,null,null,null,null,null,null,null,null,null,null,null,null,null,null,"",""]
[null,11769,null,null,null,null,null,null,null,null,null,null,null,null,null,null,"",""]
[null,11770,null,null,null,null,null,null,null,null,null,null,null,null,null,null,"",""]
[null,11771,null,null,null,null,null,null,null,null,null,null,null,null,null,null,"",""]
[null,11772,null,null,null,null,null,null,null,null,null,null,null,null,null,null,"",""]
[null,11773,null,null,null,null,null,null,null,null,null,null,null,null,null,null,"",""]
[null,11774,null,null,null,null,null,null,null,null,null,null,null,null,null,null,"",""]
[null,11775,null,null,null,null,null,null,null,null,null,null,null,null,null,null,{"$f":"IF(P11780=\"\",\"\",P11780-L11780)","v":""},{"$f":"IFERROR(Q11780/P11780,\"\")","v":""}]
[null,11776,null,null,null,null,null,null,null,null,null,null,null,null,null,null,"",""]
[null,11777,null,null,null,null,null,null,null,null,null,null,null,null,null,null,"",""]
[null,11778,null,null,null,null,null,null,null,null,null,null,null,null,null,null,"",""]
[null,11779,null,null,null,null,null,null,null,null,null,null,null,null,null,null,"",""]
[null,11780,null,null,null,null,null,null,null,null,null,null,null,null,null,null,"",""]
[null,11781,null,null,null,null,null,null,null,null,null,null,null,null,null,null,"",""]
[null,11782,null,null,null,null,null,null,null,null,null,null,null,null,null,null,"",""]
[null,11783,null,null,null,null,null,null,null,null,null,null,null,null,null,null,"",""]
[null,11784,null,null,null,null,null,null,null,null,null,null,null,null,null,null,"",""]
[null,11785,null,null,null,null,null,null,null,null,null,null,null,null,null,null,"",""]
[null,11786,null,null,null,null,null,null,null,null,null,null,null,null,null,null,"",""]
[null,11787,null,null,null,null,null,null,null,null,null,null,null,null,null,null,"",""]
[null,11788,null,null,null,null,null,null,null,null,null,null,null,null,null,null,"",""]
[null,11789,null,null,null,null,null,null,null,null,null,null,null,null,null,null,"",""]
[null,11790,null,null,null,null,null,null,null,null,null,null,null,null,null,null,"",""]
[null,11791,null,null,null,null,null,null,null,null,null,null,null,null,null,null,"",""]
[null,11792,null,null,null,null,null,null,null,null,null,null,null,null,null,null,"",""]
[null,11793,null,null,null,null,null,null,null,null,null,null,null,null,null,null,"",""]
[null,11794,null,null,null,null,null,null,null,null,null,null,null,null,null,null,"",""]
[null,11795,null,null,null,null,null,null,null,null,null,null,null,null,null,null,"",""]
[null,11796,null,null,null,null,null,null,null,null,null,null,null,null,null,null,"",""]
[null,11797,null,null,null,null,null,null,null,null,null,null,null,null,null,null,"",""]
[null,11798,null,null,null,null,null,null,null,null,null,null,null,null,null,null,"",""]
[null,11799,null,null,null,null,null,null,null,null,null,null,null,null,null,null,"",""]
[null,11800,null,null,null,null,null,null,null,null,null,null,null,null,null,null,"",""]
[null,11801,null,null,null,null,null,null,null,null,null,null,null,null,null,null,"",""]
[null,11802,null,null,null,null,null,null,null,null,null,null,null,null,null,null,"",""]
[null,11803,null,null,null,null,null,null,null,null,null,null,null,null,null,null,"",""]
[null,11804,null,null,null,null,null,null,null,null,null,null,null,null,null,null,"",""]
[null,11805,null,null,null,null,null,null,null,null,null,null,null,null,null,null,"",""]
[null,11806,null,null,null,null,null,null,null,null,null,null,null,null,null,null,"",""]
[null,11807,null,null,null,null,null,null,null,null,null,null,null,null,null,null,"",""]
[null,11808,null,null,null,null,null,null,null,null,null,null,null,null,null,null,"",""]
[null,11809,null,null,null,null,null,null,null,null,null,null,null,null,null,null,"",""]
[null,11810,null,null,null,null,null,null,null,null,null,null,null,null,null,null,"",""]
[null,11811,null,null,null,null,null,null,null,null,null,null,null,null,null,null,"",""]
[null,11812,null,null,null,null,null,null,null,null,null,null,null,null,null,null,"",""]
[null,11813,null,null,null,null,null,null,null,null,null,null,null,null,null,null,"",""]
[null,11814,null,null,null,null,null,null,null,null,null,null,null,null,null,null,"",""]
[null,11815,null,null,null,null,null,null,null,null,null,null,null,null,null,null,"",""]
[null,11816,null,null,null,null,null,null,null,null,null,null,null,null,null,null,"",""]
[null,11817,null,null,null,null,null,null,null,null,null,null,null,null,null,null,"",""]
[null,11818,null,null,null,null,null,null,null,null,null,null,null,null,null,null,"",""]
[null,11819,null,null,null,null,null,null,null,null,null,null,null,null,null,null,"",""]
[null,11820,null,null,null,null,null,null,null,null,null,null,null,null,null,null,"",""]
[null,11821,null,null,null,null,null,null,null,null,null,null,null,null,null,null,"",""]
[null,11822,null,null,null,null,null,null,null,null,null,null,null,null,null,null,"",""]
[null,11823,null,null,null,null,null,null,null,null,null,null,null,null,null,null,"",""]
[null,11824,null,null,null,null,null,null,null,null,null,null,null,null,null,null,"",""]
[null,11825,null,null,null,null,null,null,null,null,null,null,null,null,null,null,"",""]
[null,11826,null,null,null,null,null,null,null,null,null,null,null,null,null,null,"",""]
[null,11827,null,null,null,null,null,null,null,null,null,null,null,null,null,null,"",""]
[null,11828,null,null,null,null,null,null,null,null,null,null,null,null,null,null,"",""]
[null,11829,null,null,null,null,null,null,null,null,null,null,null,null,null,null,"",""]
[null,11830,null,null,null,null,null,null,null,null,null,null,null,null,null,null,"",""]
[null,11831,null,null,null,null,null,null,null,null,null,null,null,null,null,null,"",""]
[null,11832,null,null,null,null,null,null,null,null,null,null,null,null,null,null,"",""]
[null,11833,null,null,null,null,null,null,null,null,null,null,null,null,null,null,"",""]
[null,11834,null,null,null,null,null,null,null,null,null,null,null,null,null,null,"",""]
[null,11835,null,null,null,null,null,null,null,null,null,null,null,null,null,null,"",""]
[null,11836,null,null,null,null,null,null,null,null,null,null,null,null,null,null,"",""]
[null,11837,null,null,null,null,null,null,null,null,null,null,null,null,null,null,"",""]
[null,11838,null,null,null,null,null,null,null,null,null,null,null,null,null,null,"",""]
[null,11839,null,null,null,null,null,null,null,null,null,null,null,null,null,null,{"$f":"IF(P11844=\"\",\"\",P11844-L11844)","v":""},{"$f":"IFERROR(Q11844/P11844,\"\")","v":""}]
[null,11840,null,null,null,null,null,null,null,null,null,null,null,null,null,null,"",""]
[null,11841,null,null,null,null,null,null,null,null,null,null,null,null,null,null,"",""]
[null,11842,null,null,null,null,null,null,null,null,null,null,null,null,null,null,"",""]
[null,11843,null,null,null,null,null,null,null,null,null,null,null,null,null,null,"",""]
[null,11844,null,null,null,null,null,null,null,null,null,null,null,null,null,null,"",""]
[null,11845,null,null,null,null,null,null,null,null,null,null,null,null,null,null,"",""]
[null,11846,null,null,null,null,null,null,null,null,null,null,null,null,null,null,"",""]
[null,11847,null,null,null,null,null,null,null,null,null,null,null,null,null,null,"",""]
[null,11848,null,null,null,null,null,null,null,null,null,null,null,null,null,null,"",""]
[null,11849,null,null,null,null,null,null,null,null,null,null,null,null,null,null,"",""]
[null,11850,null,null,null,null,null,null,null,null,null,null,null,null,null,null,"",""]
[null,11851,null,null,null,null,null,null,null,null,null,null,null,null,null,null,"",""]
[null,11852,null,null,null,null,null,null,null,null,null,null,null,null,null,null,"",""]
[null,11853,null,null,null,null,null,null,null,null,null,null,null,null,null,null,"",""]
[null,11854,null,null,null,null,null,null,null,null,null,null,null,null,null,null,"",""]
[null,11855,null,null,null,null,null,null,null,null,null,null,null,null,null,null,"",""]
[null,11856,null,null,null,null,null,null,null,null,null,null,null,null,null,null,"",""]
[null,11857,null,null,null,null,null,null,null,null,null,null,null,null,null,null,"",""]
[null,11858,null,null,null,null,null,null,null,null,null,null,null,null,null,null,"",""]
[null,11859,null,null,null,null,null,null,null,null,null,null,null,null,null,null,"",""]
[null,11860,null,null,null,null,null,null,null,null,null,null,null,null,null,null,"",""]
[null,11861,null,null,null,null,null,null,null,null,null,null,null,null,null,null,"",""]
[null,11862,null,null,null,null,null,null,null,null,null,null,null,null,null,null,"",""]
[null,11863,null,null,null,null,null,null,null,null,null,null,null,null,null,null,"",""]
[null,11864,null,null,null,null,null,null,null,null,null,null,null,null,null,null,"",""]
[null,11865,null,null,null,null,null,null,null,null,null,null,null,null,null,null,"",""]
[null,11866,null,null,null,null,null,null,null,null,null,null,null,null,null,null,"",""]
[null,11867,null,null,null,null,null,null,null,null,null,null,null,null,null,null,"",""]
[null,11868,null,null,null,null,null,null,null,null,null,null,null,null,null,null,"",""]
[null,11869,null,null,null,null,null,null,null,null,null,null,null,null,null,null,"",""]
[null,11870,null,null,null,null,null,null,null,null,null,null,null,null,null,null,"",""]
[null,11871,null,null,null,null,null,null,null,null,null,null,null,null,null,null,"",""]
[null,11872,null,null,null,null,null,null,null,null,null,null,null,null,null,null,"",""]
[null,11873,null,null,null,null,null,null,null,null,null,null,null,null,null,null,"",""]
[null,11874,null,null,null,null,null,null,null,null,null,null,null,null,null,null,"",""]
[null,11875,null,null,null,null,null,null,null,null,null,null,null,null,null,null,"",""]
[null,11876,null,null,null,null,null,null,null,null,null,null,null,null,null,null,"",""]
[null,11877,null,null,null,null,null,null,null,null,null,null,null,null,null,null,"",""]
[null,11878,null,null,null,null,null,null,null,null,null,null,null,null,null,null,"",""]
[null,11879,null,null,null,null,null,null,null,null,null,null,null,null,null,null,"",""]
[null,11880,null,null,null,null,null,null,null,null,null,null,null,null,null,null,"",""]
[null,11881,null,null,null,null,null,null,null,null,null,null,null,null,null,null,"",""]
[null,11882,null,null,null,null,null,null,null,null,null,null,null,null,null,null,"",""]
[null,11883,null,null,null,null,null,null,null,null,null,null,null,null,null,null,"",""]
[null,11884,null,null,null,null,null,null,null,null,null,null,null,null,null,null,"",""]
[null,11885,null,null,null,null,null,null,null,null,null,null,null,null,null,null,"",""]
[null,11886,null,null,null,null,null,null,null,null,null,null,null,null,null,null,"",""]
[null,11887,null,null,null,null,null,null,null,null,null,null,null,null,null,null,"",""]
[null,11888,null,null,null,null,null,null,null,null,null,null,null,null,null,null,"",""]
[null,11889,null,null,null,null,null,null,null,null,null,null,null,null,null,null,"",""]
[null,11890,null,null,null,null,null,null,null,null,null,null,null,null,null,null,"",""]
[null,11891,null,null,null,null,null,null,null,null,null,null,null,null,null,null,"",""]
[null,11892,null,null,null,null,null,null,null,null,null,null,null,null,null,null,"",""]
[null,11893,null,null,null,null,null,null,null,null,null,null,null,null,null,null,"",""]
[null,11894,null,null,null,null,null,null,null,null,null,null,null,null,null,null,"",""]
[null,11895,null,null,null,null,null,null,null,null,null,null,null,null,null,null,"",""]
[null,11896,null,null,null,null,null,null,null,null,null,null,null,null,null,null,"",""]
[null,11897,null,null,null,null,null,null,null,null,null,null,null,null,null,null,"",""]
[null,11898,null,null,null,null,null,null,null,null,null,null,null,null,null,null,"",""]
[null,11899,null,null,null,null,null,null,null,null,null,null,null,null,null,null,"",""]
[null,11900,null,null,null,null,null,null,null,null,null,null,null,null,null,null,"",""]
[null,11901,null,null,null,null,null,null,null,null,null,null,null,null,null,null,"",""]
[null,11902,null,null,null,null,null,null,null,null,null,null,null,null,null,null,"",""]
[null,11903,null,null,null,null,null,null,null,null,null,null,null,null,null,null,{"$f":"IF(P11908=\"\",\"\",P11908-L11908)","v":""},{"$f":"IFERROR(Q11908/P11908,\"\")","v":""}]
[null,11904,null,null,null,null,null,null,null,null,null,null,null,null,null,null,"",""]
[null,11905,null,null,null,null,null,null,null,null,null,null,null,null,null,null,"",""]
[null,11906,null,null,null,null,null,null,null,null,null,null,null,null,null,null,"",""]
[null,11907,null,null,null,null,null,null,null,null,null,null,null,null,null,null,"",""]
[null,11908,null,null,null,null,null,null,null,null,null,null,null,null,null,null,"",""]
[null,11909,null,null,null,null,null,null,null,null,null,null,null,null,null,null,"",""]
[null,11910,null,null,null,null,null,null,null,null,null,null,null,null,null,null,"",""]
[null,11911,null,null,null,null,null,null,null,null,null,null,null,null,null,null,"",""]
[null,11912,null,null,null,null,null,null,null,null,null,null,null,null,null,null,"",""]
[null,11913,null,null,null,null,null,null,null,null,null,null,null,null,null,null,"",""]
[null,11914,null,null,null,null,null,null,null,null,null,null,null,null,null,null,"",""]
[null,11915,null,null,null,null,null,null,null,null,null,null,null,null,null,null,"",""]
[null,11916,null,null,null,null,null,null,null,null,null,null,null,null,null,null,"",""]
[null,11917,null,null,null,null,null,null,null,null,null,null,null,null,null,null,"",""]
[null,11918,null,null,null,null,null,null,null,null,null,null,null,null,null,null,"",""]
[null,11919,null,null,null,null,null,null,null,null,null,null,null,null,null,null,"",""]
[null,11920,null,null,null,null,null,null,null,null,null,null,null,null,null,null,"",""]
[null,11921,null,null,null,null,null,null,null,null,null,null,null,null,null,null,"",""]
[null,11922,null,null,null,null,null,null,null,null,null,null,null,null,null,null,"",""]
[null,11923,null,null,null,null,null,null,null,null,null,null,null,null,null,null,"",""]
[null,11924,null,null,null,null,null,null,null,null,null,null,null,null,null,null,"",""]
[null,11925,null,null,null,null,null,null,null,null,null,null,null,null,null,null,"",""]
[null,11926,null,null,null,null,null,null,null,null,null,null,null,null,null,null,"",""]
[null,11927,null,null,null,null,null,null,null,null,null,null,null,null,null,null,"",""]
[null,11928,null,null,null,null,null,null,null,null,null,null,null,null,null,null,"",""]
[null,11929,null,null,null,null,null,null,null,null,null,null,null,null,null,null,"",""]
[null,11930,null,null,null,null,null,null,null,null,null,null,null,null,null,null,"",""]
[null,11931,null,null,null,null,null,null,null,null,null,null,null,null,null,null,"",""]
[null,11932,null,null,null,null,null,null,null,null,null,null,null,null,null,null,"",""]
[null,11933,null,null,null,null,null,null,null,null,null,null,null,null,null,null,"",""]
[null,11934,null,null,null,null,null,null,null,null,null,null,null,null,null,null,"",""]
[null,11935,null,null,null,null,null,null,null,null,null,null,null,null,null,null,"",""]
[null,11936,null,null,null,null,null,null,null,null,null,null,null,null,null,null,"",""]
[null,11937,null,null,null,null,null,null,null,null,null,null,null,null,null,null,"",""]
[null,11938,null,null,null,null,null,null,null,null,null,null,null,null,null,null,"",""]
[null,11939,null,null,null,null,null,null,null,null,null,null,null,null,null,null,"",""]
[null,11940,null,null,null,null,null,null,null,null,null,null,null,null,null,null,"",""]
[null,11941,null,null,null,null,null,null,null,null,null,null,null,null,null,null,"",""]
[null,11942,null,null,null,null,null,null,null,null,null,null,null,null,null,null,"",""]
[null,11943,null,null,null,null,null,null,null,null,null,null,null,null,null,null,"",""]
[null,11944,null,null,null,null,null,null,null,null,null,null,null,null,null,null,"",""]
[null,11945,null,null,null,null,null,null,null,null,null,null,null,null,null,null,"",""]
[null,11946,null,null,null,null,null,null,null,null,null,null,null,null,null,null,"",""]
[null,11947,null,null,null,null,null,null,null,null,null,null,null,null,null,null,"",""]
[null,11948,null,null,null,null,null,null,null,null,null,null,null,null,null,null,"",""]
[null,11949,null,null,null,null,null,null,null,null,null,null,null,null,null,null,"",""]
[null,11950,null,null,null,null,null,null,null,null,null,null,null,null,null,null,"",""]
[null,11951,null,null,null,null,null,null,null,null,null,null,null,null,null,null,"",""]
[null,11952,null,null,null,null,null,null,null,null,null,null,null,null,null,null,"",""]
[null,11953,null,null,null,null,null,null,null,null,null,null,null,null,null,null,"",""]
[null,11954,null,null,null,null,null,null,null,null,null,null,null,null,null,null,"",""]
[null,11955,null,null,null,null,null,null,null,null,null,null,null,null,null,null,"",""]
[null,11956,null,null,null,null,null,null,null,null,null,null,null,null,null,null,"",""]
[null,11957,null,null,null,null,null,null,null,null,null,null,null,null,null,null,"",""]
[null,11958,null,null,null,null,null,null,null,null,null,null,null,null,null,null,"",""]
[null,11959,null,null,null,null,null,null,null,null,null,null,null,null,null,null,"",""]
[null,11960,null,null,null,null,null,null,null,null,null,null,null,null,null,null,"",""]
[null,11961,null,null,null,null,null,null,null,null,null,null,null,null,null,null,"",""]
[null,11962,null,null,null,null,null,null,null,null,null,null,null,null,null,null,"",""]
[null,11963,null,null,null,null,null,null,null,null,null,null,null,null,null,null,"",""]
[null,11964,null,null,null,null,null,null,null,null,null,null,null,null,null,null,"",""]
[null,11965,null,null,null,null,null,null,null,null,null,null,null,null,null,null,"",""]
[null,11966,null,null,null,null,null,null,null,null,null,null,null,null,null,null,"",""]
[null,11967,null,null,null,null,null,null,null,null,null,null,null,null,null,null,{"$f":"IF(P11972=\"\",\"\",P11972-L11972)","v":""},{"$f":"IFERROR(Q11972/P11972,\"\")","v":""}]
[null,11968,null,null,null,null,null,null,null,null,null,null,null,null,null,null,"",""]
[null,11969,null,null,null,null,null,null,null,null,null,null,null,null,null,null,"",""]
[null,11970,null,null,null,null,null,null,null,null,null,null,null,null,null,null,"",""]
[null,11971,null,null,null,null,null,null,null,null,null,null,null,null,null,null,"",""]
[null,11972,null,null,null,null,null,null,null,null,null,null,null,null,null,null,"",""]
[null,11973,null,null,null,null,null,null,null,null,null,null,null,null,null,null,"",""]
[null,11974,null,null,null,null,null,null,null,null,null,null,null,null,null,null,"",""]
[null,11975,null,null,null,null,null,null,null,null,null,null,null,null,null,null,"",""]
[null,11976,null,null,null,null,null,null,null,null,null,null,null,null,null,null,"",""]
[null,11977,null,null,null,null,null,null,null,null,null,null,null,null,null,null,"",""]
[null,11978,null,null,null,null,null,null,null,null,null,null,null,null,null,null,"",""]
[null,11979,null,null,null,null,null,null,null,null,null,null,null,null,null,null,"",""]
[null,11980,null,null,null,null,null,null,null,null,null,null,null,null,null,null,"",""]
[null,11981,null,null,null,null,null,null,null,null,null,null,null,null,null,null,"",""]
[null,11982,null,null,null,null,null,null,null,null,null,null,null,null,null,null,"",""]
[null,11983,null,null,null,null,null,null,null,null,null,null,null,null,null,null,"",""]
[null,11984,null,null,null,null,null,null,null,null,null,null,null,null,null,null,"",""]
[null,11985,null,null,null,null,null,null,null,null,null,null,null,null,null,null,"",""]
[null,11986,null,null,null,null,null,null,null,null,null,null,null,null,null,null,"",""]
[null,11987,null,null,null,null,null,null,null,null,null,null,null,null,null,null,"",""]
[null,11988,null,null,null,null,null,null,null,null,null,null,null,null,null,null,"",""]
[null,11989,null,null,null,null,null,null,null,null,null,null,null,null,null,null,"",""]
[null,11990,null,null,null,null,null,null,null,null,null,null,null,null,null,null,"",""]
[null,11991,null,null,null,null,null,null,null,null,null,null,null,null,null,null,"",""]
[null,11992,null,null,null,null,null,null,null,null,null,null,null,null,null,null,"",""]
[null,11993,null,null,null,null,null,null,null,null,null,null,null,null,null,null,"",""]
[null,11994,null,null,null,null,null,null,null,null,null,null,null,null,null,null,"",""]
[null,11995,null,null,null,null,null,null,null,null,null,null,null,null,null,null,"",""]
[null,11996,null,null,null,null,null,null,null,null,null,null,null,null,null,null,"",""]
[null,11997,null,null,null,null,null,null,null,null,null,null,null,null,null,null,"",""]
[null,11998,null,null,null,null,null,null,null,null,null,null,null,null,null,null,"",""]
[null,11999,null,null,null,null,null,null,null,null,null,null,null,null,null,null,"",""]
[null,12000,null,null,null,null,null,null,null,null,null,null,null,null,null,null,"",""]

{"sheet":"集計","index":3,"n_rows":24,"n_cols":6,"rows_kept":24,"cut":false,"hidden":false,"merged":[]}
[]
[]
[null,"≪集計条件≫"]
[]
[null,null,"納品日：","2021-01-01","～","2021-01-31"]
[]
[null,null,"場所：",null,null,"種別："]
[]
[null,null,"お客様名：","寺",null,"発注先："]
[]
[null,null,"部門：",null,null,"販売予定月："]
[]
[]
[null,"≪該当結果≫"]
[]
[null,null,"件数：",1]
[]
[null,null,"販売価格：",4285714]
[]
[null,null,"仕入金額：",3000000]
[]
[null,null,"利益額：",{"$f":"D18-D20","v":1285714}]
[]
[null,null,"利益率：",{"$f":"IFERROR(D22/D18,\"ERROR\")","v":0.29999995333333024}]